Workbook

Sheet INTRO
B2: Formulaire de demande commune de médicaments pour CP v.3.1
B4: Dans le cadre des efforts mondiaux entrepris pour accélérer l'expansion de la chimioprévention (CP) pour l'élimination de la filariose lymphatique et la lutte contre la schistosomiase et les géohelminthiases, l'Organisation mondiale de la Santé (OMS) facilite l'approvisionnement en albendazole, comprimés de 400 mg (GSK), pour les programmes nationaux d'élimination de la filariose lymphatique et programmes nationaux de lutte contre les géohelminthiases; en diethylcarbamazine, comprimés de 100 mg (Eisai), pour les programmes nationaux d'élimination de la filariose lymphatique; en mebendazole, comprimés de 500 mg (J&J) pour les programmes nationaux de lutte contre les géohelminthiases et en praziquantel, comprimés de 600 mg (Merck KGaA), destinés aux enfants d'âge scolaire, pour les programmes nationaux de lutte contre la schistosomiase. L'OMS contribue également à l'approvisionnement en ivermectine, comprimés de 3 mg (Merck), pour les programmes de donation pour l'onchocercose et la filariose lymphatique. Cet outil Excel est concu pour aider les pays à quantifier le nombre de comprimés nécessaires, selon le traitement de chimioprévention requis, pour atteindre les objectifs de couverture de traitement de populations et districts pour l'année de la demande de médicaments. Le résultat de cet outil est une demande commune de médicaments pour la chimioprévention des maladies tropicales négligées, qui peut être imprimée, signée et soumise à l'OMS pour la demande de ces médicaments.
B6: Structure de l'application (feuilles de travail) :
B8: INTRO | C8: Cette feuille contient des instructions pour compléter le formulaire de demande de médicaments pour la chimioprévention et des informations sur le statut de la chimioprévention pour les maladies d'endémie du pays.
B9: COUNTRY_INFO | C9: Cette feuille contient des informations sur la structure administrative du pays, la population par groupe d'âge, le statut d'endémicité pour chaque maladie, la population devant être traitée par chimioprévention et les interventions prévues.
B10: DEC, ALB_MBD, PZQ et IVM | C10: Ces feuilles contiennent des informations sur l'endémicité des districts ciblés pour le traitement aux médicaments spécifiques à la chimioprévention, les plans de traitement, et le nombre de comprimés requis et demandés.
B11: SUMMARY | C11: Cette feuille inclut un résumé du nombre de comprimés demandés, des informations concernant le stock et les dates de soumission de la demande de médicaments. Avant de générer le rapport (run macros), veuillez sélectionner le médicament pour lequel le rapport est nécessaire. Veuillez suivre la même règle pour voir le nombre de personnes à traiter pour les maladies spécifiques. Cette feuille doit être imprimée et soumise en tant que "Formulaire de demande commune de médicaments pour chimioprévention" (voir les instructions pour la soumission du formulaire sous la feuille SUMMARY).
B13: Instructions pour la saisie des données
B15: La plupart des cellules des feuilles de travail mentionnées ci-dessus contiennent des formules calculées automatiquement en fonction du protocole de traitement recommandé par l'OMS pour chaque maladie. Voir : http://www.who.int/neglected_diseases/preventive_chemotherapy/pct_manual/en/index.html
B17: Veuillez entrer vos données dans les cellules en fonction de leur code de couleur :
C19: Blanc - la cellule n'est pas protégée. Veuillez entrer la valeur de l'indicateur demandé.
C21: Jaune - la cellule est protégée et inclut le nom de l'indicateur. Aucune entrée de données requise.
C23: Orange - la cellule n'est pas protégée et contient un menu déroulant. Veuillez sélectionner la valeur dans le menu déroulant.
C26: Vert - la cellule n'est pas protégée et contient des formules. Veuillez changer la valeur indiquée uniquement si vos données sont différentes de celles calculées automatiquement.
C29: Bleu - la cellule est protégée et contient des formules. Aucune entrée de données requise.
B31: Données pays
B33: PAYS | E33: Cote d'Ivoire
B35: Année de la demande de médicaments | E35: 2021
B37: Le pays est-il endémique à la filariose lymphatique (FL) ? | E37: Endémique
B39: Le pays est-il endémique à l'onchocercose (ONCHO) ? | E39: Endémique
B41: Le pays est-il endémique aux géohelminthiases (STH) ? | E41: Endémique
B43: Le pays est-il endémique à la schistosomiase (SCH) ? | E43: Endémique
B45: Combien d'unités administratives compte le pays ? | E45: 113
B47: Si les données démographiques par groupe d'âge ne sont pas disponibles au second niveau administratif, veuillez entrer la proportion (%) de population, par groupe d'âge, du pays. Si les données sont disponibles, veuillez laisser les cellules vierges.
B48: 1-4 ans | C48: Enfants d'âge pré-scolaire (EAPréS) | E48: 0.1269
B49: 5-14 ans | C49: Enfants d'âge scolaire (EAS) | E49: 0.2544
B50: 15 ans et plus | C50: Adultes | E50: 0.5836

Sheet COUNTRY_INFO
A1: INFORMATIONS PAYS
A2: Struture administrative, population par groupe d'âge, statut d'endémicité et interventions planifiées
A4: TOTAL | D4: =SUM(D$9:D$1000) -> 27159033 | E4: =SUM(E$9:E$1000) -> 3446483 | F4: =SUM(F$9:F$1000) -> 6909261 | G4: =SUM(G$9:G$1000) -> 15850012 | L4: =SUM(L$9:L$1000) -> 22527204 | M4: =SUM(M$9:M$1000) -> 19658340 | N4: =SUM(N$9:N$1000) -> 2456713 | O4: =SUM(O$9:O$1000) -> 4825689.5
A6: Structure administrative du pays | D6: Population | H6: Endémicité | L6: Population nécessitant la CP | P6: Nombre de tournées de traitement prévues pour l'année | T6: Enquêtes épidémiologiques planifiées pour l’année
A7: Pays | B7: Région/Département | C7: District | D7: Total | E7: EAPréS | F7: EAS | G7: Adultes | H7: FL | I7: Oncho | J7: STH | K7: SCH | L7: FL | M7: Oncho | N7: STH | O7: SCH | P7: FL | Q7: Oncho | R7: STH | S7: SCH | T7: FL | U7: Oncho | V7: STH | W7: SCH | X7: IU_ID | Y7: IU_NAME | AA7: x | AB7: x | AC7: x | AD7: x | AE7: x | AF7: x | AG7: x | AH7: x | AI7: x | AJ7: x | AK7: x | AL7: x | AM7: x | AN7: x | AO7: x | AP7: x
A9: =IF(INTRO!$E$33<>0,INTRO!$E$33, " ") -> Cote d'Ivoire | B9: ABIDJAN 1 | C9: ABOBO EST | D9: 872871 | E9: =IF(INTRO!$E$48="","",ROUND($D9*INTRO!$E$48,0)) -> 110767 | F9: =IF(INTRO!$E$49="","",ROUND($D9*INTRO!$E$49,0)) -> 222058 | G9: =IF(INTRO!$E$50="","",ROUND($D9*INTRO!$E$50,0)) -> 509408 | H9: 0 | I9: 0 | J9: 1 | K9: 1 | L9: =IF(INTRO!$E$37="Endémique",IF($H9>0,IF($H9=4,"Inconnu",IF($H9=99,"Interrompu",$D9)),0),"Non requis") -> 0 | M9: =IF(INTRO!$E$39="Endémique", IF($I9>0, IF($I9=4,"Inconnu",IF($I9=99,"Interrompu",$D9)), 0),"Non requis") -> 0 | N9: =IF(INTRO!$E$41="Endémique", IF(AND($J9>1,$J9<5), IF($J9=4, "Inconnu", E9+F9), 0),"Non requis") -> 0 | O9: =IF(INTRO!$E$43="Endémique", IF(AND($K9>0,$K9<5), IF($K9=4,"Inconnu", IF($K9=1, $F9*0.33, IF($K9=2, $F9*0.5+$G9*0.2, SUM(F9:G9)))), 0),"Non requis") -> 73279.14 | P9: 0 | Q9: 0 | R9: 0 | S9: 0 | X9: 15335 | Y9: ABOBO EST | AB9: 0 | AC9: 0 | AD9: 1 | AE9: 1 | AF9: =AB9=H9 -> TRUE | AG9: =AC9=I9 -> TRUE | AH9: TRUE | AI9: TRUE
A10: =IF(INTRO!$E$33<>0,INTRO!$E$33, " ") -> Cote d'Ivoire | B10: ABIDJAN 1 | C10: ABOBO OUEST | D10: 438681 | E10: =IF(INTRO!$E$48="","",ROUND($D10*INTRO!$E$48,0)) -> 55669 | F10: =IF(INTRO!$E$49="","",ROUND($D10*INTRO!$E$49,0)) -> 111600 | G10: =IF(INTRO!$E$50="","",ROUND($D10*INTRO!$E$50,0)) -> 256014 | H10: 0 | I10: 0 | J10: 1 | K10: 1 | L10: =IF(INTRO!$E$37="Endémique",IF($H10>0,IF($H10=4,"Inconnu",IF($H10=99,"Interrompu",$D10)),0),"Non requis") -> 0 | M10: =IF(INTRO!$E$39="Endémique", IF($I10>0, IF($I10=4,"Inconnu",IF($I10=99,"Interrompu",$D10)), 0),"Non requis") -> 0 | N10: =IF(INTRO!$E$41="Endémique", IF(AND($J10>1,$J10<5), IF($J10=4, "Inconnu", E10+F10), 0),"Non requis") -> 0 | O10: =IF(INTRO!$E$43="Endémique", IF(AND($K10>0,$K10<5), IF($K10=4,"Inconnu", IF($K10=1, $F10*0.33, IF($K10=2, $F10*0.5+$G10*0.2, SUM(F10:G10)))), 0),"Non requis") -> 36828 | P10: 0 | Q10: 0 | R10: 0 | S10: 0 | X10: 15336 | Y10: ABOBO OUEST | AB10: 0 | AC10: 0 | AD10: 1 | AE10: 1 | AF10: =AB10=H10 -> TRUE | AG10: =AC10=I10 -> TRUE | AH10: =AD10=J10 -> TRUE | AI10: =AE10=K10 -> TRUE
A11: =IF(INTRO!$E$33<>0,INTRO!$E$33, " ") -> Cote d'Ivoire | B11: ABIDJAN 1 | C11: ANYAMA | D11: 181705 | E11: =IF(INTRO!$E$48="","",ROUND($D11*INTRO!$E$48,0)) -> 23058 | F11: =IF(INTRO!$E$49="","",ROUND($D11*INTRO!$E$49,0)) -> 46226 | G11: =IF(INTRO!$E$50="","",ROUND($D11*INTRO!$E$50,0)) -> 106043 | H11: 0 | I11: 0 | J11: 1 | K11: 2 | L11: =IF(INTRO!$E$37="Endémique",IF($H11>0,IF($H11=4,"Inconnu",IF($H11=99,"Interrompu",$D11)),0),"Non requis") -> 0 | M11: =IF(INTRO!$E$39="Endémique", IF($I11>0, IF($I11=4,"Inconnu",IF($I11=99,"Interrompu",$D11)), 0),"Non requis") -> 0 | N11: =IF(INTRO!$E$41="Endémique", IF(AND($J11>1,$J11<5), IF($J11=4, "Inconnu", E11+F11), 0),"Non requis") -> 0 | O11: =IF(INTRO!$E$43="Endémique", IF(AND($K11>0,$K11<5), IF($K11=4,"Inconnu", IF($K11=1, $F11*0.33, IF($K11=2, $F11*0.5+$G11*0.2, SUM(F11:G11)))), 0),"Non requis") -> 44321.6 | P11: 0 | Q11: 0 | R11: 0 | S11: 0 | X11: 15337 | Y11: ANYAMA | AB11: 0 | AC11: 0 | AD11: 1 | AE11: 2 | AF11: TRUE | AG11: TRUE | AH11: TRUE | AI11: TRUE
A12: =IF(INTRO!$E$33<>0,INTRO!$E$33, " ") -> Cote d'Ivoire | B12: ABIDJAN 1 | C12: YOPOUGON EST | D12: 732148 | E12: =IF(INTRO!$E$48="","",ROUND($D12*INTRO!$E$48,0)) -> 92910 | F12: =IF(INTRO!$E$49="","",ROUND($D12*INTRO!$E$49,0)) -> 186258 | G12: =IF(INTRO!$E$50="","",ROUND($D12*INTRO!$E$50,0)) -> 427282 | H12: 1 | I12: 0 | J12: 1 | K12: 1 | L12: =IF(INTRO!$E$37="Endémique",IF($H12>0,IF($H12=4,"Inconnu",IF($H12=99,"Interrompu",$D12)),0),"Non requis") -> 732148 | M12: =IF(INTRO!$E$39="Endémique", IF($I12>0, IF($I12=4,"Inconnu",IF($I12=99,"Interrompu",$D12)), 0),"Non requis") -> 0 | N12: =IF(INTRO!$E$41="Endémique", IF(AND($J12>1,$J12<5), IF($J12=4, "Inconnu", E12+F12), 0),"Non requis") -> 0 | O12: =IF(INTRO!$E$43="Endémique", IF(AND($K12>0,$K12<5), IF($K12=4,"Inconnu", IF($K12=1, $F12*0.33, IF($K12=2, $F12*0.5+$G12*0.2, SUM(F12:G12)))), 0),"Non requis") -> 61465.14 | P12: 1 | Q12: 0 | R12: 0 | S12: 0 | X12: 15333 | Y12: YOPOUGON EST | AB12: 1 | AC12: 0 | AD12: 1 | AE12: 1 | AF12: TRUE | AG12: TRUE | AH12: TRUE | AI12: TRUE
A13: =IF(INTRO!$E$33<>0,INTRO!$E$33, " ") -> Cote d'Ivoire | B13: ABIDJAN 1 | C13: YOPOUGON OUEST | D13: 699786 | E13: =IF(INTRO!$E$48="","",ROUND($D13*INTRO!$E$48,0)) -> 88803 | F13: =IF(INTRO!$E$49="","",ROUND($D13*INTRO!$E$49,0)) -> 178026 | G13: =IF(INTRO!$E$50="","",ROUND($D13*INTRO!$E$50,0)) -> 408395 | H13: 1 | I13: 0 | J13: 1 | K13: 1 | L13: =IF(INTRO!$E$37="Endémique",IF($H13>0,IF($H13=4,"Inconnu",IF($H13=99,"Interrompu",$D13)),0),"Non requis") -> 699786 | M13: =IF(INTRO!$E$39="Endémique", IF($I13>0, IF($I13=4,"Inconnu",IF($I13=99,"Interrompu",$D13)), 0),"Non requis") -> 0 | N13: =IF(INTRO!$E$41="Endémique", IF(AND($J13>1,$J13<5), IF($J13=4, "Inconnu", E13+F13), 0),"Non requis") -> 0 | O13: =IF(INTRO!$E$43="Endémique", IF(AND($K13>0,$K13<5), IF($K13=4,"Inconnu", IF($K13=1, $F13*0.33, IF($K13=2, $F13*0.5+$G13*0.2, SUM(F13:G13)))), 0),"Non requis") -> 58748.58 | P13: 1 | Q13: 0 | R13: 0 | S13: 0 | X13: 15334 | Y13: YOPOUGON OUEST | AB13: 1 | AC13: 0 | AD13: 1 | AE13: 1 | AF13: TRUE | AG13: TRUE | AH13: TRUE | AI13: TRUE
A14: =IF(INTRO!$E$33<>0,INTRO!$E$33, " ") -> Cote d'Ivoire | B14: ABIDJAN 2 | C14: ADJAME-PLATEAU-ATTECOUBE | D14: 816177 | E14: =IF(INTRO!$E$48="","",ROUND($D14*INTRO!$E$48,0)) -> 103573 | F14: =IF(INTRO!$E$49="","",ROUND($D14*INTRO!$E$49,0)) -> 207635 | G14: =IF(INTRO!$E$50="","",ROUND($D14*INTRO!$E$50,0)) -> 476321 | H14: 0 | I14: 0 | J14: 1 | K14: 1 | L14: =IF(INTRO!$E$37="Endémique",IF($H14>0,IF($H14=4,"Inconnu",IF($H14=99,"Interrompu",$D14)),0),"Non requis") -> 0 | M14: =IF(INTRO!$E$39="Endémique", IF($I14>0, IF($I14=4,"Inconnu",IF($I14=99,"Interrompu",$D14)), 0),"Non requis") -> 0 | N14: =IF(INTRO!$E$41="Endémique", IF(AND($J14>1,$J14<5), IF($J14=4, "Inconnu", E14+F14), 0),"Non requis") -> 0 | O14: =IF(INTRO!$E$43="Endémique", IF(AND($K14>0,$K14<5), IF($K14=4,"Inconnu", IF($K14=1, $F14*0.33, IF($K14=2, $F14*0.5+$G14*0.2, SUM(F14:G14)))), 0),"Non requis") -> 68519.55 | P14: 0 | Q14: 0 | R14: 0 | S14: 1 | X14: 15329 | Y14: ADJAME-PLATEAU-ATTECOUBE | AB14: 0 | AC14: 0 | AD14: 1 | AE14: 2 | AF14: TRUE | AG14: TRUE | AH14: TRUE | AI14: FALSE
A15: =IF(INTRO!$E$33<>0,INTRO!$E$33, " ") -> Cote d'Ivoire | B15: ABIDJAN 2 | C15: COCODY-BINGERVILLE | D15: 680285 | E15: =IF(INTRO!$E$48="","",ROUND($D15*INTRO!$E$48,0)) -> 86328 | F15: =IF(INTRO!$E$49="","",ROUND($D15*INTRO!$E$49,0)) -> 173065 | G15: =IF(INTRO!$E$50="","",ROUND($D15*INTRO!$E$50,0)) -> 397014 | H15: 1 | I15: 0 | J15: 1 | K15: 1 | L15: =IF(INTRO!$E$37="Endémique",IF($H15>0,IF($H15=4,"Inconnu",IF($H15=99,"Interrompu",$D15)),0),"Non requis") -> 680285 | M15: =IF(INTRO!$E$39="Endémique", IF($I15>0, IF($I15=4,"Inconnu",IF($I15=99,"Interrompu",$D15)), 0),"Non requis") -> 0 | N15: =IF(INTRO!$E$41="Endémique", IF(AND($J15>1,$J15<5), IF($J15=4, "Inconnu", E15+F15), 0),"Non requis") -> 0 | O15: =IF(INTRO!$E$43="Endémique", IF(AND($K15>0,$K15<5), IF($K15=4,"Inconnu", IF($K15=1, $F15*0.33, IF($K15=2, $F15*0.5+$G15*0.2, SUM(F15:G15)))), 0),"Non requis") -> 57111.45 | P15: 1 | Q15: 0 | R15: 0 | S15: 1 | X15: 15338 | Y15: COCODY-BINGERVILLE | AB15: 1 | AC15: 0 | AD15: 1 | AE15: 1 | AF15: TRUE | AG15: TRUE | AH15: TRUE | AI15: TRUE
A16: =IF(INTRO!$E$33<>0,INTRO!$E$33, " ") -> Cote d'Ivoire | B16: ABIDJAN 2 | C16: KOUMASSI | D16: 588251 | E16: =IF(INTRO!$E$48="","",ROUND($D16*INTRO!$E$48,0)) -> 74649 | F16: =IF(INTRO!$E$49="","",ROUND($D16*INTRO!$E$49,0)) -> 149651 | G16: =IF(INTRO!$E$50="","",ROUND($D16*INTRO!$E$50,0)) -> 343303 | H16: 0 | I16: 0 | J16: 1 | K16: 1 | L16: =IF(INTRO!$E$37="Endémique",IF($H16>0,IF($H16=4,"Inconnu",IF($H16=99,"Interrompu",$D16)),0),"Non requis") -> 0 | M16: =IF(INTRO!$E$39="Endémique", IF($I16>0, IF($I16=4,"Inconnu",IF($I16=99,"Interrompu",$D16)), 0),"Non requis") -> 0 | N16: =IF(INTRO!$E$41="Endémique", IF(AND($J16>1,$J16<5), IF($J16=4, "Inconnu", E16+F16), 0),"Non requis") -> 0 | O16: =IF(INTRO!$E$43="Endémique", IF(AND($K16>0,$K16<5), IF($K16=4,"Inconnu", IF($K16=1, $F16*0.33, IF($K16=2, $F16*0.5+$G16*0.2, SUM(F16:G16)))), 0),"Non requis") -> 49384.83 | P16: 0 | Q16: 0 | R16: 0 | S16: 1 | X16: 15417 | Y16: KOUMASSI
A17: =IF(INTRO!$E$33<>0,INTRO!$E$33, " ") -> Cote d'Ivoire | B17: ABIDJAN 2 | C17: PORT BOUET-VRIDI | D17: 496170 | E17: =IF(INTRO!$E$48="","",ROUND($D17*INTRO!$E$48,0)) -> 62964 | F17: =IF(INTRO!$E$49="","",ROUND($D17*INTRO!$E$49,0)) -> 126226 | G17: =IF(INTRO!$E$50="","",ROUND($D17*INTRO!$E$50,0)) -> 289565 | H17: 0 | I17: 0 | J17: 1 | K17: 1 | L17: =IF(INTRO!$E$37="Endémique",IF($H17>0,IF($H17=4,"Inconnu",IF($H17=99,"Interrompu",$D17)),0),"Non requis") -> 0 | M17: =IF(INTRO!$E$39="Endémique", IF($I17>0, IF($I17=4,"Inconnu",IF($I17=99,"Interrompu",$D17)), 0),"Non requis") -> 0 | N17: =IF(INTRO!$E$41="Endémique", IF(AND($J17>1,$J17<5), IF($J17=4, "Inconnu", E17+F17), 0),"Non requis") -> 0 | O17: =IF(INTRO!$E$43="Endémique", IF(AND($K17>0,$K17<5), IF($K17=4,"Inconnu", IF($K17=1, $F17*0.33, IF($K17=2, $F17*0.5+$G17*0.2, SUM(F17:G17)))), 0),"Non requis") -> 41654.58 | P17: 0 | Q17: 0 | R17: 0 | S17: 1 | X17: 15418 | Y17: PORT BOUET VRIDI
A18: =IF(INTRO!$E$33<>0,INTRO!$E$33, " ") -> Cote d'Ivoire | B18: ABIDJAN 2 | C18: TREICHVILLE-MARCORY | D18: 448488 | E18: =IF(INTRO!$E$48="","",ROUND($D18*INTRO!$E$48,0)) -> 56913 | F18: =IF(INTRO!$E$49="","",ROUND($D18*INTRO!$E$49,0)) -> 114095 | G18: =IF(INTRO!$E$50="","",ROUND($D18*INTRO!$E$50,0)) -> 261738 | H18: 0 | I18: 0 | J18: 1 | K18: 1 | L18: =IF(INTRO!$E$37="Endémique",IF($H18>0,IF($H18=4,"Inconnu",IF($H18=99,"Interrompu",$D18)),0),"Non requis") -> 0 | M18: =IF(INTRO!$E$39="Endémique", IF($I18>0, IF($I18=4,"Inconnu",IF($I18=99,"Interrompu",$D18)), 0),"Non requis") -> 0 | N18: =IF(INTRO!$E$41="Endémique", IF(AND($J18>1,$J18<5), IF($J18=4, "Inconnu", E18+F18), 0),"Non requis") -> 0 | O18: =IF(INTRO!$E$43="Endémique", IF(AND($K18>0,$K18<5), IF($K18=4,"Inconnu", IF($K18=1, $F18*0.33, IF($K18=2, $F18*0.5+$G18*0.2, SUM(F18:G18)))), 0),"Non requis") -> 37651.35 | P18: 0 | Q18: 0 | R18: 0 | S18: 1 | X18: 15340 | Y18: MARCORY-TREICHVILLE | AB18: 0 | AC18: 0 | AD18: 1 | AE18: 1 | AF18: TRUE | AG18: TRUE | AH18: TRUE | AI18: TRUE
A19: =IF(INTRO!$E$33<>0,INTRO!$E$33, " ") -> Cote d'Ivoire | B19: AGNEBY-TIASSA | C19: AGBOVILLE | D19: 349079 | E19: =IF(INTRO!$E$48="","",ROUND($D19*INTRO!$E$48,0)) -> 44298 | F19: =IF(INTRO!$E$49="","",ROUND($D19*INTRO!$E$49,0)) -> 88806 | G19: =IF(INTRO!$E$50="","",ROUND($D19*INTRO!$E$50,0)) -> 203723 | H19: 1 | I19: 1 | J19: 1 | K19: 2 | L19: =IF(INTRO!$E$37="Endémique",IF($H19>0,IF($H19=4,"Inconnu",IF($H19=99,"Interrompu",$D19)),0),"Non requis") -> 349079 | M19: =IF(INTRO!$E$39="Endémique", IF($I19>0, IF($I19=4,"Inconnu",IF($I19=99,"Interrompu",$D19)), 0),"Non requis") -> 349079 | N19: =IF(INTRO!$E$41="Endémique", IF(AND($J19>1,$J19<5), IF($J19=4, "Inconnu", E19+F19), 0),"Non requis") -> 0 | O19: =IF(INTRO!$E$43="Endémique", IF(AND($K19>0,$K19<5), IF($K19=4,"Inconnu", IF($K19=1, $F19*0.33, IF($K19=2, $F19*0.5+$G19*0.2, SUM(F19:G19)))), 0),"Non requis") -> 85147.6 | P19: 1 | Q19: 1 | R19: 0 | S19: 0 | X19: 15342 | Y19: AGBOVILLE | AB19: 1 | AC19: 1 | AD19: 1 | AE19: 2 | AF19: TRUE | AG19: TRUE | AH19: TRUE | AI19: TRUE
A20: =IF(INTRO!$E$33<>0,INTRO!$E$33, " ") -> Cote d'Ivoire | B20: AGNEBY-TIASSA | C20: SIKENSI | D20: 93737 | E20: =IF(INTRO!$E$48="","",ROUND($D20*INTRO!$E$48,0)) -> 11895 | F20: =IF(INTRO!$E$49="","",ROUND($D20*INTRO!$E$49,0)) -> 23847 | G20: =IF(INTRO!$E$50="","",ROUND($D20*INTRO!$E$50,0)) -> 54705 | H20: 1 | I20: 1 | J20: 2 | K20: 2 | L20: =IF(INTRO!$E$37="Endémique",IF($H20>0,IF($H20=4,"Inconnu",IF($H20=99,"Interrompu",$D20)),0),"Non requis") -> 93737 | M20: =IF(INTRO!$E$39="Endémique", IF($I20>0, IF($I20=4,"Inconnu",IF($I20=99,"Interrompu",$D20)), 0),"Non requis") -> 93737 | N20: =IF(INTRO!$E$41="Endémique", IF(AND($J20>1,$J20<5), IF($J20=4, "Inconnu", E20+F20), 0),"Non requis") -> 35742 | O20: =IF(INTRO!$E$43="Endémique", IF(AND($K20>0,$K20<5), IF($K20=4,"Inconnu", IF($K20=1, $F20*0.33, IF($K20=2, $F20*0.5+$G20*0.2, SUM(F20:G20)))), 0),"Non requis") -> 22864.5 | P20: 1 | Q20: 1 | R20: 1 | S20: 0 | X20: 15345 | Y20: SIKENSI | AB20: 1 | AC20: 1 | AD20: 2 | AE20: 2 | AF20: TRUE | AG20: TRUE | AH20: TRUE | AI20: TRUE
A21: =IF(INTRO!$E$33<>0,INTRO!$E$33, " ") -> Cote d'Ivoire | B21: AGNEBY-TIASSA | C21: TIASSALE | D21: 282394 | E21: =IF(INTRO!$E$48="","",ROUND($D21*INTRO!$E$48,0)) -> 35836 | F21: =IF(INTRO!$E$49="","",ROUND($D21*INTRO!$E$49,0)) -> 71841 | G21: =IF(INTRO!$E$50="","",ROUND($D21*INTRO!$E$50,0)) -> 164805 | H21: 1 | I21: 1 | J21: 2 | K21: 2 | L21: =IF(INTRO!$E$37="Endémique",IF($H21>0,IF($H21=4,"Inconnu",IF($H21=99,"Interrompu",$D21)),0),"Non requis") -> 282394 | M21: =IF(INTRO!$E$39="Endémique", IF($I21>0, IF($I21=4,"Inconnu",IF($I21=99,"Interrompu",$D21)), 0),"Non requis") -> 282394 | N21: =IF(INTRO!$E$41="Endémique", IF(AND($J21>1,$J21<5), IF($J21=4, "Inconnu", E21+F21), 0),"Non requis") -> 107677 | O21: =IF(INTRO!$E$43="Endémique", IF(AND($K21>0,$K21<5), IF($K21=4,"Inconnu", IF($K21=1, $F21*0.33, IF($K21=2, $F21*0.5+$G21*0.2, SUM(F21:G21)))), 0),"Non requis") -> 68881.5 | P21: 1 | Q21: 1 | R21: 1 | S21: 1 | X21: 15346 | Y21: TIASSALE | AB21: 1 | AC21: 1 | AD21: 2 | AE21: 2 | AF21: TRUE | AG21: TRUE | AH21: TRUE | AI21: TRUE
A22: =IF(INTRO!$E$33<>0,INTRO!$E$33, " ") -> Cote d'Ivoire | B22: BAFING | C22: KORO | D22: 73572 | E22: =IF(INTRO!$E$48="","",ROUND($D22*INTRO!$E$48,0)) -> 9336 | F22: =IF(INTRO!$E$49="","",ROUND($D22*INTRO!$E$49,0)) -> 18717 | G22: =IF(INTRO!$E$50="","",ROUND($D22*INTRO!$E$50,0)) -> 42937 | H22: 1 | I22: 1 | J22: 2 | K22: 3 | L22: =IF(INTRO!$E$37="Endémique",IF($H22>0,IF($H22=4,"Inconnu",IF($H22=99,"Interrompu",$D22)),0),"Non requis") -> 73572 | M22: =IF(INTRO!$E$39="Endémique", IF($I22>0, IF($I22=4,"Inconnu",IF($I22=99,"Interrompu",$D22)), 0),"Non requis") -> 73572 | N22: =IF(INTRO!$E$41="Endémique", IF(AND($J22>1,$J22<5), IF($J22=4, "Inconnu", E22+F22), 0),"Non requis") -> 28053 | O22: =IF(INTRO!$E$43="Endémique", IF(AND($K22>0,$K22<5), IF($K22=4,"Inconnu", IF($K22=1, $F22*0.33, IF($K22=2, $F22*0.5+$G22*0.2, SUM(F22:G22)))), 0),"Non requis") -> 61654 | P22: 1 | Q22: 1 | R22: 1 | S22: 1 | X22: 15442 | Y22: KORO
A23: =IF(INTRO!$E$33<>0,INTRO!$E$33, " ") -> Cote d'Ivoire | B23: BAFING | C23: OUANINOU | D23: 56422 | E23: =IF(INTRO!$E$48="","",ROUND($D23*INTRO!$E$48,0)) -> 7160 | F23: =IF(INTRO!$E$49="","",ROUND($D23*INTRO!$E$49,0)) -> 14354 | G23: =IF(INTRO!$E$50="","",ROUND($D23*INTRO!$E$50,0)) -> 32928 | H23: 1 | I23: 1 | J23: 2 | K23: 3 | L23: =IF(INTRO!$E$37="Endémique",IF($H23>0,IF($H23=4,"Inconnu",IF($H23=99,"Interrompu",$D23)),0),"Non requis") -> 56422 | M23: =IF(INTRO!$E$39="Endémique", IF($I23>0, IF($I23=4,"Inconnu",IF($I23=99,"Interrompu",$D23)), 0),"Non requis") -> 56422 | N23: =IF(INTRO!$E$41="Endémique", IF(AND($J23>1,$J23<5), IF($J23=4, "Inconnu", E23+F23), 0),"Non requis") -> 21514 | O23: =IF(INTRO!$E$43="Endémique", IF(AND($K23>0,$K23<5), IF($K23=4,"Inconnu", IF($K23=1, $F23*0.33, IF($K23=2, $F23*0.5+$G23*0.2, SUM(F23:G23)))), 0),"Non requis") -> 47282 | P23: 1 | Q23: 1 | R23: 1 | S23: 1 | X23: 15443 | Y23: OUANINOU
A24: =IF(INTRO!$E$33<>0,INTRO!$E$33, " ") -> Cote d'Ivoire | B24: BAFING | C24: TOUBA | D24: 97453 | E24: =IF(INTRO!$E$48="","",ROUND($D24*INTRO!$E$48,0)) -> 12367 | F24: =IF(INTRO!$E$49="","",ROUND($D24*INTRO!$E$49,0)) -> 24792 | G24: =IF(INTRO!$E$50="","",ROUND($D24*INTRO!$E$50,0)) -> 56874 | H24: 1 | I24: 1 | J24: 2 | K24: 3 | L24: =IF(INTRO!$E$37="Endémique",IF($H24>0,IF($H24=4,"Inconnu",IF($H24=99,"Interrompu",$D24)),0),"Non requis") -> 97453 | M24: =IF(INTRO!$E$39="Endémique", IF($I24>0, IF($I24=4,"Inconnu",IF($I24=99,"Interrompu",$D24)), 0),"Non requis") -> 97453 | N24: =IF(INTRO!$E$41="Endémique", IF(AND($J24>1,$J24<5), IF($J24=4, "Inconnu", E24+F24), 0),"Non requis") -> 37159 | O24: =IF(INTRO!$E$43="Endémique", IF(AND($K24>0,$K24<5), IF($K24=4,"Inconnu", IF($K24=1, $F24*0.33, IF($K24=2, $F24*0.5+$G24*0.2, SUM(F24:G24)))), 0),"Non requis") -> 81666 | P24: 1 | Q24: 1 | R24: 1 | S24: 1 | X24: 15441 | Y24: TOUBA
A25: =IF(INTRO!$E$33<>0,INTRO!$E$33, " ") -> Cote d'Ivoire | B25: BAGOUE | C25: BOUNDIALI | D25: 164801 | E25: =IF(INTRO!$E$48="","",ROUND($D25*INTRO!$E$48,0)) -> 20913 | F25: =IF(INTRO!$E$49="","",ROUND($D25*INTRO!$E$49,0)) -> 41925 | G25: =IF(INTRO!$E$50="","",ROUND($D25*INTRO!$E$50,0)) -> 96178 | H25: 1 | I25: 1 | J25: 1 | K25: 1 | L25: =IF(INTRO!$E$37="Endémique",IF($H25>0,IF($H25=4,"Inconnu",IF($H25=99,"Interrompu",$D25)),0),"Non requis") -> 164801 | M25: =IF(INTRO!$E$39="Endémique", IF($I25>0, IF($I25=4,"Inconnu",IF($I25=99,"Interrompu",$D25)), 0),"Non requis") -> 164801 | N25: =IF(INTRO!$E$41="Endémique", IF(AND($J25>1,$J25<5), IF($J25=4, "Inconnu", E25+F25), 0),"Non requis") -> 0 | O25: =IF(INTRO!$E$43="Endémique", IF(AND($K25>0,$K25<5), IF($K25=4,"Inconnu", IF($K25=1, $F25*0.33, IF($K25=2, $F25*0.5+$G25*0.2, SUM(F25:G25)))), 0),"Non requis") -> 13835.25 | P25: 1 | Q25: 1 | R25: 0 | S25: 0 | X25: 15449 | Y25: BOUNDIALI
A26: =IF(INTRO!$E$33<>0,INTRO!$E$33, " ") -> Cote d'Ivoire | B26: BAGOUE | C26: KOUTO | D26: 167271 | E26: =IF(INTRO!$E$48="","",ROUND($D26*INTRO!$E$48,0)) -> 21227 | F26: =IF(INTRO!$E$49="","",ROUND($D26*INTRO!$E$49,0)) -> 42554 | G26: =IF(INTRO!$E$50="","",ROUND($D26*INTRO!$E$50,0)) -> 97619 | H26: 1 | I26: 1 | J26: 1 | K26: 1 | L26: =IF(INTRO!$E$37="Endémique",IF($H26>0,IF($H26=4,"Inconnu",IF($H26=99,"Interrompu",$D26)),0),"Non requis") -> 167271 | M26: =IF(INTRO!$E$39="Endémique", IF($I26>0, IF($I26=4,"Inconnu",IF($I26=99,"Interrompu",$D26)), 0),"Non requis") -> 167271 | N26: =IF(INTRO!$E$41="Endémique", IF(AND($J26>1,$J26<5), IF($J26=4, "Inconnu", E26+F26), 0),"Non requis") -> 0 | O26: =IF(INTRO!$E$43="Endémique", IF(AND($K26>0,$K26<5), IF($K26=4,"Inconnu", IF($K26=1, $F26*0.33, IF($K26=2, $F26*0.5+$G26*0.2, SUM(F26:G26)))), 0),"Non requis") -> 14042.82 | P26: 1 | Q26: 1 | R26: 0 | S26: 0 | X26: 15450 | Y26: KOUTO
A27: =IF(INTRO!$E$33<>0,INTRO!$E$33, " ") -> Cote d'Ivoire | B27: BAGOUE | C27: TENGRELA | D27: 152825 | E27: =IF(INTRO!$E$48="","",ROUND($D27*INTRO!$E$48,0)) -> 19393 | F27: =IF(INTRO!$E$49="","",ROUND($D27*INTRO!$E$49,0)) -> 38879 | G27: =IF(INTRO!$E$50="","",ROUND($D27*INTRO!$E$50,0)) -> 89189 | H27: 1 | I27: 0 | J27: 1 | K27: 1 | L27: =IF(INTRO!$E$37="Endémique",IF($H27>0,IF($H27=4,"Inconnu",IF($H27=99,"Interrompu",$D27)),0),"Non requis") -> 152825 | M27: =IF(INTRO!$E$39="Endémique", IF($I27>0, IF($I27=4,"Inconnu",IF($I27=99,"Interrompu",$D27)), 0),"Non requis") -> 0 | N27: =IF(INTRO!$E$41="Endémique", IF(AND($J27>1,$J27<5), IF($J27=4, "Inconnu", E27+F27), 0),"Non requis") -> 0 | O27: =IF(INTRO!$E$43="Endémique", IF(AND($K27>0,$K27<5), IF($K27=4,"Inconnu", IF($K27=1, $F27*0.33, IF($K27=2, $F27*0.5+$G27*0.2, SUM(F27:G27)))), 0),"Non requis") -> 12830.07 | P27: 1 | Q27: 0 | R27: 0 | S27: 0 | X27: 15401 | Y27: TENGRELA | AB27: 1 | AC27: 0 | AD27: 1 | AE27: 1 | AF27: TRUE | AG27: TRUE | AH27: TRUE | AI27: TRUE
A28: =IF(INTRO!$E$33<>0,INTRO!$E$33, " ") -> Cote d'Ivoire | B28: BELIER | C28: DIDIEVI | D28: 113152 | E28: =IF(INTRO!$E$48="","",ROUND($D28*INTRO!$E$48,0)) -> 14359 | F28: =IF(INTRO!$E$49="","",ROUND($D28*INTRO!$E$49,0)) -> 28786 | G28: =IF(INTRO!$E$50="","",ROUND($D28*INTRO!$E$50,0)) -> 66036 | H28: 1 | I28: 1 | J28: 2 | K28: 2 | L28: =IF(INTRO!$E$37="Endémique",IF($H28>0,IF($H28=4,"Inconnu",IF($H28=99,"Interrompu",$D28)),0),"Non requis") -> 113152 | M28: =IF(INTRO!$E$39="Endémique", IF($I28>0, IF($I28=4,"Inconnu",IF($I28=99,"Interrompu",$D28)), 0),"Non requis") -> 113152 | N28: =IF(INTRO!$E$41="Endémique", IF(AND($J28>1,$J28<5), IF($J28=4, "Inconnu", E28+F28), 0),"Non requis") -> 43145 | O28: =IF(INTRO!$E$43="Endémique", IF(AND($K28>0,$K28<5), IF($K28=4,"Inconnu", IF($K28=1, $F28*0.33, IF($K28=2, $F28*0.5+$G28*0.2, SUM(F28:G28)))), 0),"Non requis") -> 27600.2 | P28: 1 | Q28: 1 | R28: 1 | S28: 0 | X28: 15347 | Y28: DIDIEVI | AB28: 1 | AC28: 1 | AD28: 2 | AE28: 2 | AF28: TRUE | AG28: TRUE | AH28: TRUE | AI28: TRUE
A29: =IF(INTRO!$E$33<>0,INTRO!$E$33, " ") -> Cote d'Ivoire | B29: BELIER | C29: TIEBISSOU | D29: 119236 | E29: =IF(INTRO!$E$48="","",ROUND($D29*INTRO!$E$48,0)) -> 15131 | F29: =IF(INTRO!$E$49="","",ROUND($D29*INTRO!$E$49,0)) -> 30334 | G29: =IF(INTRO!$E$50="","",ROUND($D29*INTRO!$E$50,0)) -> 69586 | H29: 1 | I29: 1 | J29: 2 | K29: 2 | L29: =IF(INTRO!$E$37="Endémique",IF($H29>0,IF($H29=4,"Inconnu",IF($H29=99,"Interrompu",$D29)),0),"Non requis") -> 119236 | M29: =IF(INTRO!$E$39="Endémique", IF($I29>0, IF($I29=4,"Inconnu",IF($I29=99,"Interrompu",$D29)), 0),"Non requis") -> 119236 | N29: =IF(INTRO!$E$41="Endémique", IF(AND($J29>1,$J29<5), IF($J29=4, "Inconnu", E29+F29), 0),"Non requis") -> 45465 | O29: =IF(INTRO!$E$43="Endémique", IF(AND($K29>0,$K29<5), IF($K29=4,"Inconnu", IF($K29=1, $F29*0.33, IF($K29=2, $F29*0.5+$G29*0.2, SUM(F29:G29)))), 0),"Non requis") -> 29084.2 | P29: 1 | Q29: 1 | R29: 1 | S29: 1 | X29: 15348 | Y29: TIEBISSOU | AB29: 1 | AC29: 1 | AD29: 2 | AE29: 2 | AF29: TRUE | AG29: TRUE | AH29: TRUE | AI29: TRUE
A30: =IF(INTRO!$E$33<>0,INTRO!$E$33, " ") -> Cote d'Ivoire | B30: BELIER | C30: TOUMODI | D30: 186382 | E30: =IF(INTRO!$E$48="","",ROUND($D30*INTRO!$E$48,0)) -> 23652 | F30: =IF(INTRO!$E$49="","",ROUND($D30*INTRO!$E$49,0)) -> 47416 | G30: =IF(INTRO!$E$50="","",ROUND($D30*INTRO!$E$50,0)) -> 108773 | H30: 1 | I30: 1 | J30: 2 | K30: 2 | L30: =IF(INTRO!$E$37="Endémique",IF($H30>0,IF($H30=4,"Inconnu",IF($H30=99,"Interrompu",$D30)),0),"Non requis") -> 186382 | M30: =IF(INTRO!$E$39="Endémique", IF($I30>0, IF($I30=4,"Inconnu",IF($I30=99,"Interrompu",$D30)), 0),"Non requis") -> 186382 | N30: =IF(INTRO!$E$41="Endémique", IF(AND($J30>1,$J30<5), IF($J30=4, "Inconnu", E30+F30), 0),"Non requis") -> 71068 | O30: =IF(INTRO!$E$43="Endémique", IF(AND($K30>0,$K30<5), IF($K30=4,"Inconnu", IF($K30=1, $F30*0.33, IF($K30=2, $F30*0.5+$G30*0.2, SUM(F30:G30)))), 0),"Non requis") -> 45462.6 | P30: 1 | Q30: 1 | R30: 1 | S30: 0 | X30: 15349 | Y30: TOUMODI | AB30: 1 | AC30: 1 | AD30: 2 | AE30: 2 | AF30: TRUE | AG30: TRUE | AH30: TRUE | AI30: TRUE
A31: =IF(INTRO!$E$33<>0,INTRO!$E$33, " ") -> Cote d'Ivoire | B31: BELIER | C31: YAMOUSSOUKRO | D31: 371829 | E31: =IF(INTRO!$E$48="","",ROUND($D31*INTRO!$E$48,0)) -> 47185 | F31: =IF(INTRO!$E$49="","",ROUND($D31*INTRO!$E$49,0)) -> 94593 | G31: =IF(INTRO!$E$50="","",ROUND($D31*INTRO!$E$50,0)) -> 216999 | H31: 1 | I31: 1 | J31: 2 | K31: 2 | L31: =IF(INTRO!$E$37="Endémique",IF($H31>0,IF($H31=4,"Inconnu",IF($H31=99,"Interrompu",$D31)),0),"Non requis") -> 371829 | M31: =IF(INTRO!$E$39="Endémique", IF($I31>0, IF($I31=4,"Inconnu",IF($I31=99,"Interrompu",$D31)), 0),"Non requis") -> 371829 | N31: =IF(INTRO!$E$41="Endémique", IF(AND($J31>1,$J31<5), IF($J31=4, "Inconnu", E31+F31), 0),"Non requis") -> 141778 | O31: =IF(INTRO!$E$43="Endémique", IF(AND($K31>0,$K31<5), IF($K31=4,"Inconnu", IF($K31=1, $F31*0.33, IF($K31=2, $F31*0.5+$G31*0.2, SUM(F31:G31)))), 0),"Non requis") -> 90696.3 | P31: 1 | Q31: 1 | R31: 1 | S31: 1 | X31: 15350 | Y31: YAMOUSSOUKRO | AB31: 1 | AC31: 1 | AD31: 2 | AE31: 2 | AF31: TRUE | AG31: TRUE | AH31: TRUE | AI31: TRUE
A32: =IF(INTRO!$E$33<>0,INTRO!$E$33, " ") -> Cote d'Ivoire | B32: BERE | C32: DIANRA | D32: 95842 | E32: =IF(INTRO!$E$48="","",ROUND($D32*INTRO!$E$48,0)) -> 12162 | F32: =IF(INTRO!$E$49="","",ROUND($D32*INTRO!$E$49,0)) -> 24382 | G32: =IF(INTRO!$E$50="","",ROUND($D32*INTRO!$E$50,0)) -> 55933 | H32: 0 | I32: 1 | J32: 2 | K32: 1 | L32: =IF(INTRO!$E$37="Endémique",IF($H32>0,IF($H32=4,"Inconnu",IF($H32=99,"Interrompu",$D32)),0),"Non requis") -> 0 | M32: =IF(INTRO!$E$39="Endémique", IF($I32>0, IF($I32=4,"Inconnu",IF($I32=99,"Interrompu",$D32)), 0),"Non requis") -> 95842 | N32: =IF(INTRO!$E$41="Endémique", IF(AND($J32>1,$J32<5), IF($J32=4, "Inconnu", E32+F32), 0),"Non requis") -> 36544 | O32: =IF(INTRO!$E$43="Endémique", IF(AND($K32>0,$K32<5), IF($K32=4,"Inconnu", IF($K32=1, $F32*0.33, IF($K32=2, $F32*0.5+$G32*0.2, SUM(F32:G32)))), 0),"Non requis") -> 8046.06 | P32: 0 | Q32: 1 | R32: 1 | S32: 0 | X32: 15459 | Y32: DIANRA
A33: =IF(INTRO!$E$33<>0,INTRO!$E$33, " ") -> Cote d'Ivoire | B33: BERE | C33: KOUNAHIRI | D33: 93900 | E33: =IF(INTRO!$E$48="","",ROUND($D33*INTRO!$E$48,0)) -> 11916 | F33: =IF(INTRO!$E$49="","",ROUND($D33*INTRO!$E$49,0)) -> 23888 | G33: =IF(INTRO!$E$50="","",ROUND($D33*INTRO!$E$50,0)) -> 54800 | H33: 0 | I33: 1 | J33: 2 | K33: 1 | L33: =IF(INTRO!$E$37="Endémique",IF($H33>0,IF($H33=4,"Inconnu",IF($H33=99,"Interrompu",$D33)),0),"Non requis") -> 0 | M33: =IF(INTRO!$E$39="Endémique", IF($I33>0, IF($I33=4,"Inconnu",IF($I33=99,"Interrompu",$D33)), 0),"Non requis") -> 93900 | N33: =IF(INTRO!$E$41="Endémique", IF(AND($J33>1,$J33<5), IF($J33=4, "Inconnu", E33+F33), 0),"Non requis") -> 35804 | O33: =IF(INTRO!$E$43="Endémique", IF(AND($K33>0,$K33<5), IF($K33=4,"Inconnu", IF($K33=1, $F33*0.33, IF($K33=2, $F33*0.5+$G33*0.2, SUM(F33:G33)))), 0),"Non requis") -> 7883.04 | P33: 0 | Q33: 1 | R33: 1 | S33: 0 | X33: 15460 | Y33: KOUNAHIRI
A34: =IF(INTRO!$E$33<>0,INTRO!$E$33, " ") -> Cote d'Ivoire | B34: BERE | C34: MANKONO | D34: 284020 | E34: =IF(INTRO!$E$48="","",ROUND($D34*INTRO!$E$48,0)) -> 36042 | F34: =IF(INTRO!$E$49="","",ROUND($D34*INTRO!$E$49,0)) -> 72255 | G34: =IF(INTRO!$E$50="","",ROUND($D34*INTRO!$E$50,0)) -> 165754 | H34: 0 | I34: 1 | J34: 2 | K34: 1 | L34: =IF(INTRO!$E$37="Endémique",IF($H34>0,IF($H34=4,"Inconnu",IF($H34=99,"Interrompu",$D34)),0),"Non requis") -> 0 | M34: =IF(INTRO!$E$39="Endémique", IF($I34>0, IF($I34=4,"Inconnu",IF($I34=99,"Interrompu",$D34)), 0),"Non requis") -> 284020 | N34: =IF(INTRO!$E$41="Endémique", IF(AND($J34>1,$J34<5), IF($J34=4, "Inconnu", E34+F34), 0),"Non requis") -> 108297 | O34: =IF(INTRO!$E$43="Endémique", IF(AND($K34>0,$K34<5), IF($K34=4,"Inconnu", IF($K34=1, $F34*0.33, IF($K34=2, $F34*0.5+$G34*0.2, SUM(F34:G34)))), 0),"Non requis") -> 23844.15 | P34: 0 | Q34: 1 | R34: 1 | S34: 0 | X34: 15458 | Y34: MANKONO
A35: =IF(INTRO!$E$33<>0,INTRO!$E$33, " ") -> Cote d'Ivoire | B35: BOUKANI | C35: BOUNA | D35: 139067 | E35: =IF(INTRO!$E$48="","",ROUND($D35*INTRO!$E$48,0)) -> 17648 | F35: =IF(INTRO!$E$49="","",ROUND($D35*INTRO!$E$49,0)) -> 35379 | G35: =IF(INTRO!$E$50="","",ROUND($D35*INTRO!$E$50,0)) -> 81160 | H35: 1 | I35: 1 | J35: 1 | K35: 2 | L35: =IF(INTRO!$E$37="Endémique",IF($H35>0,IF($H35=4,"Inconnu",IF($H35=99,"Interrompu",$D35)),0),"Non requis") -> 139067 | M35: =IF(INTRO!$E$39="Endémique", IF($I35>0, IF($I35=4,"Inconnu",IF($I35=99,"Interrompu",$D35)), 0),"Non requis") -> 139067 | N35: =IF(INTRO!$E$41="Endémique", IF(AND($J35>1,$J35<5), IF($J35=4, "Inconnu", E35+F35), 0),"Non requis") -> 0 | O35: =IF(INTRO!$E$43="Endémique", IF(AND($K35>0,$K35<5), IF($K35=4,"Inconnu", IF($K35=1, $F35*0.33, IF($K35=2, $F35*0.5+$G35*0.2, SUM(F35:G35)))), 0),"Non requis") -> 33921.5 | P35: 1 | Q35: 1 | R35: 0 | S35: 1 | X35: 15423 | Y35: BOUNA
A36: =IF(INTRO!$E$33<>0,INTRO!$E$33, " ") -> Cote d'Ivoire | B36: BOUKANI | C36: DOROPO | D36: 78097 | E36: =IF(INTRO!$E$48="","",ROUND($D36*INTRO!$E$48,0)) -> 9911 | F36: =IF(INTRO!$E$49="","",ROUND($D36*INTRO!$E$49,0)) -> 19868 | G36: =IF(INTRO!$E$50="","",ROUND($D36*INTRO!$E$50,0)) -> 45577 | H36: 1 | I36: 1 | J36: 1 | K36: 2 | L36: =IF(INTRO!$E$37="Endémique",IF($H36>0,IF($H36=4,"Inconnu",IF($H36=99,"Interrompu",$D36)),0),"Non requis") -> 78097 | M36: =IF(INTRO!$E$39="Endémique", IF($I36>0, IF($I36=4,"Inconnu",IF($I36=99,"Interrompu",$D36)), 0),"Non requis") -> 78097 | N36: =IF(INTRO!$E$41="Endémique", IF(AND($J36>1,$J36<5), IF($J36=4, "Inconnu", E36+F36), 0),"Non requis") -> 0 | O36: =IF(INTRO!$E$43="Endémique", IF(AND($K36>0,$K36<5), IF($K36=4,"Inconnu", IF($K36=1, $F36*0.33, IF($K36=2, $F36*0.5+$G36*0.2, SUM(F36:G36)))), 0),"Non requis") -> 19049.4 | P36: 1 | Q36: 1 | R36: 0 | S36: 1 | X36: 15424 | Y36: DOROPO
A37: =IF(INTRO!$E$33<>0,INTRO!$E$33, " ") -> Cote d'Ivoire | B37: BOUKANI | C37: NASSIAN | D37: 49864 | E37: =IF(INTRO!$E$48="","",ROUND($D37*INTRO!$E$48,0)) -> 6328 | F37: =IF(INTRO!$E$49="","",ROUND($D37*INTRO!$E$49,0)) -> 12685 | G37: =IF(INTRO!$E$50="","",ROUND($D37*INTRO!$E$50,0)) -> 29101 | H37: 1 | I37: 1 | J37: 2 | K37: 1 | L37: =IF(INTRO!$E$37="Endémique",IF($H37>0,IF($H37=4,"Inconnu",IF($H37=99,"Interrompu",$D37)),0),"Non requis") -> 49864 | M37: =IF(INTRO!$E$39="Endémique", IF($I37>0, IF($I37=4,"Inconnu",IF($I37=99,"Interrompu",$D37)), 0),"Non requis") -> 49864 | N37: =IF(INTRO!$E$41="Endémique", IF(AND($J37>1,$J37<5), IF($J37=4, "Inconnu", E37+F37), 0),"Non requis") -> 19013 | O37: =IF(INTRO!$E$43="Endémique", IF(AND($K37>0,$K37<5), IF($K37=4,"Inconnu", IF($K37=1, $F37*0.33, IF($K37=2, $F37*0.5+$G37*0.2, SUM(F37:G37)))), 0),"Non requis") -> 4186.05 | P37: 1 | Q37: 1 | R37: 1 | S37: 0 | X37: 15353 | Y37: NASSIAN | AB37: 1 | AC37: 1 | AD37: 2 | AE37: 0 | AF37: TRUE | AG37: TRUE | AH37: TRUE | AI37: FALSE
A38: =IF(INTRO!$E$33<>0,INTRO!$E$33, " ") -> Cote d'Ivoire | B38: BOUKANI | C38: TEHINI | D38: 51305 | E38: =IF(INTRO!$E$48="","",ROUND($D38*INTRO!$E$48,0)) -> 6511 | F38: =IF(INTRO!$E$49="","",ROUND($D38*INTRO!$E$49,0)) -> 13052 | G38: =IF(INTRO!$E$50="","",ROUND($D38*INTRO!$E$50,0)) -> 29942 | H38: 1 | I38: 1 | J38: 1 | K38: 2 | L38: =IF(INTRO!$E$37="Endémique",IF($H38>0,IF($H38=4,"Inconnu",IF($H38=99,"Interrompu",$D38)),0),"Non requis") -> 51305 | M38: =IF(INTRO!$E$39="Endémique", IF($I38>0, IF($I38=4,"Inconnu",IF($I38=99,"Interrompu",$D38)), 0),"Non requis") -> 51305 | N38: =IF(INTRO!$E$41="Endémique", IF(AND($J38>1,$J38<5), IF($J38=4, "Inconnu", E38+F38), 0),"Non requis") -> 0 | O38: =IF(INTRO!$E$43="Endémique", IF(AND($K38>0,$K38<5), IF($K38=4,"Inconnu", IF($K38=1, $F38*0.33, IF($K38=2, $F38*0.5+$G38*0.2, SUM(F38:G38)))), 0),"Non requis") -> 12514.4 | P38: 1 | Q38: 1 | R38: 0 | S38: 1 | X38: 15425 | Y38: TEHINI
A39: =IF(INTRO!$E$33<>0,INTRO!$E$33, " ") -> Cote d'Ivoire | B39: CAVALLY | C39: BLOLEQUIN | D39: 136399 | E39: =IF(INTRO!$E$48="","",ROUND($D39*INTRO!$E$48,0)) -> 17309 | F39: =IF(INTRO!$E$49="","",ROUND($D39*INTRO!$E$49,0)) -> 34700 | G39: =IF(INTRO!$E$50="","",ROUND($D39*INTRO!$E$50,0)) -> 79602 | H39: 1 | I39: 1 | J39: 1 | K39: 2 | L39: =IF(INTRO!$E$37="Endémique",IF($H39>0,IF($H39=4,"Inconnu",IF($H39=99,"Interrompu",$D39)),0),"Non requis") -> 136399 | M39: =IF(INTRO!$E$39="Endémique", IF($I39>0, IF($I39=4,"Inconnu",IF($I39=99,"Interrompu",$D39)), 0),"Non requis") -> 136399 | N39: =IF(INTRO!$E$41="Endémique", IF(AND($J39>1,$J39<5), IF($J39=4, "Inconnu", E39+F39), 0),"Non requis") -> 0 | O39: =IF(INTRO!$E$43="Endémique", IF(AND($K39>0,$K39<5), IF($K39=4,"Inconnu", IF($K39=1, $F39*0.33, IF($K39=2, $F39*0.5+$G39*0.2, SUM(F39:G39)))), 0),"Non requis") -> 33270.4 | P39: 1 | Q39: 1 | R39: 0 | S39: 1 | X39: 15356 | Y39: BLOLEQUIN | AB39: 1 | AC39: 1 | AD39: 1 | AE39: 2 | AF39: TRUE | AG39: TRUE | AH39: TRUE | AI39: TRUE
A40: =IF(INTRO!$E$33<>0,INTRO!$E$33, " ") -> Cote d'Ivoire | B40: CAVALLY | C40: GUIGLO | D40: 195404 | E40: =IF(INTRO!$E$48="","",ROUND($D40*INTRO!$E$48,0)) -> 24797 | F40: =IF(INTRO!$E$49="","",ROUND($D40*INTRO!$E$49,0)) -> 49711 | G40: =IF(INTRO!$E$50="","",ROUND($D40*INTRO!$E$50,0)) -> 114038 | H40: 1 | I40: 1 | J40: 1 | K40: 2 | L40: =IF(INTRO!$E$37="Endémique",IF($H40>0,IF($H40=4,"Inconnu",IF($H40=99,"Interrompu",$D40)),0),"Non requis") -> 195404 | M40: =IF(INTRO!$E$39="Endémique", IF($I40>0, IF($I40=4,"Inconnu",IF($I40=99,"Interrompu",$D40)), 0),"Non requis") -> 195404 | N40: =IF(INTRO!$E$41="Endémique", IF(AND($J40>1,$J40<5), IF($J40=4, "Inconnu", E40+F40), 0),"Non requis") -> 0 | O40: =IF(INTRO!$E$43="Endémique", IF(AND($K40>0,$K40<5), IF($K40=4,"Inconnu", IF($K40=1, $F40*0.33, IF($K40=2, $F40*0.5+$G40*0.2, SUM(F40:G40)))), 0),"Non requis") -> 47663.1 | P40: 1 | Q40: 1 | R40: 0 | S40: 0 | X40: 15429 | Y40: GUIGLO
A41: =IF(INTRO!$E$33<>0,INTRO!$E$33, " ") -> Cote d'Ivoire | B41: CAVALLY | C41: TAI | D41: 113853 | E41: =IF(INTRO!$E$48="","",ROUND($D41*INTRO!$E$48,0)) -> 14448 | F41: =IF(INTRO!$E$49="","",ROUND($D41*INTRO!$E$49,0)) -> 28964 | G41: =IF(INTRO!$E$50="","",ROUND($D41*INTRO!$E$50,0)) -> 66445 | H41: 1 | I41: 1 | J41: 1 | K41: 2 | L41: =IF(INTRO!$E$37="Endémique",IF($H41>0,IF($H41=4,"Inconnu",IF($H41=99,"Interrompu",$D41)),0),"Non requis") -> 113853 | M41: =IF(INTRO!$E$39="Endémique", IF($I41>0, IF($I41=4,"Inconnu",IF($I41=99,"Interrompu",$D41)), 0),"Non requis") -> 113853 | N41: =IF(INTRO!$E$41="Endémique", IF(AND($J41>1,$J41<5), IF($J41=4, "Inconnu", E41+F41), 0),"Non requis") -> 0 | O41: =IF(INTRO!$E$43="Endémique", IF(AND($K41>0,$K41<5), IF($K41=4,"Inconnu", IF($K41=1, $F41*0.33, IF($K41=2, $F41*0.5+$G41*0.2, SUM(F41:G41)))), 0),"Non requis") -> 27771 | P41: 1 | Q41: 1 | R41: 0 | S41: 0 | X41: 15430 | Y41: TAI
A42: =IF(INTRO!$E$33<>0,INTRO!$E$33, " ") -> Cote d'Ivoire | B42: CAVALLY | C42: TOULEPLEU | D42: 63030 | E42: =IF(INTRO!$E$48="","",ROUND($D42*INTRO!$E$48,0)) -> 7999 | F42: =IF(INTRO!$E$49="","",ROUND($D42*INTRO!$E$49,0)) -> 16035 | G42: =IF(INTRO!$E$50="","",ROUND($D42*INTRO!$E$50,0)) -> 36784 | H42: 1 | I42: 1 | J42: 1 | K42: 2 | L42: =IF(INTRO!$E$37="Endémique",IF($H42>0,IF($H42=4,"Inconnu",IF($H42=99,"Interrompu",$D42)),0),"Non requis") -> 63030 | M42: =IF(INTRO!$E$39="Endémique", IF($I42>0, IF($I42=4,"Inconnu",IF($I42=99,"Interrompu",$D42)), 0),"Non requis") -> 63030 | N42: =IF(INTRO!$E$41="Endémique", IF(AND($J42>1,$J42<5), IF($J42=4, "Inconnu", E42+F42), 0),"Non requis") -> 0 | O42: =IF(INTRO!$E$43="Endémique", IF(AND($K42>0,$K42<5), IF($K42=4,"Inconnu", IF($K42=1, $F42*0.33, IF($K42=2, $F42*0.5+$G42*0.2, SUM(F42:G42)))), 0),"Non requis") -> 15374.3 | P42: 1 | Q42: 1 | R42: 0 | S42: 0 | X42: 15360 | Y42: TOULEPLEU | AB42: 1 | AC42: 1 | AD42: 1 | AE42: 2 | AF42: TRUE | AG42: TRUE | AH42: TRUE | AI42: TRUE
A43: =IF(INTRO!$E$33<>0,INTRO!$E$33, " ") -> Cote d'Ivoire | B43: FOLON | C43: KANIASSO | D43: 64302 | E43: =IF(INTRO!$E$48="","",ROUND($D43*INTRO!$E$48,0)) -> 8160 | F43: =IF(INTRO!$E$49="","",ROUND($D43*INTRO!$E$49,0)) -> 16358 | G43: =IF(INTRO!$E$50="","",ROUND($D43*INTRO!$E$50,0)) -> 37527 | H43: 0 | I43: 1 | J43: 1 | K43: 1 | L43: =IF(INTRO!$E$37="Endémique",IF($H43>0,IF($H43=4,"Inconnu",IF($H43=99,"Interrompu",$D43)),0),"Non requis") -> 0 | M43: =IF(INTRO!$E$39="Endémique", IF($I43>0, IF($I43=4,"Inconnu",IF($I43=99,"Interrompu",$D43)), 0),"Non requis") -> 64302 | N43: =IF(INTRO!$E$41="Endémique", IF(AND($J43>1,$J43<5), IF($J43=4, "Inconnu", E43+F43), 0),"Non requis") -> 0 | O43: =IF(INTRO!$E$43="Endémique", IF(AND($K43>0,$K43<5), IF($K43=4,"Inconnu", IF($K43=1, $F43*0.33, IF($K43=2, $F43*0.5+$G43*0.2, SUM(F43:G43)))), 0),"Non requis") -> 5398.14 | P43: 0 | Q43: 1 | R43: 0 | S43: 0 | X43: 15438 | Y43: KANIASSO
A44: =IF(INTRO!$E$33<>0,INTRO!$E$33, " ") -> Cote d'Ivoire | B44: FOLON | C44: MINIGNAN | D44: 52209 | E44: =IF(INTRO!$E$48="","",ROUND($D44*INTRO!$E$48,0)) -> 6625 | F44: =IF(INTRO!$E$49="","",ROUND($D44*INTRO!$E$49,0)) -> 13282 | G44: =IF(INTRO!$E$50="","",ROUND($D44*INTRO!$E$50,0)) -> 30469 | H44: 0 | I44: 1 | J44: 1 | K44: 1 | L44: =IF(INTRO!$E$37="Endémique",IF($H44>0,IF($H44=4,"Inconnu",IF($H44=99,"Interrompu",$D44)),0),"Non requis") -> 0 | M44: =IF(INTRO!$E$39="Endémique", IF($I44>0, IF($I44=4,"Inconnu",IF($I44=99,"Interrompu",$D44)), 0),"Non requis") -> 52209 | N44: =IF(INTRO!$E$41="Endémique", IF(AND($J44>1,$J44<5), IF($J44=4, "Inconnu", E44+F44), 0),"Non requis") -> 0 | O44: =IF(INTRO!$E$43="Endémique", IF(AND($K44>0,$K44<5), IF($K44=4,"Inconnu", IF($K44=1, $F44*0.33, IF($K44=2, $F44*0.5+$G44*0.2, SUM(F44:G44)))), 0),"Non requis") -> 4383.06 | P44: 0 | Q44: 1 | R44: 0 | S44: 0 | X44: 15437 | Y44: MINIGNAN
A45: =IF(INTRO!$E$33<>0,INTRO!$E$33, " ") -> Cote d'Ivoire | B45: GBEKE | C45: BEOUMI | D45: 176085 | E45: =IF(INTRO!$E$48="","",ROUND($D45*INTRO!$E$48,0)) -> 22345 | F45: =IF(INTRO!$E$49="","",ROUND($D45*INTRO!$E$49,0)) -> 44796 | G45: =IF(INTRO!$E$50="","",ROUND($D45*INTRO!$E$50,0)) -> 102763 | H45: 1 | I45: 1 | J45: 1 | K45: 1 | L45: =IF(INTRO!$E$37="Endémique",IF($H45>0,IF($H45=4,"Inconnu",IF($H45=99,"Interrompu",$D45)),0),"Non requis") -> 176085 | M45: =IF(INTRO!$E$39="Endémique", IF($I45>0, IF($I45=4,"Inconnu",IF($I45=99,"Interrompu",$D45)), 0),"Non requis") -> 176085 | N45: =IF(INTRO!$E$41="Endémique", IF(AND($J45>1,$J45<5), IF($J45=4, "Inconnu", E45+F45), 0),"Non requis") -> 0 | O45: =IF(INTRO!$E$43="Endémique", IF(AND($K45>0,$K45<5), IF($K45=4,"Inconnu", IF($K45=1, $F45*0.33, IF($K45=2, $F45*0.5+$G45*0.2, SUM(F45:G45)))), 0),"Non requis") -> 14782.68 | P45: 1 | Q45: 1 | R45: 0 | S45: 0 | X45: 15361 | Y45: BEOUMI | AB45: 1 | AC45: 1 | AD45: 1 | AE45: 1 | AF45: TRUE | AG45: TRUE | AH45: TRUE | AI45: TRUE
A46: =IF(INTRO!$E$33<>0,INTRO!$E$33, " ") -> Cote d'Ivoire | B46: GBEKE | C46: BOTRO | D46: 92977 | E46: =IF(INTRO!$E$48="","",ROUND($D46*INTRO!$E$48,0)) -> 11799 | F46: =IF(INTRO!$E$49="","",ROUND($D46*INTRO!$E$49,0)) -> 23653 | G46: =IF(INTRO!$E$50="","",ROUND($D46*INTRO!$E$50,0)) -> 54261 | H46: 1 | I46: 1 | J46: 1 | K46: 2 | L46: =IF(INTRO!$E$37="Endémique",IF($H46>0,IF($H46=4,"Inconnu",IF($H46=99,"Interrompu",$D46)),0),"Non requis") -> 92977 | M46: =IF(INTRO!$E$39="Endémique", IF($I46>0, IF($I46=4,"Inconnu",IF($I46=99,"Interrompu",$D46)), 0),"Non requis") -> 92977 | N46: =IF(INTRO!$E$41="Endémique", IF(AND($J46>1,$J46<5), IF($J46=4, "Inconnu", E46+F46), 0),"Non requis") -> 0 | O46: =IF(INTRO!$E$43="Endémique", IF(AND($K46>0,$K46<5), IF($K46=4,"Inconnu", IF($K46=1, $F46*0.33, IF($K46=2, $F46*0.5+$G46*0.2, SUM(F46:G46)))), 0),"Non requis") -> 22678.7 | P46: 1 | Q46: 1 | R46: 0 | S46: 1 | X46: 15432 | Y46: BOTRO
A47: =IF(INTRO!$E$33<>0,INTRO!$E$33, " ") -> Cote d'Ivoire | B47: GBEKE | C47: BOUAKE NORD-EST | D47: 183832 | E47: =IF(INTRO!$E$48="","",ROUND($D47*INTRO!$E$48,0)) -> 23328 | F47: =IF(INTRO!$E$49="","",ROUND($D47*INTRO!$E$49,0)) -> 46767 | G47: =IF(INTRO!$E$50="","",ROUND($D47*INTRO!$E$50,0)) -> 107284 | H47: 1 | I47: 1 | J47: 2 | K47: 1 | L47: =IF(INTRO!$E$37="Endémique",IF($H47>0,IF($H47=4,"Inconnu",IF($H47=99,"Interrompu",$D47)),0),"Non requis") -> 183832 | M47: =IF(INTRO!$E$39="Endémique", IF($I47>0, IF($I47=4,"Inconnu",IF($I47=99,"Interrompu",$D47)), 0),"Non requis") -> 183832 | N47: =IF(INTRO!$E$41="Endémique", IF(AND($J47>1,$J47<5), IF($J47=4, "Inconnu", E47+F47), 0),"Non requis") -> 70095 | O47: =IF(INTRO!$E$43="Endémique", IF(AND($K47>0,$K47<5), IF($K47=4,"Inconnu", IF($K47=1, $F47*0.33, IF($K47=2, $F47*0.5+$G47*0.2, SUM(F47:G47)))), 0),"Non requis") -> 15433.11 | P47: 1 | Q47: 1 | R47: 1 | S47: 0 | X47: 15362 | Y47: BOUAKE NORD-EST | AB47: 1 | AC47: 1 | AD47: 2 | AE47: 1 | AF47: TRUE | AG47: TRUE | AH47: TRUE | AI47: TRUE
A48: =IF(INTRO!$E$33<>0,INTRO!$E$33, " ") -> Cote d'Ivoire | B48: GBEKE | C48: BOUAKE NORD-OUEST | D48: 411334 | E48: =IF(INTRO!$E$48="","",ROUND($D48*INTRO!$E$48,0)) -> 52198 | F48: =IF(INTRO!$E$49="","",ROUND($D48*INTRO!$E$49,0)) -> 104643 | G48: =IF(INTRO!$E$50="","",ROUND($D48*INTRO!$E$50,0)) -> 240055 | H48: 1 | I48: 1 | J48: 1 | K48: 2 | L48: =IF(INTRO!$E$37="Endémique",IF($H48>0,IF($H48=4,"Inconnu",IF($H48=99,"Interrompu",$D48)),0),"Non requis") -> 411334 | M48: =IF(INTRO!$E$39="Endémique", IF($I48>0, IF($I48=4,"Inconnu",IF($I48=99,"Interrompu",$D48)), 0),"Non requis") -> 411334 | N48: =IF(INTRO!$E$41="Endémique", IF(AND($J48>1,$J48<5), IF($J48=4, "Inconnu", E48+F48), 0),"Non requis") -> 0 | O48: =IF(INTRO!$E$43="Endémique", IF(AND($K48>0,$K48<5), IF($K48=4,"Inconnu", IF($K48=1, $F48*0.33, IF($K48=2, $F48*0.5+$G48*0.2, SUM(F48:G48)))), 0),"Non requis") -> 100332.5 | P48: 1 | Q48: 1 | R48: 0 | S48: 1 | X48: 15431 | Y48: BOUAKE NORD OUEST
A49: =IF(INTRO!$E$33<>0,INTRO!$E$33, " ") -> Cote d'Ivoire | B49: GBEKE | C49: BOUAKE SUD | D49: 182109 | E49: =IF(INTRO!$E$48="","",ROUND($D49*INTRO!$E$48,0)) -> 23110 | F49: =IF(INTRO!$E$49="","",ROUND($D49*INTRO!$E$49,0)) -> 46329 | G49: =IF(INTRO!$E$50="","",ROUND($D49*INTRO!$E$50,0)) -> 106279 | H49: 1 | I49: 0 | J49: 1 | K49: 1 | L49: =IF(INTRO!$E$37="Endémique",IF($H49>0,IF($H49=4,"Inconnu",IF($H49=99,"Interrompu",$D49)),0),"Non requis") -> 182109 | M49: =IF(INTRO!$E$39="Endémique", IF($I49>0, IF($I49=4,"Inconnu",IF($I49=99,"Interrompu",$D49)), 0),"Non requis") -> 0 | N49: =IF(INTRO!$E$41="Endémique", IF(AND($J49>1,$J49<5), IF($J49=4, "Inconnu", E49+F49), 0),"Non requis") -> 0 | O49: =IF(INTRO!$E$43="Endémique", IF(AND($K49>0,$K49<5), IF($K49=4,"Inconnu", IF($K49=1, $F49*0.33, IF($K49=2, $F49*0.5+$G49*0.2, SUM(F49:G49)))), 0),"Non requis") -> 15288.57 | P49: 1 | Q49: 0 | R49: 0 | S49: 0 | X49: 15364 | Y49: BOUAKE SUD | AB49: 1 | AC49: 0 | AD49: 1 | AE49: 1 | AF49: TRUE | AG49: TRUE | AH49: TRUE | AI49: TRUE
A50: =IF(INTRO!$E$33<>0,INTRO!$E$33, " ") -> Cote d'Ivoire | B50: GBEKE | C50: SAKASSOU | D50: 107936 | E50: =IF(INTRO!$E$48="","",ROUND($D50*INTRO!$E$48,0)) -> 13697 | F50: =IF(INTRO!$E$49="","",ROUND($D50*INTRO!$E$49,0)) -> 27459 | G50: =IF(INTRO!$E$50="","",ROUND($D50*INTRO!$E$50,0)) -> 62991 | H50: 1 | I50: 1 | J50: 2 | K50: 2 | L50: =IF(INTRO!$E$37="Endémique",IF($H50>0,IF($H50=4,"Inconnu",IF($H50=99,"Interrompu",$D50)),0),"Non requis") -> 107936 | M50: =IF(INTRO!$E$39="Endémique", IF($I50>0, IF($I50=4,"Inconnu",IF($I50=99,"Interrompu",$D50)), 0),"Non requis") -> 107936 | N50: =IF(INTRO!$E$41="Endémique", IF(AND($J50>1,$J50<5), IF($J50=4, "Inconnu", E50+F50), 0),"Non requis") -> 41156 | O50: =IF(INTRO!$E$43="Endémique", IF(AND($K50>0,$K50<5), IF($K50=4,"Inconnu", IF($K50=1, $F50*0.33, IF($K50=2, $F50*0.5+$G50*0.2, SUM(F50:G50)))), 0),"Non requis") -> 26327.7 | P50: 1 | Q50: 1 | R50: 1 | S50: 1 | X50: 15365 | Y50: SAKASSOU | AB50: 1 | AC50: 1 | AD50: 2 | AE50: 2 | AF50: TRUE | AG50: TRUE | AH50: TRUE | AI50: TRUE
A51: =IF(INTRO!$E$33<>0,INTRO!$E$33, " ") -> Cote d'Ivoire | B51: GBOKLE | C51: FRESCO | D51: 112027 | E51: =IF(INTRO!$E$48="","",ROUND($D51*INTRO!$E$48,0)) -> 14216 | F51: =IF(INTRO!$E$49="","",ROUND($D51*INTRO!$E$49,0)) -> 28500 | G51: =IF(INTRO!$E$50="","",ROUND($D51*INTRO!$E$50,0)) -> 65379 | H51: 1 | I51: 1 | J51: 2 | K51: 1 | L51: =IF(INTRO!$E$37="Endémique",IF($H51>0,IF($H51=4,"Inconnu",IF($H51=99,"Interrompu",$D51)),0),"Non requis") -> 112027 | M51: =IF(INTRO!$E$39="Endémique", IF($I51>0, IF($I51=4,"Inconnu",IF($I51=99,"Interrompu",$D51)), 0),"Non requis") -> 112027 | N51: =IF(INTRO!$E$41="Endémique", IF(AND($J51>1,$J51<5), IF($J51=4, "Inconnu", E51+F51), 0),"Non requis") -> 42716 | O51: =IF(INTRO!$E$43="Endémique", IF(AND($K51>0,$K51<5), IF($K51=4,"Inconnu", IF($K51=1, $F51*0.33, IF($K51=2, $F51*0.5+$G51*0.2, SUM(F51:G51)))), 0),"Non requis") -> 9405 | P51: 1 | Q51: 1 | R51: 1 | S51: 1 | X51: 15386 | Y51: FRESCO | AB51: 1 | AC51: 1 | AD51: 2 | AE51: 2 | AF51: TRUE | AG51: TRUE | AH51: TRUE | AI51: FALSE
A52: =IF(INTRO!$E$33<>0,INTRO!$E$33, " ") -> Cote d'Ivoire | B52: GBOKLE | C52: SASSANDRA | D52: 331221 | E52: =IF(INTRO!$E$48="","",ROUND($D52*INTRO!$E$48,0)) -> 42032 | F52: =IF(INTRO!$E$49="","",ROUND($D52*INTRO!$E$49,0)) -> 84263 | G52: =IF(INTRO!$E$50="","",ROUND($D52*INTRO!$E$50,0)) -> 193301 | H52: 1 | I52: 1 | J52: 1 | K52: 2 | L52: =IF(INTRO!$E$37="Endémique",IF($H52>0,IF($H52=4,"Inconnu",IF($H52=99,"Interrompu",$D52)),0),"Non requis") -> 331221 | M52: =IF(INTRO!$E$39="Endémique", IF($I52>0, IF($I52=4,"Inconnu",IF($I52=99,"Interrompu",$D52)), 0),"Non requis") -> 331221 | N52: =IF(INTRO!$E$41="Endémique", IF(AND($J52>1,$J52<5), IF($J52=4, "Inconnu", E52+F52), 0),"Non requis") -> 0 | O52: =IF(INTRO!$E$43="Endémique", IF(AND($K52>0,$K52<5), IF($K52=4,"Inconnu", IF($K52=1, $F52*0.33, IF($K52=2, $F52*0.5+$G52*0.2, SUM(F52:G52)))), 0),"Non requis") -> 80791.7 | P52: 1 | Q52: 1 | R52: 0 | S52: 0 | X52: 15368 | Y52: SASSANDRA | AB52: 1 | AC52: 1 | AD52: 1 | AE52: 2 | AF52: TRUE | AG52: TRUE | AH52: TRUE | AI52: TRUE
A53: =IF(INTRO!$E$33<>0,INTRO!$E$33, " ") -> Cote d'Ivoire | B53: GOH | C53: GAGNOA 1 | D53: 457273 | E53: =IF(INTRO!$E$48="","",ROUND($D53*INTRO!$E$48,0)) -> 58028 | F53: =IF(INTRO!$E$49="","",ROUND($D53*INTRO!$E$49,0)) -> 116330 | G53: =IF(INTRO!$E$50="","",ROUND($D53*INTRO!$E$50,0)) -> 266865 | H53: 1 | I53: 1 | J53: 1 | K53: 2 | L53: =IF(INTRO!$E$37="Endémique",IF($H53>0,IF($H53=4,"Inconnu",IF($H53=99,"Interrompu",$D53)),0),"Non requis") -> 457273 | M53: =IF(INTRO!$E$39="Endémique", IF($I53>0, IF($I53=4,"Inconnu",IF($I53=99,"Interrompu",$D53)), 0),"Non requis") -> 457273 | N53: =IF(INTRO!$E$41="Endémique", IF(AND($J53>1,$J53<5), IF($J53=4, "Inconnu", E53+F53), 0),"Non requis") -> 0 | O53: =IF(INTRO!$E$43="Endémique", IF(AND($K53>0,$K53<5), IF($K53=4,"Inconnu", IF($K53=1, $F53*0.33, IF($K53=2, $F53*0.5+$G53*0.2, SUM(F53:G53)))), 0),"Non requis") -> 111538 | P53: 1 | Q53: 1 | R53: 0 | S53: 0 | X53: 15433 | Y53: GAGNOA 1
A54: =IF(INTRO!$E$33<>0,INTRO!$E$33, " ") -> Cote d'Ivoire | B54: GOH | C54: GAGNOA 2 | D54: 304463 | E54: =IF(INTRO!$E$48="","",ROUND($D54*INTRO!$E$48,0)) -> 38636 | F54: =IF(INTRO!$E$49="","",ROUND($D54*INTRO!$E$49,0)) -> 77455 | G54: =IF(INTRO!$E$50="","",ROUND($D54*INTRO!$E$50,0)) -> 177685 | H54: 1 | I54: 1 | J54: 1 | K54: 2 | L54: =IF(INTRO!$E$37="Endémique",IF($H54>0,IF($H54=4,"Inconnu",IF($H54=99,"Interrompu",$D54)),0),"Non requis") -> 304463 | M54: =IF(INTRO!$E$39="Endémique", IF($I54>0, IF($I54=4,"Inconnu",IF($I54=99,"Interrompu",$D54)), 0),"Non requis") -> 304463 | N54: =IF(INTRO!$E$41="Endémique", IF(AND($J54>1,$J54<5), IF($J54=4, "Inconnu", E54+F54), 0),"Non requis") -> 0 | O54: =IF(INTRO!$E$43="Endémique", IF(AND($K54>0,$K54<5), IF($K54=4,"Inconnu", IF($K54=1, $F54*0.33, IF($K54=2, $F54*0.5+$G54*0.2, SUM(F54:G54)))), 0),"Non requis") -> 74264.5 | P54: 1 | Q54: 1 | R54: 0 | S54: 0 | X54: 15434 | Y54: GAGNOA 2
A55: =IF(INTRO!$E$33<>0,INTRO!$E$33, " ") -> Cote d'Ivoire | B55: GOH | C55: OUME | D55: 346672 | E55: =IF(INTRO!$E$48="","",ROUND($D55*INTRO!$E$48,0)) -> 43993 | F55: =IF(INTRO!$E$49="","",ROUND($D55*INTRO!$E$49,0)) -> 88193 | G55: =IF(INTRO!$E$50="","",ROUND($D55*INTRO!$E$50,0)) -> 202318 | H55: 1 | I55: 1 | J55: 1 | K55: 2 | L55: =IF(INTRO!$E$37="Endémique",IF($H55>0,IF($H55=4,"Inconnu",IF($H55=99,"Interrompu",$D55)),0),"Non requis") -> 346672 | M55: =IF(INTRO!$E$39="Endémique", IF($I55>0, IF($I55=4,"Inconnu",IF($I55=99,"Interrompu",$D55)), 0),"Non requis") -> 346672 | N55: =IF(INTRO!$E$41="Endémique", IF(AND($J55>1,$J55<5), IF($J55=4, "Inconnu", E55+F55), 0),"Non requis") -> 0 | O55: =IF(INTRO!$E$43="Endémique", IF(AND($K55>0,$K55<5), IF($K55=4,"Inconnu", IF($K55=1, $F55*0.33, IF($K55=2, $F55*0.5+$G55*0.2, SUM(F55:G55)))), 0),"Non requis") -> 84560.1 | P55: 1 | Q55: 1 | R55: 0 | S55: 0 | X55: 15372 | Y55: OUME | AB55: 1 | AC55: 1 | AD55: 1 | AE55: 2 | AF55: TRUE | AG55: TRUE | AH55: TRUE | AI55: TRUE
A56: =IF(INTRO!$E$33<>0,INTRO!$E$33, " ") -> Cote d'Ivoire | B56: GONTOUGO | C56: BONDOUKOU | D56: 376133 | E56: =IF(INTRO!$E$48="","",ROUND($D56*INTRO!$E$48,0)) -> 47731 | F56: =IF(INTRO!$E$49="","",ROUND($D56*INTRO!$E$49,0)) -> 95688 | G56: =IF(INTRO!$E$50="","",ROUND($D56*INTRO!$E$50,0)) -> 219511 | H56: 1 | I56: 1 | J56: 1 | K56: 1 | L56: =IF(INTRO!$E$37="Endémique",IF($H56>0,IF($H56=4,"Inconnu",IF($H56=99,"Interrompu",$D56)),0),"Non requis") -> 376133 | M56: =IF(INTRO!$E$39="Endémique", IF($I56>0, IF($I56=4,"Inconnu",IF($I56=99,"Interrompu",$D56)), 0),"Non requis") -> 376133 | N56: =IF(INTRO!$E$41="Endémique", IF(AND($J56>1,$J56<5), IF($J56=4, "Inconnu", E56+F56), 0),"Non requis") -> 0 | O56: =IF(INTRO!$E$43="Endémique", IF(AND($K56>0,$K56<5), IF($K56=4,"Inconnu", IF($K56=1, $F56*0.33, IF($K56=2, $F56*0.5+$G56*0.2, SUM(F56:G56)))), 0),"Non requis") -> 31577.04 | P56: 1 | Q56: 1 | R56: 0 | S56: 1 | X56: 15421 | Y56: BONDOUKOU
A57: =IF(INTRO!$E$33<>0,INTRO!$E$33, " ") -> Cote d'Ivoire | B57: GONTOUGO | C57: KOUNFAO | D57: 131007 | E57: =IF(INTRO!$E$48="","",ROUND($D57*INTRO!$E$48,0)) -> 16625 | F57: =IF(INTRO!$E$49="","",ROUND($D57*INTRO!$E$49,0)) -> 33328 | G57: =IF(INTRO!$E$50="","",ROUND($D57*INTRO!$E$50,0)) -> 76456 | H57: 1 | I57: 1 | J57: 2 | K57: 1 | L57: =IF(INTRO!$E$37="Endémique",IF($H57>0,IF($H57=4,"Inconnu",IF($H57=99,"Interrompu",$D57)),0),"Non requis") -> 131007 | M57: =IF(INTRO!$E$39="Endémique", IF($I57>0, IF($I57=4,"Inconnu",IF($I57=99,"Interrompu",$D57)), 0),"Non requis") -> 131007 | N57: =IF(INTRO!$E$41="Endémique", IF(AND($J57>1,$J57<5), IF($J57=4, "Inconnu", E57+F57), 0),"Non requis") -> 49953 | O57: =IF(INTRO!$E$43="Endémique", IF(AND($K57>0,$K57<5), IF($K57=4,"Inconnu", IF($K57=1, $F57*0.33, IF($K57=2, $F57*0.5+$G57*0.2, SUM(F57:G57)))), 0),"Non requis") -> 10998.24 | P57: 1 | Q57: 1 | R57: 1 | S57: 0 | X57: 15427 | Y57: KOUN-FAO
A58: =IF(INTRO!$E$33<>0,INTRO!$E$33, " ") -> Cote d'Ivoire | B58: GONTOUGO | C58: SANDEGUE | D58: 63361 | E58: =IF(INTRO!$E$48="","",ROUND($D58*INTRO!$E$48,0)) -> 8041 | F58: =IF(INTRO!$E$49="","",ROUND($D58*INTRO!$E$49,0)) -> 16119 | G58: =IF(INTRO!$E$50="","",ROUND($D58*INTRO!$E$50,0)) -> 36977 | H58: 1 | I58: 1 | J58: 1 | K58: 1 | L58: =IF(INTRO!$E$37="Endémique",IF($H58>0,IF($H58=4,"Inconnu",IF($H58=99,"Interrompu",$D58)),0),"Non requis") -> 63361 | M58: =IF(INTRO!$E$39="Endémique", IF($I58>0, IF($I58=4,"Inconnu",IF($I58=99,"Interrompu",$D58)), 0),"Non requis") -> 63361 | N58: =IF(INTRO!$E$41="Endémique", IF(AND($J58>1,$J58<5), IF($J58=4, "Inconnu", E58+F58), 0),"Non requis") -> 0 | O58: =IF(INTRO!$E$43="Endémique", IF(AND($K58>0,$K58<5), IF($K58=4,"Inconnu", IF($K58=1, $F58*0.33, IF($K58=2, $F58*0.5+$G58*0.2, SUM(F58:G58)))), 0),"Non requis") -> 5319.27 | P58: 1 | Q58: 1 | R58: 0 | S58: 1 | X58: 15422 | Y58: SANDEGUE
A59: =IF(INTRO!$E$33<>0,INTRO!$E$33, " ") -> Cote d'Ivoire | B59: GONTOUGO | C59: TANDA | D59: 87415 | E59: =IF(INTRO!$E$48="","",ROUND($D59*INTRO!$E$48,0)) -> 11093 | F59: =IF(INTRO!$E$49="","",ROUND($D59*INTRO!$E$49,0)) -> 22238 | G59: =IF(INTRO!$E$50="","",ROUND($D59*INTRO!$E$50,0)) -> 51015 | H59: 1 | I59: 1 | J59: 2 | K59: 1 | L59: =IF(INTRO!$E$37="Endémique",IF($H59>0,IF($H59=4,"Inconnu",IF($H59=99,"Interrompu",$D59)),0),"Non requis") -> 87415 | M59: =IF(INTRO!$E$39="Endémique", IF($I59>0, IF($I59=4,"Inconnu",IF($I59=99,"Interrompu",$D59)), 0),"Non requis") -> 87415 | N59: =IF(INTRO!$E$41="Endémique", IF(AND($J59>1,$J59<5), IF($J59=4, "Inconnu", E59+F59), 0),"Non requis") -> 33331 | O59: =IF(INTRO!$E$43="Endémique", IF(AND($K59>0,$K59<5), IF($K59=4,"Inconnu", IF($K59=1, $F59*0.33, IF($K59=2, $F59*0.5+$G59*0.2, SUM(F59:G59)))), 0),"Non requis") -> 7338.54 | P59: 1 | Q59: 1 | R59: 1 | S59: 0 | X59: 15426 | Y59: TANDA
A60: =IF(INTRO!$E$33<>0,INTRO!$E$33, " ") -> Cote d'Ivoire | B60: GONTOUGO | C60: TRANSUA | D60: 94090 | E60: =IF(INTRO!$E$48="","",ROUND($D60*INTRO!$E$48,0)) -> 11940 | F60: =IF(INTRO!$E$49="","",ROUND($D60*INTRO!$E$49,0)) -> 23936 | G60: =IF(INTRO!$E$50="","",ROUND($D60*INTRO!$E$50,0)) -> 54911 | H60: 1 | I60: 1 | J60: 2 | K60: 1 | L60: =IF(INTRO!$E$37="Endémique",IF($H60>0,IF($H60=4,"Inconnu",IF($H60=99,"Interrompu",$D60)),0),"Non requis") -> 94090 | M60: =IF(INTRO!$E$39="Endémique", IF($I60>0, IF($I60=4,"Inconnu",IF($I60=99,"Interrompu",$D60)), 0),"Non requis") -> 94090 | N60: =IF(INTRO!$E$41="Endémique", IF(AND($J60>1,$J60<5), IF($J60=4, "Inconnu", E60+F60), 0),"Non requis") -> 35876 | O60: =IF(INTRO!$E$43="Endémique", IF(AND($K60>0,$K60<5), IF($K60=4,"Inconnu", IF($K60=1, $F60*0.33, IF($K60=2, $F60*0.5+$G60*0.2, SUM(F60:G60)))), 0),"Non requis") -> 7898.88 | P60: 1 | Q60: 1 | R60: 1 | S60: 0 | X60: 15428 | Y60: TRANSUA
A61: =IF(INTRO!$E$33<>0,INTRO!$E$33, " ") -> Cote d'Ivoire | B61: GRANDS PONTS | C61: DABOU | D61: 163821 | E61: =IF(INTRO!$E$48="","",ROUND($D61*INTRO!$E$48,0)) -> 20789 | F61: =IF(INTRO!$E$49="","",ROUND($D61*INTRO!$E$49,0)) -> 41676 | G61: =IF(INTRO!$E$50="","",ROUND($D61*INTRO!$E$50,0)) -> 95606 | H61: 1 | I61: 1 | J61: 2 | K61: 1 | L61: =IF(INTRO!$E$37="Endémique",IF($H61>0,IF($H61=4,"Inconnu",IF($H61=99,"Interrompu",$D61)),0),"Non requis") -> 163821 | M61: =IF(INTRO!$E$39="Endémique", IF($I61>0, IF($I61=4,"Inconnu",IF($I61=99,"Interrompu",$D61)), 0),"Non requis") -> 163821 | N61: =IF(INTRO!$E$41="Endémique", IF(AND($J61>1,$J61<5), IF($J61=4, "Inconnu", E61+F61), 0),"Non requis") -> 62465 | O61: =IF(INTRO!$E$43="Endémique", IF(AND($K61>0,$K61<5), IF($K61=4,"Inconnu", IF($K61=1, $F61*0.33, IF($K61=2, $F61*0.5+$G61*0.2, SUM(F61:G61)))), 0),"Non requis") -> 13753.08 | P61: 1 | Q61: 1 | R61: 1 | S61: 0 | X61: 15330 | Y61: DABOU | AB61: 1 | AC61: 1 | AD61: 2 | AE61: 1 | AF61: TRUE | AG61: TRUE | AH61: TRUE | AI61: TRUE
A62: =IF(INTRO!$E$33<>0,INTRO!$E$33, " ") -> Cote d'Ivoire | B62: GRANDS PONTS | C62: GRAND-LAHOU | D62: 166505 | E62: =IF(INTRO!$E$48="","",ROUND($D62*INTRO!$E$48,0)) -> 21129 | F62: =IF(INTRO!$E$49="","",ROUND($D62*INTRO!$E$49,0)) -> 42359 | G62: =IF(INTRO!$E$50="","",ROUND($D62*INTRO!$E$50,0)) -> 97172 | H62: 1 | I62: 0 | J62: 2 | K62: 1 | L62: =IF(INTRO!$E$37="Endémique",IF($H62>0,IF($H62=4,"Inconnu",IF($H62=99,"Interrompu",$D62)),0),"Non requis") -> 166505 | M62: =IF(INTRO!$E$39="Endémique", IF($I62>0, IF($I62=4,"Inconnu",IF($I62=99,"Interrompu",$D62)), 0),"Non requis") -> 0 | N62: =IF(INTRO!$E$41="Endémique", IF(AND($J62>1,$J62<5), IF($J62=4, "Inconnu", E62+F62), 0),"Non requis") -> 63488 | O62: =IF(INTRO!$E$43="Endémique", IF(AND($K62>0,$K62<5), IF($K62=4,"Inconnu", IF($K62=1, $F62*0.33, IF($K62=2, $F62*0.5+$G62*0.2, SUM(F62:G62)))), 0),"Non requis") -> 13978.47 | P62: 1 | Q62: 0 | R62: 1 | S62: 0 | X62: 15331 | Y62: GRAND-LAHOU | AB62: 1 | AC62: 0 | AD62: 2 | AE62: 1 | AF62: TRUE | AG62: TRUE | AH62: TRUE | AI62: TRUE
A63: =IF(INTRO!$E$33<>0,INTRO!$E$33, " ") -> Cote d'Ivoire | B63: GRANDS PONTS | C63: JACQUEVILLE | D63: 61962 | E63: =IF(INTRO!$E$48="","",ROUND($D63*INTRO!$E$48,0)) -> 7863 | F63: =IF(INTRO!$E$49="","",ROUND($D63*INTRO!$E$49,0)) -> 15763 | G63: =IF(INTRO!$E$50="","",ROUND($D63*INTRO!$E$50,0)) -> 36161 | H63: 1 | I63: 0 | J63: 2 | K63: 1 | L63: =IF(INTRO!$E$37="Endémique",IF($H63>0,IF($H63=4,"Inconnu",IF($H63=99,"Interrompu",$D63)),0),"Non requis") -> 61962 | M63: =IF(INTRO!$E$39="Endémique", IF($I63>0, IF($I63=4,"Inconnu",IF($I63=99,"Interrompu",$D63)), 0),"Non requis") -> 0 | N63: =IF(INTRO!$E$41="Endémique", IF(AND($J63>1,$J63<5), IF($J63=4, "Inconnu", E63+F63), 0),"Non requis") -> 23626 | O63: =IF(INTRO!$E$43="Endémique", IF(AND($K63>0,$K63<5), IF($K63=4,"Inconnu", IF($K63=1, $F63*0.33, IF($K63=2, $F63*0.5+$G63*0.2, SUM(F63:G63)))), 0),"Non requis") -> 5201.79 | P63: 1 | Q63: 0 | R63: 1 | S63: 0 | X63: 15332 | Y63: JACQUEVILLE | AB63: 1 | AC63: 0 | AD63: 2 | AE63: 1 | AF63: TRUE | AG63: TRUE | AH63: TRUE | AI63: TRUE
A64: =IF(INTRO!$E$33<>0,INTRO!$E$33, " ") -> Cote d'Ivoire | B64: GUEMON | C64: BANGOLO | D64: 396681 | E64: =IF(INTRO!$E$48="","",ROUND($D64*INTRO!$E$48,0)) -> 50339 | F64: =IF(INTRO!$E$49="","",ROUND($D64*INTRO!$E$49,0)) -> 100916 | G64: =IF(INTRO!$E$50="","",ROUND($D64*INTRO!$E$50,0)) -> 231503 | H64: 1 | I64: 1 | J64: 1 | K64: 3 | L64: =IF(INTRO!$E$37="Endémique",IF($H64>0,IF($H64=4,"Inconnu",IF($H64=99,"Interrompu",$D64)),0),"Non requis") -> 396681 | M64: =IF(INTRO!$E$39="Endémique", IF($I64>0, IF($I64=4,"Inconnu",IF($I64=99,"Interrompu",$D64)), 0),"Non requis") -> 396681 | N64: =IF(INTRO!$E$41="Endémique", IF(AND($J64>1,$J64<5), IF($J64=4, "Inconnu", E64+F64), 0),"Non requis") -> 0 | O64: =IF(INTRO!$E$43="Endémique", IF(AND($K64>0,$K64<5), IF($K64=4,"Inconnu", IF($K64=1, $F64*0.33, IF($K64=2, $F64*0.5+$G64*0.2, SUM(F64:G64)))), 0),"Non requis") -> 332419 | P64: 1 | Q64: 1 | R64: 0 | S64: 1 | X64: 15355 | Y64: BANGOLO | AB64: 1 | AC64: 1 | AD64: 1 | AE64: 3 | AF64: TRUE | AG64: TRUE | AH64: TRUE | AI64: TRUE
A65: =IF(INTRO!$E$33<>0,INTRO!$E$33, " ") -> Cote d'Ivoire | B65: GUEMON | C65: DUEKOUE | D65: 508927 | E65: =IF(INTRO!$E$48="","",ROUND($D65*INTRO!$E$48,0)) -> 64583 | F65: =IF(INTRO!$E$49="","",ROUND($D65*INTRO!$E$49,0)) -> 129471 | G65: =IF(INTRO!$E$50="","",ROUND($D65*INTRO!$E$50,0)) -> 297010 | H65: 1 | I65: 1 | J65: 1 | K65: 2 | L65: =IF(INTRO!$E$37="Endémique",IF($H65>0,IF($H65=4,"Inconnu",IF($H65=99,"Interrompu",$D65)),0),"Non requis") -> 508927 | M65: =IF(INTRO!$E$39="Endémique", IF($I65>0, IF($I65=4,"Inconnu",IF($I65=99,"Interrompu",$D65)), 0),"Non requis") -> 508927 | N65: =IF(INTRO!$E$41="Endémique", IF(AND($J65>1,$J65<5), IF($J65=4, "Inconnu", E65+F65), 0),"Non requis") -> 0 | O65: =IF(INTRO!$E$43="Endémique", IF(AND($K65>0,$K65<5), IF($K65=4,"Inconnu", IF($K65=1, $F65*0.33, IF($K65=2, $F65*0.5+$G65*0.2, SUM(F65:G65)))), 0),"Non requis") -> 124137.5 | P65: 1 | Q65: 1 | R65: 0 | S65: 0 | X65: 15357 | Y65: DUEKOUE | AB65: 1 | AC65: 1 | AD65: 1 | AE65: 2 | AF65: TRUE | AG65: TRUE | AH65: TRUE | AI65: TRUE
A66: =IF(INTRO!$E$33<>0,INTRO!$E$33, " ") -> Cote d'Ivoire | B66: GUEMON | C66: KOUIBLY | D66: 240802 | E66: =IF(INTRO!$E$48="","",ROUND($D66*INTRO!$E$48,0)) -> 30558 | F66: =IF(INTRO!$E$49="","",ROUND($D66*INTRO!$E$49,0)) -> 61260 | G66: =IF(INTRO!$E$50="","",ROUND($D66*INTRO!$E$50,0)) -> 140532 | H66: 1 | I66: 1 | J66: 1 | K66: 2 | L66: =IF(INTRO!$E$37="Endémique",IF($H66>0,IF($H66=4,"Inconnu",IF($H66=99,"Interrompu",$D66)),0),"Non requis") -> 240802 | M66: =IF(INTRO!$E$39="Endémique", IF($I66>0, IF($I66=4,"Inconnu",IF($I66=99,"Interrompu",$D66)), 0),"Non requis") -> 240802 | N66: =IF(INTRO!$E$41="Endémique", IF(AND($J66>1,$J66<5), IF($J66=4, "Inconnu", E66+F66), 0),"Non requis") -> 0 | O66: =IF(INTRO!$E$43="Endémique", IF(AND($K66>0,$K66<5), IF($K66=4,"Inconnu", IF($K66=1, $F66*0.33, IF($K66=2, $F66*0.5+$G66*0.2, SUM(F66:G66)))), 0),"Non requis") -> 58736.4 | P66: 1 | Q66: 1 | R66: 0 | S66: 0 | X66: 15359 | Y66: KOUIBLY | AB66: 1 | AC66: 1 | AD66: 1 | AE66: 2 | AF66: TRUE | AG66: TRUE | AH66: TRUE | AI66: TRUE
A67: =IF(INTRO!$E$33<>0,INTRO!$E$33, " ") -> Cote d'Ivoire | B67: HAMBOL | C67: DABAKALA | D67: 234457 | E67: =IF(INTRO!$E$48="","",ROUND($D67*INTRO!$E$48,0)) -> 29753 | F67: =IF(INTRO!$E$49="","",ROUND($D67*INTRO!$E$49,0)) -> 59646 | G67: =IF(INTRO!$E$50="","",ROUND($D67*INTRO!$E$50,0)) -> 136829 | H67: 1 | I67: 1 | J67: 1 | K67: 1 | L67: =IF(INTRO!$E$37="Endémique",IF($H67>0,IF($H67=4,"Inconnu",IF($H67=99,"Interrompu",$D67)),0),"Non requis") -> 234457 | M67: =IF(INTRO!$E$39="Endémique", IF($I67>0, IF($I67=4,"Inconnu",IF($I67=99,"Interrompu",$D67)), 0),"Non requis") -> 234457 | N67: =IF(INTRO!$E$41="Endémique", IF(AND($J67>1,$J67<5), IF($J67=4, "Inconnu", E67+F67), 0),"Non requis") -> 0 | O67: =IF(INTRO!$E$43="Endémique", IF(AND($K67>0,$K67<5), IF($K67=4,"Inconnu", IF($K67=1, $F67*0.33, IF($K67=2, $F67*0.5+$G67*0.2, SUM(F67:G67)))), 0),"Non requis") -> 19683.18 | P67: 1 | Q67: 1 | R67: 0 | S67: 0 | X67: 15373 | Y67: DABAKALA | AB67: 1 | AC67: 1 | AD67: 1 | AE67: 1 | AF67: TRUE | AG67: TRUE | AH67: TRUE | AI67: TRUE
A68: =IF(INTRO!$E$33<>0,INTRO!$E$33, " ") -> Cote d'Ivoire | B68: HAMBOL | C68: KATIOLA | D68: 132438 | E68: =IF(INTRO!$E$48="","",ROUND($D68*INTRO!$E$48,0)) -> 16806 | F68: =IF(INTRO!$E$49="","",ROUND($D68*INTRO!$E$49,0)) -> 33692 | G68: =IF(INTRO!$E$50="","",ROUND($D68*INTRO!$E$50,0)) -> 77291 | H68: 1 | I68: 1 | J68: 1 | K68: 2 | L68: =IF(INTRO!$E$37="Endémique",IF($H68>0,IF($H68=4,"Inconnu",IF($H68=99,"Interrompu",$D68)),0),"Non requis") -> 132438 | M68: =IF(INTRO!$E$39="Endémique", IF($I68>0, IF($I68=4,"Inconnu",IF($I68=99,"Interrompu",$D68)), 0),"Non requis") -> 132438 | N68: =IF(INTRO!$E$41="Endémique", IF(AND($J68>1,$J68<5), IF($J68=4, "Inconnu", E68+F68), 0),"Non requis") -> 0 | O68: =IF(INTRO!$E$43="Endémique", IF(AND($K68>0,$K68<5), IF($K68=4,"Inconnu", IF($K68=1, $F68*0.33, IF($K68=2, $F68*0.5+$G68*0.2, SUM(F68:G68)))), 0),"Non requis") -> 32304.2 | P68: 1 | Q68: 1 | R68: 0 | S68: 1 | X68: 15374 | Y68: KATIOLA | AB68: 1 | AC68: 1 | AD68: 1 | AE68: 2 | AF68: TRUE | AG68: TRUE | AH68: TRUE | AI68: TRUE
A69: =IF(INTRO!$E$33<>0,INTRO!$E$33, " ") -> Cote d'Ivoire | B69: HAMBOL | C69: NIAKARA | D69: 165780 | E69: =IF(INTRO!$E$48="","",ROUND($D69*INTRO!$E$48,0)) -> 21037 | F69: =IF(INTRO!$E$49="","",ROUND($D69*INTRO!$E$49,0)) -> 42174 | G69: =IF(INTRO!$E$50="","",ROUND($D69*INTRO!$E$50,0)) -> 96749 | H69: 1 | I69: 1 | J69: 1 | K69: 1 | L69: =IF(INTRO!$E$37="Endémique",IF($H69>0,IF($H69=4,"Inconnu",IF($H69=99,"Interrompu",$D69)),0),"Non requis") -> 165780 | M69: =IF(INTRO!$E$39="Endémique", IF($I69>0, IF($I69=4,"Inconnu",IF($I69=99,"Interrompu",$D69)), 0),"Non requis") -> 165780 | N69: =IF(INTRO!$E$41="Endémique", IF(AND($J69>1,$J69<5), IF($J69=4, "Inconnu", E69+F69), 0),"Non requis") -> 0 | O69: =IF(INTRO!$E$43="Endémique", IF(AND($K69>0,$K69<5), IF($K69=4,"Inconnu", IF($K69=1, $F69*0.33, IF($K69=2, $F69*0.5+$G69*0.2, SUM(F69:G69)))), 0),"Non requis") -> 13917.42 | P69: 1 | Q69: 1 | R69: 0 | S69: 0 | X69: 15375 | Y69: NIAKARA | AB69: 1 | AC69: 1 | AD69: 1 | AE69: 1 | AF69: TRUE | AG69: TRUE | AH69: TRUE | AI69: TRUE
A70: =IF(INTRO!$E$33<>0,INTRO!$E$33, " ") -> Cote d'Ivoire | B70: HAUT SASSANDRA | C70: DALOA | D70: 654301 | E70: =IF(INTRO!$E$48="","",ROUND($D70*INTRO!$E$48,0)) -> 83031 | F70: =IF(INTRO!$E$49="","",ROUND($D70*INTRO!$E$49,0)) -> 166454 | G70: =IF(INTRO!$E$50="","",ROUND($D70*INTRO!$E$50,0)) -> 381850 | H70: 1 | I70: 1 | J70: 1 | K70: 1 | L70: =IF(INTRO!$E$37="Endémique",IF($H70>0,IF($H70=4,"Inconnu",IF($H70=99,"Interrompu",$D70)),0),"Non requis") -> 654301 | M70: =IF(INTRO!$E$39="Endémique", IF($I70>0, IF($I70=4,"Inconnu",IF($I70=99,"Interrompu",$D70)), 0),"Non requis") -> 654301 | N70: =IF(INTRO!$E$41="Endémique", IF(AND($J70>1,$J70<5), IF($J70=4, "Inconnu", E70+F70), 0),"Non requis") -> 0 | O70: =IF(INTRO!$E$43="Endémique", IF(AND($K70>0,$K70<5), IF($K70=4,"Inconnu", IF($K70=1, $F70*0.33, IF($K70=2, $F70*0.5+$G70*0.2, SUM(F70:G70)))), 0),"Non requis") -> 54929.82 | P70: 1 | Q70: 1 | R70: 0 | S70: 0 | X70: 15435 | Y70: DALOA
A71: =IF(INTRO!$E$33<>0,INTRO!$E$33, " ") -> Cote d'Ivoire | B71: HAUT SASSANDRA | C71: ISSIA | D71: 362633 | E71: =IF(INTRO!$E$48="","",ROUND($D71*INTRO!$E$48,0)) -> 46018 | F71: =IF(INTRO!$E$49="","",ROUND($D71*INTRO!$E$49,0)) -> 92254 | G71: =IF(INTRO!$E$50="","",ROUND($D71*INTRO!$E$50,0)) -> 211633 | H71: 1 | I71: 1 | J71: 2 | K71: 2 | L71: =IF(INTRO!$E$37="Endémique",IF($H71>0,IF($H71=4,"Inconnu",IF($H71=99,"Interrompu",$D71)),0),"Non requis") -> 362633 | M71: =IF(INTRO!$E$39="Endémique", IF($I71>0, IF($I71=4,"Inconnu",IF($I71=99,"Interrompu",$D71)), 0),"Non requis") -> 362633 | N71: =IF(INTRO!$E$41="Endémique", IF(AND($J71>1,$J71<5), IF($J71=4, "Inconnu", E71+F71), 0),"Non requis") -> 138272 | O71: =IF(INTRO!$E$43="Endémique", IF(AND($K71>0,$K71<5), IF($K71=4,"Inconnu", IF($K71=1, $F71*0.33, IF($K71=2, $F71*0.5+$G71*0.2, SUM(F71:G71)))), 0),"Non requis") -> 88453.6 | P71: 1 | Q71: 1 | R71: 1 | S71: 1 | X71: 15377 | Y71: ISSIA | AB71: 1 | AC71: 1 | AD71: 2 | AE71: 2 | AF71: TRUE | AG71: TRUE | AH71: TRUE | AI71: TRUE
A72: =IF(INTRO!$E$33<>0,INTRO!$E$33, " ") -> Cote d'Ivoire | B72: HAUT SASSANDRA | C72: VAVOUA | D72: 443377 | E72: =IF(INTRO!$E$48="","",ROUND($D72*INTRO!$E$48,0)) -> 56265 | F72: =IF(INTRO!$E$49="","",ROUND($D72*INTRO!$E$49,0)) -> 112795 | G72: =IF(INTRO!$E$50="","",ROUND($D72*INTRO!$E$50,0)) -> 258755 | H72: 1 | I72: 1 | J72: 2 | K72: 1 | L72: =IF(INTRO!$E$37="Endémique",IF($H72>0,IF($H72=4,"Inconnu",IF($H72=99,"Interrompu",$D72)),0),"Non requis") -> 443377 | M72: =IF(INTRO!$E$39="Endémique", IF($I72>0, IF($I72=4,"Inconnu",IF($I72=99,"Interrompu",$D72)), 0),"Non requis") -> 443377 | N72: =IF(INTRO!$E$41="Endémique", IF(AND($J72>1,$J72<5), IF($J72=4, "Inconnu", E72+F72), 0),"Non requis") -> 169060 | O72: =IF(INTRO!$E$43="Endémique", IF(AND($K72>0,$K72<5), IF($K72=4,"Inconnu", IF($K72=1, $F72*0.33, IF($K72=2, $F72*0.5+$G72*0.2, SUM(F72:G72)))), 0),"Non requis") -> 37222.35 | P72: 1 | Q72: 1 | R72: 1 | S72: 0 | X72: 15378 | Y72: VAVOUA | AB72: 1 | AC72: 1 | AD72: 2 | AE72: 1 | AF72: TRUE | AG72: TRUE | AH72: TRUE | AI72: TRUE
A73: =IF(INTRO!$E$33<>0,INTRO!$E$33, " ") -> Cote d'Ivoire | B73: HAUT SASSANDRA | C73: ZOUKOUGBEU | D73: 122220 | E73: =IF(INTRO!$E$48="","",ROUND($D73*INTRO!$E$48,0)) -> 15510 | F73: =IF(INTRO!$E$49="","",ROUND($D73*INTRO!$E$49,0)) -> 31093 | G73: =IF(INTRO!$E$50="","",ROUND($D73*INTRO!$E$50,0)) -> 71328 | H73: 1 | I73: 1 | J73: 1 | K73: 1 | L73: =IF(INTRO!$E$37="Endémique",IF($H73>0,IF($H73=4,"Inconnu",IF($H73=99,"Interrompu",$D73)),0),"Non requis") -> 122220 | M73: =IF(INTRO!$E$39="Endémique", IF($I73>0, IF($I73=4,"Inconnu",IF($I73=99,"Interrompu",$D73)), 0),"Non requis") -> 122220 | N73: =IF(INTRO!$E$41="Endémique", IF(AND($J73>1,$J73<5), IF($J73=4, "Inconnu", E73+F73), 0),"Non requis") -> 0 | O73: =IF(INTRO!$E$43="Endémique", IF(AND($K73>0,$K73<5), IF($K73=4,"Inconnu", IF($K73=1, $F73*0.33, IF($K73=2, $F73*0.5+$G73*0.2, SUM(F73:G73)))), 0),"Non requis") -> 10260.69 | P73: 1 | Q73: 1 | R73: 0 | S73: 0 | X73: 15436 | Y73: ZOUKOUGBEU
A74: =IF(INTRO!$E$33<>0,INTRO!$E$33, " ") -> Cote d'Ivoire | B74: IFFOU | C74: DAOUKRO | D74: 205636 | E74: =IF(INTRO!$E$48="","",ROUND($D74*INTRO!$E$48,0)) -> 26095 | F74: =IF(INTRO!$E$49="","",ROUND($D74*INTRO!$E$49,0)) -> 52314 | G74: =IF(INTRO!$E$50="","",ROUND($D74*INTRO!$E$50,0)) -> 120009 | H74: 1 | I74: 1 | J74: 2 | K74: 2 | L74: =IF(INTRO!$E$37="Endémique",IF($H74>0,IF($H74=4,"Inconnu",IF($H74=99,"Interrompu",$D74)),0),"Non requis") -> 205636 | M74: =IF(INTRO!$E$39="Endémique", IF($I74>0, IF($I74=4,"Inconnu",IF($I74=99,"Interrompu",$D74)), 0),"Non requis") -> 205636 | N74: =IF(INTRO!$E$41="Endémique", IF(AND($J74>1,$J74<5), IF($J74=4, "Inconnu", E74+F74), 0),"Non requis") -> 78409 | O74: =IF(INTRO!$E$43="Endémique", IF(AND($K74>0,$K74<5), IF($K74=4,"Inconnu", IF($K74=1, $F74*0.33, IF($K74=2, $F74*0.5+$G74*0.2, SUM(F74:G74)))), 0),"Non requis") -> 50158.8 | P74: 1 | Q74: 1 | R74: 1 | S74: 1 | X74: 15393 | Y74: DAOUKRO | AB74: 1 | AC74: 1 | AD74: 2 | AE74: 2 | AF74: =AB74=H74 -> TRUE | AG74: =AC74=I74 -> TRUE | AH74: =AD74=J74 -> TRUE | AI74: =AE74=K74 -> TRUE
A75: =IF(INTRO!$E$33<>0,INTRO!$E$33, " ") -> Cote d'Ivoire | B75: IFFOU | C75: M'BAHIAKRO | D75: 103112 | E75: =IF(INTRO!$E$48="","",ROUND($D75*INTRO!$E$48,0)) -> 13085 | F75: =IF(INTRO!$E$49="","",ROUND($D75*INTRO!$E$49,0)) -> 26232 | G75: =IF(INTRO!$E$50="","",ROUND($D75*INTRO!$E$50,0)) -> 60176 | H75: 1 | I75: 1 | J75: 1 | K75: 2 | L75: =IF(INTRO!$E$37="Endémique",IF($H75>0,IF($H75=4,"Inconnu",IF($H75=99,"Interrompu",$D75)),0),"Non requis") -> 103112 | M75: =IF(INTRO!$E$39="Endémique", IF($I75>0, IF($I75=4,"Inconnu",IF($I75=99,"Interrompu",$D75)), 0),"Non requis") -> 103112 | N75: =IF(INTRO!$E$41="Endémique", IF(AND($J75>1,$J75<5), IF($J75=4, "Inconnu", E75+F75), 0),"Non requis") -> 0 | O75: =IF(INTRO!$E$43="Endémique", IF(AND($K75>0,$K75<5), IF($K75=4,"Inconnu", IF($K75=1, $F75*0.33, IF($K75=2, $F75*0.5+$G75*0.2, SUM(F75:G75)))), 0),"Non requis") -> 25151.2 | P75: 1 | Q75: 1 | R75: 0 | S75: 1 | X75: 15395 | Y75: M'BAHIAKRO | AB75: 1 | AC75: 1 | AD75: 1 | AE75: 2 | AF75: TRUE | AG75: TRUE | AH75: TRUE | AI75: TRUE
A76: =IF(INTRO!$E$33<>0,INTRO!$E$33, " ") -> Cote d'Ivoire | B76: IFFOU | C76: PRIKRO | D76: 94091 | E76: =IF(INTRO!$E$48="","",ROUND($D76*INTRO!$E$48,0)) -> 11940 | F76: =IF(INTRO!$E$49="","",ROUND($D76*INTRO!$E$49,0)) -> 23937 | G76: =IF(INTRO!$E$50="","",ROUND($D76*INTRO!$E$50,0)) -> 54912 | H76: 1 | I76: 1 | J76: 2 | K76: 2 | L76: =IF(INTRO!$E$37="Endémique",IF($H76>0,IF($H76=4,"Inconnu",IF($H76=99,"Interrompu",$D76)),0),"Non requis") -> 94091 | M76: =IF(INTRO!$E$39="Endémique", IF($I76>0, IF($I76=4,"Inconnu",IF($I76=99,"Interrompu",$D76)), 0),"Non requis") -> 94091 | N76: =IF(INTRO!$E$41="Endémique", IF(AND($J76>1,$J76<5), IF($J76=4, "Inconnu", E76+F76), 0),"Non requis") -> 35877 | O76: =IF(INTRO!$E$43="Endémique", IF(AND($K76>0,$K76<5), IF($K76=4,"Inconnu", IF($K76=1, $F76*0.33, IF($K76=2, $F76*0.5+$G76*0.2, SUM(F76:G76)))), 0),"Non requis") -> 22950.9 | P76: 1 | Q76: 1 | R76: 1 | S76: 1 | X76: 15396 | Y76: PRIKRO | AB76: 1 | AC76: 1 | AD76: 2 | AE76: 2 | AF76: TRUE | AG76: TRUE | AH76: TRUE | AI76: TRUE
A77: =IF(INTRO!$E$33<>0,INTRO!$E$33, " ") -> Cote d'Ivoire | B77: INDENIE-DJUABLIN | C77: ABENGOUROU | D77: 402917 | E77: =IF(INTRO!$E$48="","",ROUND($D77*INTRO!$E$48,0)) -> 51130 | F77: =IF(INTRO!$E$49="","",ROUND($D77*INTRO!$E$49,0)) -> 102502 | G77: =IF(INTRO!$E$50="","",ROUND($D77*INTRO!$E$50,0)) -> 235142 | H77: 1 | I77: 1 | J77: 1 | K77: 2 | L77: =IF(INTRO!$E$37="Endémique",IF($H77>0,IF($H77=4,"Inconnu",IF($H77=99,"Interrompu",$D77)),0),"Non requis") -> 402917 | M77: =IF(INTRO!$E$39="Endémique", IF($I77>0, IF($I77=4,"Inconnu",IF($I77=99,"Interrompu",$D77)), 0),"Non requis") -> 402917 | N77: =IF(INTRO!$E$41="Endémique", IF(AND($J77>1,$J77<5), IF($J77=4, "Inconnu", E77+F77), 0),"Non requis") -> 0 | O77: =IF(INTRO!$E$43="Endémique", IF(AND($K77>0,$K77<5), IF($K77=4,"Inconnu", IF($K77=1, $F77*0.33, IF($K77=2, $F77*0.5+$G77*0.2, SUM(F77:G77)))), 0),"Non requis") -> 98279.4 | P77: 1 | Q77: 1 | R77: 0 | S77: 1 | X77: 15379 | Y77: ABENGOUROU | AB77: 1 | AC77: 1 | AD77: 1 | AE77: 2 | AF77: TRUE | AG77: TRUE | AH77: TRUE | AI77: TRUE
A78: =IF(INTRO!$E$33<>0,INTRO!$E$33, " ") -> Cote d'Ivoire | B78: INDENIE-DJUABLIN | C78: AGNIBILEKRO | D78: 201596 | E78: =IF(INTRO!$E$48="","",ROUND($D78*INTRO!$E$48,0)) -> 25583 | F78: =IF(INTRO!$E$49="","",ROUND($D78*INTRO!$E$49,0)) -> 51286 | G78: =IF(INTRO!$E$50="","",ROUND($D78*INTRO!$E$50,0)) -> 117651 | H78: 1 | I78: 1 | J78: 1 | K78: 1 | L78: =IF(INTRO!$E$37="Endémique",IF($H78>0,IF($H78=4,"Inconnu",IF($H78=99,"Interrompu",$D78)),0),"Non requis") -> 201596 | M78: =IF(INTRO!$E$39="Endémique", IF($I78>0, IF($I78=4,"Inconnu",IF($I78=99,"Interrompu",$D78)), 0),"Non requis") -> 201596 | N78: =IF(INTRO!$E$41="Endémique", IF(AND($J78>1,$J78<5), IF($J78=4, "Inconnu", E78+F78), 0),"Non requis") -> 0 | O78: =IF(INTRO!$E$43="Endémique", IF(AND($K78>0,$K78<5), IF($K78=4,"Inconnu", IF($K78=1, $F78*0.33, IF($K78=2, $F78*0.5+$G78*0.2, SUM(F78:G78)))), 0),"Non requis") -> 16924.38 | P78: 1 | Q78: 1 | R78: 0 | S78: 0 | X78: 15380 | Y78: AGNIBILEKRO | AB78: 1 | AC78: 1 | AD78: 1 | AE78: 1 | AF78: TRUE | AG78: TRUE | AH78: TRUE | AI78: TRUE
A79: =IF(INTRO!$E$33<>0,INTRO!$E$33, " ") -> Cote d'Ivoire | B79: INDENIE-DJUABLIN | C79: BETTIE | D79: 67236 | E79: =IF(INTRO!$E$48="","",ROUND($D79*INTRO!$E$48,0)) -> 8532 | F79: =IF(INTRO!$E$49="","",ROUND($D79*INTRO!$E$49,0)) -> 17105 | G79: =IF(INTRO!$E$50="","",ROUND($D79*INTRO!$E$50,0)) -> 39239 | H79: 1 | I79: 1 | J79: 1 | K79: 1 | L79: =IF(INTRO!$E$37="Endémique",IF($H79>0,IF($H79=4,"Inconnu",IF($H79=99,"Interrompu",$D79)),0),"Non requis") -> 67236 | M79: =IF(INTRO!$E$39="Endémique", IF($I79>0, IF($I79=4,"Inconnu",IF($I79=99,"Interrompu",$D79)), 0),"Non requis") -> 67236 | N79: =IF(INTRO!$E$41="Endémique", IF(AND($J79>1,$J79<5), IF($J79=4, "Inconnu", E79+F79), 0),"Non requis") -> 0 | O79: =IF(INTRO!$E$43="Endémique", IF(AND($K79>0,$K79<5), IF($K79=4,"Inconnu", IF($K79=1, $F79*0.33, IF($K79=2, $F79*0.5+$G79*0.2, SUM(F79:G79)))), 0),"Non requis") -> 5644.65 | P79: 1 | Q79: 1 | R79: 0 | S79: 0 | X79: 15381 | Y79: BETTIE | AB79: 1 | AC79: 1 | AD79: 1 | AE79: 1 | AF79: TRUE | AG79: TRUE | AH79: TRUE | AI79: TRUE
A80: =IF(INTRO!$E$33<>0,INTRO!$E$33, " ") -> Cote d'Ivoire | B80: KABADOUGOU | C80: MADINANI | D80: 45655 | E80: =IF(INTRO!$E$48="","",ROUND($D80*INTRO!$E$48,0)) -> 5794 | F80: =IF(INTRO!$E$49="","",ROUND($D80*INTRO!$E$49,0)) -> 11615 | G80: =IF(INTRO!$E$50="","",ROUND($D80*INTRO!$E$50,0)) -> 26644 | H80: 1 | I80: 1 | J80: 1 | K80: 2 | L80: =IF(INTRO!$E$37="Endémique",IF($H80>0,IF($H80=4,"Inconnu",IF($H80=99,"Interrompu",$D80)),0),"Non requis") -> 45655 | M80: =IF(INTRO!$E$39="Endémique", IF($I80>0, IF($I80=4,"Inconnu",IF($I80=99,"Interrompu",$D80)), 0),"Non requis") -> 45655 | N80: =IF(INTRO!$E$41="Endémique", IF(AND($J80>1,$J80<5), IF($J80=4, "Inconnu", E80+F80), 0),"Non requis") -> 0 | O80: =IF(INTRO!$E$43="Endémique", IF(AND($K80>0,$K80<5), IF($K80=4,"Inconnu", IF($K80=1, $F80*0.33, IF($K80=2, $F80*0.5+$G80*0.2, SUM(F80:G80)))), 0),"Non requis") -> 11136.3 | P80: 1 | Q80: 1 | R80: 0 | S80: 1 | X80: 15440 | Y80: MADINANI
A81: =IF(INTRO!$E$33<>0,INTRO!$E$33, " ") -> Cote d'Ivoire | B81: KABADOUGOU | C81: ODIENNE | D81: 176695 | E81: =IF(INTRO!$E$48="","",ROUND($D81*INTRO!$E$48,0)) -> 22423 | F81: =IF(INTRO!$E$49="","",ROUND($D81*INTRO!$E$49,0)) -> 44951 | G81: =IF(INTRO!$E$50="","",ROUND($D81*INTRO!$E$50,0)) -> 103119 | H81: 1 | I81: 1 | J81: 1 | K81: 2 | L81: =IF(INTRO!$E$37="Endémique",IF($H81>0,IF($H81=4,"Inconnu",IF($H81=99,"Interrompu",$D81)),0),"Non requis") -> 176695 | M81: =IF(INTRO!$E$39="Endémique", IF($I81>0, IF($I81=4,"Inconnu",IF($I81=99,"Interrompu",$D81)), 0),"Non requis") -> 176695 | N81: =IF(INTRO!$E$41="Endémique", IF(AND($J81>1,$J81<5), IF($J81=4, "Inconnu", E81+F81), 0),"Non requis") -> 0 | O81: =IF(INTRO!$E$43="Endémique", IF(AND($K81>0,$K81<5), IF($K81=4,"Inconnu", IF($K81=1, $F81*0.33, IF($K81=2, $F81*0.5+$G81*0.2, SUM(F81:G81)))), 0),"Non requis") -> 43099.3 | P81: 1 | Q81: 1 | R81: 0 | S81: 1 | X81: 15439 | Y81: ODIENNE
A82: =IF(INTRO!$E$33<>0,INTRO!$E$33, " ") -> Cote d'Ivoire | B82: LOH-DJIBOUA | C82: DIVO | D82: 450083 | E82: =IF(INTRO!$E$48="","",ROUND($D82*INTRO!$E$48,0)) -> 57116 | F82: =IF(INTRO!$E$49="","",ROUND($D82*INTRO!$E$49,0)) -> 114501 | G82: =IF(INTRO!$E$50="","",ROUND($D82*INTRO!$E$50,0)) -> 262668 | H82: 1 | I82: 1 | J82: 1 | K82: 2 | L82: =IF(INTRO!$E$37="Endémique",IF($H82>0,IF($H82=4,"Inconnu",IF($H82=99,"Interrompu",$D82)),0),"Non requis") -> 450083 | M82: =IF(INTRO!$E$39="Endémique", IF($I82>0, IF($I82=4,"Inconnu",IF($I82=99,"Interrompu",$D82)), 0),"Non requis") -> 450083 | N82: =IF(INTRO!$E$41="Endémique", IF(AND($J82>1,$J82<5), IF($J82=4, "Inconnu", E82+F82), 0),"Non requis") -> 0 | O82: =IF(INTRO!$E$43="Endémique", IF(AND($K82>0,$K82<5), IF($K82=4,"Inconnu", IF($K82=1, $F82*0.33, IF($K82=2, $F82*0.5+$G82*0.2, SUM(F82:G82)))), 0),"Non requis") -> 109784.1 | P82: 1 | Q82: 1 | R82: 0 | S82: 0 | X82: 15385 | Y82: DIVO | AB82: 1 | AC82: 1 | AD82: 1 | AE82: 2 | AF82: TRUE | AG82: TRUE | AH82: TRUE | AI82: TRUE
A83: =IF(INTRO!$E$33<>0,INTRO!$E$33, " ") -> Cote d'Ivoire | B83: LOH-DJIBOUA | C83: GUITRY | D83: 173713 | E83: =IF(INTRO!$E$48="","",ROUND($D83*INTRO!$E$48,0)) -> 22044 | F83: =IF(INTRO!$E$49="","",ROUND($D83*INTRO!$E$49,0)) -> 44193 | G83: =IF(INTRO!$E$50="","",ROUND($D83*INTRO!$E$50,0)) -> 101379 | H83: 1 | I83: 1 | J83: 1 | K83: 2 | L83: =IF(INTRO!$E$37="Endémique",IF($H83>0,IF($H83=4,"Inconnu",IF($H83=99,"Interrompu",$D83)),0),"Non requis") -> 173713 | M83: =IF(INTRO!$E$39="Endémique", IF($I83>0, IF($I83=4,"Inconnu",IF($I83=99,"Interrompu",$D83)), 0),"Non requis") -> 173713 | N83: =IF(INTRO!$E$41="Endémique", IF(AND($J83>1,$J83<5), IF($J83=4, "Inconnu", E83+F83), 0),"Non requis") -> 0 | O83: =IF(INTRO!$E$43="Endémique", IF(AND($K83>0,$K83<5), IF($K83=4,"Inconnu", IF($K83=1, $F83*0.33, IF($K83=2, $F83*0.5+$G83*0.2, SUM(F83:G83)))), 0),"Non requis") -> 42372.3 | P83: 1 | Q83: 1 | R83: 0 | S83: 0 | X83: 15411 | Y83: GUITRY | AB83: 1 | AC83: 1 | AD83: 1 | AE83: 2 | AF83: TRUE | AG83: TRUE | AH83: TRUE | AI83: TRUE
A84: =IF(INTRO!$E$33<>0,INTRO!$E$33, " ") -> Cote d'Ivoire | B84: LOH-DJIBOUA | C84: LAKOTA | D84: 239355 | E84: =IF(INTRO!$E$48="","",ROUND($D84*INTRO!$E$48,0)) -> 30374 | F84: =IF(INTRO!$E$49="","",ROUND($D84*INTRO!$E$49,0)) -> 60892 | G84: =IF(INTRO!$E$50="","",ROUND($D84*INTRO!$E$50,0)) -> 139688 | H84: 1 | I84: 1 | J84: 1 | K84: 2 | L84: =IF(INTRO!$E$37="Endémique",IF($H84>0,IF($H84=4,"Inconnu",IF($H84=99,"Interrompu",$D84)),0),"Non requis") -> 239355 | M84: =IF(INTRO!$E$39="Endémique", IF($I84>0, IF($I84=4,"Inconnu",IF($I84=99,"Interrompu",$D84)), 0),"Non requis") -> 239355 | N84: =IF(INTRO!$E$41="Endémique", IF(AND($J84>1,$J84<5), IF($J84=4, "Inconnu", E84+F84), 0),"Non requis") -> 0 | O84: =IF(INTRO!$E$43="Endémique", IF(AND($K84>0,$K84<5), IF($K84=4,"Inconnu", IF($K84=1, $F84*0.33, IF($K84=2, $F84*0.5+$G84*0.2, SUM(F84:G84)))), 0),"Non requis") -> 58383.6 | P84: 1 | Q84: 1 | R84: 0 | S84: 0 | X84: 15387 | Y84: LAKOTA | AB84: 1 | AC84: 1 | AD84: 1 | AE84: 2 | AF84: TRUE | AG84: TRUE | AH84: TRUE | AI84: TRUE
A85: =IF(INTRO!$E$33<>0,INTRO!$E$33, " ") -> Cote d'Ivoire | B85: MARAHOUE | C85: BOUAFLE | D85: 490075 | E85: =IF(INTRO!$E$48="","",ROUND($D85*INTRO!$E$48,0)) -> 62191 | F85: =IF(INTRO!$E$49="","",ROUND($D85*INTRO!$E$49,0)) -> 124675 | G85: =IF(INTRO!$E$50="","",ROUND($D85*INTRO!$E$50,0)) -> 286008 | H85: 1 | I85: 1 | J85: 1 | K85: 1 | L85: =IF(INTRO!$E$37="Endémique",IF($H85>0,IF($H85=4,"Inconnu",IF($H85=99,"Interrompu",$D85)),0),"Non requis") -> 490075 | M85: =IF(INTRO!$E$39="Endémique", IF($I85>0, IF($I85=4,"Inconnu",IF($I85=99,"Interrompu",$D85)), 0),"Non requis") -> 490075 | N85: =IF(INTRO!$E$41="Endémique", IF(AND($J85>1,$J85<5), IF($J85=4, "Inconnu", E85+F85), 0),"Non requis") -> 0 | O85: =IF(INTRO!$E$43="Endémique", IF(AND($K85>0,$K85<5), IF($K85=4,"Inconnu", IF($K85=1, $F85*0.33, IF($K85=2, $F85*0.5+$G85*0.2, SUM(F85:G85)))), 0),"Non requis") -> 41142.75 | P85: 1 | Q85: 1 | R85: 0 | S85: 0 | X85: 15388 | Y85: BOUAFLE | AB85: 1 | AC85: 1 | AD85: 1 | AE85: 1 | AF85: TRUE | AG85: TRUE | AH85: TRUE | AI85: TRUE
A86: =IF(INTRO!$E$33<>0,INTRO!$E$33, " ") -> Cote d'Ivoire | B86: MARAHOUE | C86: SINFRA | D86: 284723 | E86: =IF(INTRO!$E$48="","",ROUND($D86*INTRO!$E$48,0)) -> 36131 | F86: =IF(INTRO!$E$49="","",ROUND($D86*INTRO!$E$49,0)) -> 72434 | G86: =IF(INTRO!$E$50="","",ROUND($D86*INTRO!$E$50,0)) -> 166164 | H86: 1 | I86: 0 | J86: 2 | K86: 2 | L86: =IF(INTRO!$E$37="Endémique",IF($H86>0,IF($H86=4,"Inconnu",IF($H86=99,"Interrompu",$D86)),0),"Non requis") -> 284723 | M86: =IF(INTRO!$E$39="Endémique", IF($I86>0, IF($I86=4,"Inconnu",IF($I86=99,"Interrompu",$D86)), 0),"Non requis") -> 0 | N86: =IF(INTRO!$E$41="Endémique", IF(AND($J86>1,$J86<5), IF($J86=4, "Inconnu", E86+F86), 0),"Non requis") -> 108565 | O86: =IF(INTRO!$E$43="Endémique", IF(AND($K86>0,$K86<5), IF($K86=4,"Inconnu", IF($K86=1, $F86*0.33, IF($K86=2, $F86*0.5+$G86*0.2, SUM(F86:G86)))), 0),"Non requis") -> 69449.8 | P86: 1 | Q86: 0 | R86: 1 | S86: 0 | X86: 15389 | Y86: SINFRA | AB86: 1 | AC86: 0 | AD86: 2 | AE86: 2 | AF86: TRUE | AG86: TRUE | AH86: TRUE | AI86: TRUE
A87: =IF(INTRO!$E$33<>0,INTRO!$E$33, " ") -> Cote d'Ivoire | B87: MARAHOUE | C87: ZUENOULA | D87: 256768 | E87: =IF(INTRO!$E$48="","",ROUND($D87*INTRO!$E$48,0)) -> 32584 | F87: =IF(INTRO!$E$49="","",ROUND($D87*INTRO!$E$49,0)) -> 65322 | G87: =IF(INTRO!$E$50="","",ROUND($D87*INTRO!$E$50,0)) -> 149850 | H87: 1 | I87: 1 | J87: 1 | K87: 1 | L87: =IF(INTRO!$E$37="Endémique",IF($H87>0,IF($H87=4,"Inconnu",IF($H87=99,"Interrompu",$D87)),0),"Non requis") -> 256768 | M87: =IF(INTRO!$E$39="Endémique", IF($I87>0, IF($I87=4,"Inconnu",IF($I87=99,"Interrompu",$D87)), 0),"Non requis") -> 256768 | N87: =IF(INTRO!$E$41="Endémique", IF(AND($J87>1,$J87<5), IF($J87=4, "Inconnu", E87+F87), 0),"Non requis") -> 0 | O87: =IF(INTRO!$E$43="Endémique", IF(AND($K87>0,$K87<5), IF($K87=4,"Inconnu", IF($K87=1, $F87*0.33, IF($K87=2, $F87*0.5+$G87*0.2, SUM(F87:G87)))), 0),"Non requis") -> 21556.26 | P87: 1 | Q87: 1 | R87: 0 | S87: 0 | X87: 15390 | Y87: ZUENOULA | AB87: 1 | AC87: 1 | AD87: 1 | AE87: 1 | AF87: TRUE | AG87: TRUE | AH87: TRUE | AI87: TRUE
A88: =IF(INTRO!$E$33<>0,INTRO!$E$33, " ") -> Cote d'Ivoire | B88: ME | C88: ADZOPE | D88: 218557 | E88: =IF(INTRO!$E$48="","",ROUND($D88*INTRO!$E$48,0)) -> 27735 | F88: =IF(INTRO!$E$49="","",ROUND($D88*INTRO!$E$49,0)) -> 55601 | G88: =IF(INTRO!$E$50="","",ROUND($D88*INTRO!$E$50,0)) -> 127550 | H88: 1 | I88: 1 | J88: 1 | K88: 2 | L88: =IF(INTRO!$E$37="Endémique",IF($H88>0,IF($H88=4,"Inconnu",IF($H88=99,"Interrompu",$D88)),0),"Non requis") -> 218557 | M88: =IF(INTRO!$E$39="Endémique", IF($I88>0, IF($I88=4,"Inconnu",IF($I88=99,"Interrompu",$D88)), 0),"Non requis") -> 218557 | N88: =IF(INTRO!$E$41="Endémique", IF(AND($J88>1,$J88<5), IF($J88=4, "Inconnu", E88+F88), 0),"Non requis") -> 0 | O88: =IF(INTRO!$E$43="Endémique", IF(AND($K88>0,$K88<5), IF($K88=4,"Inconnu", IF($K88=1, $F88*0.33, IF($K88=2, $F88*0.5+$G88*0.2, SUM(F88:G88)))), 0),"Non requis") -> 53310.5 | P88: 1 | Q88: 1 | R88: 0 | S88: 0 | X88: 15419 | Y88: ADZOPE
A89: =IF(INTRO!$E$33<>0,INTRO!$E$33, " ") -> Cote d'Ivoire | B89: ME | C89: AKOUPE | D89: 134430 | E89: =IF(INTRO!$E$48="","",ROUND($D89*INTRO!$E$48,0)) -> 17059 | F89: =IF(INTRO!$E$49="","",ROUND($D89*INTRO!$E$49,0)) -> 34199 | G89: =IF(INTRO!$E$50="","",ROUND($D89*INTRO!$E$50,0)) -> 78453 | H89: 1 | I89: 1 | J89: 1 | K89: 2 | L89: =IF(INTRO!$E$37="Endémique",IF($H89>0,IF($H89=4,"Inconnu",IF($H89=99,"Interrompu",$D89)),0),"Non requis") -> 134430 | M89: =IF(INTRO!$E$39="Endémique", IF($I89>0, IF($I89=4,"Inconnu",IF($I89=99,"Interrompu",$D89)), 0),"Non requis") -> 134430 | N89: =IF(INTRO!$E$41="Endémique", IF(AND($J89>1,$J89<5), IF($J89=4, "Inconnu", E89+F89), 0),"Non requis") -> 0 | O89: =IF(INTRO!$E$43="Endémique", IF(AND($K89>0,$K89<5), IF($K89=4,"Inconnu", IF($K89=1, $F89*0.33, IF($K89=2, $F89*0.5+$G89*0.2, SUM(F89:G89)))), 0),"Non requis") -> 32790.1 | P89: 1 | Q89: 1 | R89: 0 | S89: 0 | X89: 15343 | Y89: AKOUPE | AB89: 1 | AC89: 1 | AD89: 1 | AE89: 2 | AF89: TRUE | AG89: TRUE | AH89: TRUE | AI89: TRUE
A90: =IF(INTRO!$E$33<>0,INTRO!$E$33, " ") -> Cote d'Ivoire | B90: ME | C90: ALEPE | D90: 142163 | E90: =IF(INTRO!$E$48="","",ROUND($D90*INTRO!$E$48,0)) -> 18040 | F90: =IF(INTRO!$E$49="","",ROUND($D90*INTRO!$E$49,0)) -> 36166 | G90: =IF(INTRO!$E$50="","",ROUND($D90*INTRO!$E$50,0)) -> 82966 | H90: 1 | I90: 1 | J90: 1 | K90: 1 | L90: =IF(INTRO!$E$37="Endémique",IF($H90>0,IF($H90=4,"Inconnu",IF($H90=99,"Interrompu",$D90)),0),"Non requis") -> 142163 | M90: =IF(INTRO!$E$39="Endémique", IF($I90>0, IF($I90=4,"Inconnu",IF($I90=99,"Interrompu",$D90)), 0),"Non requis") -> 142163 | N90: =IF(INTRO!$E$41="Endémique", IF(AND($J90>1,$J90<5), IF($J90=4, "Inconnu", E90+F90), 0),"Non requis") -> 0 | O90: =IF(INTRO!$E$43="Endémique", IF(AND($K90>0,$K90<5), IF($K90=4,"Inconnu", IF($K90=1, $F90*0.33, IF($K90=2, $F90*0.5+$G90*0.2, SUM(F90:G90)))), 0),"Non requis") -> 11934.78 | P90: 1 | Q90: 1 | R90: 0 | S90: 0 | X90: 15344 | Y90: ALEPE | AB90: 1 | AC90: 1 | AD90: 1 | AE90: 1 | AF90: TRUE | AG90: TRUE | AH90: TRUE | AI90: TRUE
A91: =IF(INTRO!$E$33<>0,INTRO!$E$33, " ") -> Cote d'Ivoire | B91: ME | C91: YAKASSE ATTOBROU | D91: 86147 | E91: =IF(INTRO!$E$48="","",ROUND($D91*INTRO!$E$48,0)) -> 10932 | F91: =IF(INTRO!$E$49="","",ROUND($D91*INTRO!$E$49,0)) -> 21916 | G91: =IF(INTRO!$E$50="","",ROUND($D91*INTRO!$E$50,0)) -> 50275 | H91: 1 | I91: 1 | J91: 1 | K91: 2 | L91: =IF(INTRO!$E$37="Endémique",IF($H91>0,IF($H91=4,"Inconnu",IF($H91=99,"Interrompu",$D91)),0),"Non requis") -> 86147 | M91: =IF(INTRO!$E$39="Endémique", IF($I91>0, IF($I91=4,"Inconnu",IF($I91=99,"Interrompu",$D91)), 0),"Non requis") -> 86147 | N91: =IF(INTRO!$E$41="Endémique", IF(AND($J91>1,$J91<5), IF($J91=4, "Inconnu", E91+F91), 0),"Non requis") -> 0 | O91: =IF(INTRO!$E$43="Endémique", IF(AND($K91>0,$K91<5), IF($K91=4,"Inconnu", IF($K91=1, $F91*0.33, IF($K91=2, $F91*0.5+$G91*0.2, SUM(F91:G91)))), 0),"Non requis") -> 21013 | P91: 1 | Q91: 1 | R91: 0 | S91: 0 | X91: 15420 | Y91: YAKASSE-ATTOBROU
A92: =IF(INTRO!$E$33<>0,INTRO!$E$33, " ") -> Cote d'Ivoire | B92: MORONOU | C92: ARRAH | D92: 101140 | E92: =IF(INTRO!$E$48="","",ROUND($D92*INTRO!$E$48,0)) -> 12835 | F92: =IF(INTRO!$E$49="","",ROUND($D92*INTRO!$E$49,0)) -> 25730 | G92: =IF(INTRO!$E$50="","",ROUND($D92*INTRO!$E$50,0)) -> 59025 | H92: 1 | I92: 1 | J92: 2 | K92: 1 | L92: =IF(INTRO!$E$37="Endémique",IF($H92>0,IF($H92=4,"Inconnu",IF($H92=99,"Interrompu",$D92)),0),"Non requis") -> 101140 | M92: =IF(INTRO!$E$39="Endémique", IF($I92>0, IF($I92=4,"Inconnu",IF($I92=99,"Interrompu",$D92)), 0),"Non requis") -> 101140 | N92: =IF(INTRO!$E$41="Endémique", IF(AND($J92>1,$J92<5), IF($J92=4, "Inconnu", E92+F92), 0),"Non requis") -> 38565 | O92: =IF(INTRO!$E$43="Endémique", IF(AND($K92>0,$K92<5), IF($K92=4,"Inconnu", IF($K92=1, $F92*0.33, IF($K92=2, $F92*0.5+$G92*0.2, SUM(F92:G92)))), 0),"Non requis") -> 8490.9 | P92: 1 | Q92: 1 | R92: 1 | S92: 0 | X92: 15447 | Y92: ARRAH
A93: =IF(INTRO!$E$33<>0,INTRO!$E$33, " ") -> Cote d'Ivoire | B93: MORONOU | C93: BONGOUANOU | D93: 208094 | E93: =IF(INTRO!$E$48="","",ROUND($D93*INTRO!$E$48,0)) -> 26407 | F93: =IF(INTRO!$E$49="","",ROUND($D93*INTRO!$E$49,0)) -> 52939 | G93: =IF(INTRO!$E$50="","",ROUND($D93*INTRO!$E$50,0)) -> 121444 | H93: 1 | I93: 1 | J93: 2 | K93: 1 | L93: =IF(INTRO!$E$37="Endémique",IF($H93>0,IF($H93=4,"Inconnu",IF($H93=99,"Interrompu",$D93)),0),"Non requis") -> 208094 | M93: =IF(INTRO!$E$39="Endémique", IF($I93>0, IF($I93=4,"Inconnu",IF($I93=99,"Interrompu",$D93)), 0),"Non requis") -> 208094 | N93: =IF(INTRO!$E$41="Endémique", IF(AND($J93>1,$J93<5), IF($J93=4, "Inconnu", E93+F93), 0),"Non requis") -> 79346 | O93: =IF(INTRO!$E$43="Endémique", IF(AND($K93>0,$K93<5), IF($K93=4,"Inconnu", IF($K93=1, $F93*0.33, IF($K93=2, $F93*0.5+$G93*0.2, SUM(F93:G93)))), 0),"Non requis") -> 17469.87 | P93: 1 | Q93: 1 | R93: 1 | S93: 0 | X93: 15446 | Y93: BONGOUANOU
A94: =IF(INTRO!$E$33<>0,INTRO!$E$33, " ") -> Cote d'Ivoire | B94: MORONOU | C94: M'BATTO | D94: 134647 | E94: =IF(INTRO!$E$48="","",ROUND($D94*INTRO!$E$48,0)) -> 17087 | F94: =IF(INTRO!$E$49="","",ROUND($D94*INTRO!$E$49,0)) -> 34254 | G94: =IF(INTRO!$E$50="","",ROUND($D94*INTRO!$E$50,0)) -> 78580 | H94: 1 | I94: 1 | J94: 2 | K94: 1 | L94: =IF(INTRO!$E$37="Endémique",IF($H94>0,IF($H94=4,"Inconnu",IF($H94=99,"Interrompu",$D94)),0),"Non requis") -> 134647 | M94: =IF(INTRO!$E$39="Endémique", IF($I94>0, IF($I94=4,"Inconnu",IF($I94=99,"Interrompu",$D94)), 0),"Non requis") -> 134647 | N94: =IF(INTRO!$E$41="Endémique", IF(AND($J94>1,$J94<5), IF($J94=4, "Inconnu", E94+F94), 0),"Non requis") -> 51341 | O94: =IF(INTRO!$E$43="Endémique", IF(AND($K94>0,$K94<5), IF($K94=4,"Inconnu", IF($K94=1, $F94*0.33, IF($K94=2, $F94*0.5+$G94*0.2, SUM(F94:G94)))), 0),"Non requis") -> 11303.82 | P94: 1 | Q94: 1 | R94: 1 | S94: 0 | X94: 15448 | Y94: M'BATTO
A95: =IF(INTRO!$E$33<>0,INTRO!$E$33, " ") -> Cote d'Ivoire | B95: NAWA | C95: BUYO | D95: 203352 | E95: =IF(INTRO!$E$48="","",ROUND($D95*INTRO!$E$48,0)) -> 25805 | F95: =IF(INTRO!$E$49="","",ROUND($D95*INTRO!$E$49,0)) -> 51733 | G95: =IF(INTRO!$E$50="","",ROUND($D95*INTRO!$E$50,0)) -> 118676 | H95: 1 | I95: 1 | J95: 1 | K95: 2 | L95: =IF(INTRO!$E$37="Endémique",IF($H95>0,IF($H95=4,"Inconnu",IF($H95=99,"Interrompu",$D95)),0),"Non requis") -> 203352 | M95: =IF(INTRO!$E$39="Endémique", IF($I95>0, IF($I95=4,"Inconnu",IF($I95=99,"Interrompu",$D95)), 0),"Non requis") -> 203352 | N95: =IF(INTRO!$E$41="Endémique", IF(AND($J95>1,$J95<5), IF($J95=4, "Inconnu", E95+F95), 0),"Non requis") -> 0 | O95: =IF(INTRO!$E$43="Endémique", IF(AND($K95>0,$K95<5), IF($K95=4,"Inconnu", IF($K95=1, $F95*0.33, IF($K95=2, $F95*0.5+$G95*0.2, SUM(F95:G95)))), 0),"Non requis") -> 49601.7 | P95: 1 | Q95: 1 | R95: 0 | S95: 0 | X95: 15414 | Y95: BUYO
A96: =IF(INTRO!$E$33<>0,INTRO!$E$33, " ") -> Cote d'Ivoire | B96: NAWA | C96: GUEYO | D96: 92543 | E96: =IF(INTRO!$E$48="","",ROUND($D96*INTRO!$E$48,0)) -> 11744 | F96: =IF(INTRO!$E$49="","",ROUND($D96*INTRO!$E$49,0)) -> 23543 | G96: =IF(INTRO!$E$50="","",ROUND($D96*INTRO!$E$50,0)) -> 54008 | H96: 1 | I96: 1 | J96: 1 | K96: 2 | L96: =IF(INTRO!$E$37="Endémique",IF($H96>0,IF($H96=4,"Inconnu",IF($H96=99,"Interrompu",$D96)),0),"Non requis") -> 92543 | M96: =IF(INTRO!$E$39="Endémique", IF($I96>0, IF($I96=4,"Inconnu",IF($I96=99,"Interrompu",$D96)), 0),"Non requis") -> 92543 | N96: =IF(INTRO!$E$41="Endémique", IF(AND($J96>1,$J96<5), IF($J96=4, "Inconnu", E96+F96), 0),"Non requis") -> 0 | O96: =IF(INTRO!$E$43="Endémique", IF(AND($K96>0,$K96<5), IF($K96=4,"Inconnu", IF($K96=1, $F96*0.33, IF($K96=2, $F96*0.5+$G96*0.2, SUM(F96:G96)))), 0),"Non requis") -> 22573.1 | P96: 1 | Q96: 1 | R96: 0 | S96: 0 | X96: 15366 | Y96: GUEYO | AB96: 1 | AC96: 1 | AD96: 1 | AE96: 2 | AF96: TRUE | AG96: TRUE | AH96: TRUE | AI96: TRUE
A97: =IF(INTRO!$E$33<>0,INTRO!$E$33, " ") -> Cote d'Ivoire | B97: NAWA | C97: MEAGUI | D97: 354975 | E97: =IF(INTRO!$E$48="","",ROUND($D97*INTRO!$E$48,0)) -> 45046 | F97: =IF(INTRO!$E$49="","",ROUND($D97*INTRO!$E$49,0)) -> 90306 | G97: =IF(INTRO!$E$50="","",ROUND($D97*INTRO!$E$50,0)) -> 207163 | H97: 1 | I97: 1 | J97: 1 | K97: 2 | L97: =IF(INTRO!$E$37="Endémique",IF($H97>0,IF($H97=4,"Inconnu",IF($H97=99,"Interrompu",$D97)),0),"Non requis") -> 354975 | M97: =IF(INTRO!$E$39="Endémique", IF($I97>0, IF($I97=4,"Inconnu",IF($I97=99,"Interrompu",$D97)), 0),"Non requis") -> 354975 | N97: =IF(INTRO!$E$41="Endémique", IF(AND($J97>1,$J97<5), IF($J97=4, "Inconnu", E97+F97), 0),"Non requis") -> 0 | O97: =IF(INTRO!$E$43="Endémique", IF(AND($K97>0,$K97<5), IF($K97=4,"Inconnu", IF($K97=1, $F97*0.33, IF($K97=2, $F97*0.5+$G97*0.2, SUM(F97:G97)))), 0),"Non requis") -> 86585.6 | P97: 1 | Q97: 1 | R97: 0 | S97: 0 | X97: 15413 | Y97: MEAGUY
A98: =IF(INTRO!$E$33<>0,INTRO!$E$33, " ") -> Cote d'Ivoire | B98: NAWA | C98: SOUBRE | D98: 513762 | E98: =IF(INTRO!$E$48="","",ROUND($D98*INTRO!$E$48,0)) -> 65196 | F98: =IF(INTRO!$E$49="","",ROUND($D98*INTRO!$E$49,0)) -> 130701 | G98: =IF(INTRO!$E$50="","",ROUND($D98*INTRO!$E$50,0)) -> 299832 | H98: 1 | I98: 1 | J98: 1 | K98: 2 | L98: =IF(INTRO!$E$37="Endémique",IF($H98>0,IF($H98=4,"Inconnu",IF($H98=99,"Interrompu",$D98)),0),"Non requis") -> 513762 | M98: =IF(INTRO!$E$39="Endémique", IF($I98>0, IF($I98=4,"Inconnu",IF($I98=99,"Interrompu",$D98)), 0),"Non requis") -> 513762 | N98: =IF(INTRO!$E$41="Endémique", IF(AND($J98>1,$J98<5), IF($J98=4, "Inconnu", E98+F98), 0),"Non requis") -> 0 | O98: =IF(INTRO!$E$43="Endémique", IF(AND($K98>0,$K98<5), IF($K98=4,"Inconnu", IF($K98=1, $F98*0.33, IF($K98=2, $F98*0.5+$G98*0.2, SUM(F98:G98)))), 0),"Non requis") -> 125316.9 | P98: 1 | Q98: 1 | R98: 0 | S98: 0 | X98: 15412 | Y98: SOUBRE
A99: =IF(INTRO!$E$33<>0,INTRO!$E$33, " ") -> Cote d'Ivoire | B99: N'ZI | C99: BOCANDA | D99: 163175 | E99: =IF(INTRO!$E$48="","",ROUND($D99*INTRO!$E$48,0)) -> 20707 | F99: =IF(INTRO!$E$49="","",ROUND($D99*INTRO!$E$49,0)) -> 41512 | G99: =IF(INTRO!$E$50="","",ROUND($D99*INTRO!$E$50,0)) -> 95229 | H99: 0 | I99: 1 | J99: 2 | K99: 1 | L99: =IF(INTRO!$E$37="Endémique",IF($H99>0,IF($H99=4,"Inconnu",IF($H99=99,"Interrompu",$D99)),0),"Non requis") -> 0 | M99: =IF(INTRO!$E$39="Endémique", IF($I99>0, IF($I99=4,"Inconnu",IF($I99=99,"Interrompu",$D99)), 0),"Non requis") -> 163175 | N99: =IF(INTRO!$E$41="Endémique", IF(AND($J99>1,$J99<5), IF($J99=4, "Inconnu", E99+F99), 0),"Non requis") -> 62219 | O99: =IF(INTRO!$E$43="Endémique", IF(AND($K99>0,$K99<5), IF($K99=4,"Inconnu", IF($K99=1, $F99*0.33, IF($K99=2, $F99*0.5+$G99*0.2, SUM(F99:G99)))), 0),"Non requis") -> 13698.96 | P99: 0 | Q99: 1 | R99: 1 | S99: 0 | X99: 15444 | Y99: BOCANDA
A100: =IF(INTRO!$E$33<>0,INTRO!$E$33, " ") -> Cote d'Ivoire | B100: N'ZI | C100: DIMBOKRO | D100: 115891 | E100: =IF(INTRO!$E$48="","",ROUND($D100*INTRO!$E$48,0)) -> 14707 | F100: =IF(INTRO!$E$49="","",ROUND($D100*INTRO!$E$49,0)) -> 29483 | G100: =IF(INTRO!$E$50="","",ROUND($D100*INTRO!$E$50,0)) -> 67634 | H100: 1 | I100: 1 | J100: 2 | K100: 2 | L100: =IF(INTRO!$E$37="Endémique",IF($H100>0,IF($H100=4,"Inconnu",IF($H100=99,"Interrompu",$D100)),0),"Non requis") -> 115891 | M100: =IF(INTRO!$E$39="Endémique", IF($I100>0, IF($I100=4,"Inconnu",IF($I100=99,"Interrompu",$D100)), 0),"Non requis") -> 115891 | N100: =IF(INTRO!$E$41="Endémique", IF(AND($J100>1,$J100<5), IF($J100=4, "Inconnu", E100+F100), 0),"Non requis") -> 44190 | O100: =IF(INTRO!$E$43="Endémique", IF(AND($K100>0,$K100<5), IF($K100=4,"Inconnu", IF($K100=1, $F100*0.33, IF($K100=2, $F100*0.5+$G100*0.2, SUM(F100:G100)))), 0),"Non requis") -> 28268.3 | P100: 1 | Q100: 1 | R100: 1 | S100: 1 | X100: 15394 | Y100: DIMBOKRO | AB100: 1 | AC100: 1 | AD100: 2 | AE100: 2 | AF100: TRUE | AG100: TRUE | AH100: TRUE | AI100: TRUE
A101: =IF(INTRO!$E$33<>0,INTRO!$E$33, " ") -> Cote d'Ivoire | B101: N'ZI | C101: KOUASSI-KOUASSIKRO | D101: 36038 | E101: =IF(INTRO!$E$48="","",ROUND($D101*INTRO!$E$48,0)) -> 4573 | F101: =IF(INTRO!$E$49="","",ROUND($D101*INTRO!$E$49,0)) -> 9168 | G101: =IF(INTRO!$E$50="","",ROUND($D101*INTRO!$E$50,0)) -> 21032 | H101: 0 | I101: 1 | J101: 2 | K101: 1 | L101: =IF(INTRO!$E$37="Endémique",IF($H101>0,IF($H101=4,"Inconnu",IF($H101=99,"Interrompu",$D101)),0),"Non requis") -> 0 | M101: =IF(INTRO!$E$39="Endémique", IF($I101>0, IF($I101=4,"Inconnu",IF($I101=99,"Interrompu",$D101)), 0),"Non requis") -> 36038 | N101: =IF(INTRO!$E$41="Endémique", IF(AND($J101>1,$J101<5), IF($J101=4, "Inconnu", E101+F101), 0),"Non requis") -> 13741 | O101: =IF(INTRO!$E$43="Endémique", IF(AND($K101>0,$K101<5), IF($K101=4,"Inconnu", IF($K101=1, $F101*0.33, IF($K101=2, $F101*0.5+$G101*0.2, SUM(F101:G101)))), 0),"Non requis") -> 3025.44 | P101: 0 | Q101: 1 | R101: 1 | S101: 0 | X101: 15445 | Y101: KOUASSI-KOUASSIKRO
A102: =IF(INTRO!$E$33<>0,INTRO!$E$33, " ") -> Cote d'Ivoire | B102: PORO | C102: DIKODOUGOU | D102: 104083 | E102: =IF(INTRO!$E$48="","",ROUND($D102*INTRO!$E$48,0)) -> 13208 | F102: =IF(INTRO!$E$49="","",ROUND($D102*INTRO!$E$49,0)) -> 26479 | G102: =IF(INTRO!$E$50="","",ROUND($D102*INTRO!$E$50,0)) -> 60743 | H102: 1 | I102: 1 | J102: 1 | K102: 1 | L102: =IF(INTRO!$E$37="Endémique",IF($H102>0,IF($H102=4,"Inconnu",IF($H102=99,"Interrompu",$D102)),0),"Non requis") -> 104083 | M102: =IF(INTRO!$E$39="Endémique", IF($I102>0, IF($I102=4,"Inconnu",IF($I102=99,"Interrompu",$D102)), 0),"Non requis") -> 104083 | N102: =IF(INTRO!$E$41="Endémique", IF(AND($J102>1,$J102<5), IF($J102=4, "Inconnu", E102+F102), 0),"Non requis") -> 0 | O102: =IF(INTRO!$E$43="Endémique", IF(AND($K102>0,$K102<5), IF($K102=4,"Inconnu", IF($K102=1, $F102*0.33, IF($K102=2, $F102*0.5+$G102*0.2, SUM(F102:G102)))), 0),"Non requis") -> 8738.07 | P102: 1 | Q102: 1 | R102: 0 | S102: 0 | X102: 15455 | Y102: DIKODOUGOU
A103: =IF(INTRO!$E$33<>0,INTRO!$E$33, " ") -> Cote d'Ivoire | B103: PORO | C103: KORHOGO 1 | D103: 565622 | E103: =IF(INTRO!$E$48="","",ROUND($D103*INTRO!$E$48,0)) -> 71777 | F103: =IF(INTRO!$E$49="","",ROUND($D103*INTRO!$E$49,0)) -> 143894 | G103: =IF(INTRO!$E$50="","",ROUND($D103*INTRO!$E$50,0)) -> 330097 | H103: 1 | I103: 1 | J103: 1 | K103: 1 | L103: =IF(INTRO!$E$37="Endémique",IF($H103>0,IF($H103=4,"Inconnu",IF($H103=99,"Interrompu",$D103)),0),"Non requis") -> 565622 | M103: =IF(INTRO!$E$39="Endémique", IF($I103>0, IF($I103=4,"Inconnu",IF($I103=99,"Interrompu",$D103)), 0),"Non requis") -> 565622 | N103: =IF(INTRO!$E$41="Endémique", IF(AND($J103>1,$J103<5), IF($J103=4, "Inconnu", E103+F103), 0),"Non requis") -> 0 | O103: =IF(INTRO!$E$43="Endémique", IF(AND($K103>0,$K103<5), IF($K103=4,"Inconnu", IF($K103=1, $F103*0.33, IF($K103=2, $F103*0.5+$G103*0.2, SUM(F103:G103)))), 0),"Non requis") -> 47485.02 | P103: 1 | Q103: 1 | R103: 0 | S103: 0 | X103: 15453 | Y103: KORHOGO 1
A104: =IF(INTRO!$E$33<>0,INTRO!$E$33, " ") -> Cote d'Ivoire | B104: PORO | C104: KORHOGO 2 | D104: 140799 | E104: =IF(INTRO!$E$48="","",ROUND($D104*INTRO!$E$48,0)) -> 17867 | F104: =IF(INTRO!$E$49="","",ROUND($D104*INTRO!$E$49,0)) -> 35819 | G104: =IF(INTRO!$E$50="","",ROUND($D104*INTRO!$E$50,0)) -> 82170 | H104: 1 | I104: 1 | J104: 1 | K104: 1 | L104: =IF(INTRO!$E$37="Endémique",IF($H104>0,IF($H104=4,"Inconnu",IF($H104=99,"Interrompu",$D104)),0),"Non requis") -> 140799 | M104: =IF(INTRO!$E$39="Endémique", IF($I104>0, IF($I104=4,"Inconnu",IF($I104=99,"Interrompu",$D104)), 0),"Non requis") -> 140799 | N104: =IF(INTRO!$E$41="Endémique", IF(AND($J104>1,$J104<5), IF($J104=4, "Inconnu", E104+F104), 0),"Non requis") -> 0 | O104: =IF(INTRO!$E$43="Endémique", IF(AND($K104>0,$K104<5), IF($K104=4,"Inconnu", IF($K104=1, $F104*0.33, IF($K104=2, $F104*0.5+$G104*0.2, SUM(F104:G104)))), 0),"Non requis") -> 11820.27 | P104: 1 | Q104: 1 | R104: 0 | S104: 0 | X104: 15454 | Y104: KORHOGO 2
A105: =IF(INTRO!$E$33<>0,INTRO!$E$33, " ") -> Cote d'Ivoire | B105: PORO | C105: M'BENGUE | D105: 101676 | E105: =IF(INTRO!$E$48="","",ROUND($D105*INTRO!$E$48,0)) -> 12903 | F105: =IF(INTRO!$E$49="","",ROUND($D105*INTRO!$E$49,0)) -> 25866 | G105: =IF(INTRO!$E$50="","",ROUND($D105*INTRO!$E$50,0)) -> 59338 | H105: 1 | I105: 1 | J105: 1 | K105: 1 | L105: =IF(INTRO!$E$37="Endémique",IF($H105>0,IF($H105=4,"Inconnu",IF($H105=99,"Interrompu",$D105)),0),"Non requis") -> 101676 | M105: =IF(INTRO!$E$39="Endémique", IF($I105>0, IF($I105=4,"Inconnu",IF($I105=99,"Interrompu",$D105)), 0),"Non requis") -> 101676 | N105: =IF(INTRO!$E$41="Endémique", IF(AND($J105>1,$J105<5), IF($J105=4, "Inconnu", E105+F105), 0),"Non requis") -> 0 | O105: =IF(INTRO!$E$43="Endémique", IF(AND($K105>0,$K105<5), IF($K105=4,"Inconnu", IF($K105=1, $F105*0.33, IF($K105=2, $F105*0.5+$G105*0.2, SUM(F105:G105)))), 0),"Non requis") -> 8535.78 | P105: 1 | Q105: 1 | R105: 0 | S105: 0 | X105: 15463 | Y105: M'BENGUE
A106: =IF(INTRO!$E$33<>0,INTRO!$E$33, " ") -> Cote d'Ivoire | B106: PORO | C106: SINEMENTILAI | D106: 90546 | E106: =IF(INTRO!$E$48="","",ROUND($D106*INTRO!$E$48,0)) -> 11490 | F106: =IF(INTRO!$E$49="","",ROUND($D106*INTRO!$E$49,0)) -> 23035 | G106: =IF(INTRO!$E$50="","",ROUND($D106*INTRO!$E$50,0)) -> 52843 | H106: 1 | I106: 1 | J106: 1 | K106: 1 | L106: =IF(INTRO!$E$37="Endémique",IF($H106>0,IF($H106=4,"Inconnu",IF($H106=99,"Interrompu",$D106)),0),"Non requis") -> 90546 | M106: =IF(INTRO!$E$39="Endémique", IF($I106>0, IF($I106=4,"Inconnu",IF($I106=99,"Interrompu",$D106)), 0),"Non requis") -> 90546 | N106: =IF(INTRO!$E$41="Endémique", IF(AND($J106>1,$J106<5), IF($J106=4, "Inconnu", E106+F106), 0),"Non requis") -> 0 | O106: =IF(INTRO!$E$43="Endémique", IF(AND($K106>0,$K106<5), IF($K106=4,"Inconnu", IF($K106=1, $F106*0.33, IF($K106=2, $F106*0.5+$G106*0.2, SUM(F106:G106)))), 0),"Non requis") -> 7601.55 | P106: 1 | Q106: 1 | R106: 0 | S106: 0 | X106: 15464 | Y106: SINEMENTILAI
A107: =IF(INTRO!$E$33<>0,INTRO!$E$33, " ") -> Cote d'Ivoire | B107: SAN-PEDRO | C107: SAN PEDRO | D107: 698007 | E107: =IF(INTRO!$E$48="","",ROUND($D107*INTRO!$E$48,0)) -> 88577 | F107: =IF(INTRO!$E$49="","",ROUND($D107*INTRO!$E$49,0)) -> 177573 | G107: =IF(INTRO!$E$50="","",ROUND($D107*INTRO!$E$50,0)) -> 407357 | H107: 1 | I107: 0 | J107: 1 | K107: 2 | L107: =IF(INTRO!$E$37="Endémique",IF($H107>0,IF($H107=4,"Inconnu",IF($H107=99,"Interrompu",$D107)),0),"Non requis") -> 698007 | M107: =IF(INTRO!$E$39="Endémique", IF($I107>0, IF($I107=4,"Inconnu",IF($I107=99,"Interrompu",$D107)), 0),"Non requis") -> 0 | N107: =IF(INTRO!$E$41="Endémique", IF(AND($J107>1,$J107<5), IF($J107=4, "Inconnu", E107+F107), 0),"Non requis") -> 0 | O107: =IF(INTRO!$E$43="Endémique", IF(AND($K107>0,$K107<5), IF($K107=4,"Inconnu", IF($K107=1, $F107*0.33, IF($K107=2, $F107*0.5+$G107*0.2, SUM(F107:G107)))), 0),"Non requis") -> 170257.9 | P107: 1 | Q107: 0 | R107: 0 | S107: 0 | X107: 15367 | Y107: SAN PEDRO | AB107: 1 | AC107: 0 | AD107: 1 | AE107: 2 | AF107: TRUE | AG107: TRUE | AH107: TRUE | AI107: TRUE
A108: =IF(INTRO!$E$33<>0,INTRO!$E$33, " ") -> Cote d'Ivoire | B108: SAN-PEDRO | C108: TABOU | D108: 216221 | E108: =IF(INTRO!$E$48="","",ROUND($D108*INTRO!$E$48,0)) -> 27438 | F108: =IF(INTRO!$E$49="","",ROUND($D108*INTRO!$E$49,0)) -> 55007 | G108: =IF(INTRO!$E$50="","",ROUND($D108*INTRO!$E$50,0)) -> 126187 | H108: 1 | I108: 1 | J108: 2 | K108: 2 | L108: =IF(INTRO!$E$37="Endémique",IF($H108>0,IF($H108=4,"Inconnu",IF($H108=99,"Interrompu",$D108)),0),"Non requis") -> 216221 | M108: =IF(INTRO!$E$39="Endémique", IF($I108>0, IF($I108=4,"Inconnu",IF($I108=99,"Interrompu",$D108)), 0),"Non requis") -> 216221 | N108: =IF(INTRO!$E$41="Endémique", IF(AND($J108>1,$J108<5), IF($J108=4, "Inconnu", E108+F108), 0),"Non requis") -> 82445 | O108: =IF(INTRO!$E$43="Endémique", IF(AND($K108>0,$K108<5), IF($K108=4,"Inconnu", IF($K108=1, $F108*0.33, IF($K108=2, $F108*0.5+$G108*0.2, SUM(F108:G108)))), 0),"Non requis") -> 52740.9 | P108: 1 | Q108: 1 | R108: 1 | S108: 0 | X108: 15370 | Y108: TABOU | AB108: 1 | AC108: 1 | AD108: 2 | AE108: 2 | AF108: TRUE | AG108: TRUE | AH108: TRUE | AI108: TRUE
A109: =IF(INTRO!$E$33<>0,INTRO!$E$33, " ") -> Cote d'Ivoire | B109: SUD-COMOE | C109: ABOISSO | D109: 342339 | E109: =IF(INTRO!$E$48="","",ROUND($D109*INTRO!$E$48,0)) -> 43443 | F109: =IF(INTRO!$E$49="","",ROUND($D109*INTRO!$E$49,0)) -> 87091 | G109: =IF(INTRO!$E$50="","",ROUND($D109*INTRO!$E$50,0)) -> 199789 | H109: 1 | I109: 1 | J109: 1 | K109: 2 | L109: =IF(INTRO!$E$37="Endémique",IF($H109>0,IF($H109=4,"Inconnu",IF($H109=99,"Interrompu",$D109)),0),"Non requis") -> 342339 | M109: =IF(INTRO!$E$39="Endémique", IF($I109>0, IF($I109=4,"Inconnu",IF($I109=99,"Interrompu",$D109)), 0),"Non requis") -> 342339 | N109: =IF(INTRO!$E$41="Endémique", IF(AND($J109>1,$J109<5), IF($J109=4, "Inconnu", E109+F109), 0),"Non requis") -> 0 | O109: =IF(INTRO!$E$43="Endémique", IF(AND($K109>0,$K109<5), IF($K109=4,"Inconnu", IF($K109=1, $F109*0.33, IF($K109=2, $F109*0.5+$G109*0.2, SUM(F109:G109)))), 0),"Non requis") -> 83503.3 | P109: 1 | Q109: 1 | R109: 0 | S109: 1 | X109: 15402 | Y109: ABOISSO | AB109: 1 | AC109: 1 | AD109: 1 | AE109: 2 | AF109: TRUE | AG109: TRUE | AH109: TRUE | AI109: TRUE
A110: =IF(INTRO!$E$33<>0,INTRO!$E$33, " ") -> Cote d'Ivoire | B110: SUD-COMOE | C110: ADIAKE | D110: 92905 | E110: =IF(INTRO!$E$48="","",ROUND($D110*INTRO!$E$48,0)) -> 11790 | F110: =IF(INTRO!$E$49="","",ROUND($D110*INTRO!$E$49,0)) -> 23635 | G110: =IF(INTRO!$E$50="","",ROUND($D110*INTRO!$E$50,0)) -> 54219 | H110: 1 | I110: 1 | J110: 1 | K110: 1 | L110: =IF(INTRO!$E$37="Endémique",IF($H110>0,IF($H110=4,"Inconnu",IF($H110=99,"Interrompu",$D110)),0),"Non requis") -> 92905 | M110: =IF(INTRO!$E$39="Endémique", IF($I110>0, IF($I110=4,"Inconnu",IF($I110=99,"Interrompu",$D110)), 0),"Non requis") -> 92905 | N110: =IF(INTRO!$E$41="Endémique", IF(AND($J110>1,$J110<5), IF($J110=4, "Inconnu", E110+F110), 0),"Non requis") -> 0 | O110: =IF(INTRO!$E$43="Endémique", IF(AND($K110>0,$K110<5), IF($K110=4,"Inconnu", IF($K110=1, $F110*0.33, IF($K110=2, $F110*0.5+$G110*0.2, SUM(F110:G110)))), 0),"Non requis") -> 7799.55 | P110: 1 | Q110: 1 | R110: 0 | S110: 0 | X110: 15456 | Y110: ADIAKE
A111: =IF(INTRO!$E$33<>0,INTRO!$E$33, " ") -> Cote d'Ivoire | B111: SUD-COMOE | C111: GRAND-BASSAM | D111: 199123 | E111: =IF(INTRO!$E$48="","",ROUND($D111*INTRO!$E$48,0)) -> 25269 | F111: =IF(INTRO!$E$49="","",ROUND($D111*INTRO!$E$49,0)) -> 50657 | G111: =IF(INTRO!$E$50="","",ROUND($D111*INTRO!$E$50,0)) -> 116208 | H111: 1 | I111: 1 | J111: 2 | K111: 1 | L111: =IF(INTRO!$E$37="Endémique",IF($H111>0,IF($H111=4,"Inconnu",IF($H111=99,"Interrompu",$D111)),0),"Non requis") -> 199123 | M111: =IF(INTRO!$E$39="Endémique", IF($I111>0, IF($I111=4,"Inconnu",IF($I111=99,"Interrompu",$D111)), 0),"Non requis") -> 199123 | N111: =IF(INTRO!$E$41="Endémique", IF(AND($J111>1,$J111<5), IF($J111=4, "Inconnu", E111+F111), 0),"Non requis") -> 75926 | O111: =IF(INTRO!$E$43="Endémique", IF(AND($K111>0,$K111<5), IF($K111=4,"Inconnu", IF($K111=1, $F111*0.33, IF($K111=2, $F111*0.5+$G111*0.2, SUM(F111:G111)))), 0),"Non requis") -> 16716.81 | P111: 1 | Q111: 1 | R111: 1 | S111: 0 | X111: 15404 | Y111: GRAND-BASSAM | AB111: 1 | AC111: 1 | AD111: 2 | AE111: 1 | AF111: TRUE | AG111: TRUE | AH111: TRUE | AI111: TRUE
A112: =IF(INTRO!$E$33<>0,INTRO!$E$33, " ") -> Cote d'Ivoire | B112: SUD-COMOE | C112: TIAPOUM | D112: 80240 | E112: =IF(INTRO!$E$48="","",ROUND($D112*INTRO!$E$48,0)) -> 10182 | F112: =IF(INTRO!$E$49="","",ROUND($D112*INTRO!$E$49,0)) -> 20413 | G112: =IF(INTRO!$E$50="","",ROUND($D112*INTRO!$E$50,0)) -> 46828 | H112: 1 | I112: 1 | J112: 1 | K112: 1 | L112: =IF(INTRO!$E$37="Endémique",IF($H112>0,IF($H112=4,"Inconnu",IF($H112=99,"Interrompu",$D112)),0),"Non requis") -> 80240 | M112: =IF(INTRO!$E$39="Endémique", IF($I112>0, IF($I112=4,"Inconnu",IF($I112=99,"Interrompu",$D112)), 0),"Non requis") -> 80240 | N112: =IF(INTRO!$E$41="Endémique", IF(AND($J112>1,$J112<5), IF($J112=4, "Inconnu", E112+F112), 0),"Non requis") -> 0 | O112: =IF(INTRO!$E$43="Endémique", IF(AND($K112>0,$K112<5), IF($K112=4,"Inconnu", IF($K112=1, $F112*0.33, IF($K112=2, $F112*0.5+$G112*0.2, SUM(F112:G112)))), 0),"Non requis") -> 6736.29 | P112: 1 | Q112: 1 | R112: 0 | S112: 0 | X112: 15457 | Y112: TIAPOUM
A113: =IF(INTRO!$E$33<>0,INTRO!$E$33, " ") -> Cote d'Ivoire | B113: TCHOLOGO | C113: FERKESSEDOUGOU | D113: 192072 | E113: =IF(INTRO!$E$48="","",ROUND($D113*INTRO!$E$48,0)) -> 24374 | F113: =IF(INTRO!$E$49="","",ROUND($D113*INTRO!$E$49,0)) -> 48863 | G113: =IF(INTRO!$E$50="","",ROUND($D113*INTRO!$E$50,0)) -> 112093 | H113: 1 | I113: 1 | J113: 2 | K113: 1 | L113: =IF(INTRO!$E$37="Endémique",IF($H113>0,IF($H113=4,"Inconnu",IF($H113=99,"Interrompu",$D113)),0),"Non requis") -> 192072 | M113: =IF(INTRO!$E$39="Endémique", IF($I113>0, IF($I113=4,"Inconnu",IF($I113=99,"Interrompu",$D113)), 0),"Non requis") -> 192072 | N113: =IF(INTRO!$E$41="Endémique", IF(AND($J113>1,$J113<5), IF($J113=4, "Inconnu", E113+F113), 0),"Non requis") -> 73237 | O113: =IF(INTRO!$E$43="Endémique", IF(AND($K113>0,$K113<5), IF($K113=4,"Inconnu", IF($K113=1, $F113*0.33, IF($K113=2, $F113*0.5+$G113*0.2, SUM(F113:G113)))), 0),"Non requis") -> 16124.79 | P113: 1 | Q113: 1 | R113: 1 | S113: 1 | X113: 15451 | Y113: FERKESSEDOUGOU
A114: =IF(INTRO!$E$33<>0,INTRO!$E$33, " ") -> Cote d'Ivoire | B114: TCHOLOGO | C114: KONG | D114: 117886 | E114: =IF(INTRO!$E$48="","",ROUND($D114*INTRO!$E$48,0)) -> 14960 | F114: =IF(INTRO!$E$49="","",ROUND($D114*INTRO!$E$49,0)) -> 29990 | G114: =IF(INTRO!$E$50="","",ROUND($D114*INTRO!$E$50,0)) -> 68798 | H114: 1 | I114: 1 | J114: 2 | K114: 1 | L114: =IF(INTRO!$E$37="Endémique",IF($H114>0,IF($H114=4,"Inconnu",IF($H114=99,"Interrompu",$D114)),0),"Non requis") -> 117886 | M114: =IF(INTRO!$E$39="Endémique", IF($I114>0, IF($I114=4,"Inconnu",IF($I114=99,"Interrompu",$D114)), 0),"Non requis") -> 117886 | N114: =IF(INTRO!$E$41="Endémique", IF(AND($J114>1,$J114<5), IF($J114=4, "Inconnu", E114+F114), 0),"Non requis") -> 44950 | O114: =IF(INTRO!$E$43="Endémique", IF(AND($K114>0,$K114<5), IF($K114=4,"Inconnu", IF($K114=1, $F114*0.33, IF($K114=2, $F114*0.5+$G114*0.2, SUM(F114:G114)))), 0),"Non requis") -> 9896.7 | P114: 1 | Q114: 1 | R114: 1 | S114: 1 | X114: 15452 | Y114: KONG
A115: =IF(INTRO!$E$33<>0,INTRO!$E$33, " ") -> Cote d'Ivoire | B115: TCHOLOGO | C115: OUANGOLODOUGOU | D115: 317429 | E115: =IF(INTRO!$E$48="","",ROUND($D115*INTRO!$E$48,0)) -> 40282 | F115: =IF(INTRO!$E$49="","",ROUND($D115*INTRO!$E$49,0)) -> 80754 | G115: =IF(INTRO!$E$50="","",ROUND($D115*INTRO!$E$50,0)) -> 185252 | H115: 1 | I115: 1 | J115: 1 | K115: 1 | L115: =IF(INTRO!$E$37="Endémique",IF($H115>0,IF($H115=4,"Inconnu",IF($H115=99,"Interrompu",$D115)),0),"Non requis") -> 317429 | M115: =IF(INTRO!$E$39="Endémique", IF($I115>0, IF($I115=4,"Inconnu",IF($I115=99,"Interrompu",$D115)), 0),"Non requis") -> 317429 | N115: =IF(INTRO!$E$41="Endémique", IF(AND($J115>1,$J115<5), IF($J115=4, "Inconnu", E115+F115), 0),"Non requis") -> 0 | O115: =IF(INTRO!$E$43="Endémique", IF(AND($K115>0,$K115<5), IF($K115=4,"Inconnu", IF($K115=1, $F115*0.33, IF($K115=2, $F115*0.5+$G115*0.2, SUM(F115:G115)))), 0),"Non requis") -> 26648.82 | P115: 1 | Q115: 1 | R115: 0 | S115: 1 | X115: 15400 | Y115: OUANGOLODOUGOU | AB115: 1 | AC115: 1 | AD115: 1 | AE115: 1 | AF115: TRUE | AG115: TRUE | AH115: TRUE | AI115: TRUE
A116: =IF(INTRO!$E$33<>0,INTRO!$E$33, " ") -> Cote d'Ivoire | B116: TONKPI | C116: BIANKOUMA | D116: 233962 | E116: =IF(INTRO!$E$48="","",ROUND($D116*INTRO!$E$48,0)) -> 29690 | F116: =IF(INTRO!$E$49="","",ROUND($D116*INTRO!$E$49,0)) -> 59520 | G116: =IF(INTRO!$E$50="","",ROUND($D116*INTRO!$E$50,0)) -> 136540 | H116: 1 | I116: 1 | J116: 2 | K116: 2 | L116: =IF(INTRO!$E$37="Endémique",IF($H116>0,IF($H116=4,"Inconnu",IF($H116=99,"Interrompu",$D116)),0),"Non requis") -> 233962 | M116: =IF(INTRO!$E$39="Endémique", IF($I116>0, IF($I116=4,"Inconnu",IF($I116=99,"Interrompu",$D116)), 0),"Non requis") -> 233962 | N116: =IF(INTRO!$E$41="Endémique", IF(AND($J116>1,$J116<5), IF($J116=4, "Inconnu", E116+F116), 0),"Non requis") -> 89210 | O116: =IF(INTRO!$E$43="Endémique", IF(AND($K116>0,$K116<5), IF($K116=4,"Inconnu", IF($K116=1, $F116*0.33, IF($K116=2, $F116*0.5+$G116*0.2, SUM(F116:G116)))), 0),"Non requis") -> 57068 | P116: 1 | Q116: 1 | R116: 1 | S116: 0 | X116: 15405 | Y116: BIANKOUMA | AB116: 1 | AC116: 1 | AD116: 2 | AE116: 2 | AF116: TRUE | AG116: TRUE | AH116: TRUE | AI116: TRUE
A117: =IF(INTRO!$E$33<>0,INTRO!$E$33, " ") -> Cote d'Ivoire | B117: TONKPI | C117: DANANE | D117: 318616 | E117: =IF(INTRO!$E$48="","",ROUND($D117*INTRO!$E$48,0)) -> 40432 | F117: =IF(INTRO!$E$49="","",ROUND($D117*INTRO!$E$49,0)) -> 81056 | G117: =IF(INTRO!$E$50="","",ROUND($D117*INTRO!$E$50,0)) -> 185944 | H117: 1 | I117: 1 | J117: 1 | K117: 2 | L117: =IF(INTRO!$E$37="Endémique",IF($H117>0,IF($H117=4,"Inconnu",IF($H117=99,"Interrompu",$D117)),0),"Non requis") -> 318616 | M117: =IF(INTRO!$E$39="Endémique", IF($I117>0, IF($I117=4,"Inconnu",IF($I117=99,"Interrompu",$D117)), 0),"Non requis") -> 318616 | N117: =IF(INTRO!$E$41="Endémique", IF(AND($J117>1,$J117<5), IF($J117=4, "Inconnu", E117+F117), 0),"Non requis") -> 0 | O117: =IF(INTRO!$E$43="Endémique", IF(AND($K117>0,$K117<5), IF($K117=4,"Inconnu", IF($K117=1, $F117*0.33, IF($K117=2, $F117*0.5+$G117*0.2, SUM(F117:G117)))), 0),"Non requis") -> 77716.8 | P117: 1 | Q117: 1 | R117: 0 | S117: 0 | X117: 15406 | Y117: DANANE | AB117: 1 | AC117: 1 | AD117: 1 | AE117: 2 | AF117: TRUE | AG117: TRUE | AH117: TRUE | AI117: TRUE
A118: =IF(INTRO!$E$33<>0,INTRO!$E$33, " ") -> Cote d'Ivoire | B118: TONKPI | C118: MAN | D118: 398549 | E118: =IF(INTRO!$E$48="","",ROUND($D118*INTRO!$E$48,0)) -> 50576 | F118: =IF(INTRO!$E$49="","",ROUND($D118*INTRO!$E$49,0)) -> 101391 | G118: =IF(INTRO!$E$50="","",ROUND($D118*INTRO!$E$50,0)) -> 232593 | H118: 1 | I118: 1 | J118: 1 | K118: 2 | L118: =IF(INTRO!$E$37="Endémique",IF($H118>0,IF($H118=4,"Inconnu",IF($H118=99,"Interrompu",$D118)),0),"Non requis") -> 398549 | M118: =IF(INTRO!$E$39="Endémique", IF($I118>0, IF($I118=4,"Inconnu",IF($I118=99,"Interrompu",$D118)), 0),"Non requis") -> 398549 | N118: =IF(INTRO!$E$41="Endémique", IF(AND($J118>1,$J118<5), IF($J118=4, "Inconnu", E118+F118), 0),"Non requis") -> 0 | O118: =IF(INTRO!$E$43="Endémique", IF(AND($K118>0,$K118<5), IF($K118=4,"Inconnu", IF($K118=1, $F118*0.33, IF($K118=2, $F118*0.5+$G118*0.2, SUM(F118:G118)))), 0),"Non requis") -> 97214.1 | P118: 1 | Q118: 1 | R118: 0 | S118: 0 | X118: 15407 | Y118: MAN | AB118: 1 | AC118: 1 | AD118: 1 | AE118: 2 | AF118: TRUE | AG118: TRUE | AH118: TRUE | AI118: TRUE
A119: =IF(INTRO!$E$33<>0,INTRO!$E$33, " ") -> Cote d'Ivoire | B119: TONKPI | C119: ZOUAN-HOUNIEN | D119: 232665 | E119: =IF(INTRO!$E$48="","",ROUND($D119*INTRO!$E$48,0)) -> 29525 | F119: =IF(INTRO!$E$49="","",ROUND($D119*INTRO!$E$49,0)) -> 59190 | G119: =IF(INTRO!$E$50="","",ROUND($D119*INTRO!$E$50,0)) -> 135783 | H119: 1 | I119: 1 | J119: 1 | K119: 3 | L119: =IF(INTRO!$E$37="Endémique",IF($H119>0,IF($H119=4,"Inconnu",IF($H119=99,"Interrompu",$D119)),0),"Non requis") -> 232665 | M119: =IF(INTRO!$E$39="Endémique", IF($I119>0, IF($I119=4,"Inconnu",IF($I119=99,"Interrompu",$D119)), 0),"Non requis") -> 232665 | N119: =IF(INTRO!$E$41="Endémique", IF(AND($J119>1,$J119<5), IF($J119=4, "Inconnu", E119+F119), 0),"Non requis") -> 0 | O119: =IF(INTRO!$E$43="Endémique", IF(AND($K119>0,$K119<5), IF($K119=4,"Inconnu", IF($K119=1, $F119*0.33, IF($K119=2, $F119*0.5+$G119*0.2, SUM(F119:G119)))), 0),"Non requis") -> 194973 | P119: 1 | Q119: 1 | R119: 0 | S119: 1 | X119: 15408 | Y119: ZOUAN-HOUNIEN | AB119: 1 | AC119: 1 | AD119: 1 | AE119: 3 | AF119: TRUE | AG119: TRUE | AH119: TRUE | AI119: TRUE
A120: =IF(INTRO!$E$33<>0,INTRO!$E$33, " ") -> Cote d'Ivoire | B120: WORODOUGOU | C120: KANI | D120: 83532 | E120: =IF(INTRO!$E$48="","",ROUND($D120*INTRO!$E$48,0)) -> 10600 | F120: =IF(INTRO!$E$49="","",ROUND($D120*INTRO!$E$49,0)) -> 21251 | G120: =IF(INTRO!$E$50="","",ROUND($D120*INTRO!$E$50,0)) -> 48749 | H120: 1 | I120: 1 | J120: 2 | K120: 1 | L120: =IF(INTRO!$E$37="Endémique",IF($H120>0,IF($H120=4,"Inconnu",IF($H120=99,"Interrompu",$D120)),0),"Non requis") -> 83532 | M120: =IF(INTRO!$E$39="Endémique", IF($I120>0, IF($I120=4,"Inconnu",IF($I120=99,"Interrompu",$D120)), 0),"Non requis") -> 83532 | N120: =IF(INTRO!$E$41="Endémique", IF(AND($J120>1,$J120<5), IF($J120=4, "Inconnu", E120+F120), 0),"Non requis") -> 31851 | O120: =IF(INTRO!$E$43="Endémique", IF(AND($K120>0,$K120<5), IF($K120=4,"Inconnu", IF($K120=1, $F120*0.33, IF($K120=2, $F120*0.5+$G120*0.2, SUM(F120:G120)))), 0),"Non requis") -> 7012.83 | P120: 1 | Q120: 1 | R120: 1 | S120: 0 | X120: 15461 | Y120: KANI
A121: =IF(INTRO!$E$33<>0,INTRO!$E$33, " ") -> Cote d'Ivoire | B121: WORODOUGOU | C121: SEGUELA | D121: 224346 | E121: =IF(INTRO!$E$48="","",ROUND($D121*INTRO!$E$48,0)) -> 28470 | F121: =IF(INTRO!$E$49="","",ROUND($D121*INTRO!$E$49,0)) -> 57074 | G121: =IF(INTRO!$E$50="","",ROUND($D121*INTRO!$E$50,0)) -> 130928 | H121: 1 | I121: 1 | J121: 2 | K121: 1 | L121: =IF(INTRO!$E$37="Endémique",IF($H121>0,IF($H121=4,"Inconnu",IF($H121=99,"Interrompu",$D121)),0),"Non requis") -> 224346 | M121: =IF(INTRO!$E$39="Endémique", IF($I121>0, IF($I121=4,"Inconnu",IF($I121=99,"Interrompu",$D121)), 0),"Non requis") -> 224346 | N121: =IF(INTRO!$E$41="Endémique", IF(AND($J121>1,$J121<5), IF($J121=4, "Inconnu", E121+F121), 0),"Non requis") -> 85544 | O121: =IF(INTRO!$E$43="Endémique", IF(AND($K121>0,$K121<5), IF($K121=4,"Inconnu", IF($K121=1, $F121*0.33, IF($K121=2, $F121*0.5+$G121*0.2, SUM(F121:G121)))), 0),"Non requis") -> 18834.42 | P121: 1 | Q121: 1 | R121: 1 | S121: 0 | X121: 15462 | Y121: SEGUELA

Sheet DEC (hidden)
A1: Diethylcarbamazine (DEC)
A2: Structure administrative, population ciblée par groupe d'âge, plan de traitement et information sur les comprimés
A4: TOTAL | D4: =SUM(D$9:D$1000) -> 0 | E4: =SUM(E$9:E$1000) -> 0 | F4: =SUM(F$9:F$1000) -> 0 | G4: =SUM(G$9:G$1000) -> 0 | I4: =SUM(I$9:I$1000) -> 0 | J4: =SUM(J$9:J$1000) -> 0 | K4: =SUM(K$9:K$1000) -> 0 | L4: =SUM(L$9:L$1000) -> 0 | M4: =SUM(M$9:M$1000) -> 0
A6: Structure administrative du pays | D6: Population nécessitant un traitement avec DEC | H6: Plan de traitement | I6: Population cible | J6: Diethylcarbamazine (DEC)
A7: Pays | B7: Région/Département | C7: District | D7: EAPréS | E7: EAS | F7: Adultes | G7: Total | H7: FL | I7: FL | J7: Total requis | K7: Reste en stock | L7: Comprimés devant être fournis | M7: Flacons (100mg) 1000 comprimés
A9: =IF(INTRO!$E$39<>"Non endémique", " ", IF(INTRO!$E$37="Non endémique"," ", IF(COUNTRY_INFO!A9=0," ",COUNTRY_INFO!A9))) ->  | B9: =IF(INTRO!$E$39<>"Non endémique", " ", IF(INTRO!$E$37="Non endémique"," ", IF(COUNTRY_INFO!B9=0," ",COUNTRY_INFO!B9))) ->  | C9: =IF(INTRO!$E$39<>"Non endémique", " ", IF(INTRO!$E$37="Non endémique"," ", IF(COUNTRY_INFO!C9=0," ",COUNTRY_INFO!C9))) ->  | D9: =IF(INTRO!$E$39<>"Non endémique", 0, IF(INTRO!$E$37="Non endémique",0,IF(COUNTRY_INFO!$H9=1,COUNTRY_INFO!E9,0))) -> 0 | E9: =IF(INTRO!$E$39<>"Non endémique", 0, IF(INTRO!$E$37="Non endémique",0,IF(COUNTRY_INFO!$H9=1,COUNTRY_INFO!F9,0))) -> 0 | F9: =IF(INTRO!$E$39<>"Non endémique", 0, IF(INTRO!$E$37="Non endémique",0,IF(COUNTRY_INFO!$H9=1,COUNTRY_INFO!G9,0))) -> 0 | G9: =SUM(D9:F9) -> 0 | H9: =IF(INTRO!$E$39="Non endémique",IF(INTRO!$E$37="Non endémique","Non requis",COUNTRY_INFO!P9),"Traiter avec IVM") -> Traiter avec IVM | I9: =IF(H9=1,G9,0) -> 0 | J9: =IF(I9>0,I9*2.5,0) -> 0 | L9: =IF($J9>$K9,$J9-$K9,0) -> 0 | M9: =ROUNDUP($J9/1000,0) -> 0
A10: =IF(INTRO!$E$39<>"Non endémique", " ", IF(INTRO!$E$37="Non endémique"," ", IF(COUNTRY_INFO!A10=0," ",COUNTRY_INFO!A10))) ->  | B10: =IF(INTRO!$E$39<>"Non endémique", " ", IF(INTRO!$E$37="Non endémique"," ", IF(COUNTRY_INFO!B10=0," ",COUNTRY_INFO!B10))) ->  | C10: =IF(INTRO!$E$39<>"Non endémique", " ", IF(INTRO!$E$37="Non endémique"," ", IF(COUNTRY_INFO!C10=0," ",COUNTRY_INFO!C10))) ->  | D10: =IF(INTRO!$E$39<>"Non endémique", 0, IF(INTRO!$E$37="Non endémique",0,IF(COUNTRY_INFO!$H10=1,COUNTRY_INFO!E10,0))) -> 0 | E10: =IF(INTRO!$E$39<>"Non endémique", 0, IF(INTRO!$E$37="Non endémique",0,IF(COUNTRY_INFO!$H10=1,COUNTRY_INFO!F10,0))) -> 0 | F10: =IF(INTRO!$E$39<>"Non endémique", 0, IF(INTRO!$E$37="Non endémique",0,IF(COUNTRY_INFO!$H10=1,COUNTRY_INFO!G10,0))) -> 0 | G10: 0 | H10: =IF(INTRO!$E$39="Non endémique",IF(INTRO!$E$37="Non endémique","Non requis",COUNTRY_INFO!P10),"Traiter avec IVM") -> Traiter avec IVM | I10: 0 | J10: 0 | L10: 0 | M10: 0
A11: =IF(INTRO!$E$39<>"Non endémique", " ", IF(INTRO!$E$37="Non endémique"," ", IF(COUNTRY_INFO!A11=0," ",COUNTRY_INFO!A11))) ->  | B11: =IF(INTRO!$E$39<>"Non endémique", " ", IF(INTRO!$E$37="Non endémique"," ", IF(COUNTRY_INFO!B11=0," ",COUNTRY_INFO!B11))) ->  | C11: =IF(INTRO!$E$39<>"Non endémique", " ", IF(INTRO!$E$37="Non endémique"," ", IF(COUNTRY_INFO!C11=0," ",COUNTRY_INFO!C11))) ->  | D11: =IF(INTRO!$E$39<>"Non endémique", 0, IF(INTRO!$E$37="Non endémique",0,IF(COUNTRY_INFO!$H11=1,COUNTRY_INFO!E11,0))) -> 0 | E11: =IF(INTRO!$E$39<>"Non endémique", 0, IF(INTRO!$E$37="Non endémique",0,IF(COUNTRY_INFO!$H11=1,COUNTRY_INFO!F11,0))) -> 0 | F11: =IF(INTRO!$E$39<>"Non endémique", 0, IF(INTRO!$E$37="Non endémique",0,IF(COUNTRY_INFO!$H11=1,COUNTRY_INFO!G11,0))) -> 0 | G11: 0 | H11: =IF(INTRO!$E$39="Non endémique",IF(INTRO!$E$37="Non endémique","Non requis",COUNTRY_INFO!P11),"Traiter avec IVM") -> Traiter avec IVM | I11: 0 | J11: 0 | L11: 0 | M11: 0
A12: =IF(INTRO!$E$39<>"Non endémique", " ", IF(INTRO!$E$37="Non endémique"," ", IF(COUNTRY_INFO!A12=0," ",COUNTRY_INFO!A12))) ->  | B12: =IF(INTRO!$E$39<>"Non endémique", " ", IF(INTRO!$E$37="Non endémique"," ", IF(COUNTRY_INFO!B12=0," ",COUNTRY_INFO!B12))) ->  | C12: =IF(INTRO!$E$39<>"Non endémique", " ", IF(INTRO!$E$37="Non endémique"," ", IF(COUNTRY_INFO!C12=0," ",COUNTRY_INFO!C12))) ->  | D12: =IF(INTRO!$E$39<>"Non endémique", 0, IF(INTRO!$E$37="Non endémique",0,IF(COUNTRY_INFO!$H12=1,COUNTRY_INFO!E12,0))) -> 0 | E12: =IF(INTRO!$E$39<>"Non endémique", 0, IF(INTRO!$E$37="Non endémique",0,IF(COUNTRY_INFO!$H12=1,COUNTRY_INFO!F12,0))) -> 0 | F12: =IF(INTRO!$E$39<>"Non endémique", 0, IF(INTRO!$E$37="Non endémique",0,IF(COUNTRY_INFO!$H12=1,COUNTRY_INFO!G12,0))) -> 0 | G12: 0 | H12: =IF(INTRO!$E$39="Non endémique",IF(INTRO!$E$37="Non endémique","Non requis",COUNTRY_INFO!P12),"Traiter avec IVM") -> Traiter avec IVM | I12: 0 | J12: 0 | L12: 0 | M12: 0
A13: =IF(INTRO!$E$39<>"Non endémique", " ", IF(INTRO!$E$37="Non endémique"," ", IF(COUNTRY_INFO!A13=0," ",COUNTRY_INFO!A13))) ->  | B13: =IF(INTRO!$E$39<>"Non endémique", " ", IF(INTRO!$E$37="Non endémique"," ", IF(COUNTRY_INFO!B13=0," ",COUNTRY_INFO!B13))) ->  | C13: =IF(INTRO!$E$39<>"Non endémique", " ", IF(INTRO!$E$37="Non endémique"," ", IF(COUNTRY_INFO!C13=0," ",COUNTRY_INFO!C13))) ->  | D13: =IF(INTRO!$E$39<>"Non endémique", 0, IF(INTRO!$E$37="Non endémique",0,IF(COUNTRY_INFO!$H13=1,COUNTRY_INFO!E13,0))) -> 0 | E13: =IF(INTRO!$E$39<>"Non endémique", 0, IF(INTRO!$E$37="Non endémique",0,IF(COUNTRY_INFO!$H13=1,COUNTRY_INFO!F13,0))) -> 0 | F13: =IF(INTRO!$E$39<>"Non endémique", 0, IF(INTRO!$E$37="Non endémique",0,IF(COUNTRY_INFO!$H13=1,COUNTRY_INFO!G13,0))) -> 0 | G13: 0 | H13: =IF(INTRO!$E$39="Non endémique",IF(INTRO!$E$37="Non endémique","Non requis",COUNTRY_INFO!P13),"Traiter avec IVM") -> Traiter avec IVM | I13: 0 | J13: 0 | L13: 0 | M13: 0
A14: =IF(INTRO!$E$39<>"Non endémique", " ", IF(INTRO!$E$37="Non endémique"," ", IF(COUNTRY_INFO!A14=0," ",COUNTRY_INFO!A14))) ->  | B14: =IF(INTRO!$E$39<>"Non endémique", " ", IF(INTRO!$E$37="Non endémique"," ", IF(COUNTRY_INFO!B14=0," ",COUNTRY_INFO!B14))) ->  | C14: =IF(INTRO!$E$39<>"Non endémique", " ", IF(INTRO!$E$37="Non endémique"," ", IF(COUNTRY_INFO!C14=0," ",COUNTRY_INFO!C14))) ->  | D14: =IF(INTRO!$E$39<>"Non endémique", 0, IF(INTRO!$E$37="Non endémique",0,IF(COUNTRY_INFO!$H14=1,COUNTRY_INFO!E14,0))) -> 0 | E14: =IF(INTRO!$E$39<>"Non endémique", 0, IF(INTRO!$E$37="Non endémique",0,IF(COUNTRY_INFO!$H14=1,COUNTRY_INFO!F14,0))) -> 0 | F14: =IF(INTRO!$E$39<>"Non endémique", 0, IF(INTRO!$E$37="Non endémique",0,IF(COUNTRY_INFO!$H14=1,COUNTRY_INFO!G14,0))) -> 0 | G14: 0 | H14: =IF(INTRO!$E$39="Non endémique",IF(INTRO!$E$37="Non endémique","Non requis",COUNTRY_INFO!P14),"Traiter avec IVM") -> Traiter avec IVM | I14: 0 | J14: 0 | L14: 0 | M14: 0
A15: =IF(INTRO!$E$39<>"Non endémique", " ", IF(INTRO!$E$37="Non endémique"," ", IF(COUNTRY_INFO!A15=0," ",COUNTRY_INFO!A15))) ->  | B15: =IF(INTRO!$E$39<>"Non endémique", " ", IF(INTRO!$E$37="Non endémique"," ", IF(COUNTRY_INFO!B15=0," ",COUNTRY_INFO!B15))) ->  | C15: =IF(INTRO!$E$39<>"Non endémique", " ", IF(INTRO!$E$37="Non endémique"," ", IF(COUNTRY_INFO!C15=0," ",COUNTRY_INFO!C15))) ->  | D15: =IF(INTRO!$E$39<>"Non endémique", 0, IF(INTRO!$E$37="Non endémique",0,IF(COUNTRY_INFO!$H15=1,COUNTRY_INFO!E15,0))) -> 0 | E15: =IF(INTRO!$E$39<>"Non endémique", 0, IF(INTRO!$E$37="Non endémique",0,IF(COUNTRY_INFO!$H15=1,COUNTRY_INFO!F15,0))) -> 0 | F15: =IF(INTRO!$E$39<>"Non endémique", 0, IF(INTRO!$E$37="Non endémique",0,IF(COUNTRY_INFO!$H15=1,COUNTRY_INFO!G15,0))) -> 0 | G15: 0 | H15: =IF(INTRO!$E$39="Non endémique",IF(INTRO!$E$37="Non endémique","Non requis",COUNTRY_INFO!P15),"Traiter avec IVM") -> Traiter avec IVM | I15: 0 | J15: 0 | L15: 0 | M15: 0
A16: =IF(INTRO!$E$39<>"Non endémique", " ", IF(INTRO!$E$37="Non endémique"," ", IF(COUNTRY_INFO!A16=0," ",COUNTRY_INFO!A16))) ->  | B16: =IF(INTRO!$E$39<>"Non endémique", " ", IF(INTRO!$E$37="Non endémique"," ", IF(COUNTRY_INFO!B16=0," ",COUNTRY_INFO!B16))) ->  | C16: =IF(INTRO!$E$39<>"Non endémique", " ", IF(INTRO!$E$37="Non endémique"," ", IF(COUNTRY_INFO!C16=0," ",COUNTRY_INFO!C16))) ->  | D16: =IF(INTRO!$E$39<>"Non endémique", 0, IF(INTRO!$E$37="Non endémique",0,IF(COUNTRY_INFO!$H16=1,COUNTRY_INFO!E16,0))) -> 0 | E16: =IF(INTRO!$E$39<>"Non endémique", 0, IF(INTRO!$E$37="Non endémique",0,IF(COUNTRY_INFO!$H16=1,COUNTRY_INFO!F16,0))) -> 0 | F16: =IF(INTRO!$E$39<>"Non endémique", 0, IF(INTRO!$E$37="Non endémique",0,IF(COUNTRY_INFO!$H16=1,COUNTRY_INFO!G16,0))) -> 0 | G16: 0 | H16: =IF(INTRO!$E$39="Non endémique",IF(INTRO!$E$37="Non endémique","Non requis",COUNTRY_INFO!P16),"Traiter avec IVM") -> Traiter avec IVM | I16: 0 | J16: 0 | L16: 0 | M16: 0
A17: =IF(INTRO!$E$39<>"Non endémique", " ", IF(INTRO!$E$37="Non endémique"," ", IF(COUNTRY_INFO!A17=0," ",COUNTRY_INFO!A17))) ->  | B17: =IF(INTRO!$E$39<>"Non endémique", " ", IF(INTRO!$E$37="Non endémique"," ", IF(COUNTRY_INFO!B17=0," ",COUNTRY_INFO!B17))) ->  | C17: =IF(INTRO!$E$39<>"Non endémique", " ", IF(INTRO!$E$37="Non endémique"," ", IF(COUNTRY_INFO!C17=0," ",COUNTRY_INFO!C17))) ->  | D17: =IF(INTRO!$E$39<>"Non endémique", 0, IF(INTRO!$E$37="Non endémique",0,IF(COUNTRY_INFO!$H17=1,COUNTRY_INFO!E17,0))) -> 0 | E17: =IF(INTRO!$E$39<>"Non endémique", 0, IF(INTRO!$E$37="Non endémique",0,IF(COUNTRY_INFO!$H17=1,COUNTRY_INFO!F17,0))) -> 0 | F17: =IF(INTRO!$E$39<>"Non endémique", 0, IF(INTRO!$E$37="Non endémique",0,IF(COUNTRY_INFO!$H17=1,COUNTRY_INFO!G17,0))) -> 0 | G17: 0 | H17: =IF(INTRO!$E$39="Non endémique",IF(INTRO!$E$37="Non endémique","Non requis",COUNTRY_INFO!P17),"Traiter avec IVM") -> Traiter avec IVM | I17: 0 | J17: 0 | L17: 0 | M17: 0
A18: =IF(INTRO!$E$39<>"Non endémique", " ", IF(INTRO!$E$37="Non endémique"," ", IF(COUNTRY_INFO!A18=0," ",COUNTRY_INFO!A18))) ->  | B18: =IF(INTRO!$E$39<>"Non endémique", " ", IF(INTRO!$E$37="Non endémique"," ", IF(COUNTRY_INFO!B18=0," ",COUNTRY_INFO!B18))) ->  | C18: =IF(INTRO!$E$39<>"Non endémique", " ", IF(INTRO!$E$37="Non endémique"," ", IF(COUNTRY_INFO!C18=0," ",COUNTRY_INFO!C18))) ->  | D18: =IF(INTRO!$E$39<>"Non endémique", 0, IF(INTRO!$E$37="Non endémique",0,IF(COUNTRY_INFO!$H18=1,COUNTRY_INFO!E18,0))) -> 0 | E18: =IF(INTRO!$E$39<>"Non endémique", 0, IF(INTRO!$E$37="Non endémique",0,IF(COUNTRY_INFO!$H18=1,COUNTRY_INFO!F18,0))) -> 0 | F18: =IF(INTRO!$E$39<>"Non endémique", 0, IF(INTRO!$E$37="Non endémique",0,IF(COUNTRY_INFO!$H18=1,COUNTRY_INFO!G18,0))) -> 0 | G18: 0 | H18: =IF(INTRO!$E$39="Non endémique",IF(INTRO!$E$37="Non endémique","Non requis",COUNTRY_INFO!P18),"Traiter avec IVM") -> Traiter avec IVM | I18: 0 | J18: 0 | L18: 0 | M18: 0
A19: =IF(INTRO!$E$39<>"Non endémique", " ", IF(INTRO!$E$37="Non endémique"," ", IF(COUNTRY_INFO!A19=0," ",COUNTRY_INFO!A19))) ->  | B19: =IF(INTRO!$E$39<>"Non endémique", " ", IF(INTRO!$E$37="Non endémique"," ", IF(COUNTRY_INFO!B19=0," ",COUNTRY_INFO!B19))) ->  | C19: =IF(INTRO!$E$39<>"Non endémique", " ", IF(INTRO!$E$37="Non endémique"," ", IF(COUNTRY_INFO!C19=0," ",COUNTRY_INFO!C19))) ->  | D19: =IF(INTRO!$E$39<>"Non endémique", 0, IF(INTRO!$E$37="Non endémique",0,IF(COUNTRY_INFO!$H19=1,COUNTRY_INFO!E19,0))) -> 0 | E19: =IF(INTRO!$E$39<>"Non endémique", 0, IF(INTRO!$E$37="Non endémique",0,IF(COUNTRY_INFO!$H19=1,COUNTRY_INFO!F19,0))) -> 0 | F19: =IF(INTRO!$E$39<>"Non endémique", 0, IF(INTRO!$E$37="Non endémique",0,IF(COUNTRY_INFO!$H19=1,COUNTRY_INFO!G19,0))) -> 0 | G19: 0 | H19: =IF(INTRO!$E$39="Non endémique",IF(INTRO!$E$37="Non endémique","Non requis",COUNTRY_INFO!P19),"Traiter avec IVM") -> Traiter avec IVM | I19: 0 | J19: 0 | L19: 0 | M19: 0
A20: =IF(INTRO!$E$39<>"Non endémique", " ", IF(INTRO!$E$37="Non endémique"," ", IF(COUNTRY_INFO!A20=0," ",COUNTRY_INFO!A20))) ->  | B20: =IF(INTRO!$E$39<>"Non endémique", " ", IF(INTRO!$E$37="Non endémique"," ", IF(COUNTRY_INFO!B20=0," ",COUNTRY_INFO!B20))) ->  | C20: =IF(INTRO!$E$39<>"Non endémique", " ", IF(INTRO!$E$37="Non endémique"," ", IF(COUNTRY_INFO!C20=0," ",COUNTRY_INFO!C20))) ->  | D20: =IF(INTRO!$E$39<>"Non endémique", 0, IF(INTRO!$E$37="Non endémique",0,IF(COUNTRY_INFO!$H20=1,COUNTRY_INFO!E20,0))) -> 0 | E20: =IF(INTRO!$E$39<>"Non endémique", 0, IF(INTRO!$E$37="Non endémique",0,IF(COUNTRY_INFO!$H20=1,COUNTRY_INFO!F20,0))) -> 0 | F20: =IF(INTRO!$E$39<>"Non endémique", 0, IF(INTRO!$E$37="Non endémique",0,IF(COUNTRY_INFO!$H20=1,COUNTRY_INFO!G20,0))) -> 0 | G20: 0 | H20: =IF(INTRO!$E$39="Non endémique",IF(INTRO!$E$37="Non endémique","Non requis",COUNTRY_INFO!P20),"Traiter avec IVM") -> Traiter avec IVM | I20: 0 | J20: 0 | L20: 0 | M20: 0
A21: =IF(INTRO!$E$39<>"Non endémique", " ", IF(INTRO!$E$37="Non endémique"," ", IF(COUNTRY_INFO!A21=0," ",COUNTRY_INFO!A21))) ->  | B21: =IF(INTRO!$E$39<>"Non endémique", " ", IF(INTRO!$E$37="Non endémique"," ", IF(COUNTRY_INFO!B21=0," ",COUNTRY_INFO!B21))) ->  | C21: =IF(INTRO!$E$39<>"Non endémique", " ", IF(INTRO!$E$37="Non endémique"," ", IF(COUNTRY_INFO!C21=0," ",COUNTRY_INFO!C21))) ->  | D21: =IF(INTRO!$E$39<>"Non endémique", 0, IF(INTRO!$E$37="Non endémique",0,IF(COUNTRY_INFO!$H21=1,COUNTRY_INFO!E21,0))) -> 0 | E21: =IF(INTRO!$E$39<>"Non endémique", 0, IF(INTRO!$E$37="Non endémique",0,IF(COUNTRY_INFO!$H21=1,COUNTRY_INFO!F21,0))) -> 0 | F21: =IF(INTRO!$E$39<>"Non endémique", 0, IF(INTRO!$E$37="Non endémique",0,IF(COUNTRY_INFO!$H21=1,COUNTRY_INFO!G21,0))) -> 0 | G21: 0 | H21: =IF(INTRO!$E$39="Non endémique",IF(INTRO!$E$37="Non endémique","Non requis",COUNTRY_INFO!P21),"Traiter avec IVM") -> Traiter avec IVM | I21: 0 | J21: 0 | L21: 0 | M21: 0
A22: =IF(INTRO!$E$39<>"Non endémique", " ", IF(INTRO!$E$37="Non endémique"," ", IF(COUNTRY_INFO!A22=0," ",COUNTRY_INFO!A22))) ->  | B22: =IF(INTRO!$E$39<>"Non endémique", " ", IF(INTRO!$E$37="Non endémique"," ", IF(COUNTRY_INFO!B22=0," ",COUNTRY_INFO!B22))) ->  | C22: =IF(INTRO!$E$39<>"Non endémique", " ", IF(INTRO!$E$37="Non endémique"," ", IF(COUNTRY_INFO!C22=0," ",COUNTRY_INFO!C22))) ->  | D22: =IF(INTRO!$E$39<>"Non endémique", 0, IF(INTRO!$E$37="Non endémique",0,IF(COUNTRY_INFO!$H22=1,COUNTRY_INFO!E22,0))) -> 0 | E22: =IF(INTRO!$E$39<>"Non endémique", 0, IF(INTRO!$E$37="Non endémique",0,IF(COUNTRY_INFO!$H22=1,COUNTRY_INFO!F22,0))) -> 0 | F22: =IF(INTRO!$E$39<>"Non endémique", 0, IF(INTRO!$E$37="Non endémique",0,IF(COUNTRY_INFO!$H22=1,COUNTRY_INFO!G22,0))) -> 0 | G22: 0 | H22: =IF(INTRO!$E$39="Non endémique",IF(INTRO!$E$37="Non endémique","Non requis",COUNTRY_INFO!P22),"Traiter avec IVM") -> Traiter avec IVM | I22: 0 | J22: 0 | L22: 0 | M22: 0
A23: =IF(INTRO!$E$39<>"Non endémique", " ", IF(INTRO!$E$37="Non endémique"," ", IF(COUNTRY_INFO!A23=0," ",COUNTRY_INFO!A23))) ->  | B23: =IF(INTRO!$E$39<>"Non endémique", " ", IF(INTRO!$E$37="Non endémique"," ", IF(COUNTRY_INFO!B23=0," ",COUNTRY_INFO!B23))) ->  | C23: =IF(INTRO!$E$39<>"Non endémique", " ", IF(INTRO!$E$37="Non endémique"," ", IF(COUNTRY_INFO!C23=0," ",COUNTRY_INFO!C23))) ->  | D23: =IF(INTRO!$E$39<>"Non endémique", 0, IF(INTRO!$E$37="Non endémique",0,IF(COUNTRY_INFO!$H23=1,COUNTRY_INFO!E23,0))) -> 0 | E23: =IF(INTRO!$E$39<>"Non endémique", 0, IF(INTRO!$E$37="Non endémique",0,IF(COUNTRY_INFO!$H23=1,COUNTRY_INFO!F23,0))) -> 0 | F23: =IF(INTRO!$E$39<>"Non endémique", 0, IF(INTRO!$E$37="Non endémique",0,IF(COUNTRY_INFO!$H23=1,COUNTRY_INFO!G23,0))) -> 0 | G23: 0 | H23: =IF(INTRO!$E$39="Non endémique",IF(INTRO!$E$37="Non endémique","Non requis",COUNTRY_INFO!P23),"Traiter avec IVM") -> Traiter avec IVM | I23: 0 | J23: 0 | L23: 0 | M23: 0
A24: =IF(INTRO!$E$39<>"Non endémique", " ", IF(INTRO!$E$37="Non endémique"," ", IF(COUNTRY_INFO!A24=0," ",COUNTRY_INFO!A24))) ->  | B24: =IF(INTRO!$E$39<>"Non endémique", " ", IF(INTRO!$E$37="Non endémique"," ", IF(COUNTRY_INFO!B24=0," ",COUNTRY_INFO!B24))) ->  | C24: =IF(INTRO!$E$39<>"Non endémique", " ", IF(INTRO!$E$37="Non endémique"," ", IF(COUNTRY_INFO!C24=0," ",COUNTRY_INFO!C24))) ->  | D24: =IF(INTRO!$E$39<>"Non endémique", 0, IF(INTRO!$E$37="Non endémique",0,IF(COUNTRY_INFO!$H24=1,COUNTRY_INFO!E24,0))) -> 0 | E24: =IF(INTRO!$E$39<>"Non endémique", 0, IF(INTRO!$E$37="Non endémique",0,IF(COUNTRY_INFO!$H24=1,COUNTRY_INFO!F24,0))) -> 0 | F24: =IF(INTRO!$E$39<>"Non endémique", 0, IF(INTRO!$E$37="Non endémique",0,IF(COUNTRY_INFO!$H24=1,COUNTRY_INFO!G24,0))) -> 0 | G24: 0 | H24: =IF(INTRO!$E$39="Non endémique",IF(INTRO!$E$37="Non endémique","Non requis",COUNTRY_INFO!P24),"Traiter avec IVM") -> Traiter avec IVM | I24: 0 | J24: 0 | L24: 0 | M24: 0
A25: =IF(INTRO!$E$39<>"Non endémique", " ", IF(INTRO!$E$37="Non endémique"," ", IF(COUNTRY_INFO!A25=0," ",COUNTRY_INFO!A25))) ->  | B25: =IF(INTRO!$E$39<>"Non endémique", " ", IF(INTRO!$E$37="Non endémique"," ", IF(COUNTRY_INFO!B25=0," ",COUNTRY_INFO!B25))) ->  | C25: =IF(INTRO!$E$39<>"Non endémique", " ", IF(INTRO!$E$37="Non endémique"," ", IF(COUNTRY_INFO!C25=0," ",COUNTRY_INFO!C25))) ->  | D25: =IF(INTRO!$E$39<>"Non endémique", 0, IF(INTRO!$E$37="Non endémique",0,IF(COUNTRY_INFO!$H25=1,COUNTRY_INFO!E25,0))) -> 0 | E25: =IF(INTRO!$E$39<>"Non endémique", 0, IF(INTRO!$E$37="Non endémique",0,IF(COUNTRY_INFO!$H25=1,COUNTRY_INFO!F25,0))) -> 0 | F25: =IF(INTRO!$E$39<>"Non endémique", 0, IF(INTRO!$E$37="Non endémique",0,IF(COUNTRY_INFO!$H25=1,COUNTRY_INFO!G25,0))) -> 0 | G25: 0 | H25: =IF(INTRO!$E$39="Non endémique",IF(INTRO!$E$37="Non endémique","Non requis",COUNTRY_INFO!P25),"Traiter avec IVM") -> Traiter avec IVM | I25: 0 | J25: 0 | L25: 0 | M25: 0
A26: =IF(INTRO!$E$39<>"Non endémique", " ", IF(INTRO!$E$37="Non endémique"," ", IF(COUNTRY_INFO!A26=0," ",COUNTRY_INFO!A26))) ->  | B26: =IF(INTRO!$E$39<>"Non endémique", " ", IF(INTRO!$E$37="Non endémique"," ", IF(COUNTRY_INFO!B26=0," ",COUNTRY_INFO!B26))) ->  | C26: =IF(INTRO!$E$39<>"Non endémique", " ", IF(INTRO!$E$37="Non endémique"," ", IF(COUNTRY_INFO!C26=0," ",COUNTRY_INFO!C26))) ->  | D26: =IF(INTRO!$E$39<>"Non endémique", 0, IF(INTRO!$E$37="Non endémique",0,IF(COUNTRY_INFO!$H26=1,COUNTRY_INFO!E26,0))) -> 0 | E26: =IF(INTRO!$E$39<>"Non endémique", 0, IF(INTRO!$E$37="Non endémique",0,IF(COUNTRY_INFO!$H26=1,COUNTRY_INFO!F26,0))) -> 0 | F26: =IF(INTRO!$E$39<>"Non endémique", 0, IF(INTRO!$E$37="Non endémique",0,IF(COUNTRY_INFO!$H26=1,COUNTRY_INFO!G26,0))) -> 0 | G26: 0 | H26: =IF(INTRO!$E$39="Non endémique",IF(INTRO!$E$37="Non endémique","Non requis",COUNTRY_INFO!P26),"Traiter avec IVM") -> Traiter avec IVM | I26: 0 | J26: 0 | L26: 0 | M26: 0
A27: =IF(INTRO!$E$39<>"Non endémique", " ", IF(INTRO!$E$37="Non endémique"," ", IF(COUNTRY_INFO!A27=0," ",COUNTRY_INFO!A27))) ->  | B27: =IF(INTRO!$E$39<>"Non endémique", " ", IF(INTRO!$E$37="Non endémique"," ", IF(COUNTRY_INFO!B27=0," ",COUNTRY_INFO!B27))) ->  | C27: =IF(INTRO!$E$39<>"Non endémique", " ", IF(INTRO!$E$37="Non endémique"," ", IF(COUNTRY_INFO!C27=0," ",COUNTRY_INFO!C27))) ->  | D27: =IF(INTRO!$E$39<>"Non endémique", 0, IF(INTRO!$E$37="Non endémique",0,IF(COUNTRY_INFO!$H27=1,COUNTRY_INFO!E27,0))) -> 0 | E27: =IF(INTRO!$E$39<>"Non endémique", 0, IF(INTRO!$E$37="Non endémique",0,IF(COUNTRY_INFO!$H27=1,COUNTRY_INFO!F27,0))) -> 0 | F27: =IF(INTRO!$E$39<>"Non endémique", 0, IF(INTRO!$E$37="Non endémique",0,IF(COUNTRY_INFO!$H27=1,COUNTRY_INFO!G27,0))) -> 0 | G27: 0 | H27: =IF(INTRO!$E$39="Non endémique",IF(INTRO!$E$37="Non endémique","Non requis",COUNTRY_INFO!P27),"Traiter avec IVM") -> Traiter avec IVM | I27: 0 | J27: 0 | L27: 0 | M27: 0
A28: =IF(INTRO!$E$39<>"Non endémique", " ", IF(INTRO!$E$37="Non endémique"," ", IF(COUNTRY_INFO!A28=0," ",COUNTRY_INFO!A28))) ->  | B28: =IF(INTRO!$E$39<>"Non endémique", " ", IF(INTRO!$E$37="Non endémique"," ", IF(COUNTRY_INFO!B28=0," ",COUNTRY_INFO!B28))) ->  | C28: =IF(INTRO!$E$39<>"Non endémique", " ", IF(INTRO!$E$37="Non endémique"," ", IF(COUNTRY_INFO!C28=0," ",COUNTRY_INFO!C28))) ->  | D28: =IF(INTRO!$E$39<>"Non endémique", 0, IF(INTRO!$E$37="Non endémique",0,IF(COUNTRY_INFO!$H28=1,COUNTRY_INFO!E28,0))) -> 0 | E28: =IF(INTRO!$E$39<>"Non endémique", 0, IF(INTRO!$E$37="Non endémique",0,IF(COUNTRY_INFO!$H28=1,COUNTRY_INFO!F28,0))) -> 0 | F28: =IF(INTRO!$E$39<>"Non endémique", 0, IF(INTRO!$E$37="Non endémique",0,IF(COUNTRY_INFO!$H28=1,COUNTRY_INFO!G28,0))) -> 0 | G28: 0 | H28: =IF(INTRO!$E$39="Non endémique",IF(INTRO!$E$37="Non endémique","Non requis",COUNTRY_INFO!P28),"Traiter avec IVM") -> Traiter avec IVM | I28: 0 | J28: 0 | L28: 0 | M28: 0
A29: =IF(INTRO!$E$39<>"Non endémique", " ", IF(INTRO!$E$37="Non endémique"," ", IF(COUNTRY_INFO!A29=0," ",COUNTRY_INFO!A29))) ->  | B29: =IF(INTRO!$E$39<>"Non endémique", " ", IF(INTRO!$E$37="Non endémique"," ", IF(COUNTRY_INFO!B29=0," ",COUNTRY_INFO!B29))) ->  | C29: =IF(INTRO!$E$39<>"Non endémique", " ", IF(INTRO!$E$37="Non endémique"," ", IF(COUNTRY_INFO!C29=0," ",COUNTRY_INFO!C29))) ->  | D29: =IF(INTRO!$E$39<>"Non endémique", 0, IF(INTRO!$E$37="Non endémique",0,IF(COUNTRY_INFO!$H29=1,COUNTRY_INFO!E29,0))) -> 0 | E29: =IF(INTRO!$E$39<>"Non endémique", 0, IF(INTRO!$E$37="Non endémique",0,IF(COUNTRY_INFO!$H29=1,COUNTRY_INFO!F29,0))) -> 0 | F29: =IF(INTRO!$E$39<>"Non endémique", 0, IF(INTRO!$E$37="Non endémique",0,IF(COUNTRY_INFO!$H29=1,COUNTRY_INFO!G29,0))) -> 0 | G29: 0 | H29: =IF(INTRO!$E$39="Non endémique",IF(INTRO!$E$37="Non endémique","Non requis",COUNTRY_INFO!P29),"Traiter avec IVM") -> Traiter avec IVM | I29: 0 | J29: 0 | L29: 0 | M29: 0
A30: =IF(INTRO!$E$39<>"Non endémique", " ", IF(INTRO!$E$37="Non endémique"," ", IF(COUNTRY_INFO!A30=0," ",COUNTRY_INFO!A30))) ->  | B30: =IF(INTRO!$E$39<>"Non endémique", " ", IF(INTRO!$E$37="Non endémique"," ", IF(COUNTRY_INFO!B30=0," ",COUNTRY_INFO!B30))) ->  | C30: =IF(INTRO!$E$39<>"Non endémique", " ", IF(INTRO!$E$37="Non endémique"," ", IF(COUNTRY_INFO!C30=0," ",COUNTRY_INFO!C30))) ->  | D30: =IF(INTRO!$E$39<>"Non endémique", 0, IF(INTRO!$E$37="Non endémique",0,IF(COUNTRY_INFO!$H30=1,COUNTRY_INFO!E30,0))) -> 0 | E30: =IF(INTRO!$E$39<>"Non endémique", 0, IF(INTRO!$E$37="Non endémique",0,IF(COUNTRY_INFO!$H30=1,COUNTRY_INFO!F30,0))) -> 0 | F30: =IF(INTRO!$E$39<>"Non endémique", 0, IF(INTRO!$E$37="Non endémique",0,IF(COUNTRY_INFO!$H30=1,COUNTRY_INFO!G30,0))) -> 0 | G30: 0 | H30: =IF(INTRO!$E$39="Non endémique",IF(INTRO!$E$37="Non endémique","Non requis",COUNTRY_INFO!P30),"Traiter avec IVM") -> Traiter avec IVM | I30: 0 | J30: 0 | L30: 0 | M30: 0
A31: =IF(INTRO!$E$39<>"Non endémique", " ", IF(INTRO!$E$37="Non endémique"," ", IF(COUNTRY_INFO!A31=0," ",COUNTRY_INFO!A31))) ->  | B31: =IF(INTRO!$E$39<>"Non endémique", " ", IF(INTRO!$E$37="Non endémique"," ", IF(COUNTRY_INFO!B31=0," ",COUNTRY_INFO!B31))) ->  | C31: =IF(INTRO!$E$39<>"Non endémique", " ", IF(INTRO!$E$37="Non endémique"," ", IF(COUNTRY_INFO!C31=0," ",COUNTRY_INFO!C31))) ->  | D31: =IF(INTRO!$E$39<>"Non endémique", 0, IF(INTRO!$E$37="Non endémique",0,IF(COUNTRY_INFO!$H31=1,COUNTRY_INFO!E31,0))) -> 0 | E31: =IF(INTRO!$E$39<>"Non endémique", 0, IF(INTRO!$E$37="Non endémique",0,IF(COUNTRY_INFO!$H31=1,COUNTRY_INFO!F31,0))) -> 0 | F31: =IF(INTRO!$E$39<>"Non endémique", 0, IF(INTRO!$E$37="Non endémique",0,IF(COUNTRY_INFO!$H31=1,COUNTRY_INFO!G31,0))) -> 0 | G31: 0 | H31: =IF(INTRO!$E$39="Non endémique",IF(INTRO!$E$37="Non endémique","Non requis",COUNTRY_INFO!P31),"Traiter avec IVM") -> Traiter avec IVM | I31: 0 | J31: 0 | L31: 0 | M31: 0
A32: =IF(INTRO!$E$39<>"Non endémique", " ", IF(INTRO!$E$37="Non endémique"," ", IF(COUNTRY_INFO!A32=0," ",COUNTRY_INFO!A32))) ->  | B32: =IF(INTRO!$E$39<>"Non endémique", " ", IF(INTRO!$E$37="Non endémique"," ", IF(COUNTRY_INFO!B32=0," ",COUNTRY_INFO!B32))) ->  | C32: =IF(INTRO!$E$39<>"Non endémique", " ", IF(INTRO!$E$37="Non endémique"," ", IF(COUNTRY_INFO!C32=0," ",COUNTRY_INFO!C32))) ->  | D32: =IF(INTRO!$E$39<>"Non endémique", 0, IF(INTRO!$E$37="Non endémique",0,IF(COUNTRY_INFO!$H32=1,COUNTRY_INFO!E32,0))) -> 0 | E32: =IF(INTRO!$E$39<>"Non endémique", 0, IF(INTRO!$E$37="Non endémique",0,IF(COUNTRY_INFO!$H32=1,COUNTRY_INFO!F32,0))) -> 0 | F32: =IF(INTRO!$E$39<>"Non endémique", 0, IF(INTRO!$E$37="Non endémique",0,IF(COUNTRY_INFO!$H32=1,COUNTRY_INFO!G32,0))) -> 0 | G32: 0 | H32: =IF(INTRO!$E$39="Non endémique",IF(INTRO!$E$37="Non endémique","Non requis",COUNTRY_INFO!P32),"Traiter avec IVM") -> Traiter avec IVM | I32: 0 | J32: 0 | L32: 0 | M32: 0
A33: =IF(INTRO!$E$39<>"Non endémique", " ", IF(INTRO!$E$37="Non endémique"," ", IF(COUNTRY_INFO!A33=0," ",COUNTRY_INFO!A33))) ->  | B33: =IF(INTRO!$E$39<>"Non endémique", " ", IF(INTRO!$E$37="Non endémique"," ", IF(COUNTRY_INFO!B33=0," ",COUNTRY_INFO!B33))) ->  | C33: =IF(INTRO!$E$39<>"Non endémique", " ", IF(INTRO!$E$37="Non endémique"," ", IF(COUNTRY_INFO!C33=0," ",COUNTRY_INFO!C33))) ->  | D33: =IF(INTRO!$E$39<>"Non endémique", 0, IF(INTRO!$E$37="Non endémique",0,IF(COUNTRY_INFO!$H33=1,COUNTRY_INFO!E33,0))) -> 0 | E33: =IF(INTRO!$E$39<>"Non endémique", 0, IF(INTRO!$E$37="Non endémique",0,IF(COUNTRY_INFO!$H33=1,COUNTRY_INFO!F33,0))) -> 0 | F33: =IF(INTRO!$E$39<>"Non endémique", 0, IF(INTRO!$E$37="Non endémique",0,IF(COUNTRY_INFO!$H33=1,COUNTRY_INFO!G33,0))) -> 0 | G33: 0 | H33: =IF(INTRO!$E$39="Non endémique",IF(INTRO!$E$37="Non endémique","Non requis",COUNTRY_INFO!P33),"Traiter avec IVM") -> Traiter avec IVM | I33: 0 | J33: 0 | L33: 0 | M33: 0
A34: =IF(INTRO!$E$39<>"Non endémique", " ", IF(INTRO!$E$37="Non endémique"," ", IF(COUNTRY_INFO!A34=0," ",COUNTRY_INFO!A34))) ->  | B34: =IF(INTRO!$E$39<>"Non endémique", " ", IF(INTRO!$E$37="Non endémique"," ", IF(COUNTRY_INFO!B34=0," ",COUNTRY_INFO!B34))) ->  | C34: =IF(INTRO!$E$39<>"Non endémique", " ", IF(INTRO!$E$37="Non endémique"," ", IF(COUNTRY_INFO!C34=0," ",COUNTRY_INFO!C34))) ->  | D34: =IF(INTRO!$E$39<>"Non endémique", 0, IF(INTRO!$E$37="Non endémique",0,IF(COUNTRY_INFO!$H34=1,COUNTRY_INFO!E34,0))) -> 0 | E34: =IF(INTRO!$E$39<>"Non endémique", 0, IF(INTRO!$E$37="Non endémique",0,IF(COUNTRY_INFO!$H34=1,COUNTRY_INFO!F34,0))) -> 0 | F34: =IF(INTRO!$E$39<>"Non endémique", 0, IF(INTRO!$E$37="Non endémique",0,IF(COUNTRY_INFO!$H34=1,COUNTRY_INFO!G34,0))) -> 0 | G34: 0 | H34: =IF(INTRO!$E$39="Non endémique",IF(INTRO!$E$37="Non endémique","Non requis",COUNTRY_INFO!P34),"Traiter avec IVM") -> Traiter avec IVM | I34: 0 | J34: 0 | L34: 0 | M34: 0
A35: =IF(INTRO!$E$39<>"Non endémique", " ", IF(INTRO!$E$37="Non endémique"," ", IF(COUNTRY_INFO!A35=0," ",COUNTRY_INFO!A35))) ->  | B35: =IF(INTRO!$E$39<>"Non endémique", " ", IF(INTRO!$E$37="Non endémique"," ", IF(COUNTRY_INFO!B35=0," ",COUNTRY_INFO!B35))) ->  | C35: =IF(INTRO!$E$39<>"Non endémique", " ", IF(INTRO!$E$37="Non endémique"," ", IF(COUNTRY_INFO!C35=0," ",COUNTRY_INFO!C35))) ->  | D35: =IF(INTRO!$E$39<>"Non endémique", 0, IF(INTRO!$E$37="Non endémique",0,IF(COUNTRY_INFO!$H35=1,COUNTRY_INFO!E35,0))) -> 0 | E35: =IF(INTRO!$E$39<>"Non endémique", 0, IF(INTRO!$E$37="Non endémique",0,IF(COUNTRY_INFO!$H35=1,COUNTRY_INFO!F35,0))) -> 0 | F35: =IF(INTRO!$E$39<>"Non endémique", 0, IF(INTRO!$E$37="Non endémique",0,IF(COUNTRY_INFO!$H35=1,COUNTRY_INFO!G35,0))) -> 0 | G35: 0 | H35: =IF(INTRO!$E$39="Non endémique",IF(INTRO!$E$37="Non endémique","Non requis",COUNTRY_INFO!P35),"Traiter avec IVM") -> Traiter avec IVM | I35: 0 | J35: 0 | L35: 0 | M35: 0
A36: =IF(INTRO!$E$39<>"Non endémique", " ", IF(INTRO!$E$37="Non endémique"," ", IF(COUNTRY_INFO!A36=0," ",COUNTRY_INFO!A36))) ->  | B36: =IF(INTRO!$E$39<>"Non endémique", " ", IF(INTRO!$E$37="Non endémique"," ", IF(COUNTRY_INFO!B36=0," ",COUNTRY_INFO!B36))) ->  | C36: =IF(INTRO!$E$39<>"Non endémique", " ", IF(INTRO!$E$37="Non endémique"," ", IF(COUNTRY_INFO!C36=0," ",COUNTRY_INFO!C36))) ->  | D36: =IF(INTRO!$E$39<>"Non endémique", 0, IF(INTRO!$E$37="Non endémique",0,IF(COUNTRY_INFO!$H36=1,COUNTRY_INFO!E36,0))) -> 0 | E36: =IF(INTRO!$E$39<>"Non endémique", 0, IF(INTRO!$E$37="Non endémique",0,IF(COUNTRY_INFO!$H36=1,COUNTRY_INFO!F36,0))) -> 0 | F36: =IF(INTRO!$E$39<>"Non endémique", 0, IF(INTRO!$E$37="Non endémique",0,IF(COUNTRY_INFO!$H36=1,COUNTRY_INFO!G36,0))) -> 0 | G36: 0 | H36: =IF(INTRO!$E$39="Non endémique",IF(INTRO!$E$37="Non endémique","Non requis",COUNTRY_INFO!P36),"Traiter avec IVM") -> Traiter avec IVM | I36: 0 | J36: 0 | L36: 0 | M36: 0
A37: =IF(INTRO!$E$39<>"Non endémique", " ", IF(INTRO!$E$37="Non endémique"," ", IF(COUNTRY_INFO!A37=0," ",COUNTRY_INFO!A37))) ->  | B37: =IF(INTRO!$E$39<>"Non endémique", " ", IF(INTRO!$E$37="Non endémique"," ", IF(COUNTRY_INFO!B37=0," ",COUNTRY_INFO!B37))) ->  | C37: =IF(INTRO!$E$39<>"Non endémique", " ", IF(INTRO!$E$37="Non endémique"," ", IF(COUNTRY_INFO!C37=0," ",COUNTRY_INFO!C37))) ->  | D37: =IF(INTRO!$E$39<>"Non endémique", 0, IF(INTRO!$E$37="Non endémique",0,IF(COUNTRY_INFO!$H37=1,COUNTRY_INFO!E37,0))) -> 0 | E37: =IF(INTRO!$E$39<>"Non endémique", 0, IF(INTRO!$E$37="Non endémique",0,IF(COUNTRY_INFO!$H37=1,COUNTRY_INFO!F37,0))) -> 0 | F37: =IF(INTRO!$E$39<>"Non endémique", 0, IF(INTRO!$E$37="Non endémique",0,IF(COUNTRY_INFO!$H37=1,COUNTRY_INFO!G37,0))) -> 0 | G37: 0 | H37: =IF(INTRO!$E$39="Non endémique",IF(INTRO!$E$37="Non endémique","Non requis",COUNTRY_INFO!P37),"Traiter avec IVM") -> Traiter avec IVM | I37: 0 | J37: 0 | L37: 0 | M37: 0
A38: =IF(INTRO!$E$39<>"Non endémique", " ", IF(INTRO!$E$37="Non endémique"," ", IF(COUNTRY_INFO!A38=0," ",COUNTRY_INFO!A38))) ->  | B38: =IF(INTRO!$E$39<>"Non endémique", " ", IF(INTRO!$E$37="Non endémique"," ", IF(COUNTRY_INFO!B38=0," ",COUNTRY_INFO!B38))) ->  | C38: =IF(INTRO!$E$39<>"Non endémique", " ", IF(INTRO!$E$37="Non endémique"," ", IF(COUNTRY_INFO!C38=0," ",COUNTRY_INFO!C38))) ->  | D38: =IF(INTRO!$E$39<>"Non endémique", 0, IF(INTRO!$E$37="Non endémique",0,IF(COUNTRY_INFO!$H38=1,COUNTRY_INFO!E38,0))) -> 0 | E38: =IF(INTRO!$E$39<>"Non endémique", 0, IF(INTRO!$E$37="Non endémique",0,IF(COUNTRY_INFO!$H38=1,COUNTRY_INFO!F38,0))) -> 0 | F38: =IF(INTRO!$E$39<>"Non endémique", 0, IF(INTRO!$E$37="Non endémique",0,IF(COUNTRY_INFO!$H38=1,COUNTRY_INFO!G38,0))) -> 0 | G38: 0 | H38: =IF(INTRO!$E$39="Non endémique",IF(INTRO!$E$37="Non endémique","Non requis",COUNTRY_INFO!P38),"Traiter avec IVM") -> Traiter avec IVM | I38: 0 | J38: 0 | L38: 0 | M38: 0
A39: =IF(INTRO!$E$39<>"Non endémique", " ", IF(INTRO!$E$37="Non endémique"," ", IF(COUNTRY_INFO!A39=0," ",COUNTRY_INFO!A39))) ->  | B39: =IF(INTRO!$E$39<>"Non endémique", " ", IF(INTRO!$E$37="Non endémique"," ", IF(COUNTRY_INFO!B39=0," ",COUNTRY_INFO!B39))) ->  | C39: =IF(INTRO!$E$39<>"Non endémique", " ", IF(INTRO!$E$37="Non endémique"," ", IF(COUNTRY_INFO!C39=0," ",COUNTRY_INFO!C39))) ->  | D39: =IF(INTRO!$E$39<>"Non endémique", 0, IF(INTRO!$E$37="Non endémique",0,IF(COUNTRY_INFO!$H39=1,COUNTRY_INFO!E39,0))) -> 0 | E39: =IF(INTRO!$E$39<>"Non endémique", 0, IF(INTRO!$E$37="Non endémique",0,IF(COUNTRY_INFO!$H39=1,COUNTRY_INFO!F39,0))) -> 0 | F39: =IF(INTRO!$E$39<>"Non endémique", 0, IF(INTRO!$E$37="Non endémique",0,IF(COUNTRY_INFO!$H39=1,COUNTRY_INFO!G39,0))) -> 0 | G39: 0 | H39: =IF(INTRO!$E$39="Non endémique",IF(INTRO!$E$37="Non endémique","Non requis",COUNTRY_INFO!P39),"Traiter avec IVM") -> Traiter avec IVM | I39: 0 | J39: 0 | L39: 0 | M39: 0
A40: =IF(INTRO!$E$39<>"Non endémique", " ", IF(INTRO!$E$37="Non endémique"," ", IF(COUNTRY_INFO!A40=0," ",COUNTRY_INFO!A40))) ->  | B40: =IF(INTRO!$E$39<>"Non endémique", " ", IF(INTRO!$E$37="Non endémique"," ", IF(COUNTRY_INFO!B40=0," ",COUNTRY_INFO!B40))) ->  | C40: =IF(INTRO!$E$39<>"Non endémique", " ", IF(INTRO!$E$37="Non endémique"," ", IF(COUNTRY_INFO!C40=0," ",COUNTRY_INFO!C40))) ->  | D40: =IF(INTRO!$E$39<>"Non endémique", 0, IF(INTRO!$E$37="Non endémique",0,IF(COUNTRY_INFO!$H40=1,COUNTRY_INFO!E40,0))) -> 0 | E40: =IF(INTRO!$E$39<>"Non endémique", 0, IF(INTRO!$E$37="Non endémique",0,IF(COUNTRY_INFO!$H40=1,COUNTRY_INFO!F40,0))) -> 0 | F40: =IF(INTRO!$E$39<>"Non endémique", 0, IF(INTRO!$E$37="Non endémique",0,IF(COUNTRY_INFO!$H40=1,COUNTRY_INFO!G40,0))) -> 0 | G40: 0 | H40: =IF(INTRO!$E$39="Non endémique",IF(INTRO!$E$37="Non endémique","Non requis",COUNTRY_INFO!P40),"Traiter avec IVM") -> Traiter avec IVM | I40: 0 | J40: 0 | L40: 0 | M40: 0
A41: =IF(INTRO!$E$39<>"Non endémique", " ", IF(INTRO!$E$37="Non endémique"," ", IF(COUNTRY_INFO!A41=0," ",COUNTRY_INFO!A41))) ->  | B41: =IF(INTRO!$E$39<>"Non endémique", " ", IF(INTRO!$E$37="Non endémique"," ", IF(COUNTRY_INFO!B41=0," ",COUNTRY_INFO!B41))) ->  | C41: =IF(INTRO!$E$39<>"Non endémique", " ", IF(INTRO!$E$37="Non endémique"," ", IF(COUNTRY_INFO!C41=0," ",COUNTRY_INFO!C41))) ->  | D41: =IF(INTRO!$E$39<>"Non endémique", 0, IF(INTRO!$E$37="Non endémique",0,IF(COUNTRY_INFO!$H41=1,COUNTRY_INFO!E41,0))) -> 0 | E41: =IF(INTRO!$E$39<>"Non endémique", 0, IF(INTRO!$E$37="Non endémique",0,IF(COUNTRY_INFO!$H41=1,COUNTRY_INFO!F41,0))) -> 0 | F41: =IF(INTRO!$E$39<>"Non endémique", 0, IF(INTRO!$E$37="Non endémique",0,IF(COUNTRY_INFO!$H41=1,COUNTRY_INFO!G41,0))) -> 0 | G41: =SUM(D41:F41) -> 0 | H41: =IF(INTRO!$E$39="Non endémique",IF(INTRO!$E$37="Non endémique","Non requis",COUNTRY_INFO!P41),"Traiter avec IVM") -> Traiter avec IVM | I41: =IF(H41=1,G41,0) -> 0 | J41: =IF(I41>0,I41*2.5,0) -> 0 | L41: =IF($J41>$K41,$J41-$K41,0) -> 0 | M41: =ROUNDUP($J41/1000,0) -> 0
A42: =IF(INTRO!$E$39<>"Non endémique", " ", IF(INTRO!$E$37="Non endémique"," ", IF(COUNTRY_INFO!A42=0," ",COUNTRY_INFO!A42))) ->  | B42: =IF(INTRO!$E$39<>"Non endémique", " ", IF(INTRO!$E$37="Non endémique"," ", IF(COUNTRY_INFO!B42=0," ",COUNTRY_INFO!B42))) ->  | C42: =IF(INTRO!$E$39<>"Non endémique", " ", IF(INTRO!$E$37="Non endémique"," ", IF(COUNTRY_INFO!C42=0," ",COUNTRY_INFO!C42))) ->  | D42: =IF(INTRO!$E$39<>"Non endémique", 0, IF(INTRO!$E$37="Non endémique",0,IF(COUNTRY_INFO!$H42=1,COUNTRY_INFO!E42,0))) -> 0 | E42: =IF(INTRO!$E$39<>"Non endémique", 0, IF(INTRO!$E$37="Non endémique",0,IF(COUNTRY_INFO!$H42=1,COUNTRY_INFO!F42,0))) -> 0 | F42: =IF(INTRO!$E$39<>"Non endémique", 0, IF(INTRO!$E$37="Non endémique",0,IF(COUNTRY_INFO!$H42=1,COUNTRY_INFO!G42,0))) -> 0 | G42: 0 | H42: =IF(INTRO!$E$39="Non endémique",IF(INTRO!$E$37="Non endémique","Non requis",COUNTRY_INFO!P42),"Traiter avec IVM") -> Traiter avec IVM | I42: 0 | J42: 0 | L42: 0 | M42: 0
A43: =IF(INTRO!$E$39<>"Non endémique", " ", IF(INTRO!$E$37="Non endémique"," ", IF(COUNTRY_INFO!A43=0," ",COUNTRY_INFO!A43))) ->  | B43: =IF(INTRO!$E$39<>"Non endémique", " ", IF(INTRO!$E$37="Non endémique"," ", IF(COUNTRY_INFO!B43=0," ",COUNTRY_INFO!B43))) ->  | C43: =IF(INTRO!$E$39<>"Non endémique", " ", IF(INTRO!$E$37="Non endémique"," ", IF(COUNTRY_INFO!C43=0," ",COUNTRY_INFO!C43))) ->  | D43: =IF(INTRO!$E$39<>"Non endémique", 0, IF(INTRO!$E$37="Non endémique",0,IF(COUNTRY_INFO!$H43=1,COUNTRY_INFO!E43,0))) -> 0 | E43: =IF(INTRO!$E$39<>"Non endémique", 0, IF(INTRO!$E$37="Non endémique",0,IF(COUNTRY_INFO!$H43=1,COUNTRY_INFO!F43,0))) -> 0 | F43: =IF(INTRO!$E$39<>"Non endémique", 0, IF(INTRO!$E$37="Non endémique",0,IF(COUNTRY_INFO!$H43=1,COUNTRY_INFO!G43,0))) -> 0 | G43: 0 | H43: =IF(INTRO!$E$39="Non endémique",IF(INTRO!$E$37="Non endémique","Non requis",COUNTRY_INFO!P43),"Traiter avec IVM") -> Traiter avec IVM | I43: 0 | J43: 0 | L43: 0 | M43: 0
A44: =IF(INTRO!$E$39<>"Non endémique", " ", IF(INTRO!$E$37="Non endémique"," ", IF(COUNTRY_INFO!A44=0," ",COUNTRY_INFO!A44))) ->  | B44: =IF(INTRO!$E$39<>"Non endémique", " ", IF(INTRO!$E$37="Non endémique"," ", IF(COUNTRY_INFO!B44=0," ",COUNTRY_INFO!B44))) ->  | C44: =IF(INTRO!$E$39<>"Non endémique", " ", IF(INTRO!$E$37="Non endémique"," ", IF(COUNTRY_INFO!C44=0," ",COUNTRY_INFO!C44))) ->  | D44: =IF(INTRO!$E$39<>"Non endémique", 0, IF(INTRO!$E$37="Non endémique",0,IF(COUNTRY_INFO!$H44=1,COUNTRY_INFO!E44,0))) -> 0 | E44: =IF(INTRO!$E$39<>"Non endémique", 0, IF(INTRO!$E$37="Non endémique",0,IF(COUNTRY_INFO!$H44=1,COUNTRY_INFO!F44,0))) -> 0 | F44: =IF(INTRO!$E$39<>"Non endémique", 0, IF(INTRO!$E$37="Non endémique",0,IF(COUNTRY_INFO!$H44=1,COUNTRY_INFO!G44,0))) -> 0 | G44: 0 | H44: =IF(INTRO!$E$39="Non endémique",IF(INTRO!$E$37="Non endémique","Non requis",COUNTRY_INFO!P44),"Traiter avec IVM") -> Traiter avec IVM | I44: 0 | J44: 0 | L44: 0 | M44: 0
A45: =IF(INTRO!$E$39<>"Non endémique", " ", IF(INTRO!$E$37="Non endémique"," ", IF(COUNTRY_INFO!A45=0," ",COUNTRY_INFO!A45))) ->  | B45: =IF(INTRO!$E$39<>"Non endémique", " ", IF(INTRO!$E$37="Non endémique"," ", IF(COUNTRY_INFO!B45=0," ",COUNTRY_INFO!B45))) ->  | C45: =IF(INTRO!$E$39<>"Non endémique", " ", IF(INTRO!$E$37="Non endémique"," ", IF(COUNTRY_INFO!C45=0," ",COUNTRY_INFO!C45))) ->  | D45: =IF(INTRO!$E$39<>"Non endémique", 0, IF(INTRO!$E$37="Non endémique",0,IF(COUNTRY_INFO!$H45=1,COUNTRY_INFO!E45,0))) -> 0 | E45: =IF(INTRO!$E$39<>"Non endémique", 0, IF(INTRO!$E$37="Non endémique",0,IF(COUNTRY_INFO!$H45=1,COUNTRY_INFO!F45,0))) -> 0 | F45: =IF(INTRO!$E$39<>"Non endémique", 0, IF(INTRO!$E$37="Non endémique",0,IF(COUNTRY_INFO!$H45=1,COUNTRY_INFO!G45,0))) -> 0 | G45: 0 | H45: =IF(INTRO!$E$39="Non endémique",IF(INTRO!$E$37="Non endémique","Non requis",COUNTRY_INFO!P45),"Traiter avec IVM") -> Traiter avec IVM | I45: 0 | J45: 0 | L45: 0 | M45: 0
A46: =IF(INTRO!$E$39<>"Non endémique", " ", IF(INTRO!$E$37="Non endémique"," ", IF(COUNTRY_INFO!A46=0," ",COUNTRY_INFO!A46))) ->  | B46: =IF(INTRO!$E$39<>"Non endémique", " ", IF(INTRO!$E$37="Non endémique"," ", IF(COUNTRY_INFO!B46=0," ",COUNTRY_INFO!B46))) ->  | C46: =IF(INTRO!$E$39<>"Non endémique", " ", IF(INTRO!$E$37="Non endémique"," ", IF(COUNTRY_INFO!C46=0," ",COUNTRY_INFO!C46))) ->  | D46: =IF(INTRO!$E$39<>"Non endémique", 0, IF(INTRO!$E$37="Non endémique",0,IF(COUNTRY_INFO!$H46=1,COUNTRY_INFO!E46,0))) -> 0 | E46: =IF(INTRO!$E$39<>"Non endémique", 0, IF(INTRO!$E$37="Non endémique",0,IF(COUNTRY_INFO!$H46=1,COUNTRY_INFO!F46,0))) -> 0 | F46: =IF(INTRO!$E$39<>"Non endémique", 0, IF(INTRO!$E$37="Non endémique",0,IF(COUNTRY_INFO!$H46=1,COUNTRY_INFO!G46,0))) -> 0 | G46: 0 | H46: =IF(INTRO!$E$39="Non endémique",IF(INTRO!$E$37="Non endémique","Non requis",COUNTRY_INFO!P46),"Traiter avec IVM") -> Traiter avec IVM | I46: 0 | J46: 0 | L46: 0 | M46: 0
A47: =IF(INTRO!$E$39<>"Non endémique", " ", IF(INTRO!$E$37="Non endémique"," ", IF(COUNTRY_INFO!A47=0," ",COUNTRY_INFO!A47))) ->  | B47: =IF(INTRO!$E$39<>"Non endémique", " ", IF(INTRO!$E$37="Non endémique"," ", IF(COUNTRY_INFO!B47=0," ",COUNTRY_INFO!B47))) ->  | C47: =IF(INTRO!$E$39<>"Non endémique", " ", IF(INTRO!$E$37="Non endémique"," ", IF(COUNTRY_INFO!C47=0," ",COUNTRY_INFO!C47))) ->  | D47: =IF(INTRO!$E$39<>"Non endémique", 0, IF(INTRO!$E$37="Non endémique",0,IF(COUNTRY_INFO!$H47=1,COUNTRY_INFO!E47,0))) -> 0 | E47: =IF(INTRO!$E$39<>"Non endémique", 0, IF(INTRO!$E$37="Non endémique",0,IF(COUNTRY_INFO!$H47=1,COUNTRY_INFO!F47,0))) -> 0 | F47: =IF(INTRO!$E$39<>"Non endémique", 0, IF(INTRO!$E$37="Non endémique",0,IF(COUNTRY_INFO!$H47=1,COUNTRY_INFO!G47,0))) -> 0 | G47: 0 | H47: =IF(INTRO!$E$39="Non endémique",IF(INTRO!$E$37="Non endémique","Non requis",COUNTRY_INFO!P47),"Traiter avec IVM") -> Traiter avec IVM | I47: 0 | J47: 0 | L47: 0 | M47: 0
A48: =IF(INTRO!$E$39<>"Non endémique", " ", IF(INTRO!$E$37="Non endémique"," ", IF(COUNTRY_INFO!A48=0," ",COUNTRY_INFO!A48))) ->  | B48: =IF(INTRO!$E$39<>"Non endémique", " ", IF(INTRO!$E$37="Non endémique"," ", IF(COUNTRY_INFO!B48=0," ",COUNTRY_INFO!B48))) ->  | C48: =IF(INTRO!$E$39<>"Non endémique", " ", IF(INTRO!$E$37="Non endémique"," ", IF(COUNTRY_INFO!C48=0," ",COUNTRY_INFO!C48))) ->  | D48: =IF(INTRO!$E$39<>"Non endémique", 0, IF(INTRO!$E$37="Non endémique",0,IF(COUNTRY_INFO!$H48=1,COUNTRY_INFO!E48,0))) -> 0 | E48: =IF(INTRO!$E$39<>"Non endémique", 0, IF(INTRO!$E$37="Non endémique",0,IF(COUNTRY_INFO!$H48=1,COUNTRY_INFO!F48,0))) -> 0 | F48: =IF(INTRO!$E$39<>"Non endémique", 0, IF(INTRO!$E$37="Non endémique",0,IF(COUNTRY_INFO!$H48=1,COUNTRY_INFO!G48,0))) -> 0 | G48: 0 | H48: =IF(INTRO!$E$39="Non endémique",IF(INTRO!$E$37="Non endémique","Non requis",COUNTRY_INFO!P48),"Traiter avec IVM") -> Traiter avec IVM | I48: 0 | J48: 0 | L48: 0 | M48: 0
A49: =IF(INTRO!$E$39<>"Non endémique", " ", IF(INTRO!$E$37="Non endémique"," ", IF(COUNTRY_INFO!A49=0," ",COUNTRY_INFO!A49))) ->  | B49: =IF(INTRO!$E$39<>"Non endémique", " ", IF(INTRO!$E$37="Non endémique"," ", IF(COUNTRY_INFO!B49=0," ",COUNTRY_INFO!B49))) ->  | C49: =IF(INTRO!$E$39<>"Non endémique", " ", IF(INTRO!$E$37="Non endémique"," ", IF(COUNTRY_INFO!C49=0," ",COUNTRY_INFO!C49))) ->  | D49: =IF(INTRO!$E$39<>"Non endémique", 0, IF(INTRO!$E$37="Non endémique",0,IF(COUNTRY_INFO!$H49=1,COUNTRY_INFO!E49,0))) -> 0 | E49: =IF(INTRO!$E$39<>"Non endémique", 0, IF(INTRO!$E$37="Non endémique",0,IF(COUNTRY_INFO!$H49=1,COUNTRY_INFO!F49,0))) -> 0 | F49: =IF(INTRO!$E$39<>"Non endémique", 0, IF(INTRO!$E$37="Non endémique",0,IF(COUNTRY_INFO!$H49=1,COUNTRY_INFO!G49,0))) -> 0 | G49: 0 | H49: =IF(INTRO!$E$39="Non endémique",IF(INTRO!$E$37="Non endémique","Non requis",COUNTRY_INFO!P49),"Traiter avec IVM") -> Traiter avec IVM | I49: 0 | J49: 0 | L49: 0 | M49: 0
A50: =IF(INTRO!$E$39<>"Non endémique", " ", IF(INTRO!$E$37="Non endémique"," ", IF(COUNTRY_INFO!A50=0," ",COUNTRY_INFO!A50))) ->  | B50: =IF(INTRO!$E$39<>"Non endémique", " ", IF(INTRO!$E$37="Non endémique"," ", IF(COUNTRY_INFO!B50=0," ",COUNTRY_INFO!B50))) ->  | C50: =IF(INTRO!$E$39<>"Non endémique", " ", IF(INTRO!$E$37="Non endémique"," ", IF(COUNTRY_INFO!C50=0," ",COUNTRY_INFO!C50))) ->  | D50: =IF(INTRO!$E$39<>"Non endémique", 0, IF(INTRO!$E$37="Non endémique",0,IF(COUNTRY_INFO!$H50=1,COUNTRY_INFO!E50,0))) -> 0 | E50: =IF(INTRO!$E$39<>"Non endémique", 0, IF(INTRO!$E$37="Non endémique",0,IF(COUNTRY_INFO!$H50=1,COUNTRY_INFO!F50,0))) -> 0 | F50: =IF(INTRO!$E$39<>"Non endémique", 0, IF(INTRO!$E$37="Non endémique",0,IF(COUNTRY_INFO!$H50=1,COUNTRY_INFO!G50,0))) -> 0 | G50: 0 | H50: =IF(INTRO!$E$39="Non endémique",IF(INTRO!$E$37="Non endémique","Non requis",COUNTRY_INFO!P50),"Traiter avec IVM") -> Traiter avec IVM | I50: 0 | J50: 0 | L50: 0 | M50: 0
A51: =IF(INTRO!$E$39<>"Non endémique", " ", IF(INTRO!$E$37="Non endémique"," ", IF(COUNTRY_INFO!A51=0," ",COUNTRY_INFO!A51))) ->  | B51: =IF(INTRO!$E$39<>"Non endémique", " ", IF(INTRO!$E$37="Non endémique"," ", IF(COUNTRY_INFO!B51=0," ",COUNTRY_INFO!B51))) ->  | C51: =IF(INTRO!$E$39<>"Non endémique", " ", IF(INTRO!$E$37="Non endémique"," ", IF(COUNTRY_INFO!C51=0," ",COUNTRY_INFO!C51))) ->  | D51: =IF(INTRO!$E$39<>"Non endémique", 0, IF(INTRO!$E$37="Non endémique",0,IF(COUNTRY_INFO!$H51=1,COUNTRY_INFO!E51,0))) -> 0 | E51: =IF(INTRO!$E$39<>"Non endémique", 0, IF(INTRO!$E$37="Non endémique",0,IF(COUNTRY_INFO!$H51=1,COUNTRY_INFO!F51,0))) -> 0 | F51: =IF(INTRO!$E$39<>"Non endémique", 0, IF(INTRO!$E$37="Non endémique",0,IF(COUNTRY_INFO!$H51=1,COUNTRY_INFO!G51,0))) -> 0 | G51: 0 | H51: =IF(INTRO!$E$39="Non endémique",IF(INTRO!$E$37="Non endémique","Non requis",COUNTRY_INFO!P51),"Traiter avec IVM") -> Traiter avec IVM | I51: 0 | J51: 0 | L51: 0 | M51: 0
A52: =IF(INTRO!$E$39<>"Non endémique", " ", IF(INTRO!$E$37="Non endémique"," ", IF(COUNTRY_INFO!A52=0," ",COUNTRY_INFO!A52))) ->  | B52: =IF(INTRO!$E$39<>"Non endémique", " ", IF(INTRO!$E$37="Non endémique"," ", IF(COUNTRY_INFO!B52=0," ",COUNTRY_INFO!B52))) ->  | C52: =IF(INTRO!$E$39<>"Non endémique", " ", IF(INTRO!$E$37="Non endémique"," ", IF(COUNTRY_INFO!C52=0," ",COUNTRY_INFO!C52))) ->  | D52: =IF(INTRO!$E$39<>"Non endémique", 0, IF(INTRO!$E$37="Non endémique",0,IF(COUNTRY_INFO!$H52=1,COUNTRY_INFO!E52,0))) -> 0 | E52: =IF(INTRO!$E$39<>"Non endémique", 0, IF(INTRO!$E$37="Non endémique",0,IF(COUNTRY_INFO!$H52=1,COUNTRY_INFO!F52,0))) -> 0 | F52: =IF(INTRO!$E$39<>"Non endémique", 0, IF(INTRO!$E$37="Non endémique",0,IF(COUNTRY_INFO!$H52=1,COUNTRY_INFO!G52,0))) -> 0 | G52: 0 | H52: =IF(INTRO!$E$39="Non endémique",IF(INTRO!$E$37="Non endémique","Non requis",COUNTRY_INFO!P52),"Traiter avec IVM") -> Traiter avec IVM | I52: 0 | J52: 0 | L52: 0 | M52: 0
A53: =IF(INTRO!$E$39<>"Non endémique", " ", IF(INTRO!$E$37="Non endémique"," ", IF(COUNTRY_INFO!A53=0," ",COUNTRY_INFO!A53))) ->  | B53: =IF(INTRO!$E$39<>"Non endémique", " ", IF(INTRO!$E$37="Non endémique"," ", IF(COUNTRY_INFO!B53=0," ",COUNTRY_INFO!B53))) ->  | C53: =IF(INTRO!$E$39<>"Non endémique", " ", IF(INTRO!$E$37="Non endémique"," ", IF(COUNTRY_INFO!C53=0," ",COUNTRY_INFO!C53))) ->  | D53: =IF(INTRO!$E$39<>"Non endémique", 0, IF(INTRO!$E$37="Non endémique",0,IF(COUNTRY_INFO!$H53=1,COUNTRY_INFO!E53,0))) -> 0 | E53: =IF(INTRO!$E$39<>"Non endémique", 0, IF(INTRO!$E$37="Non endémique",0,IF(COUNTRY_INFO!$H53=1,COUNTRY_INFO!F53,0))) -> 0 | F53: =IF(INTRO!$E$39<>"Non endémique", 0, IF(INTRO!$E$37="Non endémique",0,IF(COUNTRY_INFO!$H53=1,COUNTRY_INFO!G53,0))) -> 0 | G53: 0 | H53: =IF(INTRO!$E$39="Non endémique",IF(INTRO!$E$37="Non endémique","Non requis",COUNTRY_INFO!P53),"Traiter avec IVM") -> Traiter avec IVM | I53: 0 | J53: 0 | L53: 0 | M53: 0
A54: =IF(INTRO!$E$39<>"Non endémique", " ", IF(INTRO!$E$37="Non endémique"," ", IF(COUNTRY_INFO!A54=0," ",COUNTRY_INFO!A54))) ->  | B54: =IF(INTRO!$E$39<>"Non endémique", " ", IF(INTRO!$E$37="Non endémique"," ", IF(COUNTRY_INFO!B54=0," ",COUNTRY_INFO!B54))) ->  | C54: =IF(INTRO!$E$39<>"Non endémique", " ", IF(INTRO!$E$37="Non endémique"," ", IF(COUNTRY_INFO!C54=0," ",COUNTRY_INFO!C54))) ->  | D54: =IF(INTRO!$E$39<>"Non endémique", 0, IF(INTRO!$E$37="Non endémique",0,IF(COUNTRY_INFO!$H54=1,COUNTRY_INFO!E54,0))) -> 0 | E54: =IF(INTRO!$E$39<>"Non endémique", 0, IF(INTRO!$E$37="Non endémique",0,IF(COUNTRY_INFO!$H54=1,COUNTRY_INFO!F54,0))) -> 0 | F54: =IF(INTRO!$E$39<>"Non endémique", 0, IF(INTRO!$E$37="Non endémique",0,IF(COUNTRY_INFO!$H54=1,COUNTRY_INFO!G54,0))) -> 0 | G54: 0 | H54: =IF(INTRO!$E$39="Non endémique",IF(INTRO!$E$37="Non endémique","Non requis",COUNTRY_INFO!P54),"Traiter avec IVM") -> Traiter avec IVM | I54: 0 | J54: 0 | L54: 0 | M54: 0
A55: =IF(INTRO!$E$39<>"Non endémique", " ", IF(INTRO!$E$37="Non endémique"," ", IF(COUNTRY_INFO!A55=0," ",COUNTRY_INFO!A55))) ->  | B55: =IF(INTRO!$E$39<>"Non endémique", " ", IF(INTRO!$E$37="Non endémique"," ", IF(COUNTRY_INFO!B55=0," ",COUNTRY_INFO!B55))) ->  | C55: =IF(INTRO!$E$39<>"Non endémique", " ", IF(INTRO!$E$37="Non endémique"," ", IF(COUNTRY_INFO!C55=0," ",COUNTRY_INFO!C55))) ->  | D55: =IF(INTRO!$E$39<>"Non endémique", 0, IF(INTRO!$E$37="Non endémique",0,IF(COUNTRY_INFO!$H55=1,COUNTRY_INFO!E55,0))) -> 0 | E55: =IF(INTRO!$E$39<>"Non endémique", 0, IF(INTRO!$E$37="Non endémique",0,IF(COUNTRY_INFO!$H55=1,COUNTRY_INFO!F55,0))) -> 0 | F55: =IF(INTRO!$E$39<>"Non endémique", 0, IF(INTRO!$E$37="Non endémique",0,IF(COUNTRY_INFO!$H55=1,COUNTRY_INFO!G55,0))) -> 0 | G55: 0 | H55: =IF(INTRO!$E$39="Non endémique",IF(INTRO!$E$37="Non endémique","Non requis",COUNTRY_INFO!P55),"Traiter avec IVM") -> Traiter avec IVM | I55: 0 | J55: 0 | L55: 0 | M55: 0
A56: =IF(INTRO!$E$39<>"Non endémique", " ", IF(INTRO!$E$37="Non endémique"," ", IF(COUNTRY_INFO!A56=0," ",COUNTRY_INFO!A56))) ->  | B56: =IF(INTRO!$E$39<>"Non endémique", " ", IF(INTRO!$E$37="Non endémique"," ", IF(COUNTRY_INFO!B56=0," ",COUNTRY_INFO!B56))) ->  | C56: =IF(INTRO!$E$39<>"Non endémique", " ", IF(INTRO!$E$37="Non endémique"," ", IF(COUNTRY_INFO!C56=0," ",COUNTRY_INFO!C56))) ->  | D56: =IF(INTRO!$E$39<>"Non endémique", 0, IF(INTRO!$E$37="Non endémique",0,IF(COUNTRY_INFO!$H56=1,COUNTRY_INFO!E56,0))) -> 0 | E56: =IF(INTRO!$E$39<>"Non endémique", 0, IF(INTRO!$E$37="Non endémique",0,IF(COUNTRY_INFO!$H56=1,COUNTRY_INFO!F56,0))) -> 0 | F56: =IF(INTRO!$E$39<>"Non endémique", 0, IF(INTRO!$E$37="Non endémique",0,IF(COUNTRY_INFO!$H56=1,COUNTRY_INFO!G56,0))) -> 0 | G56: 0 | H56: =IF(INTRO!$E$39="Non endémique",IF(INTRO!$E$37="Non endémique","Non requis",COUNTRY_INFO!P56),"Traiter avec IVM") -> Traiter avec IVM | I56: 0 | J56: 0 | L56: 0 | M56: 0
A57: =IF(INTRO!$E$39<>"Non endémique", " ", IF(INTRO!$E$37="Non endémique"," ", IF(COUNTRY_INFO!A57=0," ",COUNTRY_INFO!A57))) ->  | B57: =IF(INTRO!$E$39<>"Non endémique", " ", IF(INTRO!$E$37="Non endémique"," ", IF(COUNTRY_INFO!B57=0," ",COUNTRY_INFO!B57))) ->  | C57: =IF(INTRO!$E$39<>"Non endémique", " ", IF(INTRO!$E$37="Non endémique"," ", IF(COUNTRY_INFO!C57=0," ",COUNTRY_INFO!C57))) ->  | D57: =IF(INTRO!$E$39<>"Non endémique", 0, IF(INTRO!$E$37="Non endémique",0,IF(COUNTRY_INFO!$H57=1,COUNTRY_INFO!E57,0))) -> 0 | E57: =IF(INTRO!$E$39<>"Non endémique", 0, IF(INTRO!$E$37="Non endémique",0,IF(COUNTRY_INFO!$H57=1,COUNTRY_INFO!F57,0))) -> 0 | F57: =IF(INTRO!$E$39<>"Non endémique", 0, IF(INTRO!$E$37="Non endémique",0,IF(COUNTRY_INFO!$H57=1,COUNTRY_INFO!G57,0))) -> 0 | G57: 0 | H57: =IF(INTRO!$E$39="Non endémique",IF(INTRO!$E$37="Non endémique","Non requis",COUNTRY_INFO!P57),"Traiter avec IVM") -> Traiter avec IVM | I57: 0 | J57: 0 | L57: 0 | M57: 0
A58: =IF(INTRO!$E$39<>"Non endémique", " ", IF(INTRO!$E$37="Non endémique"," ", IF(COUNTRY_INFO!A58=0," ",COUNTRY_INFO!A58))) ->  | B58: =IF(INTRO!$E$39<>"Non endémique", " ", IF(INTRO!$E$37="Non endémique"," ", IF(COUNTRY_INFO!B58=0," ",COUNTRY_INFO!B58))) ->  | C58: =IF(INTRO!$E$39<>"Non endémique", " ", IF(INTRO!$E$37="Non endémique"," ", IF(COUNTRY_INFO!C58=0," ",COUNTRY_INFO!C58))) ->  | D58: =IF(INTRO!$E$39<>"Non endémique", 0, IF(INTRO!$E$37="Non endémique",0,IF(COUNTRY_INFO!$H58=1,COUNTRY_INFO!E58,0))) -> 0 | E58: =IF(INTRO!$E$39<>"Non endémique", 0, IF(INTRO!$E$37="Non endémique",0,IF(COUNTRY_INFO!$H58=1,COUNTRY_INFO!F58,0))) -> 0 | F58: =IF(INTRO!$E$39<>"Non endémique", 0, IF(INTRO!$E$37="Non endémique",0,IF(COUNTRY_INFO!$H58=1,COUNTRY_INFO!G58,0))) -> 0 | G58: 0 | H58: =IF(INTRO!$E$39="Non endémique",IF(INTRO!$E$37="Non endémique","Non requis",COUNTRY_INFO!P58),"Traiter avec IVM") -> Traiter avec IVM | I58: 0 | J58: 0 | L58: 0 | M58: 0
A59: =IF(INTRO!$E$39<>"Non endémique", " ", IF(INTRO!$E$37="Non endémique"," ", IF(COUNTRY_INFO!A59=0," ",COUNTRY_INFO!A59))) ->  | B59: =IF(INTRO!$E$39<>"Non endémique", " ", IF(INTRO!$E$37="Non endémique"," ", IF(COUNTRY_INFO!B59=0," ",COUNTRY_INFO!B59))) ->  | C59: =IF(INTRO!$E$39<>"Non endémique", " ", IF(INTRO!$E$37="Non endémique"," ", IF(COUNTRY_INFO!C59=0," ",COUNTRY_INFO!C59))) ->  | D59: =IF(INTRO!$E$39<>"Non endémique", 0, IF(INTRO!$E$37="Non endémique",0,IF(COUNTRY_INFO!$H59=1,COUNTRY_INFO!E59,0))) -> 0 | E59: =IF(INTRO!$E$39<>"Non endémique", 0, IF(INTRO!$E$37="Non endémique",0,IF(COUNTRY_INFO!$H59=1,COUNTRY_INFO!F59,0))) -> 0 | F59: =IF(INTRO!$E$39<>"Non endémique", 0, IF(INTRO!$E$37="Non endémique",0,IF(COUNTRY_INFO!$H59=1,COUNTRY_INFO!G59,0))) -> 0 | G59: 0 | H59: =IF(INTRO!$E$39="Non endémique",IF(INTRO!$E$37="Non endémique","Non requis",COUNTRY_INFO!P59),"Traiter avec IVM") -> Traiter avec IVM | I59: 0 | J59: 0 | L59: 0 | M59: 0
A60: =IF(INTRO!$E$39<>"Non endémique", " ", IF(INTRO!$E$37="Non endémique"," ", IF(COUNTRY_INFO!A60=0," ",COUNTRY_INFO!A60))) ->  | B60: =IF(INTRO!$E$39<>"Non endémique", " ", IF(INTRO!$E$37="Non endémique"," ", IF(COUNTRY_INFO!B60=0," ",COUNTRY_INFO!B60))) ->  | C60: =IF(INTRO!$E$39<>"Non endémique", " ", IF(INTRO!$E$37="Non endémique"," ", IF(COUNTRY_INFO!C60=0," ",COUNTRY_INFO!C60))) ->  | D60: =IF(INTRO!$E$39<>"Non endémique", 0, IF(INTRO!$E$37="Non endémique",0,IF(COUNTRY_INFO!$H60=1,COUNTRY_INFO!E60,0))) -> 0 | E60: =IF(INTRO!$E$39<>"Non endémique", 0, IF(INTRO!$E$37="Non endémique",0,IF(COUNTRY_INFO!$H60=1,COUNTRY_INFO!F60,0))) -> 0 | F60: =IF(INTRO!$E$39<>"Non endémique", 0, IF(INTRO!$E$37="Non endémique",0,IF(COUNTRY_INFO!$H60=1,COUNTRY_INFO!G60,0))) -> 0 | G60: 0 | H60: =IF(INTRO!$E$39="Non endémique",IF(INTRO!$E$37="Non endémique","Non requis",COUNTRY_INFO!P60),"Traiter avec IVM") -> Traiter avec IVM | I60: 0 | J60: 0 | L60: 0 | M60: 0
A61: =IF(INTRO!$E$39<>"Non endémique", " ", IF(INTRO!$E$37="Non endémique"," ", IF(COUNTRY_INFO!A61=0," ",COUNTRY_INFO!A61))) ->  | B61: =IF(INTRO!$E$39<>"Non endémique", " ", IF(INTRO!$E$37="Non endémique"," ", IF(COUNTRY_INFO!B61=0," ",COUNTRY_INFO!B61))) ->  | C61: =IF(INTRO!$E$39<>"Non endémique", " ", IF(INTRO!$E$37="Non endémique"," ", IF(COUNTRY_INFO!C61=0," ",COUNTRY_INFO!C61))) ->  | D61: =IF(INTRO!$E$39<>"Non endémique", 0, IF(INTRO!$E$37="Non endémique",0,IF(COUNTRY_INFO!$H61=1,COUNTRY_INFO!E61,0))) -> 0 | E61: =IF(INTRO!$E$39<>"Non endémique", 0, IF(INTRO!$E$37="Non endémique",0,IF(COUNTRY_INFO!$H61=1,COUNTRY_INFO!F61,0))) -> 0 | F61: =IF(INTRO!$E$39<>"Non endémique", 0, IF(INTRO!$E$37="Non endémique",0,IF(COUNTRY_INFO!$H61=1,COUNTRY_INFO!G61,0))) -> 0 | G61: 0 | H61: =IF(INTRO!$E$39="Non endémique",IF(INTRO!$E$37="Non endémique","Non requis",COUNTRY_INFO!P61),"Traiter avec IVM") -> Traiter avec IVM | I61: 0 | J61: 0 | L61: 0 | M61: 0
A62: =IF(INTRO!$E$39<>"Non endémique", " ", IF(INTRO!$E$37="Non endémique"," ", IF(COUNTRY_INFO!A62=0," ",COUNTRY_INFO!A62))) ->  | B62: =IF(INTRO!$E$39<>"Non endémique", " ", IF(INTRO!$E$37="Non endémique"," ", IF(COUNTRY_INFO!B62=0," ",COUNTRY_INFO!B62))) ->  | C62: =IF(INTRO!$E$39<>"Non endémique", " ", IF(INTRO!$E$37="Non endémique"," ", IF(COUNTRY_INFO!C62=0," ",COUNTRY_INFO!C62))) ->  | D62: =IF(INTRO!$E$39<>"Non endémique", 0, IF(INTRO!$E$37="Non endémique",0,IF(COUNTRY_INFO!$H62=1,COUNTRY_INFO!E62,0))) -> 0 | E62: =IF(INTRO!$E$39<>"Non endémique", 0, IF(INTRO!$E$37="Non endémique",0,IF(COUNTRY_INFO!$H62=1,COUNTRY_INFO!F62,0))) -> 0 | F62: =IF(INTRO!$E$39<>"Non endémique", 0, IF(INTRO!$E$37="Non endémique",0,IF(COUNTRY_INFO!$H62=1,COUNTRY_INFO!G62,0))) -> 0 | G62: 0 | H62: =IF(INTRO!$E$39="Non endémique",IF(INTRO!$E$37="Non endémique","Non requis",COUNTRY_INFO!P62),"Traiter avec IVM") -> Traiter avec IVM | I62: 0 | J62: 0 | L62: 0 | M62: 0
A63: =IF(INTRO!$E$39<>"Non endémique", " ", IF(INTRO!$E$37="Non endémique"," ", IF(COUNTRY_INFO!A63=0," ",COUNTRY_INFO!A63))) ->  | B63: =IF(INTRO!$E$39<>"Non endémique", " ", IF(INTRO!$E$37="Non endémique"," ", IF(COUNTRY_INFO!B63=0," ",COUNTRY_INFO!B63))) ->  | C63: =IF(INTRO!$E$39<>"Non endémique", " ", IF(INTRO!$E$37="Non endémique"," ", IF(COUNTRY_INFO!C63=0," ",COUNTRY_INFO!C63))) ->  | D63: =IF(INTRO!$E$39<>"Non endémique", 0, IF(INTRO!$E$37="Non endémique",0,IF(COUNTRY_INFO!$H63=1,COUNTRY_INFO!E63,0))) -> 0 | E63: =IF(INTRO!$E$39<>"Non endémique", 0, IF(INTRO!$E$37="Non endémique",0,IF(COUNTRY_INFO!$H63=1,COUNTRY_INFO!F63,0))) -> 0 | F63: =IF(INTRO!$E$39<>"Non endémique", 0, IF(INTRO!$E$37="Non endémique",0,IF(COUNTRY_INFO!$H63=1,COUNTRY_INFO!G63,0))) -> 0 | G63: 0 | H63: =IF(INTRO!$E$39="Non endémique",IF(INTRO!$E$37="Non endémique","Non requis",COUNTRY_INFO!P63),"Traiter avec IVM") -> Traiter avec IVM | I63: 0 | J63: 0 | L63: 0 | M63: 0
A64: =IF(INTRO!$E$39<>"Non endémique", " ", IF(INTRO!$E$37="Non endémique"," ", IF(COUNTRY_INFO!A64=0," ",COUNTRY_INFO!A64))) ->  | B64: =IF(INTRO!$E$39<>"Non endémique", " ", IF(INTRO!$E$37="Non endémique"," ", IF(COUNTRY_INFO!B64=0," ",COUNTRY_INFO!B64))) ->  | C64: =IF(INTRO!$E$39<>"Non endémique", " ", IF(INTRO!$E$37="Non endémique"," ", IF(COUNTRY_INFO!C64=0," ",COUNTRY_INFO!C64))) ->  | D64: =IF(INTRO!$E$39<>"Non endémique", 0, IF(INTRO!$E$37="Non endémique",0,IF(COUNTRY_INFO!$H64=1,COUNTRY_INFO!E64,0))) -> 0 | E64: =IF(INTRO!$E$39<>"Non endémique", 0, IF(INTRO!$E$37="Non endémique",0,IF(COUNTRY_INFO!$H64=1,COUNTRY_INFO!F64,0))) -> 0 | F64: =IF(INTRO!$E$39<>"Non endémique", 0, IF(INTRO!$E$37="Non endémique",0,IF(COUNTRY_INFO!$H64=1,COUNTRY_INFO!G64,0))) -> 0 | G64: 0 | H64: =IF(INTRO!$E$39="Non endémique",IF(INTRO!$E$37="Non endémique","Non requis",COUNTRY_INFO!P64),"Traiter avec IVM") -> Traiter avec IVM | I64: 0 | J64: 0 | L64: 0 | M64: 0
A65: =IF(INTRO!$E$39<>"Non endémique", " ", IF(INTRO!$E$37="Non endémique"," ", IF(COUNTRY_INFO!A65=0," ",COUNTRY_INFO!A65))) ->  | B65: =IF(INTRO!$E$39<>"Non endémique", " ", IF(INTRO!$E$37="Non endémique"," ", IF(COUNTRY_INFO!B65=0," ",COUNTRY_INFO!B65))) ->  | C65: =IF(INTRO!$E$39<>"Non endémique", " ", IF(INTRO!$E$37="Non endémique"," ", IF(COUNTRY_INFO!C65=0," ",COUNTRY_INFO!C65))) ->  | D65: =IF(INTRO!$E$39<>"Non endémique", 0, IF(INTRO!$E$37="Non endémique",0,IF(COUNTRY_INFO!$H65=1,COUNTRY_INFO!E65,0))) -> 0 | E65: =IF(INTRO!$E$39<>"Non endémique", 0, IF(INTRO!$E$37="Non endémique",0,IF(COUNTRY_INFO!$H65=1,COUNTRY_INFO!F65,0))) -> 0 | F65: =IF(INTRO!$E$39<>"Non endémique", 0, IF(INTRO!$E$37="Non endémique",0,IF(COUNTRY_INFO!$H65=1,COUNTRY_INFO!G65,0))) -> 0 | G65: 0 | H65: =IF(INTRO!$E$39="Non endémique",IF(INTRO!$E$37="Non endémique","Non requis",COUNTRY_INFO!P65),"Traiter avec IVM") -> Traiter avec IVM | I65: 0 | J65: 0 | L65: 0 | M65: 0
A66: =IF(INTRO!$E$39<>"Non endémique", " ", IF(INTRO!$E$37="Non endémique"," ", IF(COUNTRY_INFO!A66=0," ",COUNTRY_INFO!A66))) ->  | B66: =IF(INTRO!$E$39<>"Non endémique", " ", IF(INTRO!$E$37="Non endémique"," ", IF(COUNTRY_INFO!B66=0," ",COUNTRY_INFO!B66))) ->  | C66: =IF(INTRO!$E$39<>"Non endémique", " ", IF(INTRO!$E$37="Non endémique"," ", IF(COUNTRY_INFO!C66=0," ",COUNTRY_INFO!C66))) ->  | D66: =IF(INTRO!$E$39<>"Non endémique", 0, IF(INTRO!$E$37="Non endémique",0,IF(COUNTRY_INFO!$H66=1,COUNTRY_INFO!E66,0))) -> 0 | E66: =IF(INTRO!$E$39<>"Non endémique", 0, IF(INTRO!$E$37="Non endémique",0,IF(COUNTRY_INFO!$H66=1,COUNTRY_INFO!F66,0))) -> 0 | F66: =IF(INTRO!$E$39<>"Non endémique", 0, IF(INTRO!$E$37="Non endémique",0,IF(COUNTRY_INFO!$H66=1,COUNTRY_INFO!G66,0))) -> 0 | G66: 0 | H66: =IF(INTRO!$E$39="Non endémique",IF(INTRO!$E$37="Non endémique","Non requis",COUNTRY_INFO!P66),"Traiter avec IVM") -> Traiter avec IVM | I66: 0 | J66: 0 | L66: 0 | M66: 0
A67: =IF(INTRO!$E$39<>"Non endémique", " ", IF(INTRO!$E$37="Non endémique"," ", IF(COUNTRY_INFO!A67=0," ",COUNTRY_INFO!A67))) ->  | B67: =IF(INTRO!$E$39<>"Non endémique", " ", IF(INTRO!$E$37="Non endémique"," ", IF(COUNTRY_INFO!B67=0," ",COUNTRY_INFO!B67))) ->  | C67: =IF(INTRO!$E$39<>"Non endémique", " ", IF(INTRO!$E$37="Non endémique"," ", IF(COUNTRY_INFO!C67=0," ",COUNTRY_INFO!C67))) ->  | D67: =IF(INTRO!$E$39<>"Non endémique", 0, IF(INTRO!$E$37="Non endémique",0,IF(COUNTRY_INFO!$H67=1,COUNTRY_INFO!E67,0))) -> 0 | E67: =IF(INTRO!$E$39<>"Non endémique", 0, IF(INTRO!$E$37="Non endémique",0,IF(COUNTRY_INFO!$H67=1,COUNTRY_INFO!F67,0))) -> 0 | F67: =IF(INTRO!$E$39<>"Non endémique", 0, IF(INTRO!$E$37="Non endémique",0,IF(COUNTRY_INFO!$H67=1,COUNTRY_INFO!G67,0))) -> 0 | G67: 0 | H67: =IF(INTRO!$E$39="Non endémique",IF(INTRO!$E$37="Non endémique","Non requis",COUNTRY_INFO!P67),"Traiter avec IVM") -> Traiter avec IVM | I67: 0 | J67: 0 | L67: 0 | M67: 0
A68: =IF(INTRO!$E$39<>"Non endémique", " ", IF(INTRO!$E$37="Non endémique"," ", IF(COUNTRY_INFO!A68=0," ",COUNTRY_INFO!A68))) ->  | B68: =IF(INTRO!$E$39<>"Non endémique", " ", IF(INTRO!$E$37="Non endémique"," ", IF(COUNTRY_INFO!B68=0," ",COUNTRY_INFO!B68))) ->  | C68: =IF(INTRO!$E$39<>"Non endémique", " ", IF(INTRO!$E$37="Non endémique"," ", IF(COUNTRY_INFO!C68=0," ",COUNTRY_INFO!C68))) ->  | D68: =IF(INTRO!$E$39<>"Non endémique", 0, IF(INTRO!$E$37="Non endémique",0,IF(COUNTRY_INFO!$H68=1,COUNTRY_INFO!E68,0))) -> 0 | E68: =IF(INTRO!$E$39<>"Non endémique", 0, IF(INTRO!$E$37="Non endémique",0,IF(COUNTRY_INFO!$H68=1,COUNTRY_INFO!F68,0))) -> 0 | F68: =IF(INTRO!$E$39<>"Non endémique", 0, IF(INTRO!$E$37="Non endémique",0,IF(COUNTRY_INFO!$H68=1,COUNTRY_INFO!G68,0))) -> 0 | G68: 0 | H68: =IF(INTRO!$E$39="Non endémique",IF(INTRO!$E$37="Non endémique","Non requis",COUNTRY_INFO!P68),"Traiter avec IVM") -> Traiter avec IVM | I68: 0 | J68: 0 | L68: 0 | M68: 0
A69: =IF(INTRO!$E$39<>"Non endémique", " ", IF(INTRO!$E$37="Non endémique"," ", IF(COUNTRY_INFO!A69=0," ",COUNTRY_INFO!A69))) ->  | B69: =IF(INTRO!$E$39<>"Non endémique", " ", IF(INTRO!$E$37="Non endémique"," ", IF(COUNTRY_INFO!B69=0," ",COUNTRY_INFO!B69))) ->  | C69: =IF(INTRO!$E$39<>"Non endémique", " ", IF(INTRO!$E$37="Non endémique"," ", IF(COUNTRY_INFO!C69=0," ",COUNTRY_INFO!C69))) ->  | D69: =IF(INTRO!$E$39<>"Non endémique", 0, IF(INTRO!$E$37="Non endémique",0,IF(COUNTRY_INFO!$H69=1,COUNTRY_INFO!E69,0))) -> 0 | E69: =IF(INTRO!$E$39<>"Non endémique", 0, IF(INTRO!$E$37="Non endémique",0,IF(COUNTRY_INFO!$H69=1,COUNTRY_INFO!F69,0))) -> 0 | F69: =IF(INTRO!$E$39<>"Non endémique", 0, IF(INTRO!$E$37="Non endémique",0,IF(COUNTRY_INFO!$H69=1,COUNTRY_INFO!G69,0))) -> 0 | G69: 0 | H69: =IF(INTRO!$E$39="Non endémique",IF(INTRO!$E$37="Non endémique","Non requis",COUNTRY_INFO!P69),"Traiter avec IVM") -> Traiter avec IVM | I69: 0 | J69: 0 | L69: 0 | M69: 0
A70: =IF(INTRO!$E$39<>"Non endémique", " ", IF(INTRO!$E$37="Non endémique"," ", IF(COUNTRY_INFO!A70=0," ",COUNTRY_INFO!A70))) ->  | B70: =IF(INTRO!$E$39<>"Non endémique", " ", IF(INTRO!$E$37="Non endémique"," ", IF(COUNTRY_INFO!B70=0," ",COUNTRY_INFO!B70))) ->  | C70: =IF(INTRO!$E$39<>"Non endémique", " ", IF(INTRO!$E$37="Non endémique"," ", IF(COUNTRY_INFO!C70=0," ",COUNTRY_INFO!C70))) ->  | D70: =IF(INTRO!$E$39<>"Non endémique", 0, IF(INTRO!$E$37="Non endémique",0,IF(COUNTRY_INFO!$H70=1,COUNTRY_INFO!E70,0))) -> 0 | E70: =IF(INTRO!$E$39<>"Non endémique", 0, IF(INTRO!$E$37="Non endémique",0,IF(COUNTRY_INFO!$H70=1,COUNTRY_INFO!F70,0))) -> 0 | F70: =IF(INTRO!$E$39<>"Non endémique", 0, IF(INTRO!$E$37="Non endémique",0,IF(COUNTRY_INFO!$H70=1,COUNTRY_INFO!G70,0))) -> 0 | G70: 0 | H70: =IF(INTRO!$E$39="Non endémique",IF(INTRO!$E$37="Non endémique","Non requis",COUNTRY_INFO!P70),"Traiter avec IVM") -> Traiter avec IVM | I70: 0 | J70: 0 | L70: 0 | M70: 0
A71: =IF(INTRO!$E$39<>"Non endémique", " ", IF(INTRO!$E$37="Non endémique"," ", IF(COUNTRY_INFO!A71=0," ",COUNTRY_INFO!A71))) ->  | B71: =IF(INTRO!$E$39<>"Non endémique", " ", IF(INTRO!$E$37="Non endémique"," ", IF(COUNTRY_INFO!B71=0," ",COUNTRY_INFO!B71))) ->  | C71: =IF(INTRO!$E$39<>"Non endémique", " ", IF(INTRO!$E$37="Non endémique"," ", IF(COUNTRY_INFO!C71=0," ",COUNTRY_INFO!C71))) ->  | D71: =IF(INTRO!$E$39<>"Non endémique", 0, IF(INTRO!$E$37="Non endémique",0,IF(COUNTRY_INFO!$H71=1,COUNTRY_INFO!E71,0))) -> 0 | E71: =IF(INTRO!$E$39<>"Non endémique", 0, IF(INTRO!$E$37="Non endémique",0,IF(COUNTRY_INFO!$H71=1,COUNTRY_INFO!F71,0))) -> 0 | F71: =IF(INTRO!$E$39<>"Non endémique", 0, IF(INTRO!$E$37="Non endémique",0,IF(COUNTRY_INFO!$H71=1,COUNTRY_INFO!G71,0))) -> 0 | G71: 0 | H71: =IF(INTRO!$E$39="Non endémique",IF(INTRO!$E$37="Non endémique","Non requis",COUNTRY_INFO!P71),"Traiter avec IVM") -> Traiter avec IVM | I71: 0 | J71: 0 | L71: 0 | M71: 0
A72: =IF(INTRO!$E$39<>"Non endémique", " ", IF(INTRO!$E$37="Non endémique"," ", IF(COUNTRY_INFO!A72=0," ",COUNTRY_INFO!A72))) ->  | B72: =IF(INTRO!$E$39<>"Non endémique", " ", IF(INTRO!$E$37="Non endémique"," ", IF(COUNTRY_INFO!B72=0," ",COUNTRY_INFO!B72))) ->  | C72: =IF(INTRO!$E$39<>"Non endémique", " ", IF(INTRO!$E$37="Non endémique"," ", IF(COUNTRY_INFO!C72=0," ",COUNTRY_INFO!C72))) ->  | D72: =IF(INTRO!$E$39<>"Non endémique", 0, IF(INTRO!$E$37="Non endémique",0,IF(COUNTRY_INFO!$H72=1,COUNTRY_INFO!E72,0))) -> 0 | E72: =IF(INTRO!$E$39<>"Non endémique", 0, IF(INTRO!$E$37="Non endémique",0,IF(COUNTRY_INFO!$H72=1,COUNTRY_INFO!F72,0))) -> 0 | F72: =IF(INTRO!$E$39<>"Non endémique", 0, IF(INTRO!$E$37="Non endémique",0,IF(COUNTRY_INFO!$H72=1,COUNTRY_INFO!G72,0))) -> 0 | G72: 0 | H72: =IF(INTRO!$E$39="Non endémique",IF(INTRO!$E$37="Non endémique","Non requis",COUNTRY_INFO!P72),"Traiter avec IVM") -> Traiter avec IVM | I72: 0 | J72: 0 | L72: 0 | M72: 0
A73: =IF(INTRO!$E$39<>"Non endémique", " ", IF(INTRO!$E$37="Non endémique"," ", IF(COUNTRY_INFO!A73=0," ",COUNTRY_INFO!A73))) ->  | B73: =IF(INTRO!$E$39<>"Non endémique", " ", IF(INTRO!$E$37="Non endémique"," ", IF(COUNTRY_INFO!B73=0," ",COUNTRY_INFO!B73))) ->  | C73: =IF(INTRO!$E$39<>"Non endémique", " ", IF(INTRO!$E$37="Non endémique"," ", IF(COUNTRY_INFO!C73=0," ",COUNTRY_INFO!C73))) ->  | D73: =IF(INTRO!$E$39<>"Non endémique", 0, IF(INTRO!$E$37="Non endémique",0,IF(COUNTRY_INFO!$H73=1,COUNTRY_INFO!E73,0))) -> 0 | E73: =IF(INTRO!$E$39<>"Non endémique", 0, IF(INTRO!$E$37="Non endémique",0,IF(COUNTRY_INFO!$H73=1,COUNTRY_INFO!F73,0))) -> 0 | F73: =IF(INTRO!$E$39<>"Non endémique", 0, IF(INTRO!$E$37="Non endémique",0,IF(COUNTRY_INFO!$H73=1,COUNTRY_INFO!G73,0))) -> 0 | G73: =SUM(D73:F73) -> 0 | H73: =IF(INTRO!$E$39="Non endémique",IF(INTRO!$E$37="Non endémique","Non requis",COUNTRY_INFO!P73),"Traiter avec IVM") -> Traiter avec IVM | I73: =IF(H73=1,G73,0) -> 0 | J73: =IF(I73>0,I73*2.5,0) -> 0 | L73: =IF($J73>$K73,$J73-$K73,0) -> 0 | M73: =ROUNDUP($J73/1000,0) -> 0
A74: =IF(INTRO!$E$39<>"Non endémique", " ", IF(INTRO!$E$37="Non endémique"," ", IF(COUNTRY_INFO!A74=0," ",COUNTRY_INFO!A74))) ->  | B74: =IF(INTRO!$E$39<>"Non endémique", " ", IF(INTRO!$E$37="Non endémique"," ", IF(COUNTRY_INFO!B74=0," ",COUNTRY_INFO!B74))) ->  | C74: =IF(INTRO!$E$39<>"Non endémique", " ", IF(INTRO!$E$37="Non endémique"," ", IF(COUNTRY_INFO!C74=0," ",COUNTRY_INFO!C74))) ->  | D74: =IF(INTRO!$E$39<>"Non endémique", 0, IF(INTRO!$E$37="Non endémique",0,IF(COUNTRY_INFO!$H74=1,COUNTRY_INFO!E74,0))) -> 0 | E74: =IF(INTRO!$E$39<>"Non endémique", 0, IF(INTRO!$E$37="Non endémique",0,IF(COUNTRY_INFO!$H74=1,COUNTRY_INFO!F74,0))) -> 0 | F74: =IF(INTRO!$E$39<>"Non endémique", 0, IF(INTRO!$E$37="Non endémique",0,IF(COUNTRY_INFO!$H74=1,COUNTRY_INFO!G74,0))) -> 0 | G74: 0 | H74: =IF(INTRO!$E$39="Non endémique",IF(INTRO!$E$37="Non endémique","Non requis",COUNTRY_INFO!P74),"Traiter avec IVM") -> Traiter avec IVM | I74: 0 | J74: 0 | L74: 0 | M74: 0
A75: =IF(INTRO!$E$39<>"Non endémique", " ", IF(INTRO!$E$37="Non endémique"," ", IF(COUNTRY_INFO!A75=0," ",COUNTRY_INFO!A75))) ->  | B75: =IF(INTRO!$E$39<>"Non endémique", " ", IF(INTRO!$E$37="Non endémique"," ", IF(COUNTRY_INFO!B75=0," ",COUNTRY_INFO!B75))) ->  | C75: =IF(INTRO!$E$39<>"Non endémique", " ", IF(INTRO!$E$37="Non endémique"," ", IF(COUNTRY_INFO!C75=0," ",COUNTRY_INFO!C75))) ->  | D75: =IF(INTRO!$E$39<>"Non endémique", 0, IF(INTRO!$E$37="Non endémique",0,IF(COUNTRY_INFO!$H75=1,COUNTRY_INFO!E75,0))) -> 0 | E75: =IF(INTRO!$E$39<>"Non endémique", 0, IF(INTRO!$E$37="Non endémique",0,IF(COUNTRY_INFO!$H75=1,COUNTRY_INFO!F75,0))) -> 0 | F75: =IF(INTRO!$E$39<>"Non endémique", 0, IF(INTRO!$E$37="Non endémique",0,IF(COUNTRY_INFO!$H75=1,COUNTRY_INFO!G75,0))) -> 0 | G75: 0 | H75: =IF(INTRO!$E$39="Non endémique",IF(INTRO!$E$37="Non endémique","Non requis",COUNTRY_INFO!P75),"Traiter avec IVM") -> Traiter avec IVM | I75: 0 | J75: 0 | L75: 0 | M75: 0
A76: =IF(INTRO!$E$39<>"Non endémique", " ", IF(INTRO!$E$37="Non endémique"," ", IF(COUNTRY_INFO!A76=0," ",COUNTRY_INFO!A76))) ->  | B76: =IF(INTRO!$E$39<>"Non endémique", " ", IF(INTRO!$E$37="Non endémique"," ", IF(COUNTRY_INFO!B76=0," ",COUNTRY_INFO!B76))) ->  | C76: =IF(INTRO!$E$39<>"Non endémique", " ", IF(INTRO!$E$37="Non endémique"," ", IF(COUNTRY_INFO!C76=0," ",COUNTRY_INFO!C76))) ->  | D76: =IF(INTRO!$E$39<>"Non endémique", 0, IF(INTRO!$E$37="Non endémique",0,IF(COUNTRY_INFO!$H76=1,COUNTRY_INFO!E76,0))) -> 0 | E76: =IF(INTRO!$E$39<>"Non endémique", 0, IF(INTRO!$E$37="Non endémique",0,IF(COUNTRY_INFO!$H76=1,COUNTRY_INFO!F76,0))) -> 0 | F76: =IF(INTRO!$E$39<>"Non endémique", 0, IF(INTRO!$E$37="Non endémique",0,IF(COUNTRY_INFO!$H76=1,COUNTRY_INFO!G76,0))) -> 0 | G76: 0 | H76: =IF(INTRO!$E$39="Non endémique",IF(INTRO!$E$37="Non endémique","Non requis",COUNTRY_INFO!P76),"Traiter avec IVM") -> Traiter avec IVM | I76: 0 | J76: 0 | L76: 0 | M76: 0
A77: =IF(INTRO!$E$39<>"Non endémique", " ", IF(INTRO!$E$37="Non endémique"," ", IF(COUNTRY_INFO!A77=0," ",COUNTRY_INFO!A77))) ->  | B77: =IF(INTRO!$E$39<>"Non endémique", " ", IF(INTRO!$E$37="Non endémique"," ", IF(COUNTRY_INFO!B77=0," ",COUNTRY_INFO!B77))) ->  | C77: =IF(INTRO!$E$39<>"Non endémique", " ", IF(INTRO!$E$37="Non endémique"," ", IF(COUNTRY_INFO!C77=0," ",COUNTRY_INFO!C77))) ->  | D77: =IF(INTRO!$E$39<>"Non endémique", 0, IF(INTRO!$E$37="Non endémique",0,IF(COUNTRY_INFO!$H77=1,COUNTRY_INFO!E77,0))) -> 0 | E77: =IF(INTRO!$E$39<>"Non endémique", 0, IF(INTRO!$E$37="Non endémique",0,IF(COUNTRY_INFO!$H77=1,COUNTRY_INFO!F77,0))) -> 0 | F77: =IF(INTRO!$E$39<>"Non endémique", 0, IF(INTRO!$E$37="Non endémique",0,IF(COUNTRY_INFO!$H77=1,COUNTRY_INFO!G77,0))) -> 0 | G77: 0 | H77: =IF(INTRO!$E$39="Non endémique",IF(INTRO!$E$37="Non endémique","Non requis",COUNTRY_INFO!P77),"Traiter avec IVM") -> Traiter avec IVM | I77: 0 | J77: 0 | L77: 0 | M77: 0
A78: =IF(INTRO!$E$39<>"Non endémique", " ", IF(INTRO!$E$37="Non endémique"," ", IF(COUNTRY_INFO!A78=0," ",COUNTRY_INFO!A78))) ->  | B78: =IF(INTRO!$E$39<>"Non endémique", " ", IF(INTRO!$E$37="Non endémique"," ", IF(COUNTRY_INFO!B78=0," ",COUNTRY_INFO!B78))) ->  | C78: =IF(INTRO!$E$39<>"Non endémique", " ", IF(INTRO!$E$37="Non endémique"," ", IF(COUNTRY_INFO!C78=0," ",COUNTRY_INFO!C78))) ->  | D78: =IF(INTRO!$E$39<>"Non endémique", 0, IF(INTRO!$E$37="Non endémique",0,IF(COUNTRY_INFO!$H78=1,COUNTRY_INFO!E78,0))) -> 0 | E78: =IF(INTRO!$E$39<>"Non endémique", 0, IF(INTRO!$E$37="Non endémique",0,IF(COUNTRY_INFO!$H78=1,COUNTRY_INFO!F78,0))) -> 0 | F78: =IF(INTRO!$E$39<>"Non endémique", 0, IF(INTRO!$E$37="Non endémique",0,IF(COUNTRY_INFO!$H78=1,COUNTRY_INFO!G78,0))) -> 0 | G78: 0 | H78: =IF(INTRO!$E$39="Non endémique",IF(INTRO!$E$37="Non endémique","Non requis",COUNTRY_INFO!P78),"Traiter avec IVM") -> Traiter avec IVM | I78: 0 | J78: 0 | L78: 0 | M78: 0
A79: =IF(INTRO!$E$39<>"Non endémique", " ", IF(INTRO!$E$37="Non endémique"," ", IF(COUNTRY_INFO!A79=0," ",COUNTRY_INFO!A79))) ->  | B79: =IF(INTRO!$E$39<>"Non endémique", " ", IF(INTRO!$E$37="Non endémique"," ", IF(COUNTRY_INFO!B79=0," ",COUNTRY_INFO!B79))) ->  | C79: =IF(INTRO!$E$39<>"Non endémique", " ", IF(INTRO!$E$37="Non endémique"," ", IF(COUNTRY_INFO!C79=0," ",COUNTRY_INFO!C79))) ->  | D79: =IF(INTRO!$E$39<>"Non endémique", 0, IF(INTRO!$E$37="Non endémique",0,IF(COUNTRY_INFO!$H79=1,COUNTRY_INFO!E79,0))) -> 0 | E79: =IF(INTRO!$E$39<>"Non endémique", 0, IF(INTRO!$E$37="Non endémique",0,IF(COUNTRY_INFO!$H79=1,COUNTRY_INFO!F79,0))) -> 0 | F79: =IF(INTRO!$E$39<>"Non endémique", 0, IF(INTRO!$E$37="Non endémique",0,IF(COUNTRY_INFO!$H79=1,COUNTRY_INFO!G79,0))) -> 0 | G79: 0 | H79: =IF(INTRO!$E$39="Non endémique",IF(INTRO!$E$37="Non endémique","Non requis",COUNTRY_INFO!P79),"Traiter avec IVM") -> Traiter avec IVM | I79: 0 | J79: 0 | L79: 0 | M79: 0
A80: =IF(INTRO!$E$39<>"Non endémique", " ", IF(INTRO!$E$37="Non endémique"," ", IF(COUNTRY_INFO!A80=0," ",COUNTRY_INFO!A80))) ->  | B80: =IF(INTRO!$E$39<>"Non endémique", " ", IF(INTRO!$E$37="Non endémique"," ", IF(COUNTRY_INFO!B80=0," ",COUNTRY_INFO!B80))) ->  | C80: =IF(INTRO!$E$39<>"Non endémique", " ", IF(INTRO!$E$37="Non endémique"," ", IF(COUNTRY_INFO!C80=0," ",COUNTRY_INFO!C80))) ->  | D80: =IF(INTRO!$E$39<>"Non endémique", 0, IF(INTRO!$E$37="Non endémique",0,IF(COUNTRY_INFO!$H80=1,COUNTRY_INFO!E80,0))) -> 0 | E80: =IF(INTRO!$E$39<>"Non endémique", 0, IF(INTRO!$E$37="Non endémique",0,IF(COUNTRY_INFO!$H80=1,COUNTRY_INFO!F80,0))) -> 0 | F80: =IF(INTRO!$E$39<>"Non endémique", 0, IF(INTRO!$E$37="Non endémique",0,IF(COUNTRY_INFO!$H80=1,COUNTRY_INFO!G80,0))) -> 0 | G80: 0 | H80: =IF(INTRO!$E$39="Non endémique",IF(INTRO!$E$37="Non endémique","Non requis",COUNTRY_INFO!P80),"Traiter avec IVM") -> Traiter avec IVM | I80: 0 | J80: 0 | L80: 0 | M80: 0
A81: =IF(INTRO!$E$39<>"Non endémique", " ", IF(INTRO!$E$37="Non endémique"," ", IF(COUNTRY_INFO!A81=0," ",COUNTRY_INFO!A81))) ->  | B81: =IF(INTRO!$E$39<>"Non endémique", " ", IF(INTRO!$E$37="Non endémique"," ", IF(COUNTRY_INFO!B81=0," ",COUNTRY_INFO!B81))) ->  | C81: =IF(INTRO!$E$39<>"Non endémique", " ", IF(INTRO!$E$37="Non endémique"," ", IF(COUNTRY_INFO!C81=0," ",COUNTRY_INFO!C81))) ->  | D81: =IF(INTRO!$E$39<>"Non endémique", 0, IF(INTRO!$E$37="Non endémique",0,IF(COUNTRY_INFO!$H81=1,COUNTRY_INFO!E81,0))) -> 0 | E81: =IF(INTRO!$E$39<>"Non endémique", 0, IF(INTRO!$E$37="Non endémique",0,IF(COUNTRY_INFO!$H81=1,COUNTRY_INFO!F81,0))) -> 0 | F81: =IF(INTRO!$E$39<>"Non endémique", 0, IF(INTRO!$E$37="Non endémique",0,IF(COUNTRY_INFO!$H81=1,COUNTRY_INFO!G81,0))) -> 0 | G81: 0 | H81: =IF(INTRO!$E$39="Non endémique",IF(INTRO!$E$37="Non endémique","Non requis",COUNTRY_INFO!P81),"Traiter avec IVM") -> Traiter avec IVM | I81: 0 | J81: 0 | L81: 0 | M81: 0
A82: =IF(INTRO!$E$39<>"Non endémique", " ", IF(INTRO!$E$37="Non endémique"," ", IF(COUNTRY_INFO!A82=0," ",COUNTRY_INFO!A82))) ->  | B82: =IF(INTRO!$E$39<>"Non endémique", " ", IF(INTRO!$E$37="Non endémique"," ", IF(COUNTRY_INFO!B82=0," ",COUNTRY_INFO!B82))) ->  | C82: =IF(INTRO!$E$39<>"Non endémique", " ", IF(INTRO!$E$37="Non endémique"," ", IF(COUNTRY_INFO!C82=0," ",COUNTRY_INFO!C82))) ->  | D82: =IF(INTRO!$E$39<>"Non endémique", 0, IF(INTRO!$E$37="Non endémique",0,IF(COUNTRY_INFO!$H82=1,COUNTRY_INFO!E82,0))) -> 0 | E82: =IF(INTRO!$E$39<>"Non endémique", 0, IF(INTRO!$E$37="Non endémique",0,IF(COUNTRY_INFO!$H82=1,COUNTRY_INFO!F82,0))) -> 0 | F82: =IF(INTRO!$E$39<>"Non endémique", 0, IF(INTRO!$E$37="Non endémique",0,IF(COUNTRY_INFO!$H82=1,COUNTRY_INFO!G82,0))) -> 0 | G82: 0 | H82: =IF(INTRO!$E$39="Non endémique",IF(INTRO!$E$37="Non endémique","Non requis",COUNTRY_INFO!P82),"Traiter avec IVM") -> Traiter avec IVM | I82: 0 | J82: 0 | L82: 0 | M82: 0
A83: =IF(INTRO!$E$39<>"Non endémique", " ", IF(INTRO!$E$37="Non endémique"," ", IF(COUNTRY_INFO!A83=0," ",COUNTRY_INFO!A83))) ->  | B83: =IF(INTRO!$E$39<>"Non endémique", " ", IF(INTRO!$E$37="Non endémique"," ", IF(COUNTRY_INFO!B83=0," ",COUNTRY_INFO!B83))) ->  | C83: =IF(INTRO!$E$39<>"Non endémique", " ", IF(INTRO!$E$37="Non endémique"," ", IF(COUNTRY_INFO!C83=0," ",COUNTRY_INFO!C83))) ->  | D83: =IF(INTRO!$E$39<>"Non endémique", 0, IF(INTRO!$E$37="Non endémique",0,IF(COUNTRY_INFO!$H83=1,COUNTRY_INFO!E83,0))) -> 0 | E83: =IF(INTRO!$E$39<>"Non endémique", 0, IF(INTRO!$E$37="Non endémique",0,IF(COUNTRY_INFO!$H83=1,COUNTRY_INFO!F83,0))) -> 0 | F83: =IF(INTRO!$E$39<>"Non endémique", 0, IF(INTRO!$E$37="Non endémique",0,IF(COUNTRY_INFO!$H83=1,COUNTRY_INFO!G83,0))) -> 0 | G83: 0 | H83: =IF(INTRO!$E$39="Non endémique",IF(INTRO!$E$37="Non endémique","Non requis",COUNTRY_INFO!P83),"Traiter avec IVM") -> Traiter avec IVM | I83: 0 | J83: 0 | L83: 0 | M83: 0
A84: =IF(INTRO!$E$39<>"Non endémique", " ", IF(INTRO!$E$37="Non endémique"," ", IF(COUNTRY_INFO!A84=0," ",COUNTRY_INFO!A84))) ->  | B84: =IF(INTRO!$E$39<>"Non endémique", " ", IF(INTRO!$E$37="Non endémique"," ", IF(COUNTRY_INFO!B84=0," ",COUNTRY_INFO!B84))) ->  | C84: =IF(INTRO!$E$39<>"Non endémique", " ", IF(INTRO!$E$37="Non endémique"," ", IF(COUNTRY_INFO!C84=0," ",COUNTRY_INFO!C84))) ->  | D84: =IF(INTRO!$E$39<>"Non endémique", 0, IF(INTRO!$E$37="Non endémique",0,IF(COUNTRY_INFO!$H84=1,COUNTRY_INFO!E84,0))) -> 0 | E84: =IF(INTRO!$E$39<>"Non endémique", 0, IF(INTRO!$E$37="Non endémique",0,IF(COUNTRY_INFO!$H84=1,COUNTRY_INFO!F84,0))) -> 0 | F84: =IF(INTRO!$E$39<>"Non endémique", 0, IF(INTRO!$E$37="Non endémique",0,IF(COUNTRY_INFO!$H84=1,COUNTRY_INFO!G84,0))) -> 0 | G84: 0 | H84: =IF(INTRO!$E$39="Non endémique",IF(INTRO!$E$37="Non endémique","Non requis",COUNTRY_INFO!P84),"Traiter avec IVM") -> Traiter avec IVM | I84: 0 | J84: 0 | L84: 0 | M84: 0
A85: =IF(INTRO!$E$39<>"Non endémique", " ", IF(INTRO!$E$37="Non endémique"," ", IF(COUNTRY_INFO!A85=0," ",COUNTRY_INFO!A85))) ->  | B85: =IF(INTRO!$E$39<>"Non endémique", " ", IF(INTRO!$E$37="Non endémique"," ", IF(COUNTRY_INFO!B85=0," ",COUNTRY_INFO!B85))) ->  | C85: =IF(INTRO!$E$39<>"Non endémique", " ", IF(INTRO!$E$37="Non endémique"," ", IF(COUNTRY_INFO!C85=0," ",COUNTRY_INFO!C85))) ->  | D85: =IF(INTRO!$E$39<>"Non endémique", 0, IF(INTRO!$E$37="Non endémique",0,IF(COUNTRY_INFO!$H85=1,COUNTRY_INFO!E85,0))) -> 0 | E85: =IF(INTRO!$E$39<>"Non endémique", 0, IF(INTRO!$E$37="Non endémique",0,IF(COUNTRY_INFO!$H85=1,COUNTRY_INFO!F85,0))) -> 0 | F85: =IF(INTRO!$E$39<>"Non endémique", 0, IF(INTRO!$E$37="Non endémique",0,IF(COUNTRY_INFO!$H85=1,COUNTRY_INFO!G85,0))) -> 0 | G85: 0 | H85: =IF(INTRO!$E$39="Non endémique",IF(INTRO!$E$37="Non endémique","Non requis",COUNTRY_INFO!P85),"Traiter avec IVM") -> Traiter avec IVM | I85: 0 | J85: 0 | L85: 0 | M85: 0
A86: =IF(INTRO!$E$39<>"Non endémique", " ", IF(INTRO!$E$37="Non endémique"," ", IF(COUNTRY_INFO!A86=0," ",COUNTRY_INFO!A86))) ->  | B86: =IF(INTRO!$E$39<>"Non endémique", " ", IF(INTRO!$E$37="Non endémique"," ", IF(COUNTRY_INFO!B86=0," ",COUNTRY_INFO!B86))) ->  | C86: =IF(INTRO!$E$39<>"Non endémique", " ", IF(INTRO!$E$37="Non endémique"," ", IF(COUNTRY_INFO!C86=0," ",COUNTRY_INFO!C86))) ->  | D86: =IF(INTRO!$E$39<>"Non endémique", 0, IF(INTRO!$E$37="Non endémique",0,IF(COUNTRY_INFO!$H86=1,COUNTRY_INFO!E86,0))) -> 0 | E86: =IF(INTRO!$E$39<>"Non endémique", 0, IF(INTRO!$E$37="Non endémique",0,IF(COUNTRY_INFO!$H86=1,COUNTRY_INFO!F86,0))) -> 0 | F86: =IF(INTRO!$E$39<>"Non endémique", 0, IF(INTRO!$E$37="Non endémique",0,IF(COUNTRY_INFO!$H86=1,COUNTRY_INFO!G86,0))) -> 0 | G86: 0 | H86: =IF(INTRO!$E$39="Non endémique",IF(INTRO!$E$37="Non endémique","Non requis",COUNTRY_INFO!P86),"Traiter avec IVM") -> Traiter avec IVM | I86: 0 | J86: 0 | L86: 0 | M86: 0
A87: =IF(INTRO!$E$39<>"Non endémique", " ", IF(INTRO!$E$37="Non endémique"," ", IF(COUNTRY_INFO!A87=0," ",COUNTRY_INFO!A87))) ->  | B87: =IF(INTRO!$E$39<>"Non endémique", " ", IF(INTRO!$E$37="Non endémique"," ", IF(COUNTRY_INFO!B87=0," ",COUNTRY_INFO!B87))) ->  | C87: =IF(INTRO!$E$39<>"Non endémique", " ", IF(INTRO!$E$37="Non endémique"," ", IF(COUNTRY_INFO!C87=0," ",COUNTRY_INFO!C87))) ->  | D87: =IF(INTRO!$E$39<>"Non endémique", 0, IF(INTRO!$E$37="Non endémique",0,IF(COUNTRY_INFO!$H87=1,COUNTRY_INFO!E87,0))) -> 0 | E87: =IF(INTRO!$E$39<>"Non endémique", 0, IF(INTRO!$E$37="Non endémique",0,IF(COUNTRY_INFO!$H87=1,COUNTRY_INFO!F87,0))) -> 0 | F87: =IF(INTRO!$E$39<>"Non endémique", 0, IF(INTRO!$E$37="Non endémique",0,IF(COUNTRY_INFO!$H87=1,COUNTRY_INFO!G87,0))) -> 0 | G87: 0 | H87: =IF(INTRO!$E$39="Non endémique",IF(INTRO!$E$37="Non endémique","Non requis",COUNTRY_INFO!P87),"Traiter avec IVM") -> Traiter avec IVM | I87: 0 | J87: 0 | L87: 0 | M87: 0
A88: =IF(INTRO!$E$39<>"Non endémique", " ", IF(INTRO!$E$37="Non endémique"," ", IF(COUNTRY_INFO!A88=0," ",COUNTRY_INFO!A88))) ->  | B88: =IF(INTRO!$E$39<>"Non endémique", " ", IF(INTRO!$E$37="Non endémique"," ", IF(COUNTRY_INFO!B88=0," ",COUNTRY_INFO!B88))) ->  | C88: =IF(INTRO!$E$39<>"Non endémique", " ", IF(INTRO!$E$37="Non endémique"," ", IF(COUNTRY_INFO!C88=0," ",COUNTRY_INFO!C88))) ->  | D88: =IF(INTRO!$E$39<>"Non endémique", 0, IF(INTRO!$E$37="Non endémique",0,IF(COUNTRY_INFO!$H88=1,COUNTRY_INFO!E88,0))) -> 0 | E88: =IF(INTRO!$E$39<>"Non endémique", 0, IF(INTRO!$E$37="Non endémique",0,IF(COUNTRY_INFO!$H88=1,COUNTRY_INFO!F88,0))) -> 0 | F88: =IF(INTRO!$E$39<>"Non endémique", 0, IF(INTRO!$E$37="Non endémique",0,IF(COUNTRY_INFO!$H88=1,COUNTRY_INFO!G88,0))) -> 0 | G88: 0 | H88: =IF(INTRO!$E$39="Non endémique",IF(INTRO!$E$37="Non endémique","Non requis",COUNTRY_INFO!P88),"Traiter avec IVM") -> Traiter avec IVM | I88: 0 | J88: 0 | L88: 0 | M88: 0
A89: =IF(INTRO!$E$39<>"Non endémique", " ", IF(INTRO!$E$37="Non endémique"," ", IF(COUNTRY_INFO!A89=0," ",COUNTRY_INFO!A89))) ->  | B89: =IF(INTRO!$E$39<>"Non endémique", " ", IF(INTRO!$E$37="Non endémique"," ", IF(COUNTRY_INFO!B89=0," ",COUNTRY_INFO!B89))) ->  | C89: =IF(INTRO!$E$39<>"Non endémique", " ", IF(INTRO!$E$37="Non endémique"," ", IF(COUNTRY_INFO!C89=0," ",COUNTRY_INFO!C89))) ->  | D89: =IF(INTRO!$E$39<>"Non endémique", 0, IF(INTRO!$E$37="Non endémique",0,IF(COUNTRY_INFO!$H89=1,COUNTRY_INFO!E89,0))) -> 0 | E89: =IF(INTRO!$E$39<>"Non endémique", 0, IF(INTRO!$E$37="Non endémique",0,IF(COUNTRY_INFO!$H89=1,COUNTRY_INFO!F89,0))) -> 0 | F89: =IF(INTRO!$E$39<>"Non endémique", 0, IF(INTRO!$E$37="Non endémique",0,IF(COUNTRY_INFO!$H89=1,COUNTRY_INFO!G89,0))) -> 0 | G89: 0 | H89: =IF(INTRO!$E$39="Non endémique",IF(INTRO!$E$37="Non endémique","Non requis",COUNTRY_INFO!P89),"Traiter avec IVM") -> Traiter avec IVM | I89: 0 | J89: 0 | L89: 0 | M89: 0
A90: =IF(INTRO!$E$39<>"Non endémique", " ", IF(INTRO!$E$37="Non endémique"," ", IF(COUNTRY_INFO!A90=0," ",COUNTRY_INFO!A90))) ->  | B90: =IF(INTRO!$E$39<>"Non endémique", " ", IF(INTRO!$E$37="Non endémique"," ", IF(COUNTRY_INFO!B90=0," ",COUNTRY_INFO!B90))) ->  | C90: =IF(INTRO!$E$39<>"Non endémique", " ", IF(INTRO!$E$37="Non endémique"," ", IF(COUNTRY_INFO!C90=0," ",COUNTRY_INFO!C90))) ->  | D90: =IF(INTRO!$E$39<>"Non endémique", 0, IF(INTRO!$E$37="Non endémique",0,IF(COUNTRY_INFO!$H90=1,COUNTRY_INFO!E90,0))) -> 0 | E90: =IF(INTRO!$E$39<>"Non endémique", 0, IF(INTRO!$E$37="Non endémique",0,IF(COUNTRY_INFO!$H90=1,COUNTRY_INFO!F90,0))) -> 0 | F90: =IF(INTRO!$E$39<>"Non endémique", 0, IF(INTRO!$E$37="Non endémique",0,IF(COUNTRY_INFO!$H90=1,COUNTRY_INFO!G90,0))) -> 0 | G90: 0 | H90: =IF(INTRO!$E$39="Non endémique",IF(INTRO!$E$37="Non endémique","Non requis",COUNTRY_INFO!P90),"Traiter avec IVM") -> Traiter avec IVM | I90: 0 | J90: 0 | L90: 0 | M90: 0
A91: =IF(INTRO!$E$39<>"Non endémique", " ", IF(INTRO!$E$37="Non endémique"," ", IF(COUNTRY_INFO!A91=0," ",COUNTRY_INFO!A91))) ->  | B91: =IF(INTRO!$E$39<>"Non endémique", " ", IF(INTRO!$E$37="Non endémique"," ", IF(COUNTRY_INFO!B91=0," ",COUNTRY_INFO!B91))) ->  | C91: =IF(INTRO!$E$39<>"Non endémique", " ", IF(INTRO!$E$37="Non endémique"," ", IF(COUNTRY_INFO!C91=0," ",COUNTRY_INFO!C91))) ->  | D91: =IF(INTRO!$E$39<>"Non endémique", 0, IF(INTRO!$E$37="Non endémique",0,IF(COUNTRY_INFO!$H91=1,COUNTRY_INFO!E91,0))) -> 0 | E91: =IF(INTRO!$E$39<>"Non endémique", 0, IF(INTRO!$E$37="Non endémique",0,IF(COUNTRY_INFO!$H91=1,COUNTRY_INFO!F91,0))) -> 0 | F91: =IF(INTRO!$E$39<>"Non endémique", 0, IF(INTRO!$E$37="Non endémique",0,IF(COUNTRY_INFO!$H91=1,COUNTRY_INFO!G91,0))) -> 0 | G91: 0 | H91: =IF(INTRO!$E$39="Non endémique",IF(INTRO!$E$37="Non endémique","Non requis",COUNTRY_INFO!P91),"Traiter avec IVM") -> Traiter avec IVM | I91: 0 | J91: 0 | L91: 0 | M91: 0
A92: =IF(INTRO!$E$39<>"Non endémique", " ", IF(INTRO!$E$37="Non endémique"," ", IF(COUNTRY_INFO!A92=0," ",COUNTRY_INFO!A92))) ->  | B92: =IF(INTRO!$E$39<>"Non endémique", " ", IF(INTRO!$E$37="Non endémique"," ", IF(COUNTRY_INFO!B92=0," ",COUNTRY_INFO!B92))) ->  | C92: =IF(INTRO!$E$39<>"Non endémique", " ", IF(INTRO!$E$37="Non endémique"," ", IF(COUNTRY_INFO!C92=0," ",COUNTRY_INFO!C92))) ->  | D92: =IF(INTRO!$E$39<>"Non endémique", 0, IF(INTRO!$E$37="Non endémique",0,IF(COUNTRY_INFO!$H92=1,COUNTRY_INFO!E92,0))) -> 0 | E92: =IF(INTRO!$E$39<>"Non endémique", 0, IF(INTRO!$E$37="Non endémique",0,IF(COUNTRY_INFO!$H92=1,COUNTRY_INFO!F92,0))) -> 0 | F92: =IF(INTRO!$E$39<>"Non endémique", 0, IF(INTRO!$E$37="Non endémique",0,IF(COUNTRY_INFO!$H92=1,COUNTRY_INFO!G92,0))) -> 0 | G92: 0 | H92: =IF(INTRO!$E$39="Non endémique",IF(INTRO!$E$37="Non endémique","Non requis",COUNTRY_INFO!P92),"Traiter avec IVM") -> Traiter avec IVM | I92: 0 | J92: 0 | L92: 0 | M92: 0
A93: =IF(INTRO!$E$39<>"Non endémique", " ", IF(INTRO!$E$37="Non endémique"," ", IF(COUNTRY_INFO!A93=0," ",COUNTRY_INFO!A93))) ->  | B93: =IF(INTRO!$E$39<>"Non endémique", " ", IF(INTRO!$E$37="Non endémique"," ", IF(COUNTRY_INFO!B93=0," ",COUNTRY_INFO!B93))) ->  | C93: =IF(INTRO!$E$39<>"Non endémique", " ", IF(INTRO!$E$37="Non endémique"," ", IF(COUNTRY_INFO!C93=0," ",COUNTRY_INFO!C93))) ->  | D93: =IF(INTRO!$E$39<>"Non endémique", 0, IF(INTRO!$E$37="Non endémique",0,IF(COUNTRY_INFO!$H93=1,COUNTRY_INFO!E93,0))) -> 0 | E93: =IF(INTRO!$E$39<>"Non endémique", 0, IF(INTRO!$E$37="Non endémique",0,IF(COUNTRY_INFO!$H93=1,COUNTRY_INFO!F93,0))) -> 0 | F93: =IF(INTRO!$E$39<>"Non endémique", 0, IF(INTRO!$E$37="Non endémique",0,IF(COUNTRY_INFO!$H93=1,COUNTRY_INFO!G93,0))) -> 0 | G93: 0 | H93: =IF(INTRO!$E$39="Non endémique",IF(INTRO!$E$37="Non endémique","Non requis",COUNTRY_INFO!P93),"Traiter avec IVM") -> Traiter avec IVM | I93: 0 | J93: 0 | L93: 0 | M93: 0
A94: =IF(INTRO!$E$39<>"Non endémique", " ", IF(INTRO!$E$37="Non endémique"," ", IF(COUNTRY_INFO!A94=0," ",COUNTRY_INFO!A94))) ->  | B94: =IF(INTRO!$E$39<>"Non endémique", " ", IF(INTRO!$E$37="Non endémique"," ", IF(COUNTRY_INFO!B94=0," ",COUNTRY_INFO!B94))) ->  | C94: =IF(INTRO!$E$39<>"Non endémique", " ", IF(INTRO!$E$37="Non endémique"," ", IF(COUNTRY_INFO!C94=0," ",COUNTRY_INFO!C94))) ->  | D94: =IF(INTRO!$E$39<>"Non endémique", 0, IF(INTRO!$E$37="Non endémique",0,IF(COUNTRY_INFO!$H94=1,COUNTRY_INFO!E94,0))) -> 0 | E94: =IF(INTRO!$E$39<>"Non endémique", 0, IF(INTRO!$E$37="Non endémique",0,IF(COUNTRY_INFO!$H94=1,COUNTRY_INFO!F94,0))) -> 0 | F94: =IF(INTRO!$E$39<>"Non endémique", 0, IF(INTRO!$E$37="Non endémique",0,IF(COUNTRY_INFO!$H94=1,COUNTRY_INFO!G94,0))) -> 0 | G94: 0 | H94: =IF(INTRO!$E$39="Non endémique",IF(INTRO!$E$37="Non endémique","Non requis",COUNTRY_INFO!P94),"Traiter avec IVM") -> Traiter avec IVM | I94: 0 | J94: 0 | L94: 0 | M94: 0
A95: =IF(INTRO!$E$39<>"Non endémique", " ", IF(INTRO!$E$37="Non endémique"," ", IF(COUNTRY_INFO!A95=0," ",COUNTRY_INFO!A95))) ->  | B95: =IF(INTRO!$E$39<>"Non endémique", " ", IF(INTRO!$E$37="Non endémique"," ", IF(COUNTRY_INFO!B95=0," ",COUNTRY_INFO!B95))) ->  | C95: =IF(INTRO!$E$39<>"Non endémique", " ", IF(INTRO!$E$37="Non endémique"," ", IF(COUNTRY_INFO!C95=0," ",COUNTRY_INFO!C95))) ->  | D95: =IF(INTRO!$E$39<>"Non endémique", 0, IF(INTRO!$E$37="Non endémique",0,IF(COUNTRY_INFO!$H95=1,COUNTRY_INFO!E95,0))) -> 0 | E95: =IF(INTRO!$E$39<>"Non endémique", 0, IF(INTRO!$E$37="Non endémique",0,IF(COUNTRY_INFO!$H95=1,COUNTRY_INFO!F95,0))) -> 0 | F95: =IF(INTRO!$E$39<>"Non endémique", 0, IF(INTRO!$E$37="Non endémique",0,IF(COUNTRY_INFO!$H95=1,COUNTRY_INFO!G95,0))) -> 0 | G95: 0 | H95: =IF(INTRO!$E$39="Non endémique",IF(INTRO!$E$37="Non endémique","Non requis",COUNTRY_INFO!P95),"Traiter avec IVM") -> Traiter avec IVM | I95: 0 | J95: 0 | L95: 0 | M95: 0
A96: =IF(INTRO!$E$39<>"Non endémique", " ", IF(INTRO!$E$37="Non endémique"," ", IF(COUNTRY_INFO!A96=0," ",COUNTRY_INFO!A96))) ->  | B96: =IF(INTRO!$E$39<>"Non endémique", " ", IF(INTRO!$E$37="Non endémique"," ", IF(COUNTRY_INFO!B96=0," ",COUNTRY_INFO!B96))) ->  | C96: =IF(INTRO!$E$39<>"Non endémique", " ", IF(INTRO!$E$37="Non endémique"," ", IF(COUNTRY_INFO!C96=0," ",COUNTRY_INFO!C96))) ->  | D96: =IF(INTRO!$E$39<>"Non endémique", 0, IF(INTRO!$E$37="Non endémique",0,IF(COUNTRY_INFO!$H96=1,COUNTRY_INFO!E96,0))) -> 0 | E96: =IF(INTRO!$E$39<>"Non endémique", 0, IF(INTRO!$E$37="Non endémique",0,IF(COUNTRY_INFO!$H96=1,COUNTRY_INFO!F96,0))) -> 0 | F96: =IF(INTRO!$E$39<>"Non endémique", 0, IF(INTRO!$E$37="Non endémique",0,IF(COUNTRY_INFO!$H96=1,COUNTRY_INFO!G96,0))) -> 0 | G96: 0 | H96: =IF(INTRO!$E$39="Non endémique",IF(INTRO!$E$37="Non endémique","Non requis",COUNTRY_INFO!P96),"Traiter avec IVM") -> Traiter avec IVM | I96: 0 | J96: 0 | L96: 0 | M96: 0
A97: =IF(INTRO!$E$39<>"Non endémique", " ", IF(INTRO!$E$37="Non endémique"," ", IF(COUNTRY_INFO!A97=0," ",COUNTRY_INFO!A97))) ->  | B97: =IF(INTRO!$E$39<>"Non endémique", " ", IF(INTRO!$E$37="Non endémique"," ", IF(COUNTRY_INFO!B97=0," ",COUNTRY_INFO!B97))) ->  | C97: =IF(INTRO!$E$39<>"Non endémique", " ", IF(INTRO!$E$37="Non endémique"," ", IF(COUNTRY_INFO!C97=0," ",COUNTRY_INFO!C97))) ->  | D97: =IF(INTRO!$E$39<>"Non endémique", 0, IF(INTRO!$E$37="Non endémique",0,IF(COUNTRY_INFO!$H97=1,COUNTRY_INFO!E97,0))) -> 0 | E97: =IF(INTRO!$E$39<>"Non endémique", 0, IF(INTRO!$E$37="Non endémique",0,IF(COUNTRY_INFO!$H97=1,COUNTRY_INFO!F97,0))) -> 0 | F97: =IF(INTRO!$E$39<>"Non endémique", 0, IF(INTRO!$E$37="Non endémique",0,IF(COUNTRY_INFO!$H97=1,COUNTRY_INFO!G97,0))) -> 0 | G97: 0 | H97: =IF(INTRO!$E$39="Non endémique",IF(INTRO!$E$37="Non endémique","Non requis",COUNTRY_INFO!P97),"Traiter avec IVM") -> Traiter avec IVM | I97: 0 | J97: 0 | L97: 0 | M97: 0
A98: =IF(INTRO!$E$39<>"Non endémique", " ", IF(INTRO!$E$37="Non endémique"," ", IF(COUNTRY_INFO!A98=0," ",COUNTRY_INFO!A98))) ->  | B98: =IF(INTRO!$E$39<>"Non endémique", " ", IF(INTRO!$E$37="Non endémique"," ", IF(COUNTRY_INFO!B98=0," ",COUNTRY_INFO!B98))) ->  | C98: =IF(INTRO!$E$39<>"Non endémique", " ", IF(INTRO!$E$37="Non endémique"," ", IF(COUNTRY_INFO!C98=0," ",COUNTRY_INFO!C98))) ->  | D98: =IF(INTRO!$E$39<>"Non endémique", 0, IF(INTRO!$E$37="Non endémique",0,IF(COUNTRY_INFO!$H98=1,COUNTRY_INFO!E98,0))) -> 0 | E98: =IF(INTRO!$E$39<>"Non endémique", 0, IF(INTRO!$E$37="Non endémique",0,IF(COUNTRY_INFO!$H98=1,COUNTRY_INFO!F98,0))) -> 0 | F98: =IF(INTRO!$E$39<>"Non endémique", 0, IF(INTRO!$E$37="Non endémique",0,IF(COUNTRY_INFO!$H98=1,COUNTRY_INFO!G98,0))) -> 0 | G98: 0 | H98: =IF(INTRO!$E$39="Non endémique",IF(INTRO!$E$37="Non endémique","Non requis",COUNTRY_INFO!P98),"Traiter avec IVM") -> Traiter avec IVM | I98: 0 | J98: 0 | L98: 0 | M98: 0
A99: =IF(INTRO!$E$39<>"Non endémique", " ", IF(INTRO!$E$37="Non endémique"," ", IF(COUNTRY_INFO!A99=0," ",COUNTRY_INFO!A99))) ->  | B99: =IF(INTRO!$E$39<>"Non endémique", " ", IF(INTRO!$E$37="Non endémique"," ", IF(COUNTRY_INFO!B99=0," ",COUNTRY_INFO!B99))) ->  | C99: =IF(INTRO!$E$39<>"Non endémique", " ", IF(INTRO!$E$37="Non endémique"," ", IF(COUNTRY_INFO!C99=0," ",COUNTRY_INFO!C99))) ->  | D99: =IF(INTRO!$E$39<>"Non endémique", 0, IF(INTRO!$E$37="Non endémique",0,IF(COUNTRY_INFO!$H99=1,COUNTRY_INFO!E99,0))) -> 0 | E99: =IF(INTRO!$E$39<>"Non endémique", 0, IF(INTRO!$E$37="Non endémique",0,IF(COUNTRY_INFO!$H99=1,COUNTRY_INFO!F99,0))) -> 0 | F99: =IF(INTRO!$E$39<>"Non endémique", 0, IF(INTRO!$E$37="Non endémique",0,IF(COUNTRY_INFO!$H99=1,COUNTRY_INFO!G99,0))) -> 0 | G99: 0 | H99: =IF(INTRO!$E$39="Non endémique",IF(INTRO!$E$37="Non endémique","Non requis",COUNTRY_INFO!P99),"Traiter avec IVM") -> Traiter avec IVM | I99: 0 | J99: 0 | L99: 0 | M99: 0
A100: =IF(INTRO!$E$39<>"Non endémique", " ", IF(INTRO!$E$37="Non endémique"," ", IF(COUNTRY_INFO!A100=0," ",COUNTRY_INFO!A100))) ->  | B100: =IF(INTRO!$E$39<>"Non endémique", " ", IF(INTRO!$E$37="Non endémique"," ", IF(COUNTRY_INFO!B100=0," ",COUNTRY_INFO!B100))) ->  | C100: =IF(INTRO!$E$39<>"Non endémique", " ", IF(INTRO!$E$37="Non endémique"," ", IF(COUNTRY_INFO!C100=0," ",COUNTRY_INFO!C100))) ->  | D100: =IF(INTRO!$E$39<>"Non endémique", 0, IF(INTRO!$E$37="Non endémique",0,IF(COUNTRY_INFO!$H100=1,COUNTRY_INFO!E100,0))) -> 0 | E100: =IF(INTRO!$E$39<>"Non endémique", 0, IF(INTRO!$E$37="Non endémique",0,IF(COUNTRY_INFO!$H100=1,COUNTRY_INFO!F100,0))) -> 0 | F100: =IF(INTRO!$E$39<>"Non endémique", 0, IF(INTRO!$E$37="Non endémique",0,IF(COUNTRY_INFO!$H100=1,COUNTRY_INFO!G100,0))) -> 0 | G100: 0 | H100: =IF(INTRO!$E$39="Non endémique",IF(INTRO!$E$37="Non endémique","Non requis",COUNTRY_INFO!P100),"Traiter avec IVM") -> Traiter avec IVM | I100: 0 | J100: 0 | L100: 0 | M100: 0
A101: =IF(INTRO!$E$39<>"Non endémique", " ", IF(INTRO!$E$37="Non endémique"," ", IF(COUNTRY_INFO!A101=0," ",COUNTRY_INFO!A101))) ->  | B101: =IF(INTRO!$E$39<>"Non endémique", " ", IF(INTRO!$E$37="Non endémique"," ", IF(COUNTRY_INFO!B101=0," ",COUNTRY_INFO!B101))) ->  | C101: =IF(INTRO!$E$39<>"Non endémique", " ", IF(INTRO!$E$37="Non endémique"," ", IF(COUNTRY_INFO!C101=0," ",COUNTRY_INFO!C101))) ->  | D101: =IF(INTRO!$E$39<>"Non endémique", 0, IF(INTRO!$E$37="Non endémique",0,IF(COUNTRY_INFO!$H101=1,COUNTRY_INFO!E101,0))) -> 0 | E101: =IF(INTRO!$E$39<>"Non endémique", 0, IF(INTRO!$E$37="Non endémique",0,IF(COUNTRY_INFO!$H101=1,COUNTRY_INFO!F101,0))) -> 0 | F101: =IF(INTRO!$E$39<>"Non endémique", 0, IF(INTRO!$E$37="Non endémique",0,IF(COUNTRY_INFO!$H101=1,COUNTRY_INFO!G101,0))) -> 0 | G101: 0 | H101: =IF(INTRO!$E$39="Non endémique",IF(INTRO!$E$37="Non endémique","Non requis",COUNTRY_INFO!P101),"Traiter avec IVM") -> Traiter avec IVM | I101: 0 | J101: 0 | L101: 0 | M101: 0
A102: =IF(INTRO!$E$39<>"Non endémique", " ", IF(INTRO!$E$37="Non endémique"," ", IF(COUNTRY_INFO!A102=0," ",COUNTRY_INFO!A102))) ->  | B102: =IF(INTRO!$E$39<>"Non endémique", " ", IF(INTRO!$E$37="Non endémique"," ", IF(COUNTRY_INFO!B102=0," ",COUNTRY_INFO!B102))) ->  | C102: =IF(INTRO!$E$39<>"Non endémique", " ", IF(INTRO!$E$37="Non endémique"," ", IF(COUNTRY_INFO!C102=0," ",COUNTRY_INFO!C102))) ->  | D102: =IF(INTRO!$E$39<>"Non endémique", 0, IF(INTRO!$E$37="Non endémique",0,IF(COUNTRY_INFO!$H102=1,COUNTRY_INFO!E102,0))) -> 0 | E102: =IF(INTRO!$E$39<>"Non endémique", 0, IF(INTRO!$E$37="Non endémique",0,IF(COUNTRY_INFO!$H102=1,COUNTRY_INFO!F102,0))) -> 0 | F102: =IF(INTRO!$E$39<>"Non endémique", 0, IF(INTRO!$E$37="Non endémique",0,IF(COUNTRY_INFO!$H102=1,COUNTRY_INFO!G102,0))) -> 0 | G102: 0 | H102: =IF(INTRO!$E$39="Non endémique",IF(INTRO!$E$37="Non endémique","Non requis",COUNTRY_INFO!P102),"Traiter avec IVM") -> Traiter avec IVM | I102: 0 | J102: 0 | L102: 0 | M102: 0
A103: =IF(INTRO!$E$39<>"Non endémique", " ", IF(INTRO!$E$37="Non endémique"," ", IF(COUNTRY_INFO!A103=0," ",COUNTRY_INFO!A103))) ->  | B103: =IF(INTRO!$E$39<>"Non endémique", " ", IF(INTRO!$E$37="Non endémique"," ", IF(COUNTRY_INFO!B103=0," ",COUNTRY_INFO!B103))) ->  | C103: =IF(INTRO!$E$39<>"Non endémique", " ", IF(INTRO!$E$37="Non endémique"," ", IF(COUNTRY_INFO!C103=0," ",COUNTRY_INFO!C103))) ->  | D103: =IF(INTRO!$E$39<>"Non endémique", 0, IF(INTRO!$E$37="Non endémique",0,IF(COUNTRY_INFO!$H103=1,COUNTRY_INFO!E103,0))) -> 0 | E103: =IF(INTRO!$E$39<>"Non endémique", 0, IF(INTRO!$E$37="Non endémique",0,IF(COUNTRY_INFO!$H103=1,COUNTRY_INFO!F103,0))) -> 0 | F103: =IF(INTRO!$E$39<>"Non endémique", 0, IF(INTRO!$E$37="Non endémique",0,IF(COUNTRY_INFO!$H103=1,COUNTRY_INFO!G103,0))) -> 0 | G103: 0 | H103: =IF(INTRO!$E$39="Non endémique",IF(INTRO!$E$37="Non endémique","Non requis",COUNTRY_INFO!P103),"Traiter avec IVM") -> Traiter avec IVM | I103: 0 | J103: 0 | L103: 0 | M103: 0
A104: =IF(INTRO!$E$39<>"Non endémique", " ", IF(INTRO!$E$37="Non endémique"," ", IF(COUNTRY_INFO!A104=0," ",COUNTRY_INFO!A104))) ->  | B104: =IF(INTRO!$E$39<>"Non endémique", " ", IF(INTRO!$E$37="Non endémique"," ", IF(COUNTRY_INFO!B104=0," ",COUNTRY_INFO!B104))) ->  | C104: =IF(INTRO!$E$39<>"Non endémique", " ", IF(INTRO!$E$37="Non endémique"," ", IF(COUNTRY_INFO!C104=0," ",COUNTRY_INFO!C104))) ->  | D104: =IF(INTRO!$E$39<>"Non endémique", 0, IF(INTRO!$E$37="Non endémique",0,IF(COUNTRY_INFO!$H104=1,COUNTRY_INFO!E104,0))) -> 0 | E104: =IF(INTRO!$E$39<>"Non endémique", 0, IF(INTRO!$E$37="Non endémique",0,IF(COUNTRY_INFO!$H104=1,COUNTRY_INFO!F104,0))) -> 0 | F104: =IF(INTRO!$E$39<>"Non endémique", 0, IF(INTRO!$E$37="Non endémique",0,IF(COUNTRY_INFO!$H104=1,COUNTRY_INFO!G104,0))) -> 0 | G104: 0 | H104: =IF(INTRO!$E$39="Non endémique",IF(INTRO!$E$37="Non endémique","Non requis",COUNTRY_INFO!P104),"Traiter avec IVM") -> Traiter avec IVM | I104: 0 | J104: 0 | L104: 0 | M104: 0
A105: =IF(INTRO!$E$39<>"Non endémique", " ", IF(INTRO!$E$37="Non endémique"," ", IF(COUNTRY_INFO!A105=0," ",COUNTRY_INFO!A105))) ->  | B105: =IF(INTRO!$E$39<>"Non endémique", " ", IF(INTRO!$E$37="Non endémique"," ", IF(COUNTRY_INFO!B105=0," ",COUNTRY_INFO!B105))) ->  | C105: =IF(INTRO!$E$39<>"Non endémique", " ", IF(INTRO!$E$37="Non endémique"," ", IF(COUNTRY_INFO!C105=0," ",COUNTRY_INFO!C105))) ->  | D105: =IF(INTRO!$E$39<>"Non endémique", 0, IF(INTRO!$E$37="Non endémique",0,IF(COUNTRY_INFO!$H105=1,COUNTRY_INFO!E105,0))) -> 0 | E105: =IF(INTRO!$E$39<>"Non endémique", 0, IF(INTRO!$E$37="Non endémique",0,IF(COUNTRY_INFO!$H105=1,COUNTRY_INFO!F105,0))) -> 0 | F105: =IF(INTRO!$E$39<>"Non endémique", 0, IF(INTRO!$E$37="Non endémique",0,IF(COUNTRY_INFO!$H105=1,COUNTRY_INFO!G105,0))) -> 0 | G105: =SUM(D105:F105) -> 0 | H105: =IF(INTRO!$E$39="Non endémique",IF(INTRO!$E$37="Non endémique","Non requis",COUNTRY_INFO!P105),"Traiter avec IVM") -> Traiter avec IVM | I105: =IF(H105=1,G105,0) -> 0 | J105: =IF(I105>0,I105*2.5,0) -> 0 | L105: =IF($J105>$K105,$J105-$K105,0) -> 0 | M105: =ROUNDUP($J105/1000,0) -> 0
A106: =IF(INTRO!$E$39<>"Non endémique", " ", IF(INTRO!$E$37="Non endémique"," ", IF(COUNTRY_INFO!A106=0," ",COUNTRY_INFO!A106))) ->  | B106: =IF(INTRO!$E$39<>"Non endémique", " ", IF(INTRO!$E$37="Non endémique"," ", IF(COUNTRY_INFO!B106=0," ",COUNTRY_INFO!B106))) ->  | C106: =IF(INTRO!$E$39<>"Non endémique", " ", IF(INTRO!$E$37="Non endémique"," ", IF(COUNTRY_INFO!C106=0," ",COUNTRY_INFO!C106))) ->  | D106: =IF(INTRO!$E$39<>"Non endémique", 0, IF(INTRO!$E$37="Non endémique",0,IF(COUNTRY_INFO!$H106=1,COUNTRY_INFO!E106,0))) -> 0 | E106: =IF(INTRO!$E$39<>"Non endémique", 0, IF(INTRO!$E$37="Non endémique",0,IF(COUNTRY_INFO!$H106=1,COUNTRY_INFO!F106,0))) -> 0 | F106: =IF(INTRO!$E$39<>"Non endémique", 0, IF(INTRO!$E$37="Non endémique",0,IF(COUNTRY_INFO!$H106=1,COUNTRY_INFO!G106,0))) -> 0 | G106: 0 | H106: =IF(INTRO!$E$39="Non endémique",IF(INTRO!$E$37="Non endémique","Non requis",COUNTRY_INFO!P106),"Traiter avec IVM") -> Traiter avec IVM | I106: 0 | J106: 0 | L106: 0 | M106: 0
A107: =IF(INTRO!$E$39<>"Non endémique", " ", IF(INTRO!$E$37="Non endémique"," ", IF(COUNTRY_INFO!A107=0," ",COUNTRY_INFO!A107))) ->  | B107: =IF(INTRO!$E$39<>"Non endémique", " ", IF(INTRO!$E$37="Non endémique"," ", IF(COUNTRY_INFO!B107=0," ",COUNTRY_INFO!B107))) ->  | C107: =IF(INTRO!$E$39<>"Non endémique", " ", IF(INTRO!$E$37="Non endémique"," ", IF(COUNTRY_INFO!C107=0," ",COUNTRY_INFO!C107))) ->  | D107: =IF(INTRO!$E$39<>"Non endémique", 0, IF(INTRO!$E$37="Non endémique",0,IF(COUNTRY_INFO!$H107=1,COUNTRY_INFO!E107,0))) -> 0 | E107: =IF(INTRO!$E$39<>"Non endémique", 0, IF(INTRO!$E$37="Non endémique",0,IF(COUNTRY_INFO!$H107=1,COUNTRY_INFO!F107,0))) -> 0 | F107: =IF(INTRO!$E$39<>"Non endémique", 0, IF(INTRO!$E$37="Non endémique",0,IF(COUNTRY_INFO!$H107=1,COUNTRY_INFO!G107,0))) -> 0 | G107: 0 | H107: =IF(INTRO!$E$39="Non endémique",IF(INTRO!$E$37="Non endémique","Non requis",COUNTRY_INFO!P107),"Traiter avec IVM") -> Traiter avec IVM | I107: 0 | J107: 0 | L107: 0 | M107: 0
A108: =IF(INTRO!$E$39<>"Non endémique", " ", IF(INTRO!$E$37="Non endémique"," ", IF(COUNTRY_INFO!A108=0," ",COUNTRY_INFO!A108))) ->  | B108: =IF(INTRO!$E$39<>"Non endémique", " ", IF(INTRO!$E$37="Non endémique"," ", IF(COUNTRY_INFO!B108=0," ",COUNTRY_INFO!B108))) ->  | C108: =IF(INTRO!$E$39<>"Non endémique", " ", IF(INTRO!$E$37="Non endémique"," ", IF(COUNTRY_INFO!C108=0," ",COUNTRY_INFO!C108))) ->  | D108: =IF(INTRO!$E$39<>"Non endémique", 0, IF(INTRO!$E$37="Non endémique",0,IF(COUNTRY_INFO!$H108=1,COUNTRY_INFO!E108,0))) -> 0 | E108: =IF(INTRO!$E$39<>"Non endémique", 0, IF(INTRO!$E$37="Non endémique",0,IF(COUNTRY_INFO!$H108=1,COUNTRY_INFO!F108,0))) -> 0 | F108: =IF(INTRO!$E$39<>"Non endémique", 0, IF(INTRO!$E$37="Non endémique",0,IF(COUNTRY_INFO!$H108=1,COUNTRY_INFO!G108,0))) -> 0 | G108: 0 | H108: =IF(INTRO!$E$39="Non endémique",IF(INTRO!$E$37="Non endémique","Non requis",COUNTRY_INFO!P108),"Traiter avec IVM") -> Traiter avec IVM | I108: 0 | J108: 0 | L108: 0 | M108: 0
A109: =IF(INTRO!$E$39<>"Non endémique", " ", IF(INTRO!$E$37="Non endémique"," ", IF(COUNTRY_INFO!A109=0," ",COUNTRY_INFO!A109))) ->  | B109: =IF(INTRO!$E$39<>"Non endémique", " ", IF(INTRO!$E$37="Non endémique"," ", IF(COUNTRY_INFO!B109=0," ",COUNTRY_INFO!B109))) ->  | C109: =IF(INTRO!$E$39<>"Non endémique", " ", IF(INTRO!$E$37="Non endémique"," ", IF(COUNTRY_INFO!C109=0," ",COUNTRY_INFO!C109))) ->  | D109: =IF(INTRO!$E$39<>"Non endémique", 0, IF(INTRO!$E$37="Non endémique",0,IF(COUNTRY_INFO!$H109=1,COUNTRY_INFO!E109,0))) -> 0 | E109: =IF(INTRO!$E$39<>"Non endémique", 0, IF(INTRO!$E$37="Non endémique",0,IF(COUNTRY_INFO!$H109=1,COUNTRY_INFO!F109,0))) -> 0 | F109: =IF(INTRO!$E$39<>"Non endémique", 0, IF(INTRO!$E$37="Non endémique",0,IF(COUNTRY_INFO!$H109=1,COUNTRY_INFO!G109,0))) -> 0 | G109: 0 | H109: =IF(INTRO!$E$39="Non endémique",IF(INTRO!$E$37="Non endémique","Non requis",COUNTRY_INFO!P109),"Traiter avec IVM") -> Traiter avec IVM | I109: 0 | J109: 0 | L109: 0 | M109: 0
A110: =IF(INTRO!$E$39<>"Non endémique", " ", IF(INTRO!$E$37="Non endémique"," ", IF(COUNTRY_INFO!A110=0," ",COUNTRY_INFO!A110))) ->  | B110: =IF(INTRO!$E$39<>"Non endémique", " ", IF(INTRO!$E$37="Non endémique"," ", IF(COUNTRY_INFO!B110=0," ",COUNTRY_INFO!B110))) ->  | C110: =IF(INTRO!$E$39<>"Non endémique", " ", IF(INTRO!$E$37="Non endémique"," ", IF(COUNTRY_INFO!C110=0," ",COUNTRY_INFO!C110))) ->  | D110: =IF(INTRO!$E$39<>"Non endémique", 0, IF(INTRO!$E$37="Non endémique",0,IF(COUNTRY_INFO!$H110=1,COUNTRY_INFO!E110,0))) -> 0 | E110: =IF(INTRO!$E$39<>"Non endémique", 0, IF(INTRO!$E$37="Non endémique",0,IF(COUNTRY_INFO!$H110=1,COUNTRY_INFO!F110,0))) -> 0 | F110: =IF(INTRO!$E$39<>"Non endémique", 0, IF(INTRO!$E$37="Non endémique",0,IF(COUNTRY_INFO!$H110=1,COUNTRY_INFO!G110,0))) -> 0 | G110: 0 | H110: =IF(INTRO!$E$39="Non endémique",IF(INTRO!$E$37="Non endémique","Non requis",COUNTRY_INFO!P110),"Traiter avec IVM") -> Traiter avec IVM | I110: 0 | J110: 0 | L110: 0 | M110: 0
A111: =IF(INTRO!$E$39<>"Non endémique", " ", IF(INTRO!$E$37="Non endémique"," ", IF(COUNTRY_INFO!A111=0," ",COUNTRY_INFO!A111))) ->  | B111: =IF(INTRO!$E$39<>"Non endémique", " ", IF(INTRO!$E$37="Non endémique"," ", IF(COUNTRY_INFO!B111=0," ",COUNTRY_INFO!B111))) ->  | C111: =IF(INTRO!$E$39<>"Non endémique", " ", IF(INTRO!$E$37="Non endémique"," ", IF(COUNTRY_INFO!C111=0," ",COUNTRY_INFO!C111))) ->  | D111: =IF(INTRO!$E$39<>"Non endémique", 0, IF(INTRO!$E$37="Non endémique",0,IF(COUNTRY_INFO!$H111=1,COUNTRY_INFO!E111,0))) -> 0 | E111: =IF(INTRO!$E$39<>"Non endémique", 0, IF(INTRO!$E$37="Non endémique",0,IF(COUNTRY_INFO!$H111=1,COUNTRY_INFO!F111,0))) -> 0 | F111: =IF(INTRO!$E$39<>"Non endémique", 0, IF(INTRO!$E$37="Non endémique",0,IF(COUNTRY_INFO!$H111=1,COUNTRY_INFO!G111,0))) -> 0 | G111: 0 | H111: =IF(INTRO!$E$39="Non endémique",IF(INTRO!$E$37="Non endémique","Non requis",COUNTRY_INFO!P111),"Traiter avec IVM") -> Traiter avec IVM | I111: 0 | J111: 0 | L111: 0 | M111: 0
A112: =IF(INTRO!$E$39<>"Non endémique", " ", IF(INTRO!$E$37="Non endémique"," ", IF(COUNTRY_INFO!A112=0," ",COUNTRY_INFO!A112))) ->  | B112: =IF(INTRO!$E$39<>"Non endémique", " ", IF(INTRO!$E$37="Non endémique"," ", IF(COUNTRY_INFO!B112=0," ",COUNTRY_INFO!B112))) ->  | C112: =IF(INTRO!$E$39<>"Non endémique", " ", IF(INTRO!$E$37="Non endémique"," ", IF(COUNTRY_INFO!C112=0," ",COUNTRY_INFO!C112))) ->  | D112: =IF(INTRO!$E$39<>"Non endémique", 0, IF(INTRO!$E$37="Non endémique",0,IF(COUNTRY_INFO!$H112=1,COUNTRY_INFO!E112,0))) -> 0 | E112: =IF(INTRO!$E$39<>"Non endémique", 0, IF(INTRO!$E$37="Non endémique",0,IF(COUNTRY_INFO!$H112=1,COUNTRY_INFO!F112,0))) -> 0 | F112: =IF(INTRO!$E$39<>"Non endémique", 0, IF(INTRO!$E$37="Non endémique",0,IF(COUNTRY_INFO!$H112=1,COUNTRY_INFO!G112,0))) -> 0 | G112: 0 | H112: =IF(INTRO!$E$39="Non endémique",IF(INTRO!$E$37="Non endémique","Non requis",COUNTRY_INFO!P112),"Traiter avec IVM") -> Traiter avec IVM | I112: 0 | J112: 0 | L112: 0 | M112: 0
A113: =IF(INTRO!$E$39<>"Non endémique", " ", IF(INTRO!$E$37="Non endémique"," ", IF(COUNTRY_INFO!A113=0," ",COUNTRY_INFO!A113))) ->  | B113: =IF(INTRO!$E$39<>"Non endémique", " ", IF(INTRO!$E$37="Non endémique"," ", IF(COUNTRY_INFO!B113=0," ",COUNTRY_INFO!B113))) ->  | C113: =IF(INTRO!$E$39<>"Non endémique", " ", IF(INTRO!$E$37="Non endémique"," ", IF(COUNTRY_INFO!C113=0," ",COUNTRY_INFO!C113))) ->  | D113: =IF(INTRO!$E$39<>"Non endémique", 0, IF(INTRO!$E$37="Non endémique",0,IF(COUNTRY_INFO!$H113=1,COUNTRY_INFO!E113,0))) -> 0 | E113: =IF(INTRO!$E$39<>"Non endémique", 0, IF(INTRO!$E$37="Non endémique",0,IF(COUNTRY_INFO!$H113=1,COUNTRY_INFO!F113,0))) -> 0 | F113: =IF(INTRO!$E$39<>"Non endémique", 0, IF(INTRO!$E$37="Non endémique",0,IF(COUNTRY_INFO!$H113=1,COUNTRY_INFO!G113,0))) -> 0 | G113: 0 | H113: =IF(INTRO!$E$39="Non endémique",IF(INTRO!$E$37="Non endémique","Non requis",COUNTRY_INFO!P113),"Traiter avec IVM") -> Traiter avec IVM | I113: 0 | J113: 0 | L113: 0 | M113: 0
A114: =IF(INTRO!$E$39<>"Non endémique", " ", IF(INTRO!$E$37="Non endémique"," ", IF(COUNTRY_INFO!A114=0," ",COUNTRY_INFO!A114))) ->  | B114: =IF(INTRO!$E$39<>"Non endémique", " ", IF(INTRO!$E$37="Non endémique"," ", IF(COUNTRY_INFO!B114=0," ",COUNTRY_INFO!B114))) ->  | C114: =IF(INTRO!$E$39<>"Non endémique", " ", IF(INTRO!$E$37="Non endémique"," ", IF(COUNTRY_INFO!C114=0," ",COUNTRY_INFO!C114))) ->  | D114: =IF(INTRO!$E$39<>"Non endémique", 0, IF(INTRO!$E$37="Non endémique",0,IF(COUNTRY_INFO!$H114=1,COUNTRY_INFO!E114,0))) -> 0 | E114: =IF(INTRO!$E$39<>"Non endémique", 0, IF(INTRO!$E$37="Non endémique",0,IF(COUNTRY_INFO!$H114=1,COUNTRY_INFO!F114,0))) -> 0 | F114: =IF(INTRO!$E$39<>"Non endémique", 0, IF(INTRO!$E$37="Non endémique",0,IF(COUNTRY_INFO!$H114=1,COUNTRY_INFO!G114,0))) -> 0 | G114: 0 | H114: =IF(INTRO!$E$39="Non endémique",IF(INTRO!$E$37="Non endémique","Non requis",COUNTRY_INFO!P114),"Traiter avec IVM") -> Traiter avec IVM | I114: 0 | J114: 0 | L114: 0 | M114: 0
A115: =IF(INTRO!$E$39<>"Non endémique", " ", IF(INTRO!$E$37="Non endémique"," ", IF(COUNTRY_INFO!A115=0," ",COUNTRY_INFO!A115))) ->  | B115: =IF(INTRO!$E$39<>"Non endémique", " ", IF(INTRO!$E$37="Non endémique"," ", IF(COUNTRY_INFO!B115=0," ",COUNTRY_INFO!B115))) ->  | C115: =IF(INTRO!$E$39<>"Non endémique", " ", IF(INTRO!$E$37="Non endémique"," ", IF(COUNTRY_INFO!C115=0," ",COUNTRY_INFO!C115))) ->  | D115: =IF(INTRO!$E$39<>"Non endémique", 0, IF(INTRO!$E$37="Non endémique",0,IF(COUNTRY_INFO!$H115=1,COUNTRY_INFO!E115,0))) -> 0 | E115: =IF(INTRO!$E$39<>"Non endémique", 0, IF(INTRO!$E$37="Non endémique",0,IF(COUNTRY_INFO!$H115=1,COUNTRY_INFO!F115,0))) -> 0 | F115: =IF(INTRO!$E$39<>"Non endémique", 0, IF(INTRO!$E$37="Non endémique",0,IF(COUNTRY_INFO!$H115=1,COUNTRY_INFO!G115,0))) -> 0 | G115: 0 | H115: =IF(INTRO!$E$39="Non endémique",IF(INTRO!$E$37="Non endémique","Non requis",COUNTRY_INFO!P115),"Traiter avec IVM") -> Traiter avec IVM | I115: 0 | J115: 0 | L115: 0 | M115: 0
A116: =IF(INTRO!$E$39<>"Non endémique", " ", IF(INTRO!$E$37="Non endémique"," ", IF(COUNTRY_INFO!A116=0," ",COUNTRY_INFO!A116))) ->  | B116: =IF(INTRO!$E$39<>"Non endémique", " ", IF(INTRO!$E$37="Non endémique"," ", IF(COUNTRY_INFO!B116=0," ",COUNTRY_INFO!B116))) ->  | C116: =IF(INTRO!$E$39<>"Non endémique", " ", IF(INTRO!$E$37="Non endémique"," ", IF(COUNTRY_INFO!C116=0," ",COUNTRY_INFO!C116))) ->  | D116: =IF(INTRO!$E$39<>"Non endémique", 0, IF(INTRO!$E$37="Non endémique",0,IF(COUNTRY_INFO!$H116=1,COUNTRY_INFO!E116,0))) -> 0 | E116: =IF(INTRO!$E$39<>"Non endémique", 0, IF(INTRO!$E$37="Non endémique",0,IF(COUNTRY_INFO!$H116=1,COUNTRY_INFO!F116,0))) -> 0 | F116: =IF(INTRO!$E$39<>"Non endémique", 0, IF(INTRO!$E$37="Non endémique",0,IF(COUNTRY_INFO!$H116=1,COUNTRY_INFO!G116,0))) -> 0 | G116: 0 | H116: =IF(INTRO!$E$39="Non endémique",IF(INTRO!$E$37="Non endémique","Non requis",COUNTRY_INFO!P116),"Traiter avec IVM") -> Traiter avec IVM | I116: 0 | J116: 0 | L116: 0 | M116: 0
A117: =IF(INTRO!$E$39<>"Non endémique", " ", IF(INTRO!$E$37="Non endémique"," ", IF(COUNTRY_INFO!A117=0," ",COUNTRY_INFO!A117))) ->  | B117: =IF(INTRO!$E$39<>"Non endémique", " ", IF(INTRO!$E$37="Non endémique"," ", IF(COUNTRY_INFO!B117=0," ",COUNTRY_INFO!B117))) ->  | C117: =IF(INTRO!$E$39<>"Non endémique", " ", IF(INTRO!$E$37="Non endémique"," ", IF(COUNTRY_INFO!C117=0," ",COUNTRY_INFO!C117))) ->  | D117: =IF(INTRO!$E$39<>"Non endémique", 0, IF(INTRO!$E$37="Non endémique",0,IF(COUNTRY_INFO!$H117=1,COUNTRY_INFO!E117,0))) -> 0 | E117: =IF(INTRO!$E$39<>"Non endémique", 0, IF(INTRO!$E$37="Non endémique",0,IF(COUNTRY_INFO!$H117=1,COUNTRY_INFO!F117,0))) -> 0 | F117: =IF(INTRO!$E$39<>"Non endémique", 0, IF(INTRO!$E$37="Non endémique",0,IF(COUNTRY_INFO!$H117=1,COUNTRY_INFO!G117,0))) -> 0 | G117: 0 | H117: =IF(INTRO!$E$39="Non endémique",IF(INTRO!$E$37="Non endémique","Non requis",COUNTRY_INFO!P117),"Traiter avec IVM") -> Traiter avec IVM | I117: 0 | J117: 0 | L117: 0 | M117: 0
A118: =IF(INTRO!$E$39<>"Non endémique", " ", IF(INTRO!$E$37="Non endémique"," ", IF(COUNTRY_INFO!A118=0," ",COUNTRY_INFO!A118))) ->  | B118: =IF(INTRO!$E$39<>"Non endémique", " ", IF(INTRO!$E$37="Non endémique"," ", IF(COUNTRY_INFO!B118=0," ",COUNTRY_INFO!B118))) ->  | C118: =IF(INTRO!$E$39<>"Non endémique", " ", IF(INTRO!$E$37="Non endémique"," ", IF(COUNTRY_INFO!C118=0," ",COUNTRY_INFO!C118))) ->  | D118: =IF(INTRO!$E$39<>"Non endémique", 0, IF(INTRO!$E$37="Non endémique",0,IF(COUNTRY_INFO!$H118=1,COUNTRY_INFO!E118,0))) -> 0 | E118: =IF(INTRO!$E$39<>"Non endémique", 0, IF(INTRO!$E$37="Non endémique",0,IF(COUNTRY_INFO!$H118=1,COUNTRY_INFO!F118,0))) -> 0 | F118: =IF(INTRO!$E$39<>"Non endémique", 0, IF(INTRO!$E$37="Non endémique",0,IF(COUNTRY_INFO!$H118=1,COUNTRY_INFO!G118,0))) -> 0 | G118: 0 | H118: =IF(INTRO!$E$39="Non endémique",IF(INTRO!$E$37="Non endémique","Non requis",COUNTRY_INFO!P118),"Traiter avec IVM") -> Traiter avec IVM | I118: 0 | J118: 0 | L118: 0 | M118: 0
A119: =IF(INTRO!$E$39<>"Non endémique", " ", IF(INTRO!$E$37="Non endémique"," ", IF(COUNTRY_INFO!A119=0," ",COUNTRY_INFO!A119))) ->  | B119: =IF(INTRO!$E$39<>"Non endémique", " ", IF(INTRO!$E$37="Non endémique"," ", IF(COUNTRY_INFO!B119=0," ",COUNTRY_INFO!B119))) ->  | C119: =IF(INTRO!$E$39<>"Non endémique", " ", IF(INTRO!$E$37="Non endémique"," ", IF(COUNTRY_INFO!C119=0," ",COUNTRY_INFO!C119))) ->  | D119: =IF(INTRO!$E$39<>"Non endémique", 0, IF(INTRO!$E$37="Non endémique",0,IF(COUNTRY_INFO!$H119=1,COUNTRY_INFO!E119,0))) -> 0 | E119: =IF(INTRO!$E$39<>"Non endémique", 0, IF(INTRO!$E$37="Non endémique",0,IF(COUNTRY_INFO!$H119=1,COUNTRY_INFO!F119,0))) -> 0 | F119: =IF(INTRO!$E$39<>"Non endémique", 0, IF(INTRO!$E$37="Non endémique",0,IF(COUNTRY_INFO!$H119=1,COUNTRY_INFO!G119,0))) -> 0 | G119: 0 | H119: =IF(INTRO!$E$39="Non endémique",IF(INTRO!$E$37="Non endémique","Non requis",COUNTRY_INFO!P119),"Traiter avec IVM") -> Traiter avec IVM | I119: 0 | J119: 0 | L119: 0 | M119: 0
A120: =IF(INTRO!$E$39<>"Non endémique", " ", IF(INTRO!$E$37="Non endémique"," ", IF(COUNTRY_INFO!A120=0," ",COUNTRY_INFO!A120))) ->  | B120: =IF(INTRO!$E$39<>"Non endémique", " ", IF(INTRO!$E$37="Non endémique"," ", IF(COUNTRY_INFO!B120=0," ",COUNTRY_INFO!B120))) ->  | C120: =IF(INTRO!$E$39<>"Non endémique", " ", IF(INTRO!$E$37="Non endémique"," ", IF(COUNTRY_INFO!C120=0," ",COUNTRY_INFO!C120))) ->  | D120: =IF(INTRO!$E$39<>"Non endémique", 0, IF(INTRO!$E$37="Non endémique",0,IF(COUNTRY_INFO!$H120=1,COUNTRY_INFO!E120,0))) -> 0 | E120: =IF(INTRO!$E$39<>"Non endémique", 0, IF(INTRO!$E$37="Non endémique",0,IF(COUNTRY_INFO!$H120=1,COUNTRY_INFO!F120,0))) -> 0 | F120: =IF(INTRO!$E$39<>"Non endémique", 0, IF(INTRO!$E$37="Non endémique",0,IF(COUNTRY_INFO!$H120=1,COUNTRY_INFO!G120,0))) -> 0 | G120: 0 | H120: =IF(INTRO!$E$39="Non endémique",IF(INTRO!$E$37="Non endémique","Non requis",COUNTRY_INFO!P120),"Traiter avec IVM") -> Traiter avec IVM | I120: 0 | J120: 0 | L120: 0 | M120: 0
A121: =IF(INTRO!$E$39<>"Non endémique", " ", IF(INTRO!$E$37="Non endémique"," ", IF(COUNTRY_INFO!A121=0," ",COUNTRY_INFO!A121))) ->  | B121: =IF(INTRO!$E$39<>"Non endémique", " ", IF(INTRO!$E$37="Non endémique"," ", IF(COUNTRY_INFO!B121=0," ",COUNTRY_INFO!B121))) ->  | C121: =IF(INTRO!$E$39<>"Non endémique", " ", IF(INTRO!$E$37="Non endémique"," ", IF(COUNTRY_INFO!C121=0," ",COUNTRY_INFO!C121))) ->  | D121: =IF(INTRO!$E$39<>"Non endémique", 0, IF(INTRO!$E$37="Non endémique",0,IF(COUNTRY_INFO!$H121=1,COUNTRY_INFO!E121,0))) -> 0 | E121: =IF(INTRO!$E$39<>"Non endémique", 0, IF(INTRO!$E$37="Non endémique",0,IF(COUNTRY_INFO!$H121=1,COUNTRY_INFO!F121,0))) -> 0 | F121: =IF(INTRO!$E$39<>"Non endémique", 0, IF(INTRO!$E$37="Non endémique",0,IF(COUNTRY_INFO!$H121=1,COUNTRY_INFO!G121,0))) -> 0 | G121: 0 | H121: =IF(INTRO!$E$39="Non endémique",IF(INTRO!$E$37="Non endémique","Non requis",COUNTRY_INFO!P121),"Traiter avec IVM") -> Traiter avec IVM | I121: 0 | J121: 0 | L121: 0 | M121: 0

Sheet ALB_MBD
A1: Albendazole (ALB) et Mebendazole (MBD)
A2: Structure administrative, population ciblée par groupe d'âge, plan de traitement et information sur les comprimés
A4: TOTAL | D4: =SUM(D$9:D$1000) -> 3446483 | E4: =SUM(E$9:E$1000) -> 6909261 | F4: =SUM(F$9:F$1000) -> 10355744 | I4: =SUM(I$9:I$1000) -> 18877801 | K4: =SUM(K$9:K$1000) -> 817615 | L4: =SUM(L$9:L$1000) -> 171205 | M4: =SUM(M$9:M$1000) -> 0 | N4: =SUM(N$9:N$1000) -> 988820 | O4: =SUM(O$9:O$1000) -> 0 | P4: =SUM(P$9:P$1000) -> 0 | Q4: 0 | R4: 0 | S4: 0 | T4: 18877801 | U4: 94434 | V4: 0 | W4: 171205 | X4: 858 | Y4: 0 | Z4: 0 | AA4: 0
A6: Structure administrative du pays | D6: Population nécessitant un traitement avec ALB/MBD | G6: Plan de traitement | I6: Population couverte par le PEFL avec ALB | J6: Médicament choisi pour le traitement des STH | K6: Population cible | S6: Albendazole (ALB) | Y6: Mebendazole (MBD)
A7: Pays | B7: Région/Département | C7: District | D7: EAPréS | E7: EAS | F7: Total | G7: FL | H7: STH | K7: STH (ALB) | O7: STH (MBD) | S7: Reste en stock (FL) | T7: Comprimés devant être fournis (FL) | U7: Flacons (400mg) 200 comprimés (FL) | V7: Reste en stock (STH) | W7: Comprimés devant être fournis pour EAS (STH) | X7: Flacons (400mg) 200 comprimés (STH) | Y7: Reste en stock | Z7: Comprimés devant être fournis pour EAS | AA7: Flacons (500mg) 150 comprimés
K8: EAPréS | L8: EAS | M8: Autres | N8: Total | O8: EAPréS | P8: EAS | Q8: Autres | R8: Total
A9: =IF(AND(INTRO!$E$37="Non endémique",INTRO!$E$41="Non endémique")," ",IF(COUNTRY_INFO!A9=0," ",COUNTRY_INFO!A9)) -> Cote d'Ivoire | B9: =IF(AND(INTRO!$E$37="Non endémique",INTRO!$E$41="Non endémique")," ",IF(COUNTRY_INFO!B9=0," ",COUNTRY_INFO!B9)) -> ABIDJAN 1 | C9: =IF(AND(INTRO!$E$37="Non endémique",INTRO!$E$41="Non endémique")," ",IF(COUNTRY_INFO!C9=0," ",COUNTRY_INFO!C9)) -> ABOBO EST | D9: =IF(AND(INTRO!$E$37="Non endémique",INTRO!$E$41="Non endémique"),0,IF(AND(OR(COUNTRY_INFO!$H9=0,COUNTRY_INFO!$H9=4,COUNTRY_INFO!$H9=99),OR(COUNTRY_INFO!$J9=0,COUNTRY_INFO!$J9=4)),0,COUNTRY_INFO!$E9)) -> 110767 | E9: =IF(AND(INTRO!$E$37="Non endémique",INTRO!$E$41="Non endémique"),0,IF(AND(OR(COUNTRY_INFO!$H9=0,COUNTRY_INFO!$H9=4,COUNTRY_INFO!$H9=99),OR(COUNTRY_INFO!$J9=0,COUNTRY_INFO!$J9=4)),0,COUNTRY_INFO!$F9)) -> 222058 | F9: =SUM(D9:E9) -> 332825 | G9: =IF(AND(INTRO!$E$37="Non endémique",INTRO!$E$41="Non endémique"),0,COUNTRY_INFO!P9) -> 0 | H9: =IF(AND(INTRO!$E$37="Non endémique",INTRO!$E$41="Non endémique"),0,COUNTRY_INFO!R9) -> 0 | I9: =IF(INTRO!$E$39="Non endémique",IF($G9=1,DEC!I9,0),IF($G9=1,IVM!G9,0)) -> 0 | J9: ALB | K9: =IF($J9="ALB", IF(INTRO!$E$39="Non endémique",IF($H9<>0,$D9*($H9-$G9),0),$D9*$H9), 0) -> 0 | L9: =IF($J9="ALB", IF($H9<>0, IF($I9=0, $E9*$H9, $E9*($H9-$G9)),0), 0) -> 0 | N9: =SUM(K9:M9) -> 0 | O9: =IF($J9="MBD", IF(INTRO!$E$39="Non endémique",IF($H9<>0,$D9*($H9-$G9),0),$D9*$H9),0) -> 0 | P9: =IF($J9="MBD", IF($H9<>0,IF($I9=0, $E9*$H9, $E9*($H9-$G9)),0), 0 ) -> 0 | R9: =SUM(O9:Q9) -> 0 | T9: =IF($I9>$S9, $I9-$S9,0) -> 0 | U9: =ROUNDUP($I9/200,0) -> 0 | W9: =IF($L9>$V9,$L9-$V9,0) -> 0 | X9: =ROUNDUP($L9/200,0) -> 0 | Z9: =IF($P9>$Y9,$P9-$Y9,0) -> 0 | AA9: =ROUNDUP($P9/150,0) -> 0
A10: =IF(AND(INTRO!$E$37="Non endémique",INTRO!$E$41="Non endémique")," ",IF(COUNTRY_INFO!A10=0," ",COUNTRY_INFO!A10)) -> Cote d'Ivoire | B10: =IF(AND(INTRO!$E$37="Non endémique",INTRO!$E$41="Non endémique")," ",IF(COUNTRY_INFO!B10=0," ",COUNTRY_INFO!B10)) -> ABIDJAN 1 | C10: =IF(AND(INTRO!$E$37="Non endémique",INTRO!$E$41="Non endémique")," ",IF(COUNTRY_INFO!C10=0," ",COUNTRY_INFO!C10)) -> ABOBO OUEST | D10: =IF(AND(INTRO!$E$37="Non endémique",INTRO!$E$41="Non endémique"),0,IF(AND(OR(COUNTRY_INFO!$H10=0,COUNTRY_INFO!$H10=4,COUNTRY_INFO!$H10=99),OR(COUNTRY_INFO!$J10=0,COUNTRY_INFO!$J10=4)),0,COUNTRY_INFO!$E10)) -> 55669 | E10: =IF(AND(INTRO!$E$37="Non endémique",INTRO!$E$41="Non endémique"),0,IF(AND(OR(COUNTRY_INFO!$H10=0,COUNTRY_INFO!$H10=4,COUNTRY_INFO!$H10=99),OR(COUNTRY_INFO!$J10=0,COUNTRY_INFO!$J10=4)),0,COUNTRY_INFO!$F10)) -> 111600 | F10: 167269 | G10: =IF(AND(INTRO!$E$37="Non endémique",INTRO!$E$41="Non endémique"),0,COUNTRY_INFO!P10) -> 0 | H10: =IF(AND(INTRO!$E$37="Non endémique",INTRO!$E$41="Non endémique"),0,COUNTRY_INFO!R10) -> 0 | I10: =IF(INTRO!$E$39="Non endémique",IF($G10=1,DEC!I10,0),IF($G10=1,IVM!G10,0)) -> 0 | J10: ALB | K10: =IF($J10="ALB", IF(INTRO!$E$39="Non endémique",IF($H10<>0,$D10*($H10-$G10),0),$D10*$H10), 0) -> 0 | L10: 0 | N10: 0 | O10: =IF($J10="MBD", IF(INTRO!$E$39="Non endémique",IF($H10<>0,$D10*($H10-$G10),0),$D10*$H10),0) -> 0 | P10: 0 | R10: 0 | T10: 0 | U10: 0 | W10: 0 | X10: 0 | Z10: 0 | AA10: 0
A11: =IF(AND(INTRO!$E$37="Non endémique",INTRO!$E$41="Non endémique")," ",IF(COUNTRY_INFO!A11=0," ",COUNTRY_INFO!A11)) -> Cote d'Ivoire | B11: =IF(AND(INTRO!$E$37="Non endémique",INTRO!$E$41="Non endémique")," ",IF(COUNTRY_INFO!B11=0," ",COUNTRY_INFO!B11)) -> ABIDJAN 1 | C11: =IF(AND(INTRO!$E$37="Non endémique",INTRO!$E$41="Non endémique")," ",IF(COUNTRY_INFO!C11=0," ",COUNTRY_INFO!C11)) -> ANYAMA | D11: =IF(AND(INTRO!$E$37="Non endémique",INTRO!$E$41="Non endémique"),0,IF(AND(OR(COUNTRY_INFO!$H11=0,COUNTRY_INFO!$H11=4,COUNTRY_INFO!$H11=99),OR(COUNTRY_INFO!$J11=0,COUNTRY_INFO!$J11=4)),0,COUNTRY_INFO!$E11)) -> 23058 | E11: =IF(AND(INTRO!$E$37="Non endémique",INTRO!$E$41="Non endémique"),0,IF(AND(OR(COUNTRY_INFO!$H11=0,COUNTRY_INFO!$H11=4,COUNTRY_INFO!$H11=99),OR(COUNTRY_INFO!$J11=0,COUNTRY_INFO!$J11=4)),0,COUNTRY_INFO!$F11)) -> 46226 | F11: 69284 | G11: =IF(AND(INTRO!$E$37="Non endémique",INTRO!$E$41="Non endémique"),0,COUNTRY_INFO!P11) -> 0 | H11: =IF(AND(INTRO!$E$37="Non endémique",INTRO!$E$41="Non endémique"),0,COUNTRY_INFO!R11) -> 0 | I11: =IF(INTRO!$E$39="Non endémique",IF($G11=1,DEC!I11,0),IF($G11=1,IVM!G11,0)) -> 0 | J11: ALB | K11: =IF($J11="ALB", IF(INTRO!$E$39="Non endémique",IF($H11<>0,$D11*($H11-$G11),0),$D11*$H11), 0) -> 0 | L11: 0 | N11: 0 | O11: =IF($J11="MBD", IF(INTRO!$E$39="Non endémique",IF($H11<>0,$D11*($H11-$G11),0),$D11*$H11),0) -> 0 | P11: 0 | R11: 0 | T11: 0 | U11: 0 | W11: 0 | X11: 0 | Z11: 0 | AA11: 0
A12: =IF(AND(INTRO!$E$37="Non endémique",INTRO!$E$41="Non endémique")," ",IF(COUNTRY_INFO!A12=0," ",COUNTRY_INFO!A12)) -> Cote d'Ivoire | B12: =IF(AND(INTRO!$E$37="Non endémique",INTRO!$E$41="Non endémique")," ",IF(COUNTRY_INFO!B12=0," ",COUNTRY_INFO!B12)) -> ABIDJAN 1 | C12: =IF(AND(INTRO!$E$37="Non endémique",INTRO!$E$41="Non endémique")," ",IF(COUNTRY_INFO!C12=0," ",COUNTRY_INFO!C12)) -> YOPOUGON EST | D12: =IF(AND(INTRO!$E$37="Non endémique",INTRO!$E$41="Non endémique"),0,IF(AND(OR(COUNTRY_INFO!$H12=0,COUNTRY_INFO!$H12=4,COUNTRY_INFO!$H12=99),OR(COUNTRY_INFO!$J12=0,COUNTRY_INFO!$J12=4)),0,COUNTRY_INFO!$E12)) -> 92910 | E12: =IF(AND(INTRO!$E$37="Non endémique",INTRO!$E$41="Non endémique"),0,IF(AND(OR(COUNTRY_INFO!$H12=0,COUNTRY_INFO!$H12=4,COUNTRY_INFO!$H12=99),OR(COUNTRY_INFO!$J12=0,COUNTRY_INFO!$J12=4)),0,COUNTRY_INFO!$F12)) -> 186258 | F12: 279168 | G12: =IF(AND(INTRO!$E$37="Non endémique",INTRO!$E$41="Non endémique"),0,COUNTRY_INFO!P12) -> 1 | H12: =IF(AND(INTRO!$E$37="Non endémique",INTRO!$E$41="Non endémique"),0,COUNTRY_INFO!R12) -> 0 | I12: =IF(INTRO!$E$39="Non endémique",IF($G12=1,DEC!I12,0),IF($G12=1,IVM!G12,0)) -> 613540 | J12: ALB | K12: =IF($J12="ALB", IF(INTRO!$E$39="Non endémique",IF($H12<>0,$D12*($H12-$G12),0),$D12*$H12), 0) -> 0 | L12: 0 | N12: 0 | O12: =IF($J12="MBD", IF(INTRO!$E$39="Non endémique",IF($H12<>0,$D12*($H12-$G12),0),$D12*$H12),0) -> 0 | P12: 0 | R12: 0 | T12: 613540 | U12: 3068 | W12: 0 | X12: 0 | Z12: 0 | AA12: 0
A13: =IF(AND(INTRO!$E$37="Non endémique",INTRO!$E$41="Non endémique")," ",IF(COUNTRY_INFO!A13=0," ",COUNTRY_INFO!A13)) -> Cote d'Ivoire | B13: =IF(AND(INTRO!$E$37="Non endémique",INTRO!$E$41="Non endémique")," ",IF(COUNTRY_INFO!B13=0," ",COUNTRY_INFO!B13)) -> ABIDJAN 1 | C13: =IF(AND(INTRO!$E$37="Non endémique",INTRO!$E$41="Non endémique")," ",IF(COUNTRY_INFO!C13=0," ",COUNTRY_INFO!C13)) -> YOPOUGON OUEST | D13: =IF(AND(INTRO!$E$37="Non endémique",INTRO!$E$41="Non endémique"),0,IF(AND(OR(COUNTRY_INFO!$H13=0,COUNTRY_INFO!$H13=4,COUNTRY_INFO!$H13=99),OR(COUNTRY_INFO!$J13=0,COUNTRY_INFO!$J13=4)),0,COUNTRY_INFO!$E13)) -> 88803 | E13: =IF(AND(INTRO!$E$37="Non endémique",INTRO!$E$41="Non endémique"),0,IF(AND(OR(COUNTRY_INFO!$H13=0,COUNTRY_INFO!$H13=4,COUNTRY_INFO!$H13=99),OR(COUNTRY_INFO!$J13=0,COUNTRY_INFO!$J13=4)),0,COUNTRY_INFO!$F13)) -> 178026 | F13: 266829 | G13: =IF(AND(INTRO!$E$37="Non endémique",INTRO!$E$41="Non endémique"),0,COUNTRY_INFO!P13) -> 1 | H13: =IF(AND(INTRO!$E$37="Non endémique",INTRO!$E$41="Non endémique"),0,COUNTRY_INFO!R13) -> 0 | I13: =IF(INTRO!$E$39="Non endémique",IF($G13=1,DEC!I13,0),IF($G13=1,IVM!G13,0)) -> 586421 | J13: ALB | K13: =IF($J13="ALB", IF(INTRO!$E$39="Non endémique",IF($H13<>0,$D13*($H13-$G13),0),$D13*$H13), 0) -> 0 | L13: 0 | N13: 0 | O13: =IF($J13="MBD", IF(INTRO!$E$39="Non endémique",IF($H13<>0,$D13*($H13-$G13),0),$D13*$H13),0) -> 0 | P13: 0 | R13: 0 | T13: 586421 | U13: 2933 | W13: 0 | X13: 0 | Z13: 0 | AA13: 0
A14: =IF(AND(INTRO!$E$37="Non endémique",INTRO!$E$41="Non endémique")," ",IF(COUNTRY_INFO!A14=0," ",COUNTRY_INFO!A14)) -> Cote d'Ivoire | B14: =IF(AND(INTRO!$E$37="Non endémique",INTRO!$E$41="Non endémique")," ",IF(COUNTRY_INFO!B14=0," ",COUNTRY_INFO!B14)) -> ABIDJAN 2 | C14: =IF(AND(INTRO!$E$37="Non endémique",INTRO!$E$41="Non endémique")," ",IF(COUNTRY_INFO!C14=0," ",COUNTRY_INFO!C14)) -> ADJAME-PLATEAU-ATTECOUBE | D14: =IF(AND(INTRO!$E$37="Non endémique",INTRO!$E$41="Non endémique"),0,IF(AND(OR(COUNTRY_INFO!$H14=0,COUNTRY_INFO!$H14=4,COUNTRY_INFO!$H14=99),OR(COUNTRY_INFO!$J14=0,COUNTRY_INFO!$J14=4)),0,COUNTRY_INFO!$E14)) -> 103573 | E14: =IF(AND(INTRO!$E$37="Non endémique",INTRO!$E$41="Non endémique"),0,IF(AND(OR(COUNTRY_INFO!$H14=0,COUNTRY_INFO!$H14=4,COUNTRY_INFO!$H14=99),OR(COUNTRY_INFO!$J14=0,COUNTRY_INFO!$J14=4)),0,COUNTRY_INFO!$F14)) -> 207635 | F14: 311208 | G14: =IF(AND(INTRO!$E$37="Non endémique",INTRO!$E$41="Non endémique"),0,COUNTRY_INFO!P14) -> 0 | H14: =IF(AND(INTRO!$E$37="Non endémique",INTRO!$E$41="Non endémique"),0,COUNTRY_INFO!R14) -> 0 | I14: =IF(INTRO!$E$39="Non endémique",IF($G14=1,DEC!I14,0),IF($G14=1,IVM!G14,0)) -> 0 | J14: ALB | K14: =IF($J14="ALB", IF(INTRO!$E$39="Non endémique",IF($H14<>0,$D14*($H14-$G14),0),$D14*$H14), 0) -> 0 | L14: 0 | N14: 0 | O14: =IF($J14="MBD", IF(INTRO!$E$39="Non endémique",IF($H14<>0,$D14*($H14-$G14),0),$D14*$H14),0) -> 0 | P14: 0 | R14: 0 | T14: 0 | U14: 0 | W14: 0 | X14: 0 | Z14: 0 | AA14: 0
A15: =IF(AND(INTRO!$E$37="Non endémique",INTRO!$E$41="Non endémique")," ",IF(COUNTRY_INFO!A15=0," ",COUNTRY_INFO!A15)) -> Cote d'Ivoire | B15: =IF(AND(INTRO!$E$37="Non endémique",INTRO!$E$41="Non endémique")," ",IF(COUNTRY_INFO!B15=0," ",COUNTRY_INFO!B15)) -> ABIDJAN 2 | C15: =IF(AND(INTRO!$E$37="Non endémique",INTRO!$E$41="Non endémique")," ",IF(COUNTRY_INFO!C15=0," ",COUNTRY_INFO!C15)) -> COCODY-BINGERVILLE | D15: =IF(AND(INTRO!$E$37="Non endémique",INTRO!$E$41="Non endémique"),0,IF(AND(OR(COUNTRY_INFO!$H15=0,COUNTRY_INFO!$H15=4,COUNTRY_INFO!$H15=99),OR(COUNTRY_INFO!$J15=0,COUNTRY_INFO!$J15=4)),0,COUNTRY_INFO!$E15)) -> 86328 | E15: =IF(AND(INTRO!$E$37="Non endémique",INTRO!$E$41="Non endémique"),0,IF(AND(OR(COUNTRY_INFO!$H15=0,COUNTRY_INFO!$H15=4,COUNTRY_INFO!$H15=99),OR(COUNTRY_INFO!$J15=0,COUNTRY_INFO!$J15=4)),0,COUNTRY_INFO!$F15)) -> 173065 | F15: 259393 | G15: =IF(AND(INTRO!$E$37="Non endémique",INTRO!$E$41="Non endémique"),0,COUNTRY_INFO!P15) -> 1 | H15: =IF(AND(INTRO!$E$37="Non endémique",INTRO!$E$41="Non endémique"),0,COUNTRY_INFO!R15) -> 0 | I15: =IF(INTRO!$E$39="Non endémique",IF($G15=1,DEC!I15,0),IF($G15=1,IVM!G15,0)) -> 570079 | J15: ALB | K15: =IF($J15="ALB", IF(INTRO!$E$39="Non endémique",IF($H15<>0,$D15*($H15-$G15),0),$D15*$H15), 0) -> 0 | L15: 0 | N15: 0 | O15: =IF($J15="MBD", IF(INTRO!$E$39="Non endémique",IF($H15<>0,$D15*($H15-$G15),0),$D15*$H15),0) -> 0 | P15: 0 | R15: 0 | T15: 570079 | U15: 2851 | W15: 0 | X15: 0 | Z15: 0 | AA15: 0
A16: =IF(AND(INTRO!$E$37="Non endémique",INTRO!$E$41="Non endémique")," ",IF(COUNTRY_INFO!A16=0," ",COUNTRY_INFO!A16)) -> Cote d'Ivoire | B16: =IF(AND(INTRO!$E$37="Non endémique",INTRO!$E$41="Non endémique")," ",IF(COUNTRY_INFO!B16=0," ",COUNTRY_INFO!B16)) -> ABIDJAN 2 | C16: =IF(AND(INTRO!$E$37="Non endémique",INTRO!$E$41="Non endémique")," ",IF(COUNTRY_INFO!C16=0," ",COUNTRY_INFO!C16)) -> KOUMASSI | D16: =IF(AND(INTRO!$E$37="Non endémique",INTRO!$E$41="Non endémique"),0,IF(AND(OR(COUNTRY_INFO!$H16=0,COUNTRY_INFO!$H16=4,COUNTRY_INFO!$H16=99),OR(COUNTRY_INFO!$J16=0,COUNTRY_INFO!$J16=4)),0,COUNTRY_INFO!$E16)) -> 74649 | E16: =IF(AND(INTRO!$E$37="Non endémique",INTRO!$E$41="Non endémique"),0,IF(AND(OR(COUNTRY_INFO!$H16=0,COUNTRY_INFO!$H16=4,COUNTRY_INFO!$H16=99),OR(COUNTRY_INFO!$J16=0,COUNTRY_INFO!$J16=4)),0,COUNTRY_INFO!$F16)) -> 149651 | F16: 224300 | G16: =IF(AND(INTRO!$E$37="Non endémique",INTRO!$E$41="Non endémique"),0,COUNTRY_INFO!P16) -> 0 | H16: =IF(AND(INTRO!$E$37="Non endémique",INTRO!$E$41="Non endémique"),0,COUNTRY_INFO!R16) -> 0 | I16: =IF(INTRO!$E$39="Non endémique",IF($G16=1,DEC!I16,0),IF($G16=1,IVM!G16,0)) -> 0 | J16: ALB | K16: =IF($J16="ALB", IF(INTRO!$E$39="Non endémique",IF($H16<>0,$D16*($H16-$G16),0),$D16*$H16), 0) -> 0 | L16: 0 | N16: 0 | O16: =IF($J16="MBD", IF(INTRO!$E$39="Non endémique",IF($H16<>0,$D16*($H16-$G16),0),$D16*$H16),0) -> 0 | P16: 0 | R16: 0 | T16: 0 | U16: 0 | W16: 0 | X16: 0 | Z16: 0 | AA16: 0
A17: =IF(AND(INTRO!$E$37="Non endémique",INTRO!$E$41="Non endémique")," ",IF(COUNTRY_INFO!A17=0," ",COUNTRY_INFO!A17)) -> Cote d'Ivoire | B17: =IF(AND(INTRO!$E$37="Non endémique",INTRO!$E$41="Non endémique")," ",IF(COUNTRY_INFO!B17=0," ",COUNTRY_INFO!B17)) -> ABIDJAN 2 | C17: =IF(AND(INTRO!$E$37="Non endémique",INTRO!$E$41="Non endémique")," ",IF(COUNTRY_INFO!C17=0," ",COUNTRY_INFO!C17)) -> PORT BOUET-VRIDI | D17: =IF(AND(INTRO!$E$37="Non endémique",INTRO!$E$41="Non endémique"),0,IF(AND(OR(COUNTRY_INFO!$H17=0,COUNTRY_INFO!$H17=4,COUNTRY_INFO!$H17=99),OR(COUNTRY_INFO!$J17=0,COUNTRY_INFO!$J17=4)),0,COUNTRY_INFO!$E17)) -> 62964 | E17: =IF(AND(INTRO!$E$37="Non endémique",INTRO!$E$41="Non endémique"),0,IF(AND(OR(COUNTRY_INFO!$H17=0,COUNTRY_INFO!$H17=4,COUNTRY_INFO!$H17=99),OR(COUNTRY_INFO!$J17=0,COUNTRY_INFO!$J17=4)),0,COUNTRY_INFO!$F17)) -> 126226 | F17: 189190 | G17: =IF(AND(INTRO!$E$37="Non endémique",INTRO!$E$41="Non endémique"),0,COUNTRY_INFO!P17) -> 0 | H17: =IF(AND(INTRO!$E$37="Non endémique",INTRO!$E$41="Non endémique"),0,COUNTRY_INFO!R17) -> 0 | I17: =IF(INTRO!$E$39="Non endémique",IF($G17=1,DEC!I17,0),IF($G17=1,IVM!G17,0)) -> 0 | J17: ALB | K17: =IF($J17="ALB", IF(INTRO!$E$39="Non endémique",IF($H17<>0,$D17*($H17-$G17),0),$D17*$H17), 0) -> 0 | L17: 0 | N17: 0 | O17: =IF($J17="MBD", IF(INTRO!$E$39="Non endémique",IF($H17<>0,$D17*($H17-$G17),0),$D17*$H17),0) -> 0 | P17: 0 | R17: 0 | T17: 0 | U17: 0 | W17: 0 | X17: 0 | Z17: 0 | AA17: 0
A18: =IF(AND(INTRO!$E$37="Non endémique",INTRO!$E$41="Non endémique")," ",IF(COUNTRY_INFO!A18=0," ",COUNTRY_INFO!A18)) -> Cote d'Ivoire | B18: =IF(AND(INTRO!$E$37="Non endémique",INTRO!$E$41="Non endémique")," ",IF(COUNTRY_INFO!B18=0," ",COUNTRY_INFO!B18)) -> ABIDJAN 2 | C18: =IF(AND(INTRO!$E$37="Non endémique",INTRO!$E$41="Non endémique")," ",IF(COUNTRY_INFO!C18=0," ",COUNTRY_INFO!C18)) -> TREICHVILLE-MARCORY | D18: =IF(AND(INTRO!$E$37="Non endémique",INTRO!$E$41="Non endémique"),0,IF(AND(OR(COUNTRY_INFO!$H18=0,COUNTRY_INFO!$H18=4,COUNTRY_INFO!$H18=99),OR(COUNTRY_INFO!$J18=0,COUNTRY_INFO!$J18=4)),0,COUNTRY_INFO!$E18)) -> 56913 | E18: =IF(AND(INTRO!$E$37="Non endémique",INTRO!$E$41="Non endémique"),0,IF(AND(OR(COUNTRY_INFO!$H18=0,COUNTRY_INFO!$H18=4,COUNTRY_INFO!$H18=99),OR(COUNTRY_INFO!$J18=0,COUNTRY_INFO!$J18=4)),0,COUNTRY_INFO!$F18)) -> 114095 | F18: 171008 | G18: =IF(AND(INTRO!$E$37="Non endémique",INTRO!$E$41="Non endémique"),0,COUNTRY_INFO!P18) -> 0 | H18: =IF(AND(INTRO!$E$37="Non endémique",INTRO!$E$41="Non endémique"),0,COUNTRY_INFO!R18) -> 0 | I18: =IF(INTRO!$E$39="Non endémique",IF($G18=1,DEC!I18,0),IF($G18=1,IVM!G18,0)) -> 0 | J18: ALB | K18: =IF($J18="ALB", IF(INTRO!$E$39="Non endémique",IF($H18<>0,$D18*($H18-$G18),0),$D18*$H18), 0) -> 0 | L18: 0 | N18: 0 | O18: =IF($J18="MBD", IF(INTRO!$E$39="Non endémique",IF($H18<>0,$D18*($H18-$G18),0),$D18*$H18),0) -> 0 | P18: 0 | R18: 0 | T18: 0 | U18: 0 | W18: 0 | X18: 0 | Z18: 0 | AA18: 0
A19: =IF(AND(INTRO!$E$37="Non endémique",INTRO!$E$41="Non endémique")," ",IF(COUNTRY_INFO!A19=0," ",COUNTRY_INFO!A19)) -> Cote d'Ivoire | B19: =IF(AND(INTRO!$E$37="Non endémique",INTRO!$E$41="Non endémique")," ",IF(COUNTRY_INFO!B19=0," ",COUNTRY_INFO!B19)) -> AGNEBY-TIASSA | C19: =IF(AND(INTRO!$E$37="Non endémique",INTRO!$E$41="Non endémique")," ",IF(COUNTRY_INFO!C19=0," ",COUNTRY_INFO!C19)) -> AGBOVILLE | D19: =IF(AND(INTRO!$E$37="Non endémique",INTRO!$E$41="Non endémique"),0,IF(AND(OR(COUNTRY_INFO!$H19=0,COUNTRY_INFO!$H19=4,COUNTRY_INFO!$H19=99),OR(COUNTRY_INFO!$J19=0,COUNTRY_INFO!$J19=4)),0,COUNTRY_INFO!$E19)) -> 44298 | E19: =IF(AND(INTRO!$E$37="Non endémique",INTRO!$E$41="Non endémique"),0,IF(AND(OR(COUNTRY_INFO!$H19=0,COUNTRY_INFO!$H19=4,COUNTRY_INFO!$H19=99),OR(COUNTRY_INFO!$J19=0,COUNTRY_INFO!$J19=4)),0,COUNTRY_INFO!$F19)) -> 88806 | F19: 133104 | G19: =IF(AND(INTRO!$E$37="Non endémique",INTRO!$E$41="Non endémique"),0,COUNTRY_INFO!P19) -> 1 | H19: =IF(AND(INTRO!$E$37="Non endémique",INTRO!$E$41="Non endémique"),0,COUNTRY_INFO!R19) -> 0 | I19: =IF(INTRO!$E$39="Non endémique",IF($G19=1,DEC!I19,0),IF($G19=1,IVM!G19,0)) -> 292529 | J19: ALB | K19: =IF($J19="ALB", IF(INTRO!$E$39="Non endémique",IF($H19<>0,$D19*($H19-$G19),0),$D19*$H19), 0) -> 0 | L19: 0 | N19: 0 | O19: =IF($J19="MBD", IF(INTRO!$E$39="Non endémique",IF($H19<>0,$D19*($H19-$G19),0),$D19*$H19),0) -> 0 | P19: 0 | R19: 0 | T19: 292529 | U19: 1463 | W19: 0 | X19: 0 | Z19: 0 | AA19: 0
A20: =IF(AND(INTRO!$E$37="Non endémique",INTRO!$E$41="Non endémique")," ",IF(COUNTRY_INFO!A20=0," ",COUNTRY_INFO!A20)) -> Cote d'Ivoire | B20: =IF(AND(INTRO!$E$37="Non endémique",INTRO!$E$41="Non endémique")," ",IF(COUNTRY_INFO!B20=0," ",COUNTRY_INFO!B20)) -> AGNEBY-TIASSA | C20: =IF(AND(INTRO!$E$37="Non endémique",INTRO!$E$41="Non endémique")," ",IF(COUNTRY_INFO!C20=0," ",COUNTRY_INFO!C20)) -> SIKENSI | D20: =IF(AND(INTRO!$E$37="Non endémique",INTRO!$E$41="Non endémique"),0,IF(AND(OR(COUNTRY_INFO!$H20=0,COUNTRY_INFO!$H20=4,COUNTRY_INFO!$H20=99),OR(COUNTRY_INFO!$J20=0,COUNTRY_INFO!$J20=4)),0,COUNTRY_INFO!$E20)) -> 11895 | E20: =IF(AND(INTRO!$E$37="Non endémique",INTRO!$E$41="Non endémique"),0,IF(AND(OR(COUNTRY_INFO!$H20=0,COUNTRY_INFO!$H20=4,COUNTRY_INFO!$H20=99),OR(COUNTRY_INFO!$J20=0,COUNTRY_INFO!$J20=4)),0,COUNTRY_INFO!$F20)) -> 23847 | F20: 35742 | G20: =IF(AND(INTRO!$E$37="Non endémique",INTRO!$E$41="Non endémique"),0,COUNTRY_INFO!P20) -> 1 | H20: =IF(AND(INTRO!$E$37="Non endémique",INTRO!$E$41="Non endémique"),0,COUNTRY_INFO!R20) -> 1 | I20: =IF(INTRO!$E$39="Non endémique",IF($G20=1,DEC!I20,0),IF($G20=1,IVM!G20,0)) -> 78552 | J20: ALB | K20: =IF($J20="ALB", IF(INTRO!$E$39="Non endémique",IF($H20<>0,$D20*($H20-$G20),0),$D20*$H20), 0) -> 11895 | L20: 0 | N20: 11895 | O20: =IF($J20="MBD", IF(INTRO!$E$39="Non endémique",IF($H20<>0,$D20*($H20-$G20),0),$D20*$H20),0) -> 0 | P20: 0 | R20: 0 | T20: 78552 | U20: 393 | W20: 0 | X20: 0 | Z20: 0 | AA20: 0
A21: =IF(AND(INTRO!$E$37="Non endémique",INTRO!$E$41="Non endémique")," ",IF(COUNTRY_INFO!A21=0," ",COUNTRY_INFO!A21)) -> Cote d'Ivoire | B21: =IF(AND(INTRO!$E$37="Non endémique",INTRO!$E$41="Non endémique")," ",IF(COUNTRY_INFO!B21=0," ",COUNTRY_INFO!B21)) -> AGNEBY-TIASSA | C21: =IF(AND(INTRO!$E$37="Non endémique",INTRO!$E$41="Non endémique")," ",IF(COUNTRY_INFO!C21=0," ",COUNTRY_INFO!C21)) -> TIASSALE | D21: =IF(AND(INTRO!$E$37="Non endémique",INTRO!$E$41="Non endémique"),0,IF(AND(OR(COUNTRY_INFO!$H21=0,COUNTRY_INFO!$H21=4,COUNTRY_INFO!$H21=99),OR(COUNTRY_INFO!$J21=0,COUNTRY_INFO!$J21=4)),0,COUNTRY_INFO!$E21)) -> 35836 | E21: =IF(AND(INTRO!$E$37="Non endémique",INTRO!$E$41="Non endémique"),0,IF(AND(OR(COUNTRY_INFO!$H21=0,COUNTRY_INFO!$H21=4,COUNTRY_INFO!$H21=99),OR(COUNTRY_INFO!$J21=0,COUNTRY_INFO!$J21=4)),0,COUNTRY_INFO!$F21)) -> 71841 | F21: 107677 | G21: =IF(AND(INTRO!$E$37="Non endémique",INTRO!$E$41="Non endémique"),0,COUNTRY_INFO!P21) -> 1 | H21: =IF(AND(INTRO!$E$37="Non endémique",INTRO!$E$41="Non endémique"),0,COUNTRY_INFO!R21) -> 1 | I21: =IF(INTRO!$E$39="Non endémique",IF($G21=1,DEC!I21,0),IF($G21=1,IVM!G21,0)) -> 236646 | J21: ALB | K21: =IF($J21="ALB", IF(INTRO!$E$39="Non endémique",IF($H21<>0,$D21*($H21-$G21),0),$D21*$H21), 0) -> 35836 | L21: 0 | N21: 35836 | O21: =IF($J21="MBD", IF(INTRO!$E$39="Non endémique",IF($H21<>0,$D21*($H21-$G21),0),$D21*$H21),0) -> 0 | P21: 0 | R21: 0 | T21: 236646 | U21: 1184 | W21: 0 | X21: 0 | Z21: 0 | AA21: 0
A22: =IF(AND(INTRO!$E$37="Non endémique",INTRO!$E$41="Non endémique")," ",IF(COUNTRY_INFO!A22=0," ",COUNTRY_INFO!A22)) -> Cote d'Ivoire | B22: =IF(AND(INTRO!$E$37="Non endémique",INTRO!$E$41="Non endémique")," ",IF(COUNTRY_INFO!B22=0," ",COUNTRY_INFO!B22)) -> BAFING | C22: =IF(AND(INTRO!$E$37="Non endémique",INTRO!$E$41="Non endémique")," ",IF(COUNTRY_INFO!C22=0," ",COUNTRY_INFO!C22)) -> KORO | D22: =IF(AND(INTRO!$E$37="Non endémique",INTRO!$E$41="Non endémique"),0,IF(AND(OR(COUNTRY_INFO!$H22=0,COUNTRY_INFO!$H22=4,COUNTRY_INFO!$H22=99),OR(COUNTRY_INFO!$J22=0,COUNTRY_INFO!$J22=4)),0,COUNTRY_INFO!$E22)) -> 9336 | E22: =IF(AND(INTRO!$E$37="Non endémique",INTRO!$E$41="Non endémique"),0,IF(AND(OR(COUNTRY_INFO!$H22=0,COUNTRY_INFO!$H22=4,COUNTRY_INFO!$H22=99),OR(COUNTRY_INFO!$J22=0,COUNTRY_INFO!$J22=4)),0,COUNTRY_INFO!$F22)) -> 18717 | F22: 28053 | G22: =IF(AND(INTRO!$E$37="Non endémique",INTRO!$E$41="Non endémique"),0,COUNTRY_INFO!P22) -> 1 | H22: =IF(AND(INTRO!$E$37="Non endémique",INTRO!$E$41="Non endémique"),0,COUNTRY_INFO!R22) -> 1 | I22: =IF(INTRO!$E$39="Non endémique",IF($G22=1,DEC!I22,0),IF($G22=1,IVM!G22,0)) -> 61654 | J22: ALB | K22: =IF($J22="ALB", IF(INTRO!$E$39="Non endémique",IF($H22<>0,$D22*($H22-$G22),0),$D22*$H22), 0) -> 9336 | L22: 0 | N22: 9336 | O22: =IF($J22="MBD", IF(INTRO!$E$39="Non endémique",IF($H22<>0,$D22*($H22-$G22),0),$D22*$H22),0) -> 0 | P22: 0 | R22: 0 | T22: 61654 | U22: 309 | W22: 0 | X22: 0 | Z22: 0 | AA22: 0
A23: =IF(AND(INTRO!$E$37="Non endémique",INTRO!$E$41="Non endémique")," ",IF(COUNTRY_INFO!A23=0," ",COUNTRY_INFO!A23)) -> Cote d'Ivoire | B23: =IF(AND(INTRO!$E$37="Non endémique",INTRO!$E$41="Non endémique")," ",IF(COUNTRY_INFO!B23=0," ",COUNTRY_INFO!B23)) -> BAFING | C23: =IF(AND(INTRO!$E$37="Non endémique",INTRO!$E$41="Non endémique")," ",IF(COUNTRY_INFO!C23=0," ",COUNTRY_INFO!C23)) -> OUANINOU | D23: =IF(AND(INTRO!$E$37="Non endémique",INTRO!$E$41="Non endémique"),0,IF(AND(OR(COUNTRY_INFO!$H23=0,COUNTRY_INFO!$H23=4,COUNTRY_INFO!$H23=99),OR(COUNTRY_INFO!$J23=0,COUNTRY_INFO!$J23=4)),0,COUNTRY_INFO!$E23)) -> 7160 | E23: =IF(AND(INTRO!$E$37="Non endémique",INTRO!$E$41="Non endémique"),0,IF(AND(OR(COUNTRY_INFO!$H23=0,COUNTRY_INFO!$H23=4,COUNTRY_INFO!$H23=99),OR(COUNTRY_INFO!$J23=0,COUNTRY_INFO!$J23=4)),0,COUNTRY_INFO!$F23)) -> 14354 | F23: 21514 | G23: =IF(AND(INTRO!$E$37="Non endémique",INTRO!$E$41="Non endémique"),0,COUNTRY_INFO!P23) -> 1 | H23: =IF(AND(INTRO!$E$37="Non endémique",INTRO!$E$41="Non endémique"),0,COUNTRY_INFO!R23) -> 1 | I23: =IF(INTRO!$E$39="Non endémique",IF($G23=1,DEC!I23,0),IF($G23=1,IVM!G23,0)) -> 47282 | J23: ALB | K23: =IF($J23="ALB", IF(INTRO!$E$39="Non endémique",IF($H23<>0,$D23*($H23-$G23),0),$D23*$H23), 0) -> 7160 | L23: 0 | N23: 7160 | O23: =IF($J23="MBD", IF(INTRO!$E$39="Non endémique",IF($H23<>0,$D23*($H23-$G23),0),$D23*$H23),0) -> 0 | P23: 0 | R23: 0 | T23: 47282 | U23: 237 | W23: 0 | X23: 0 | Z23: 0 | AA23: 0
A24: =IF(AND(INTRO!$E$37="Non endémique",INTRO!$E$41="Non endémique")," ",IF(COUNTRY_INFO!A24=0," ",COUNTRY_INFO!A24)) -> Cote d'Ivoire | B24: =IF(AND(INTRO!$E$37="Non endémique",INTRO!$E$41="Non endémique")," ",IF(COUNTRY_INFO!B24=0," ",COUNTRY_INFO!B24)) -> BAFING | C24: =IF(AND(INTRO!$E$37="Non endémique",INTRO!$E$41="Non endémique")," ",IF(COUNTRY_INFO!C24=0," ",COUNTRY_INFO!C24)) -> TOUBA | D24: =IF(AND(INTRO!$E$37="Non endémique",INTRO!$E$41="Non endémique"),0,IF(AND(OR(COUNTRY_INFO!$H24=0,COUNTRY_INFO!$H24=4,COUNTRY_INFO!$H24=99),OR(COUNTRY_INFO!$J24=0,COUNTRY_INFO!$J24=4)),0,COUNTRY_INFO!$E24)) -> 12367 | E24: =IF(AND(INTRO!$E$37="Non endémique",INTRO!$E$41="Non endémique"),0,IF(AND(OR(COUNTRY_INFO!$H24=0,COUNTRY_INFO!$H24=4,COUNTRY_INFO!$H24=99),OR(COUNTRY_INFO!$J24=0,COUNTRY_INFO!$J24=4)),0,COUNTRY_INFO!$F24)) -> 24792 | F24: 37159 | G24: =IF(AND(INTRO!$E$37="Non endémique",INTRO!$E$41="Non endémique"),0,COUNTRY_INFO!P24) -> 1 | H24: =IF(AND(INTRO!$E$37="Non endémique",INTRO!$E$41="Non endémique"),0,COUNTRY_INFO!R24) -> 1 | I24: =IF(INTRO!$E$39="Non endémique",IF($G24=1,DEC!I24,0),IF($G24=1,IVM!G24,0)) -> 81666 | J24: ALB | K24: =IF($J24="ALB", IF(INTRO!$E$39="Non endémique",IF($H24<>0,$D24*($H24-$G24),0),$D24*$H24), 0) -> 12367 | L24: 0 | N24: 12367 | O24: =IF($J24="MBD", IF(INTRO!$E$39="Non endémique",IF($H24<>0,$D24*($H24-$G24),0),$D24*$H24),0) -> 0 | P24: 0 | R24: 0 | T24: 81666 | U24: 409 | W24: 0 | X24: 0 | Z24: 0 | AA24: 0
A25: =IF(AND(INTRO!$E$37="Non endémique",INTRO!$E$41="Non endémique")," ",IF(COUNTRY_INFO!A25=0," ",COUNTRY_INFO!A25)) -> Cote d'Ivoire | B25: =IF(AND(INTRO!$E$37="Non endémique",INTRO!$E$41="Non endémique")," ",IF(COUNTRY_INFO!B25=0," ",COUNTRY_INFO!B25)) -> BAGOUE | C25: =IF(AND(INTRO!$E$37="Non endémique",INTRO!$E$41="Non endémique")," ",IF(COUNTRY_INFO!C25=0," ",COUNTRY_INFO!C25)) -> BOUNDIALI | D25: =IF(AND(INTRO!$E$37="Non endémique",INTRO!$E$41="Non endémique"),0,IF(AND(OR(COUNTRY_INFO!$H25=0,COUNTRY_INFO!$H25=4,COUNTRY_INFO!$H25=99),OR(COUNTRY_INFO!$J25=0,COUNTRY_INFO!$J25=4)),0,COUNTRY_INFO!$E25)) -> 20913 | E25: =IF(AND(INTRO!$E$37="Non endémique",INTRO!$E$41="Non endémique"),0,IF(AND(OR(COUNTRY_INFO!$H25=0,COUNTRY_INFO!$H25=4,COUNTRY_INFO!$H25=99),OR(COUNTRY_INFO!$J25=0,COUNTRY_INFO!$J25=4)),0,COUNTRY_INFO!$F25)) -> 41925 | F25: 62838 | G25: =IF(AND(INTRO!$E$37="Non endémique",INTRO!$E$41="Non endémique"),0,COUNTRY_INFO!P25) -> 1 | H25: =IF(AND(INTRO!$E$37="Non endémique",INTRO!$E$41="Non endémique"),0,COUNTRY_INFO!R25) -> 0 | I25: =IF(INTRO!$E$39="Non endémique",IF($G25=1,DEC!I25,0),IF($G25=1,IVM!G25,0)) -> 138103 | J25: ALB | K25: =IF($J25="ALB", IF(INTRO!$E$39="Non endémique",IF($H25<>0,$D25*($H25-$G25),0),$D25*$H25), 0) -> 0 | L25: 0 | N25: 0 | O25: =IF($J25="MBD", IF(INTRO!$E$39="Non endémique",IF($H25<>0,$D25*($H25-$G25),0),$D25*$H25),0) -> 0 | P25: 0 | R25: 0 | T25: 138103 | U25: 691 | W25: 0 | X25: 0 | Z25: 0 | AA25: 0
A26: =IF(AND(INTRO!$E$37="Non endémique",INTRO!$E$41="Non endémique")," ",IF(COUNTRY_INFO!A26=0," ",COUNTRY_INFO!A26)) -> Cote d'Ivoire | B26: =IF(AND(INTRO!$E$37="Non endémique",INTRO!$E$41="Non endémique")," ",IF(COUNTRY_INFO!B26=0," ",COUNTRY_INFO!B26)) -> BAGOUE | C26: =IF(AND(INTRO!$E$37="Non endémique",INTRO!$E$41="Non endémique")," ",IF(COUNTRY_INFO!C26=0," ",COUNTRY_INFO!C26)) -> KOUTO | D26: =IF(AND(INTRO!$E$37="Non endémique",INTRO!$E$41="Non endémique"),0,IF(AND(OR(COUNTRY_INFO!$H26=0,COUNTRY_INFO!$H26=4,COUNTRY_INFO!$H26=99),OR(COUNTRY_INFO!$J26=0,COUNTRY_INFO!$J26=4)),0,COUNTRY_INFO!$E26)) -> 21227 | E26: =IF(AND(INTRO!$E$37="Non endémique",INTRO!$E$41="Non endémique"),0,IF(AND(OR(COUNTRY_INFO!$H26=0,COUNTRY_INFO!$H26=4,COUNTRY_INFO!$H26=99),OR(COUNTRY_INFO!$J26=0,COUNTRY_INFO!$J26=4)),0,COUNTRY_INFO!$F26)) -> 42554 | F26: 63781 | G26: =IF(AND(INTRO!$E$37="Non endémique",INTRO!$E$41="Non endémique"),0,COUNTRY_INFO!P26) -> 1 | H26: =IF(AND(INTRO!$E$37="Non endémique",INTRO!$E$41="Non endémique"),0,COUNTRY_INFO!R26) -> 0 | I26: =IF(INTRO!$E$39="Non endémique",IF($G26=1,DEC!I26,0),IF($G26=1,IVM!G26,0)) -> 140173 | J26: ALB | K26: =IF($J26="ALB", IF(INTRO!$E$39="Non endémique",IF($H26<>0,$D26*($H26-$G26),0),$D26*$H26), 0) -> 0 | L26: 0 | N26: 0 | O26: =IF($J26="MBD", IF(INTRO!$E$39="Non endémique",IF($H26<>0,$D26*($H26-$G26),0),$D26*$H26),0) -> 0 | P26: 0 | R26: 0 | T26: 140173 | U26: 701 | W26: 0 | X26: 0 | Z26: 0 | AA26: 0
A27: =IF(AND(INTRO!$E$37="Non endémique",INTRO!$E$41="Non endémique")," ",IF(COUNTRY_INFO!A27=0," ",COUNTRY_INFO!A27)) -> Cote d'Ivoire | B27: =IF(AND(INTRO!$E$37="Non endémique",INTRO!$E$41="Non endémique")," ",IF(COUNTRY_INFO!B27=0," ",COUNTRY_INFO!B27)) -> BAGOUE | C27: =IF(AND(INTRO!$E$37="Non endémique",INTRO!$E$41="Non endémique")," ",IF(COUNTRY_INFO!C27=0," ",COUNTRY_INFO!C27)) -> TENGRELA | D27: =IF(AND(INTRO!$E$37="Non endémique",INTRO!$E$41="Non endémique"),0,IF(AND(OR(COUNTRY_INFO!$H27=0,COUNTRY_INFO!$H27=4,COUNTRY_INFO!$H27=99),OR(COUNTRY_INFO!$J27=0,COUNTRY_INFO!$J27=4)),0,COUNTRY_INFO!$E27)) -> 19393 | E27: =IF(AND(INTRO!$E$37="Non endémique",INTRO!$E$41="Non endémique"),0,IF(AND(OR(COUNTRY_INFO!$H27=0,COUNTRY_INFO!$H27=4,COUNTRY_INFO!$H27=99),OR(COUNTRY_INFO!$J27=0,COUNTRY_INFO!$J27=4)),0,COUNTRY_INFO!$F27)) -> 38879 | F27: 58272 | G27: =IF(AND(INTRO!$E$37="Non endémique",INTRO!$E$41="Non endémique"),0,COUNTRY_INFO!P27) -> 1 | H27: =IF(AND(INTRO!$E$37="Non endémique",INTRO!$E$41="Non endémique"),0,COUNTRY_INFO!R27) -> 0 | I27: =IF(INTRO!$E$39="Non endémique",IF($G27=1,DEC!I27,0),IF($G27=1,IVM!G27,0)) -> 128068 | J27: ALB | K27: =IF($J27="ALB", IF(INTRO!$E$39="Non endémique",IF($H27<>0,$D27*($H27-$G27),0),$D27*$H27), 0) -> 0 | L27: 0 | N27: 0 | O27: =IF($J27="MBD", IF(INTRO!$E$39="Non endémique",IF($H27<>0,$D27*($H27-$G27),0),$D27*$H27),0) -> 0 | P27: 0 | R27: 0 | T27: 128068 | U27: 641 | W27: 0 | X27: 0 | Z27: 0 | AA27: 0
A28: =IF(AND(INTRO!$E$37="Non endémique",INTRO!$E$41="Non endémique")," ",IF(COUNTRY_INFO!A28=0," ",COUNTRY_INFO!A28)) -> Cote d'Ivoire | B28: =IF(AND(INTRO!$E$37="Non endémique",INTRO!$E$41="Non endémique")," ",IF(COUNTRY_INFO!B28=0," ",COUNTRY_INFO!B28)) -> BELIER | C28: =IF(AND(INTRO!$E$37="Non endémique",INTRO!$E$41="Non endémique")," ",IF(COUNTRY_INFO!C28=0," ",COUNTRY_INFO!C28)) -> DIDIEVI | D28: =IF(AND(INTRO!$E$37="Non endémique",INTRO!$E$41="Non endémique"),0,IF(AND(OR(COUNTRY_INFO!$H28=0,COUNTRY_INFO!$H28=4,COUNTRY_INFO!$H28=99),OR(COUNTRY_INFO!$J28=0,COUNTRY_INFO!$J28=4)),0,COUNTRY_INFO!$E28)) -> 14359 | E28: =IF(AND(INTRO!$E$37="Non endémique",INTRO!$E$41="Non endémique"),0,IF(AND(OR(COUNTRY_INFO!$H28=0,COUNTRY_INFO!$H28=4,COUNTRY_INFO!$H28=99),OR(COUNTRY_INFO!$J28=0,COUNTRY_INFO!$J28=4)),0,COUNTRY_INFO!$F28)) -> 28786 | F28: 43145 | G28: =IF(AND(INTRO!$E$37="Non endémique",INTRO!$E$41="Non endémique"),0,COUNTRY_INFO!P28) -> 1 | H28: =IF(AND(INTRO!$E$37="Non endémique",INTRO!$E$41="Non endémique"),0,COUNTRY_INFO!R28) -> 1 | I28: =IF(INTRO!$E$39="Non endémique",IF($G28=1,DEC!I28,0),IF($G28=1,IVM!G28,0)) -> 94822 | J28: ALB | K28: =IF($J28="ALB", IF(INTRO!$E$39="Non endémique",IF($H28<>0,$D28*($H28-$G28),0),$D28*$H28), 0) -> 14359 | L28: 0 | N28: 14359 | O28: =IF($J28="MBD", IF(INTRO!$E$39="Non endémique",IF($H28<>0,$D28*($H28-$G28),0),$D28*$H28),0) -> 0 | P28: 0 | R28: 0 | T28: 94822 | U28: 475 | W28: 0 | X28: 0 | Z28: 0 | AA28: 0
A29: =IF(AND(INTRO!$E$37="Non endémique",INTRO!$E$41="Non endémique")," ",IF(COUNTRY_INFO!A29=0," ",COUNTRY_INFO!A29)) -> Cote d'Ivoire | B29: =IF(AND(INTRO!$E$37="Non endémique",INTRO!$E$41="Non endémique")," ",IF(COUNTRY_INFO!B29=0," ",COUNTRY_INFO!B29)) -> BELIER | C29: =IF(AND(INTRO!$E$37="Non endémique",INTRO!$E$41="Non endémique")," ",IF(COUNTRY_INFO!C29=0," ",COUNTRY_INFO!C29)) -> TIEBISSOU | D29: =IF(AND(INTRO!$E$37="Non endémique",INTRO!$E$41="Non endémique"),0,IF(AND(OR(COUNTRY_INFO!$H29=0,COUNTRY_INFO!$H29=4,COUNTRY_INFO!$H29=99),OR(COUNTRY_INFO!$J29=0,COUNTRY_INFO!$J29=4)),0,COUNTRY_INFO!$E29)) -> 15131 | E29: =IF(AND(INTRO!$E$37="Non endémique",INTRO!$E$41="Non endémique"),0,IF(AND(OR(COUNTRY_INFO!$H29=0,COUNTRY_INFO!$H29=4,COUNTRY_INFO!$H29=99),OR(COUNTRY_INFO!$J29=0,COUNTRY_INFO!$J29=4)),0,COUNTRY_INFO!$F29)) -> 30334 | F29: 45465 | G29: =IF(AND(INTRO!$E$37="Non endémique",INTRO!$E$41="Non endémique"),0,COUNTRY_INFO!P29) -> 1 | H29: =IF(AND(INTRO!$E$37="Non endémique",INTRO!$E$41="Non endémique"),0,COUNTRY_INFO!R29) -> 1 | I29: =IF(INTRO!$E$39="Non endémique",IF($G29=1,DEC!I29,0),IF($G29=1,IVM!G29,0)) -> 99920 | J29: ALB | K29: =IF($J29="ALB", IF(INTRO!$E$39="Non endémique",IF($H29<>0,$D29*($H29-$G29),0),$D29*$H29), 0) -> 15131 | L29: 0 | N29: 15131 | O29: =IF($J29="MBD", IF(INTRO!$E$39="Non endémique",IF($H29<>0,$D29*($H29-$G29),0),$D29*$H29),0) -> 0 | P29: 0 | R29: 0 | T29: 99920 | U29: 500 | W29: 0 | X29: 0 | Z29: 0 | AA29: 0
A30: =IF(AND(INTRO!$E$37="Non endémique",INTRO!$E$41="Non endémique")," ",IF(COUNTRY_INFO!A30=0," ",COUNTRY_INFO!A30)) -> Cote d'Ivoire | B30: =IF(AND(INTRO!$E$37="Non endémique",INTRO!$E$41="Non endémique")," ",IF(COUNTRY_INFO!B30=0," ",COUNTRY_INFO!B30)) -> BELIER | C30: =IF(AND(INTRO!$E$37="Non endémique",INTRO!$E$41="Non endémique")," ",IF(COUNTRY_INFO!C30=0," ",COUNTRY_INFO!C30)) -> TOUMODI | D30: =IF(AND(INTRO!$E$37="Non endémique",INTRO!$E$41="Non endémique"),0,IF(AND(OR(COUNTRY_INFO!$H30=0,COUNTRY_INFO!$H30=4,COUNTRY_INFO!$H30=99),OR(COUNTRY_INFO!$J30=0,COUNTRY_INFO!$J30=4)),0,COUNTRY_INFO!$E30)) -> 23652 | E30: =IF(AND(INTRO!$E$37="Non endémique",INTRO!$E$41="Non endémique"),0,IF(AND(OR(COUNTRY_INFO!$H30=0,COUNTRY_INFO!$H30=4,COUNTRY_INFO!$H30=99),OR(COUNTRY_INFO!$J30=0,COUNTRY_INFO!$J30=4)),0,COUNTRY_INFO!$F30)) -> 47416 | F30: 71068 | G30: =IF(AND(INTRO!$E$37="Non endémique",INTRO!$E$41="Non endémique"),0,COUNTRY_INFO!P30) -> 1 | H30: =IF(AND(INTRO!$E$37="Non endémique",INTRO!$E$41="Non endémique"),0,COUNTRY_INFO!R30) -> 1 | I30: =IF(INTRO!$E$39="Non endémique",IF($G30=1,DEC!I30,0),IF($G30=1,IVM!G30,0)) -> 156189 | J30: ALB | K30: =IF($J30="ALB", IF(INTRO!$E$39="Non endémique",IF($H30<>0,$D30*($H30-$G30),0),$D30*$H30), 0) -> 23652 | L30: 0 | N30: 23652 | O30: =IF($J30="MBD", IF(INTRO!$E$39="Non endémique",IF($H30<>0,$D30*($H30-$G30),0),$D30*$H30),0) -> 0 | P30: 0 | R30: 0 | T30: 156189 | U30: 781 | W30: 0 | X30: 0 | Z30: 0 | AA30: 0
A31: =IF(AND(INTRO!$E$37="Non endémique",INTRO!$E$41="Non endémique")," ",IF(COUNTRY_INFO!A31=0," ",COUNTRY_INFO!A31)) -> Cote d'Ivoire | B31: =IF(AND(INTRO!$E$37="Non endémique",INTRO!$E$41="Non endémique")," ",IF(COUNTRY_INFO!B31=0," ",COUNTRY_INFO!B31)) -> BELIER | C31: =IF(AND(INTRO!$E$37="Non endémique",INTRO!$E$41="Non endémique")," ",IF(COUNTRY_INFO!C31=0," ",COUNTRY_INFO!C31)) -> YAMOUSSOUKRO | D31: =IF(AND(INTRO!$E$37="Non endémique",INTRO!$E$41="Non endémique"),0,IF(AND(OR(COUNTRY_INFO!$H31=0,COUNTRY_INFO!$H31=4,COUNTRY_INFO!$H31=99),OR(COUNTRY_INFO!$J31=0,COUNTRY_INFO!$J31=4)),0,COUNTRY_INFO!$E31)) -> 47185 | E31: =IF(AND(INTRO!$E$37="Non endémique",INTRO!$E$41="Non endémique"),0,IF(AND(OR(COUNTRY_INFO!$H31=0,COUNTRY_INFO!$H31=4,COUNTRY_INFO!$H31=99),OR(COUNTRY_INFO!$J31=0,COUNTRY_INFO!$J31=4)),0,COUNTRY_INFO!$F31)) -> 94593 | F31: 141778 | G31: =IF(AND(INTRO!$E$37="Non endémique",INTRO!$E$41="Non endémique"),0,COUNTRY_INFO!P31) -> 1 | H31: =IF(AND(INTRO!$E$37="Non endémique",INTRO!$E$41="Non endémique"),0,COUNTRY_INFO!R31) -> 1 | I31: =IF(INTRO!$E$39="Non endémique",IF($G31=1,DEC!I31,0),IF($G31=1,IVM!G31,0)) -> 311592 | J31: ALB | K31: =IF($J31="ALB", IF(INTRO!$E$39="Non endémique",IF($H31<>0,$D31*($H31-$G31),0),$D31*$H31), 0) -> 47185 | L31: 0 | N31: 47185 | O31: =IF($J31="MBD", IF(INTRO!$E$39="Non endémique",IF($H31<>0,$D31*($H31-$G31),0),$D31*$H31),0) -> 0 | P31: 0 | R31: 0 | T31: 311592 | U31: 1558 | W31: 0 | X31: 0 | Z31: 0 | AA31: 0
A32: =IF(AND(INTRO!$E$37="Non endémique",INTRO!$E$41="Non endémique")," ",IF(COUNTRY_INFO!A32=0," ",COUNTRY_INFO!A32)) -> Cote d'Ivoire | B32: =IF(AND(INTRO!$E$37="Non endémique",INTRO!$E$41="Non endémique")," ",IF(COUNTRY_INFO!B32=0," ",COUNTRY_INFO!B32)) -> BERE | C32: =IF(AND(INTRO!$E$37="Non endémique",INTRO!$E$41="Non endémique")," ",IF(COUNTRY_INFO!C32=0," ",COUNTRY_INFO!C32)) -> DIANRA | D32: =IF(AND(INTRO!$E$37="Non endémique",INTRO!$E$41="Non endémique"),0,IF(AND(OR(COUNTRY_INFO!$H32=0,COUNTRY_INFO!$H32=4,COUNTRY_INFO!$H32=99),OR(COUNTRY_INFO!$J32=0,COUNTRY_INFO!$J32=4)),0,COUNTRY_INFO!$E32)) -> 12162 | E32: =IF(AND(INTRO!$E$37="Non endémique",INTRO!$E$41="Non endémique"),0,IF(AND(OR(COUNTRY_INFO!$H32=0,COUNTRY_INFO!$H32=4,COUNTRY_INFO!$H32=99),OR(COUNTRY_INFO!$J32=0,COUNTRY_INFO!$J32=4)),0,COUNTRY_INFO!$F32)) -> 24382 | F32: 36544 | G32: =IF(AND(INTRO!$E$37="Non endémique",INTRO!$E$41="Non endémique"),0,COUNTRY_INFO!P32) -> 0 | H32: =IF(AND(INTRO!$E$37="Non endémique",INTRO!$E$41="Non endémique"),0,COUNTRY_INFO!R32) -> 1 | I32: =IF(INTRO!$E$39="Non endémique",IF($G32=1,DEC!I32,0),IF($G32=1,IVM!G32,0)) -> 0 | J32: ALB | K32: =IF($J32="ALB", IF(INTRO!$E$39="Non endémique",IF($H32<>0,$D32*($H32-$G32),0),$D32*$H32), 0) -> 12162 | L32: 24382 | N32: 36544 | O32: =IF($J32="MBD", IF(INTRO!$E$39="Non endémique",IF($H32<>0,$D32*($H32-$G32),0),$D32*$H32),0) -> 0 | P32: 0 | R32: 0 | T32: 0 | U32: 0 | W32: 24382 | X32: 122 | Z32: 0 | AA32: 0
A33: =IF(AND(INTRO!$E$37="Non endémique",INTRO!$E$41="Non endémique")," ",IF(COUNTRY_INFO!A33=0," ",COUNTRY_INFO!A33)) -> Cote d'Ivoire | B33: =IF(AND(INTRO!$E$37="Non endémique",INTRO!$E$41="Non endémique")," ",IF(COUNTRY_INFO!B33=0," ",COUNTRY_INFO!B33)) -> BERE | C33: =IF(AND(INTRO!$E$37="Non endémique",INTRO!$E$41="Non endémique")," ",IF(COUNTRY_INFO!C33=0," ",COUNTRY_INFO!C33)) -> KOUNAHIRI | D33: =IF(AND(INTRO!$E$37="Non endémique",INTRO!$E$41="Non endémique"),0,IF(AND(OR(COUNTRY_INFO!$H33=0,COUNTRY_INFO!$H33=4,COUNTRY_INFO!$H33=99),OR(COUNTRY_INFO!$J33=0,COUNTRY_INFO!$J33=4)),0,COUNTRY_INFO!$E33)) -> 11916 | E33: =IF(AND(INTRO!$E$37="Non endémique",INTRO!$E$41="Non endémique"),0,IF(AND(OR(COUNTRY_INFO!$H33=0,COUNTRY_INFO!$H33=4,COUNTRY_INFO!$H33=99),OR(COUNTRY_INFO!$J33=0,COUNTRY_INFO!$J33=4)),0,COUNTRY_INFO!$F33)) -> 23888 | F33: 35804 | G33: =IF(AND(INTRO!$E$37="Non endémique",INTRO!$E$41="Non endémique"),0,COUNTRY_INFO!P33) -> 0 | H33: =IF(AND(INTRO!$E$37="Non endémique",INTRO!$E$41="Non endémique"),0,COUNTRY_INFO!R33) -> 1 | I33: =IF(INTRO!$E$39="Non endémique",IF($G33=1,DEC!I33,0),IF($G33=1,IVM!G33,0)) -> 0 | J33: ALB | K33: =IF($J33="ALB", IF(INTRO!$E$39="Non endémique",IF($H33<>0,$D33*($H33-$G33),0),$D33*$H33), 0) -> 11916 | L33: 23888 | N33: 35804 | O33: =IF($J33="MBD", IF(INTRO!$E$39="Non endémique",IF($H33<>0,$D33*($H33-$G33),0),$D33*$H33),0) -> 0 | P33: 0 | R33: 0 | T33: 0 | U33: 0 | W33: 23888 | X33: 120 | Z33: 0 | AA33: 0
A34: =IF(AND(INTRO!$E$37="Non endémique",INTRO!$E$41="Non endémique")," ",IF(COUNTRY_INFO!A34=0," ",COUNTRY_INFO!A34)) -> Cote d'Ivoire | B34: =IF(AND(INTRO!$E$37="Non endémique",INTRO!$E$41="Non endémique")," ",IF(COUNTRY_INFO!B34=0," ",COUNTRY_INFO!B34)) -> BERE | C34: =IF(AND(INTRO!$E$37="Non endémique",INTRO!$E$41="Non endémique")," ",IF(COUNTRY_INFO!C34=0," ",COUNTRY_INFO!C34)) -> MANKONO | D34: =IF(AND(INTRO!$E$37="Non endémique",INTRO!$E$41="Non endémique"),0,IF(AND(OR(COUNTRY_INFO!$H34=0,COUNTRY_INFO!$H34=4,COUNTRY_INFO!$H34=99),OR(COUNTRY_INFO!$J34=0,COUNTRY_INFO!$J34=4)),0,COUNTRY_INFO!$E34)) -> 36042 | E34: =IF(AND(INTRO!$E$37="Non endémique",INTRO!$E$41="Non endémique"),0,IF(AND(OR(COUNTRY_INFO!$H34=0,COUNTRY_INFO!$H34=4,COUNTRY_INFO!$H34=99),OR(COUNTRY_INFO!$J34=0,COUNTRY_INFO!$J34=4)),0,COUNTRY_INFO!$F34)) -> 72255 | F34: 108297 | G34: =IF(AND(INTRO!$E$37="Non endémique",INTRO!$E$41="Non endémique"),0,COUNTRY_INFO!P34) -> 0 | H34: =IF(AND(INTRO!$E$37="Non endémique",INTRO!$E$41="Non endémique"),0,COUNTRY_INFO!R34) -> 1 | I34: =IF(INTRO!$E$39="Non endémique",IF($G34=1,DEC!I34,0),IF($G34=1,IVM!G34,0)) -> 0 | J34: ALB | K34: =IF($J34="ALB", IF(INTRO!$E$39="Non endémique",IF($H34<>0,$D34*($H34-$G34),0),$D34*$H34), 0) -> 36042 | L34: 72255 | N34: 108297 | O34: =IF($J34="MBD", IF(INTRO!$E$39="Non endémique",IF($H34<>0,$D34*($H34-$G34),0),$D34*$H34),0) -> 0 | P34: 0 | R34: 0 | T34: 0 | U34: 0 | W34: 72255 | X34: 362 | Z34: 0 | AA34: 0
A35: =IF(AND(INTRO!$E$37="Non endémique",INTRO!$E$41="Non endémique")," ",IF(COUNTRY_INFO!A35=0," ",COUNTRY_INFO!A35)) -> Cote d'Ivoire | B35: =IF(AND(INTRO!$E$37="Non endémique",INTRO!$E$41="Non endémique")," ",IF(COUNTRY_INFO!B35=0," ",COUNTRY_INFO!B35)) -> BOUKANI | C35: =IF(AND(INTRO!$E$37="Non endémique",INTRO!$E$41="Non endémique")," ",IF(COUNTRY_INFO!C35=0," ",COUNTRY_INFO!C35)) -> BOUNA | D35: =IF(AND(INTRO!$E$37="Non endémique",INTRO!$E$41="Non endémique"),0,IF(AND(OR(COUNTRY_INFO!$H35=0,COUNTRY_INFO!$H35=4,COUNTRY_INFO!$H35=99),OR(COUNTRY_INFO!$J35=0,COUNTRY_INFO!$J35=4)),0,COUNTRY_INFO!$E35)) -> 17648 | E35: =IF(AND(INTRO!$E$37="Non endémique",INTRO!$E$41="Non endémique"),0,IF(AND(OR(COUNTRY_INFO!$H35=0,COUNTRY_INFO!$H35=4,COUNTRY_INFO!$H35=99),OR(COUNTRY_INFO!$J35=0,COUNTRY_INFO!$J35=4)),0,COUNTRY_INFO!$F35)) -> 35379 | F35: 53027 | G35: =IF(AND(INTRO!$E$37="Non endémique",INTRO!$E$41="Non endémique"),0,COUNTRY_INFO!P35) -> 1 | H35: =IF(AND(INTRO!$E$37="Non endémique",INTRO!$E$41="Non endémique"),0,COUNTRY_INFO!R35) -> 0 | I35: =IF(INTRO!$E$39="Non endémique",IF($G35=1,DEC!I35,0),IF($G35=1,IVM!G35,0)) -> 116539 | J35: ALB | K35: =IF($J35="ALB", IF(INTRO!$E$39="Non endémique",IF($H35<>0,$D35*($H35-$G35),0),$D35*$H35), 0) -> 0 | L35: 0 | N35: 0 | O35: =IF($J35="MBD", IF(INTRO!$E$39="Non endémique",IF($H35<>0,$D35*($H35-$G35),0),$D35*$H35),0) -> 0 | P35: 0 | R35: 0 | T35: 116539 | U35: 583 | W35: 0 | X35: 0 | Z35: 0 | AA35: 0
A36: =IF(AND(INTRO!$E$37="Non endémique",INTRO!$E$41="Non endémique")," ",IF(COUNTRY_INFO!A36=0," ",COUNTRY_INFO!A36)) -> Cote d'Ivoire | B36: =IF(AND(INTRO!$E$37="Non endémique",INTRO!$E$41="Non endémique")," ",IF(COUNTRY_INFO!B36=0," ",COUNTRY_INFO!B36)) -> BOUKANI | C36: =IF(AND(INTRO!$E$37="Non endémique",INTRO!$E$41="Non endémique")," ",IF(COUNTRY_INFO!C36=0," ",COUNTRY_INFO!C36)) -> DOROPO | D36: =IF(AND(INTRO!$E$37="Non endémique",INTRO!$E$41="Non endémique"),0,IF(AND(OR(COUNTRY_INFO!$H36=0,COUNTRY_INFO!$H36=4,COUNTRY_INFO!$H36=99),OR(COUNTRY_INFO!$J36=0,COUNTRY_INFO!$J36=4)),0,COUNTRY_INFO!$E36)) -> 9911 | E36: =IF(AND(INTRO!$E$37="Non endémique",INTRO!$E$41="Non endémique"),0,IF(AND(OR(COUNTRY_INFO!$H36=0,COUNTRY_INFO!$H36=4,COUNTRY_INFO!$H36=99),OR(COUNTRY_INFO!$J36=0,COUNTRY_INFO!$J36=4)),0,COUNTRY_INFO!$F36)) -> 19868 | F36: 29779 | G36: =IF(AND(INTRO!$E$37="Non endémique",INTRO!$E$41="Non endémique"),0,COUNTRY_INFO!P36) -> 1 | H36: =IF(AND(INTRO!$E$37="Non endémique",INTRO!$E$41="Non endémique"),0,COUNTRY_INFO!R36) -> 0 | I36: =IF(INTRO!$E$39="Non endémique",IF($G36=1,DEC!I36,0),IF($G36=1,IVM!G36,0)) -> 65445 | J36: ALB | K36: =IF($J36="ALB", IF(INTRO!$E$39="Non endémique",IF($H36<>0,$D36*($H36-$G36),0),$D36*$H36), 0) -> 0 | L36: 0 | N36: 0 | O36: =IF($J36="MBD", IF(INTRO!$E$39="Non endémique",IF($H36<>0,$D36*($H36-$G36),0),$D36*$H36),0) -> 0 | P36: 0 | R36: 0 | T36: 65445 | U36: 328 | W36: 0 | X36: 0 | Z36: 0 | AA36: 0
A37: =IF(AND(INTRO!$E$37="Non endémique",INTRO!$E$41="Non endémique")," ",IF(COUNTRY_INFO!A37=0," ",COUNTRY_INFO!A37)) -> Cote d'Ivoire | B37: =IF(AND(INTRO!$E$37="Non endémique",INTRO!$E$41="Non endémique")," ",IF(COUNTRY_INFO!B37=0," ",COUNTRY_INFO!B37)) -> BOUKANI | C37: =IF(AND(INTRO!$E$37="Non endémique",INTRO!$E$41="Non endémique")," ",IF(COUNTRY_INFO!C37=0," ",COUNTRY_INFO!C37)) -> NASSIAN | D37: =IF(AND(INTRO!$E$37="Non endémique",INTRO!$E$41="Non endémique"),0,IF(AND(OR(COUNTRY_INFO!$H37=0,COUNTRY_INFO!$H37=4,COUNTRY_INFO!$H37=99),OR(COUNTRY_INFO!$J37=0,COUNTRY_INFO!$J37=4)),0,COUNTRY_INFO!$E37)) -> 6328 | E37: =IF(AND(INTRO!$E$37="Non endémique",INTRO!$E$41="Non endémique"),0,IF(AND(OR(COUNTRY_INFO!$H37=0,COUNTRY_INFO!$H37=4,COUNTRY_INFO!$H37=99),OR(COUNTRY_INFO!$J37=0,COUNTRY_INFO!$J37=4)),0,COUNTRY_INFO!$F37)) -> 12685 | F37: 19013 | G37: =IF(AND(INTRO!$E$37="Non endémique",INTRO!$E$41="Non endémique"),0,COUNTRY_INFO!P37) -> 1 | H37: =IF(AND(INTRO!$E$37="Non endémique",INTRO!$E$41="Non endémique"),0,COUNTRY_INFO!R37) -> 1 | I37: =IF(INTRO!$E$39="Non endémique",IF($G37=1,DEC!I37,0),IF($G37=1,IVM!G37,0)) -> 41786 | J37: ALB | K37: =IF($J37="ALB", IF(INTRO!$E$39="Non endémique",IF($H37<>0,$D37*($H37-$G37),0),$D37*$H37), 0) -> 6328 | L37: 0 | N37: 6328 | O37: =IF($J37="MBD", IF(INTRO!$E$39="Non endémique",IF($H37<>0,$D37*($H37-$G37),0),$D37*$H37),0) -> 0 | P37: 0 | R37: 0 | T37: 41786 | U37: 209 | W37: 0 | X37: 0 | Z37: 0 | AA37: 0
A38: =IF(AND(INTRO!$E$37="Non endémique",INTRO!$E$41="Non endémique")," ",IF(COUNTRY_INFO!A38=0," ",COUNTRY_INFO!A38)) -> Cote d'Ivoire | B38: =IF(AND(INTRO!$E$37="Non endémique",INTRO!$E$41="Non endémique")," ",IF(COUNTRY_INFO!B38=0," ",COUNTRY_INFO!B38)) -> BOUKANI | C38: =IF(AND(INTRO!$E$37="Non endémique",INTRO!$E$41="Non endémique")," ",IF(COUNTRY_INFO!C38=0," ",COUNTRY_INFO!C38)) -> TEHINI | D38: =IF(AND(INTRO!$E$37="Non endémique",INTRO!$E$41="Non endémique"),0,IF(AND(OR(COUNTRY_INFO!$H38=0,COUNTRY_INFO!$H38=4,COUNTRY_INFO!$H38=99),OR(COUNTRY_INFO!$J38=0,COUNTRY_INFO!$J38=4)),0,COUNTRY_INFO!$E38)) -> 6511 | E38: =IF(AND(INTRO!$E$37="Non endémique",INTRO!$E$41="Non endémique"),0,IF(AND(OR(COUNTRY_INFO!$H38=0,COUNTRY_INFO!$H38=4,COUNTRY_INFO!$H38=99),OR(COUNTRY_INFO!$J38=0,COUNTRY_INFO!$J38=4)),0,COUNTRY_INFO!$F38)) -> 13052 | F38: 19563 | G38: =IF(AND(INTRO!$E$37="Non endémique",INTRO!$E$41="Non endémique"),0,COUNTRY_INFO!P38) -> 1 | H38: =IF(AND(INTRO!$E$37="Non endémique",INTRO!$E$41="Non endémique"),0,COUNTRY_INFO!R38) -> 0 | I38: =IF(INTRO!$E$39="Non endémique",IF($G38=1,DEC!I38,0),IF($G38=1,IVM!G38,0)) -> 42994 | J38: ALB | K38: =IF($J38="ALB", IF(INTRO!$E$39="Non endémique",IF($H38<>0,$D38*($H38-$G38),0),$D38*$H38), 0) -> 0 | L38: 0 | N38: 0 | O38: =IF($J38="MBD", IF(INTRO!$E$39="Non endémique",IF($H38<>0,$D38*($H38-$G38),0),$D38*$H38),0) -> 0 | P38: 0 | R38: 0 | T38: 42994 | U38: 215 | W38: 0 | X38: 0 | Z38: 0 | AA38: 0
A39: =IF(AND(INTRO!$E$37="Non endémique",INTRO!$E$41="Non endémique")," ",IF(COUNTRY_INFO!A39=0," ",COUNTRY_INFO!A39)) -> Cote d'Ivoire | B39: =IF(AND(INTRO!$E$37="Non endémique",INTRO!$E$41="Non endémique")," ",IF(COUNTRY_INFO!B39=0," ",COUNTRY_INFO!B39)) -> CAVALLY | C39: =IF(AND(INTRO!$E$37="Non endémique",INTRO!$E$41="Non endémique")," ",IF(COUNTRY_INFO!C39=0," ",COUNTRY_INFO!C39)) -> BLOLEQUIN | D39: =IF(AND(INTRO!$E$37="Non endémique",INTRO!$E$41="Non endémique"),0,IF(AND(OR(COUNTRY_INFO!$H39=0,COUNTRY_INFO!$H39=4,COUNTRY_INFO!$H39=99),OR(COUNTRY_INFO!$J39=0,COUNTRY_INFO!$J39=4)),0,COUNTRY_INFO!$E39)) -> 17309 | E39: =IF(AND(INTRO!$E$37="Non endémique",INTRO!$E$41="Non endémique"),0,IF(AND(OR(COUNTRY_INFO!$H39=0,COUNTRY_INFO!$H39=4,COUNTRY_INFO!$H39=99),OR(COUNTRY_INFO!$J39=0,COUNTRY_INFO!$J39=4)),0,COUNTRY_INFO!$F39)) -> 34700 | F39: 52009 | G39: =IF(AND(INTRO!$E$37="Non endémique",INTRO!$E$41="Non endémique"),0,COUNTRY_INFO!P39) -> 1 | H39: =IF(AND(INTRO!$E$37="Non endémique",INTRO!$E$41="Non endémique"),0,COUNTRY_INFO!R39) -> 0 | I39: =IF(INTRO!$E$39="Non endémique",IF($G39=1,DEC!I39,0),IF($G39=1,IVM!G39,0)) -> 114302 | J39: ALB | K39: =IF($J39="ALB", IF(INTRO!$E$39="Non endémique",IF($H39<>0,$D39*($H39-$G39),0),$D39*$H39), 0) -> 0 | L39: 0 | N39: 0 | O39: =IF($J39="MBD", IF(INTRO!$E$39="Non endémique",IF($H39<>0,$D39*($H39-$G39),0),$D39*$H39),0) -> 0 | P39: 0 | R39: 0 | T39: 114302 | U39: 572 | W39: 0 | X39: 0 | Z39: 0 | AA39: 0
A40: =IF(AND(INTRO!$E$37="Non endémique",INTRO!$E$41="Non endémique")," ",IF(COUNTRY_INFO!A40=0," ",COUNTRY_INFO!A40)) -> Cote d'Ivoire | B40: =IF(AND(INTRO!$E$37="Non endémique",INTRO!$E$41="Non endémique")," ",IF(COUNTRY_INFO!B40=0," ",COUNTRY_INFO!B40)) -> CAVALLY | C40: =IF(AND(INTRO!$E$37="Non endémique",INTRO!$E$41="Non endémique")," ",IF(COUNTRY_INFO!C40=0," ",COUNTRY_INFO!C40)) -> GUIGLO | D40: =IF(AND(INTRO!$E$37="Non endémique",INTRO!$E$41="Non endémique"),0,IF(AND(OR(COUNTRY_INFO!$H40=0,COUNTRY_INFO!$H40=4,COUNTRY_INFO!$H40=99),OR(COUNTRY_INFO!$J40=0,COUNTRY_INFO!$J40=4)),0,COUNTRY_INFO!$E40)) -> 24797 | E40: =IF(AND(INTRO!$E$37="Non endémique",INTRO!$E$41="Non endémique"),0,IF(AND(OR(COUNTRY_INFO!$H40=0,COUNTRY_INFO!$H40=4,COUNTRY_INFO!$H40=99),OR(COUNTRY_INFO!$J40=0,COUNTRY_INFO!$J40=4)),0,COUNTRY_INFO!$F40)) -> 49711 | F40: 74508 | G40: =IF(AND(INTRO!$E$37="Non endémique",INTRO!$E$41="Non endémique"),0,COUNTRY_INFO!P40) -> 1 | H40: =IF(AND(INTRO!$E$37="Non endémique",INTRO!$E$41="Non endémique"),0,COUNTRY_INFO!R40) -> 0 | I40: =IF(INTRO!$E$39="Non endémique",IF($G40=1,DEC!I40,0),IF($G40=1,IVM!G40,0)) -> 163749 | J40: ALB | K40: =IF($J40="ALB", IF(INTRO!$E$39="Non endémique",IF($H40<>0,$D40*($H40-$G40),0),$D40*$H40), 0) -> 0 | L40: 0 | N40: 0 | O40: =IF($J40="MBD", IF(INTRO!$E$39="Non endémique",IF($H40<>0,$D40*($H40-$G40),0),$D40*$H40),0) -> 0 | P40: 0 | R40: 0 | T40: 163749 | U40: 819 | W40: 0 | X40: 0 | Z40: 0 | AA40: 0
A41: =IF(AND(INTRO!$E$37="Non endémique",INTRO!$E$41="Non endémique")," ",IF(COUNTRY_INFO!A41=0," ",COUNTRY_INFO!A41)) -> Cote d'Ivoire | B41: =IF(AND(INTRO!$E$37="Non endémique",INTRO!$E$41="Non endémique")," ",IF(COUNTRY_INFO!B41=0," ",COUNTRY_INFO!B41)) -> CAVALLY | C41: =IF(AND(INTRO!$E$37="Non endémique",INTRO!$E$41="Non endémique")," ",IF(COUNTRY_INFO!C41=0," ",COUNTRY_INFO!C41)) -> TAI | D41: =IF(AND(INTRO!$E$37="Non endémique",INTRO!$E$41="Non endémique"),0,IF(AND(OR(COUNTRY_INFO!$H41=0,COUNTRY_INFO!$H41=4,COUNTRY_INFO!$H41=99),OR(COUNTRY_INFO!$J41=0,COUNTRY_INFO!$J41=4)),0,COUNTRY_INFO!$E41)) -> 14448 | E41: =IF(AND(INTRO!$E$37="Non endémique",INTRO!$E$41="Non endémique"),0,IF(AND(OR(COUNTRY_INFO!$H41=0,COUNTRY_INFO!$H41=4,COUNTRY_INFO!$H41=99),OR(COUNTRY_INFO!$J41=0,COUNTRY_INFO!$J41=4)),0,COUNTRY_INFO!$F41)) -> 28964 | F41: =SUM(D41:E41) -> 43412 | G41: =IF(AND(INTRO!$E$37="Non endémique",INTRO!$E$41="Non endémique"),0,COUNTRY_INFO!P41) -> 1 | H41: =IF(AND(INTRO!$E$37="Non endémique",INTRO!$E$41="Non endémique"),0,COUNTRY_INFO!R41) -> 0 | I41: =IF(INTRO!$E$39="Non endémique",IF($G41=1,DEC!I41,0),IF($G41=1,IVM!G41,0)) -> 95409 | J41: ALB | K41: =IF($J41="ALB", IF(INTRO!$E$39="Non endémique",IF($H41<>0,$D41*($H41-$G41),0),$D41*$H41), 0) -> 0 | L41: =IF($J41="ALB", IF($H41<>0, IF($I41=0, $E41*$H41, $E41*($H41-$G41)),0), 0) -> 0 | N41: =SUM(K41:M41) -> 0 | O41: =IF($J41="MBD", IF(INTRO!$E$39="Non endémique",IF($H41<>0,$D41*($H41-$G41),0),$D41*$H41),0) -> 0 | P41: =IF($J41="MBD", IF($H41<>0,IF($I41=0, $E41*$H41, $E41*($H41-$G41)),0), 0 ) -> 0 | R41: =SUM(O41:Q41) -> 0 | T41: =IF($I41>$S41, $I41-$S41,0) -> 95409 | U41: =ROUNDUP($I41/200,0) -> 478 | W41: =IF($L41>$V41,$L41-$V41,0) -> 0 | X41: =ROUNDUP($L41/200,0) -> 0 | Z41: =IF($P41>$Y41,$P41-$Y41,0) -> 0 | AA41: =ROUNDUP($P41/150,0) -> 0
A42: =IF(AND(INTRO!$E$37="Non endémique",INTRO!$E$41="Non endémique")," ",IF(COUNTRY_INFO!A42=0," ",COUNTRY_INFO!A42)) -> Cote d'Ivoire | B42: =IF(AND(INTRO!$E$37="Non endémique",INTRO!$E$41="Non endémique")," ",IF(COUNTRY_INFO!B42=0," ",COUNTRY_INFO!B42)) -> CAVALLY | C42: =IF(AND(INTRO!$E$37="Non endémique",INTRO!$E$41="Non endémique")," ",IF(COUNTRY_INFO!C42=0," ",COUNTRY_INFO!C42)) -> TOULEPLEU | D42: =IF(AND(INTRO!$E$37="Non endémique",INTRO!$E$41="Non endémique"),0,IF(AND(OR(COUNTRY_INFO!$H42=0,COUNTRY_INFO!$H42=4,COUNTRY_INFO!$H42=99),OR(COUNTRY_INFO!$J42=0,COUNTRY_INFO!$J42=4)),0,COUNTRY_INFO!$E42)) -> 7999 | E42: =IF(AND(INTRO!$E$37="Non endémique",INTRO!$E$41="Non endémique"),0,IF(AND(OR(COUNTRY_INFO!$H42=0,COUNTRY_INFO!$H42=4,COUNTRY_INFO!$H42=99),OR(COUNTRY_INFO!$J42=0,COUNTRY_INFO!$J42=4)),0,COUNTRY_INFO!$F42)) -> 16035 | F42: 24034 | G42: =IF(AND(INTRO!$E$37="Non endémique",INTRO!$E$41="Non endémique"),0,COUNTRY_INFO!P42) -> 1 | H42: =IF(AND(INTRO!$E$37="Non endémique",INTRO!$E$41="Non endémique"),0,COUNTRY_INFO!R42) -> 0 | I42: =IF(INTRO!$E$39="Non endémique",IF($G42=1,DEC!I42,0),IF($G42=1,IVM!G42,0)) -> 52819 | J42: ALB | K42: =IF($J42="ALB", IF(INTRO!$E$39="Non endémique",IF($H42<>0,$D42*($H42-$G42),0),$D42*$H42), 0) -> 0 | L42: 0 | N42: 0 | O42: =IF($J42="MBD", IF(INTRO!$E$39="Non endémique",IF($H42<>0,$D42*($H42-$G42),0),$D42*$H42),0) -> 0 | P42: 0 | R42: 0 | T42: 52819 | U42: 265 | W42: 0 | X42: 0 | Z42: 0 | AA42: 0
A43: =IF(AND(INTRO!$E$37="Non endémique",INTRO!$E$41="Non endémique")," ",IF(COUNTRY_INFO!A43=0," ",COUNTRY_INFO!A43)) -> Cote d'Ivoire | B43: =IF(AND(INTRO!$E$37="Non endémique",INTRO!$E$41="Non endémique")," ",IF(COUNTRY_INFO!B43=0," ",COUNTRY_INFO!B43)) -> FOLON | C43: =IF(AND(INTRO!$E$37="Non endémique",INTRO!$E$41="Non endémique")," ",IF(COUNTRY_INFO!C43=0," ",COUNTRY_INFO!C43)) -> KANIASSO | D43: =IF(AND(INTRO!$E$37="Non endémique",INTRO!$E$41="Non endémique"),0,IF(AND(OR(COUNTRY_INFO!$H43=0,COUNTRY_INFO!$H43=4,COUNTRY_INFO!$H43=99),OR(COUNTRY_INFO!$J43=0,COUNTRY_INFO!$J43=4)),0,COUNTRY_INFO!$E43)) -> 8160 | E43: =IF(AND(INTRO!$E$37="Non endémique",INTRO!$E$41="Non endémique"),0,IF(AND(OR(COUNTRY_INFO!$H43=0,COUNTRY_INFO!$H43=4,COUNTRY_INFO!$H43=99),OR(COUNTRY_INFO!$J43=0,COUNTRY_INFO!$J43=4)),0,COUNTRY_INFO!$F43)) -> 16358 | F43: 24518 | G43: =IF(AND(INTRO!$E$37="Non endémique",INTRO!$E$41="Non endémique"),0,COUNTRY_INFO!P43) -> 0 | H43: =IF(AND(INTRO!$E$37="Non endémique",INTRO!$E$41="Non endémique"),0,COUNTRY_INFO!R43) -> 0 | I43: =IF(INTRO!$E$39="Non endémique",IF($G43=1,DEC!I43,0),IF($G43=1,IVM!G43,0)) -> 0 | J43: ALB | K43: =IF($J43="ALB", IF(INTRO!$E$39="Non endémique",IF($H43<>0,$D43*($H43-$G43),0),$D43*$H43), 0) -> 0 | L43: 0 | N43: 0 | O43: =IF($J43="MBD", IF(INTRO!$E$39="Non endémique",IF($H43<>0,$D43*($H43-$G43),0),$D43*$H43),0) -> 0 | P43: 0 | R43: 0 | T43: 0 | U43: 0 | W43: 0 | X43: 0 | Z43: 0 | AA43: 0
A44: =IF(AND(INTRO!$E$37="Non endémique",INTRO!$E$41="Non endémique")," ",IF(COUNTRY_INFO!A44=0," ",COUNTRY_INFO!A44)) -> Cote d'Ivoire | B44: =IF(AND(INTRO!$E$37="Non endémique",INTRO!$E$41="Non endémique")," ",IF(COUNTRY_INFO!B44=0," ",COUNTRY_INFO!B44)) -> FOLON | C44: =IF(AND(INTRO!$E$37="Non endémique",INTRO!$E$41="Non endémique")," ",IF(COUNTRY_INFO!C44=0," ",COUNTRY_INFO!C44)) -> MINIGNAN | D44: =IF(AND(INTRO!$E$37="Non endémique",INTRO!$E$41="Non endémique"),0,IF(AND(OR(COUNTRY_INFO!$H44=0,COUNTRY_INFO!$H44=4,COUNTRY_INFO!$H44=99),OR(COUNTRY_INFO!$J44=0,COUNTRY_INFO!$J44=4)),0,COUNTRY_INFO!$E44)) -> 6625 | E44: =IF(AND(INTRO!$E$37="Non endémique",INTRO!$E$41="Non endémique"),0,IF(AND(OR(COUNTRY_INFO!$H44=0,COUNTRY_INFO!$H44=4,COUNTRY_INFO!$H44=99),OR(COUNTRY_INFO!$J44=0,COUNTRY_INFO!$J44=4)),0,COUNTRY_INFO!$F44)) -> 13282 | F44: 19907 | G44: =IF(AND(INTRO!$E$37="Non endémique",INTRO!$E$41="Non endémique"),0,COUNTRY_INFO!P44) -> 0 | H44: =IF(AND(INTRO!$E$37="Non endémique",INTRO!$E$41="Non endémique"),0,COUNTRY_INFO!R44) -> 0 | I44: =IF(INTRO!$E$39="Non endémique",IF($G44=1,DEC!I44,0),IF($G44=1,IVM!G44,0)) -> 0 | J44: ALB | K44: =IF($J44="ALB", IF(INTRO!$E$39="Non endémique",IF($H44<>0,$D44*($H44-$G44),0),$D44*$H44), 0) -> 0 | L44: 0 | N44: 0 | O44: =IF($J44="MBD", IF(INTRO!$E$39="Non endémique",IF($H44<>0,$D44*($H44-$G44),0),$D44*$H44),0) -> 0 | P44: 0 | R44: 0 | T44: 0 | U44: 0 | W44: 0 | X44: 0 | Z44: 0 | AA44: 0
A45: =IF(AND(INTRO!$E$37="Non endémique",INTRO!$E$41="Non endémique")," ",IF(COUNTRY_INFO!A45=0," ",COUNTRY_INFO!A45)) -> Cote d'Ivoire | B45: =IF(AND(INTRO!$E$37="Non endémique",INTRO!$E$41="Non endémique")," ",IF(COUNTRY_INFO!B45=0," ",COUNTRY_INFO!B45)) -> GBEKE | C45: =IF(AND(INTRO!$E$37="Non endémique",INTRO!$E$41="Non endémique")," ",IF(COUNTRY_INFO!C45=0," ",COUNTRY_INFO!C45)) -> BEOUMI | D45: =IF(AND(INTRO!$E$37="Non endémique",INTRO!$E$41="Non endémique"),0,IF(AND(OR(COUNTRY_INFO!$H45=0,COUNTRY_INFO!$H45=4,COUNTRY_INFO!$H45=99),OR(COUNTRY_INFO!$J45=0,COUNTRY_INFO!$J45=4)),0,COUNTRY_INFO!$E45)) -> 22345 | E45: =IF(AND(INTRO!$E$37="Non endémique",INTRO!$E$41="Non endémique"),0,IF(AND(OR(COUNTRY_INFO!$H45=0,COUNTRY_INFO!$H45=4,COUNTRY_INFO!$H45=99),OR(COUNTRY_INFO!$J45=0,COUNTRY_INFO!$J45=4)),0,COUNTRY_INFO!$F45)) -> 44796 | F45: 67141 | G45: =IF(AND(INTRO!$E$37="Non endémique",INTRO!$E$41="Non endémique"),0,COUNTRY_INFO!P45) -> 1 | H45: =IF(AND(INTRO!$E$37="Non endémique",INTRO!$E$41="Non endémique"),0,COUNTRY_INFO!R45) -> 0 | I45: =IF(INTRO!$E$39="Non endémique",IF($G45=1,DEC!I45,0),IF($G45=1,IVM!G45,0)) -> 147559 | J45: ALB | K45: =IF($J45="ALB", IF(INTRO!$E$39="Non endémique",IF($H45<>0,$D45*($H45-$G45),0),$D45*$H45), 0) -> 0 | L45: 0 | N45: 0 | O45: =IF($J45="MBD", IF(INTRO!$E$39="Non endémique",IF($H45<>0,$D45*($H45-$G45),0),$D45*$H45),0) -> 0 | P45: 0 | R45: 0 | T45: 147559 | U45: 738 | W45: 0 | X45: 0 | Z45: 0 | AA45: 0
A46: =IF(AND(INTRO!$E$37="Non endémique",INTRO!$E$41="Non endémique")," ",IF(COUNTRY_INFO!A46=0," ",COUNTRY_INFO!A46)) -> Cote d'Ivoire | B46: =IF(AND(INTRO!$E$37="Non endémique",INTRO!$E$41="Non endémique")," ",IF(COUNTRY_INFO!B46=0," ",COUNTRY_INFO!B46)) -> GBEKE | C46: =IF(AND(INTRO!$E$37="Non endémique",INTRO!$E$41="Non endémique")," ",IF(COUNTRY_INFO!C46=0," ",COUNTRY_INFO!C46)) -> BOTRO | D46: =IF(AND(INTRO!$E$37="Non endémique",INTRO!$E$41="Non endémique"),0,IF(AND(OR(COUNTRY_INFO!$H46=0,COUNTRY_INFO!$H46=4,COUNTRY_INFO!$H46=99),OR(COUNTRY_INFO!$J46=0,COUNTRY_INFO!$J46=4)),0,COUNTRY_INFO!$E46)) -> 11799 | E46: =IF(AND(INTRO!$E$37="Non endémique",INTRO!$E$41="Non endémique"),0,IF(AND(OR(COUNTRY_INFO!$H46=0,COUNTRY_INFO!$H46=4,COUNTRY_INFO!$H46=99),OR(COUNTRY_INFO!$J46=0,COUNTRY_INFO!$J46=4)),0,COUNTRY_INFO!$F46)) -> 23653 | F46: 35452 | G46: =IF(AND(INTRO!$E$37="Non endémique",INTRO!$E$41="Non endémique"),0,COUNTRY_INFO!P46) -> 1 | H46: =IF(AND(INTRO!$E$37="Non endémique",INTRO!$E$41="Non endémique"),0,COUNTRY_INFO!R46) -> 0 | I46: =IF(INTRO!$E$39="Non endémique",IF($G46=1,DEC!I46,0),IF($G46=1,IVM!G46,0)) -> 77914 | J46: ALB | K46: =IF($J46="ALB", IF(INTRO!$E$39="Non endémique",IF($H46<>0,$D46*($H46-$G46),0),$D46*$H46), 0) -> 0 | L46: 0 | N46: 0 | O46: =IF($J46="MBD", IF(INTRO!$E$39="Non endémique",IF($H46<>0,$D46*($H46-$G46),0),$D46*$H46),0) -> 0 | P46: 0 | R46: 0 | T46: 77914 | U46: 390 | W46: 0 | X46: 0 | Z46: 0 | AA46: 0
A47: =IF(AND(INTRO!$E$37="Non endémique",INTRO!$E$41="Non endémique")," ",IF(COUNTRY_INFO!A47=0," ",COUNTRY_INFO!A47)) -> Cote d'Ivoire | B47: =IF(AND(INTRO!$E$37="Non endémique",INTRO!$E$41="Non endémique")," ",IF(COUNTRY_INFO!B47=0," ",COUNTRY_INFO!B47)) -> GBEKE | C47: =IF(AND(INTRO!$E$37="Non endémique",INTRO!$E$41="Non endémique")," ",IF(COUNTRY_INFO!C47=0," ",COUNTRY_INFO!C47)) -> BOUAKE NORD-EST | D47: =IF(AND(INTRO!$E$37="Non endémique",INTRO!$E$41="Non endémique"),0,IF(AND(OR(COUNTRY_INFO!$H47=0,COUNTRY_INFO!$H47=4,COUNTRY_INFO!$H47=99),OR(COUNTRY_INFO!$J47=0,COUNTRY_INFO!$J47=4)),0,COUNTRY_INFO!$E47)) -> 23328 | E47: =IF(AND(INTRO!$E$37="Non endémique",INTRO!$E$41="Non endémique"),0,IF(AND(OR(COUNTRY_INFO!$H47=0,COUNTRY_INFO!$H47=4,COUNTRY_INFO!$H47=99),OR(COUNTRY_INFO!$J47=0,COUNTRY_INFO!$J47=4)),0,COUNTRY_INFO!$F47)) -> 46767 | F47: 70095 | G47: =IF(AND(INTRO!$E$37="Non endémique",INTRO!$E$41="Non endémique"),0,COUNTRY_INFO!P47) -> 1 | H47: =IF(AND(INTRO!$E$37="Non endémique",INTRO!$E$41="Non endémique"),0,COUNTRY_INFO!R47) -> 1 | I47: =IF(INTRO!$E$39="Non endémique",IF($G47=1,DEC!I47,0),IF($G47=1,IVM!G47,0)) -> 154051 | J47: ALB | K47: =IF($J47="ALB", IF(INTRO!$E$39="Non endémique",IF($H47<>0,$D47*($H47-$G47),0),$D47*$H47), 0) -> 23328 | L47: 0 | N47: 23328 | O47: =IF($J47="MBD", IF(INTRO!$E$39="Non endémique",IF($H47<>0,$D47*($H47-$G47),0),$D47*$H47),0) -> 0 | P47: 0 | R47: 0 | T47: 154051 | U47: 771 | W47: 0 | X47: 0 | Z47: 0 | AA47: 0
A48: =IF(AND(INTRO!$E$37="Non endémique",INTRO!$E$41="Non endémique")," ",IF(COUNTRY_INFO!A48=0," ",COUNTRY_INFO!A48)) -> Cote d'Ivoire | B48: =IF(AND(INTRO!$E$37="Non endémique",INTRO!$E$41="Non endémique")," ",IF(COUNTRY_INFO!B48=0," ",COUNTRY_INFO!B48)) -> GBEKE | C48: =IF(AND(INTRO!$E$37="Non endémique",INTRO!$E$41="Non endémique")," ",IF(COUNTRY_INFO!C48=0," ",COUNTRY_INFO!C48)) -> BOUAKE NORD-OUEST | D48: =IF(AND(INTRO!$E$37="Non endémique",INTRO!$E$41="Non endémique"),0,IF(AND(OR(COUNTRY_INFO!$H48=0,COUNTRY_INFO!$H48=4,COUNTRY_INFO!$H48=99),OR(COUNTRY_INFO!$J48=0,COUNTRY_INFO!$J48=4)),0,COUNTRY_INFO!$E48)) -> 52198 | E48: =IF(AND(INTRO!$E$37="Non endémique",INTRO!$E$41="Non endémique"),0,IF(AND(OR(COUNTRY_INFO!$H48=0,COUNTRY_INFO!$H48=4,COUNTRY_INFO!$H48=99),OR(COUNTRY_INFO!$J48=0,COUNTRY_INFO!$J48=4)),0,COUNTRY_INFO!$F48)) -> 104643 | F48: 156841 | G48: =IF(AND(INTRO!$E$37="Non endémique",INTRO!$E$41="Non endémique"),0,COUNTRY_INFO!P48) -> 1 | H48: =IF(AND(INTRO!$E$37="Non endémique",INTRO!$E$41="Non endémique"),0,COUNTRY_INFO!R48) -> 0 | I48: =IF(INTRO!$E$39="Non endémique",IF($G48=1,DEC!I48,0),IF($G48=1,IVM!G48,0)) -> 344698 | J48: ALB | K48: =IF($J48="ALB", IF(INTRO!$E$39="Non endémique",IF($H48<>0,$D48*($H48-$G48),0),$D48*$H48), 0) -> 0 | L48: 0 | N48: 0 | O48: =IF($J48="MBD", IF(INTRO!$E$39="Non endémique",IF($H48<>0,$D48*($H48-$G48),0),$D48*$H48),0) -> 0 | P48: 0 | R48: 0 | T48: 344698 | U48: 1724 | W48: 0 | X48: 0 | Z48: 0 | AA48: 0
A49: =IF(AND(INTRO!$E$37="Non endémique",INTRO!$E$41="Non endémique")," ",IF(COUNTRY_INFO!A49=0," ",COUNTRY_INFO!A49)) -> Cote d'Ivoire | B49: =IF(AND(INTRO!$E$37="Non endémique",INTRO!$E$41="Non endémique")," ",IF(COUNTRY_INFO!B49=0," ",COUNTRY_INFO!B49)) -> GBEKE | C49: =IF(AND(INTRO!$E$37="Non endémique",INTRO!$E$41="Non endémique")," ",IF(COUNTRY_INFO!C49=0," ",COUNTRY_INFO!C49)) -> BOUAKE SUD | D49: =IF(AND(INTRO!$E$37="Non endémique",INTRO!$E$41="Non endémique"),0,IF(AND(OR(COUNTRY_INFO!$H49=0,COUNTRY_INFO!$H49=4,COUNTRY_INFO!$H49=99),OR(COUNTRY_INFO!$J49=0,COUNTRY_INFO!$J49=4)),0,COUNTRY_INFO!$E49)) -> 23110 | E49: =IF(AND(INTRO!$E$37="Non endémique",INTRO!$E$41="Non endémique"),0,IF(AND(OR(COUNTRY_INFO!$H49=0,COUNTRY_INFO!$H49=4,COUNTRY_INFO!$H49=99),OR(COUNTRY_INFO!$J49=0,COUNTRY_INFO!$J49=4)),0,COUNTRY_INFO!$F49)) -> 46329 | F49: 69439 | G49: =IF(AND(INTRO!$E$37="Non endémique",INTRO!$E$41="Non endémique"),0,COUNTRY_INFO!P49) -> 1 | H49: =IF(AND(INTRO!$E$37="Non endémique",INTRO!$E$41="Non endémique"),0,COUNTRY_INFO!R49) -> 0 | I49: =IF(INTRO!$E$39="Non endémique",IF($G49=1,DEC!I49,0),IF($G49=1,IVM!G49,0)) -> 152608 | J49: ALB | K49: =IF($J49="ALB", IF(INTRO!$E$39="Non endémique",IF($H49<>0,$D49*($H49-$G49),0),$D49*$H49), 0) -> 0 | L49: 0 | N49: 0 | O49: =IF($J49="MBD", IF(INTRO!$E$39="Non endémique",IF($H49<>0,$D49*($H49-$G49),0),$D49*$H49),0) -> 0 | P49: 0 | R49: 0 | T49: 152608 | U49: 764 | W49: 0 | X49: 0 | Z49: 0 | AA49: 0
A50: =IF(AND(INTRO!$E$37="Non endémique",INTRO!$E$41="Non endémique")," ",IF(COUNTRY_INFO!A50=0," ",COUNTRY_INFO!A50)) -> Cote d'Ivoire | B50: =IF(AND(INTRO!$E$37="Non endémique",INTRO!$E$41="Non endémique")," ",IF(COUNTRY_INFO!B50=0," ",COUNTRY_INFO!B50)) -> GBEKE | C50: =IF(AND(INTRO!$E$37="Non endémique",INTRO!$E$41="Non endémique")," ",IF(COUNTRY_INFO!C50=0," ",COUNTRY_INFO!C50)) -> SAKASSOU | D50: =IF(AND(INTRO!$E$37="Non endémique",INTRO!$E$41="Non endémique"),0,IF(AND(OR(COUNTRY_INFO!$H50=0,COUNTRY_INFO!$H50=4,COUNTRY_INFO!$H50=99),OR(COUNTRY_INFO!$J50=0,COUNTRY_INFO!$J50=4)),0,COUNTRY_INFO!$E50)) -> 13697 | E50: =IF(AND(INTRO!$E$37="Non endémique",INTRO!$E$41="Non endémique"),0,IF(AND(OR(COUNTRY_INFO!$H50=0,COUNTRY_INFO!$H50=4,COUNTRY_INFO!$H50=99),OR(COUNTRY_INFO!$J50=0,COUNTRY_INFO!$J50=4)),0,COUNTRY_INFO!$F50)) -> 27459 | F50: 41156 | G50: =IF(AND(INTRO!$E$37="Non endémique",INTRO!$E$41="Non endémique"),0,COUNTRY_INFO!P50) -> 1 | H50: =IF(AND(INTRO!$E$37="Non endémique",INTRO!$E$41="Non endémique"),0,COUNTRY_INFO!R50) -> 1 | I50: =IF(INTRO!$E$39="Non endémique",IF($G50=1,DEC!I50,0),IF($G50=1,IVM!G50,0)) -> 90450 | J50: ALB | K50: =IF($J50="ALB", IF(INTRO!$E$39="Non endémique",IF($H50<>0,$D50*($H50-$G50),0),$D50*$H50), 0) -> 13697 | L50: 0 | N50: 13697 | O50: =IF($J50="MBD", IF(INTRO!$E$39="Non endémique",IF($H50<>0,$D50*($H50-$G50),0),$D50*$H50),0) -> 0 | P50: 0 | R50: 0 | T50: 90450 | U50: 453 | W50: 0 | X50: 0 | Z50: 0 | AA50: 0
A51: =IF(AND(INTRO!$E$37="Non endémique",INTRO!$E$41="Non endémique")," ",IF(COUNTRY_INFO!A51=0," ",COUNTRY_INFO!A51)) -> Cote d'Ivoire | B51: =IF(AND(INTRO!$E$37="Non endémique",INTRO!$E$41="Non endémique")," ",IF(COUNTRY_INFO!B51=0," ",COUNTRY_INFO!B51)) -> GBOKLE | C51: =IF(AND(INTRO!$E$37="Non endémique",INTRO!$E$41="Non endémique")," ",IF(COUNTRY_INFO!C51=0," ",COUNTRY_INFO!C51)) -> FRESCO | D51: =IF(AND(INTRO!$E$37="Non endémique",INTRO!$E$41="Non endémique"),0,IF(AND(OR(COUNTRY_INFO!$H51=0,COUNTRY_INFO!$H51=4,COUNTRY_INFO!$H51=99),OR(COUNTRY_INFO!$J51=0,COUNTRY_INFO!$J51=4)),0,COUNTRY_INFO!$E51)) -> 14216 | E51: =IF(AND(INTRO!$E$37="Non endémique",INTRO!$E$41="Non endémique"),0,IF(AND(OR(COUNTRY_INFO!$H51=0,COUNTRY_INFO!$H51=4,COUNTRY_INFO!$H51=99),OR(COUNTRY_INFO!$J51=0,COUNTRY_INFO!$J51=4)),0,COUNTRY_INFO!$F51)) -> 28500 | F51: 42716 | G51: =IF(AND(INTRO!$E$37="Non endémique",INTRO!$E$41="Non endémique"),0,COUNTRY_INFO!P51) -> 1 | H51: =IF(AND(INTRO!$E$37="Non endémique",INTRO!$E$41="Non endémique"),0,COUNTRY_INFO!R51) -> 1 | I51: =IF(INTRO!$E$39="Non endémique",IF($G51=1,DEC!I51,0),IF($G51=1,IVM!G51,0)) -> 93879 | J51: ALB | K51: =IF($J51="ALB", IF(INTRO!$E$39="Non endémique",IF($H51<>0,$D51*($H51-$G51),0),$D51*$H51), 0) -> 14216 | L51: 0 | N51: 14216 | O51: =IF($J51="MBD", IF(INTRO!$E$39="Non endémique",IF($H51<>0,$D51*($H51-$G51),0),$D51*$H51),0) -> 0 | P51: 0 | R51: 0 | T51: 93879 | U51: 470 | W51: 0 | X51: 0 | Z51: 0 | AA51: 0
A52: =IF(AND(INTRO!$E$37="Non endémique",INTRO!$E$41="Non endémique")," ",IF(COUNTRY_INFO!A52=0," ",COUNTRY_INFO!A52)) -> Cote d'Ivoire | B52: =IF(AND(INTRO!$E$37="Non endémique",INTRO!$E$41="Non endémique")," ",IF(COUNTRY_INFO!B52=0," ",COUNTRY_INFO!B52)) -> GBOKLE | C52: =IF(AND(INTRO!$E$37="Non endémique",INTRO!$E$41="Non endémique")," ",IF(COUNTRY_INFO!C52=0," ",COUNTRY_INFO!C52)) -> SASSANDRA | D52: =IF(AND(INTRO!$E$37="Non endémique",INTRO!$E$41="Non endémique"),0,IF(AND(OR(COUNTRY_INFO!$H52=0,COUNTRY_INFO!$H52=4,COUNTRY_INFO!$H52=99),OR(COUNTRY_INFO!$J52=0,COUNTRY_INFO!$J52=4)),0,COUNTRY_INFO!$E52)) -> 42032 | E52: =IF(AND(INTRO!$E$37="Non endémique",INTRO!$E$41="Non endémique"),0,IF(AND(OR(COUNTRY_INFO!$H52=0,COUNTRY_INFO!$H52=4,COUNTRY_INFO!$H52=99),OR(COUNTRY_INFO!$J52=0,COUNTRY_INFO!$J52=4)),0,COUNTRY_INFO!$F52)) -> 84263 | F52: 126295 | G52: =IF(AND(INTRO!$E$37="Non endémique",INTRO!$E$41="Non endémique"),0,COUNTRY_INFO!P52) -> 1 | H52: =IF(AND(INTRO!$E$37="Non endémique",INTRO!$E$41="Non endémique"),0,COUNTRY_INFO!R52) -> 0 | I52: =IF(INTRO!$E$39="Non endémique",IF($G52=1,DEC!I52,0),IF($G52=1,IVM!G52,0)) -> 277564 | J52: ALB | K52: =IF($J52="ALB", IF(INTRO!$E$39="Non endémique",IF($H52<>0,$D52*($H52-$G52),0),$D52*$H52), 0) -> 0 | L52: 0 | N52: 0 | O52: =IF($J52="MBD", IF(INTRO!$E$39="Non endémique",IF($H52<>0,$D52*($H52-$G52),0),$D52*$H52),0) -> 0 | P52: 0 | R52: 0 | T52: 277564 | U52: 1388 | W52: 0 | X52: 0 | Z52: 0 | AA52: 0
A53: =IF(AND(INTRO!$E$37="Non endémique",INTRO!$E$41="Non endémique")," ",IF(COUNTRY_INFO!A53=0," ",COUNTRY_INFO!A53)) -> Cote d'Ivoire | B53: =IF(AND(INTRO!$E$37="Non endémique",INTRO!$E$41="Non endémique")," ",IF(COUNTRY_INFO!B53=0," ",COUNTRY_INFO!B53)) -> GOH | C53: =IF(AND(INTRO!$E$37="Non endémique",INTRO!$E$41="Non endémique")," ",IF(COUNTRY_INFO!C53=0," ",COUNTRY_INFO!C53)) -> GAGNOA 1 | D53: =IF(AND(INTRO!$E$37="Non endémique",INTRO!$E$41="Non endémique"),0,IF(AND(OR(COUNTRY_INFO!$H53=0,COUNTRY_INFO!$H53=4,COUNTRY_INFO!$H53=99),OR(COUNTRY_INFO!$J53=0,COUNTRY_INFO!$J53=4)),0,COUNTRY_INFO!$E53)) -> 58028 | E53: =IF(AND(INTRO!$E$37="Non endémique",INTRO!$E$41="Non endémique"),0,IF(AND(OR(COUNTRY_INFO!$H53=0,COUNTRY_INFO!$H53=4,COUNTRY_INFO!$H53=99),OR(COUNTRY_INFO!$J53=0,COUNTRY_INFO!$J53=4)),0,COUNTRY_INFO!$F53)) -> 116330 | F53: 174358 | G53: =IF(AND(INTRO!$E$37="Non endémique",INTRO!$E$41="Non endémique"),0,COUNTRY_INFO!P53) -> 1 | H53: =IF(AND(INTRO!$E$37="Non endémique",INTRO!$E$41="Non endémique"),0,COUNTRY_INFO!R53) -> 0 | I53: =IF(INTRO!$E$39="Non endémique",IF($G53=1,DEC!I53,0),IF($G53=1,IVM!G53,0)) -> 383195 | J53: ALB | K53: =IF($J53="ALB", IF(INTRO!$E$39="Non endémique",IF($H53<>0,$D53*($H53-$G53),0),$D53*$H53), 0) -> 0 | L53: 0 | N53: 0 | O53: =IF($J53="MBD", IF(INTRO!$E$39="Non endémique",IF($H53<>0,$D53*($H53-$G53),0),$D53*$H53),0) -> 0 | P53: 0 | R53: 0 | T53: 383195 | U53: 1916 | W53: 0 | X53: 0 | Z53: 0 | AA53: 0
A54: =IF(AND(INTRO!$E$37="Non endémique",INTRO!$E$41="Non endémique")," ",IF(COUNTRY_INFO!A54=0," ",COUNTRY_INFO!A54)) -> Cote d'Ivoire | B54: =IF(AND(INTRO!$E$37="Non endémique",INTRO!$E$41="Non endémique")," ",IF(COUNTRY_INFO!B54=0," ",COUNTRY_INFO!B54)) -> GOH | C54: =IF(AND(INTRO!$E$37="Non endémique",INTRO!$E$41="Non endémique")," ",IF(COUNTRY_INFO!C54=0," ",COUNTRY_INFO!C54)) -> GAGNOA 2 | D54: =IF(AND(INTRO!$E$37="Non endémique",INTRO!$E$41="Non endémique"),0,IF(AND(OR(COUNTRY_INFO!$H54=0,COUNTRY_INFO!$H54=4,COUNTRY_INFO!$H54=99),OR(COUNTRY_INFO!$J54=0,COUNTRY_INFO!$J54=4)),0,COUNTRY_INFO!$E54)) -> 38636 | E54: =IF(AND(INTRO!$E$37="Non endémique",INTRO!$E$41="Non endémique"),0,IF(AND(OR(COUNTRY_INFO!$H54=0,COUNTRY_INFO!$H54=4,COUNTRY_INFO!$H54=99),OR(COUNTRY_INFO!$J54=0,COUNTRY_INFO!$J54=4)),0,COUNTRY_INFO!$F54)) -> 77455 | F54: 116091 | G54: =IF(AND(INTRO!$E$37="Non endémique",INTRO!$E$41="Non endémique"),0,COUNTRY_INFO!P54) -> 1 | H54: =IF(AND(INTRO!$E$37="Non endémique",INTRO!$E$41="Non endémique"),0,COUNTRY_INFO!R54) -> 0 | I54: =IF(INTRO!$E$39="Non endémique",IF($G54=1,DEC!I54,0),IF($G54=1,IVM!G54,0)) -> 255140 | J54: ALB | K54: =IF($J54="ALB", IF(INTRO!$E$39="Non endémique",IF($H54<>0,$D54*($H54-$G54),0),$D54*$H54), 0) -> 0 | L54: 0 | N54: 0 | O54: =IF($J54="MBD", IF(INTRO!$E$39="Non endémique",IF($H54<>0,$D54*($H54-$G54),0),$D54*$H54),0) -> 0 | P54: 0 | R54: 0 | T54: 255140 | U54: 1276 | W54: 0 | X54: 0 | Z54: 0 | AA54: 0
